Workbook

Sheet Read Me
A1: 2022-23 Universal Monitoring System Randomized Sample School List
A3: The "LEA Sample School Summary" tab, identifies the total number of traditional, charter, private, and Title l CSI graded schools for each LEA.
A4: Each LEA has a tab based on the LEA's District/LEA number.
A5: The sample schools are highlighted using the following key:
A6: Traditional Sample Schools: blue
A7: Charter Sample School: green
A8: Private Sample School: yellow
A9: Title l CSI Sample Schools: coral
A11: Should a sample traditional or charter school no longer be receiving Title l funding, the next Title l funded traditional or charter school on the randomized school list will be substituted. If an alternative randomized sample school was required, please notify us through the universal monitoring system email account, UMS@fldoe.org
A13: For your sample private school, please apply the following guidelines:
A14: · Should the sample non-profit private school be eligible for Title l services, yet decline services, the LEA will provide evidence that the school was sent an invitation to participate and declined to participate in the Title I program services.
A15: · Should the sample non-profit private school not be eligible for Title l services, the LEA should please notify us through the universal monitoring system email account, UMS@fldoe.org for a replacement non-profit private school to use as the sample private school for the February Upload topic. A "Not eligible" example, might be a private school that was listed as "non-profit" that changed to a for profit status.
A17: Please use the directional arrows to move back and forth across the LEA tabs. The Charter LEAs and Lab School LEAs are at the end of the tabs.
A20: Please email UMS@fldoe.org for sample school replacements or questions. Schools in red font indicate a school that was originally a selected sample school that has subsequently been replaced.
A21: Please reach out to the applicable program office for specific program technical assistance.

Sheet LEA Sample
A1: LEA | B1: Sum of Membership (Ages 5-17) | C1: Size Grouping | D1: Traditional | E1: Charter | F1: Private | G1: CSI - Title l
A2: ALACHUA | B2: 26262 | C2: Medium | D2: 3 | E2: 1 | F2: 1 | G2: 1
A3: BAKER | B3: 4372 | C3: Small | D3: 1 | E3: 0 | F3: 1 | G3: 0
A4: BAY | B4: 23474 | C4: Medium | D4: 3 | E4: 1 | F4: 1 | G4: 1
A5: BRADFORD | B5: 2555 | C5: Small | D5: 1 | E5: 0 | F5: 1 | G5: 1
A6: BREVARD | B6: 64440 | C6: Large | D6: 4 | E6: 1 | F6: 1 | G6: 1
A7: BROWARD | B7: 227250 | C7: Very Large | D7: 5 | E7: 1 | F7: 1 | G7: 1
A8: CALHOUN | B8: 1899 | C8: Small | D8: 1 | E8: 0 | F8: 0 | G8: 0
A9: CHARLOTTE | B9: 14607 | C9: Small-Medium | D9: 2 | E9: 0 | F9: 1 | G9: 1
A10: CITRUS | B10: 13771 | C10: Small-Medium | D10: 2 | E10: 0 | F10: 1 | G10: 1
A11: CLAY | B11: 34354 | C11: Medium | D11: 3 | E11: 0 | F11: 1 | G11: 1
A12: COLLIER | B12: 43088 | C12: Large | D12: 4 | E12: 0 | F12: 1 | G12: 1
A13: COLUMBIA | B13: 8820 | C13: Small-Medium | D13: 2 | E13: 0 | F13: 1 | G13: 0
A14: DEAF/BLIND | B14: 354 | C14: Small | D14: 1 | E14: 0 | F14: 0 | G14: 1
A15: DESOTO | B15: 4184 | C15: Small | D15: 1 | E15: 0 | F15: 1 | G15: 1
A16: DIXIE | B16: 1835 | C16: Small | D16: 1 | E16: 1 | F16: 1 | G16: 0
A17: DUVAL | B17: 116654 | C17: Very Large | D17: 5 | E17: 1 | F17: 1 | G17: 1
A18: ESCAMBIA | B18: 34072 | C18: Medium | D18: 3 | E18: 1 | F18: 1 | G18: 1
A19: FAMU LAB SCH | B19: 559 | C19: Small | D19: 1 | E19: 0 | F19: 0 | G19: 0
A20: FAU LAB SCH | B20: 2554 | C20: Small | D20: 0 | E20: 1 | F20: 0 | G20: 0
A21: FL VIRTUAL | B21: 9736 | C21: Small-Medium | D21: 2 | E21: 0 | F21: 0 | G21: 0
A22: FLAGLER | B22: 11874 | C22: Small-Medium | D22: 2 | E22: 0 | F22: 1 | G22: 0
A23: FRANKLIN | B23: 1072 | C23: Small | D23: 1 | E23: 1 | F23: 1 | G23: 0
A24: FSU LAB SCH | B24: 2357 | C24: Small (TA) | D24: 0 | E24: 0 | F24: 0 | G24: 0
A25: GADSDEN | B25: 3975 | C25: Small | D25: 1 | E25: 1 | F25: 1 | G25: 1
A26: GILCHRIST | B26: 2435 | C26: Small | D26: 1 | E26: 0 | F26: 1 | G26: 0
A27: GLADES | B27: 1603 | C27: Small | D27: 1 | E27: 0 | F27: 1 | G27: 1
A28: GULF | B28: 1700 | C28: Small | D28: 1 | E28: 0 | F28: 1 | G28: 0
A29: HAMILTON | B29: 1439 | C29: Small | D29: 1 | E29: 0 | F29: 1 | G29: 1
A30: HARDEE | B30: 4526 | C30: Small | D30: 1 | E30: 0 | F30: 0 | G30: 0
A31: HENDRY | B31: 12687 | C31: Small-Medium | D31: 2 | E31: 0 | F31: 1 | G31: 0
A32: HERNANDO | B32: 21158 | C32: Medium | D32: 3 | E32: 0 | F32: 1 | G32: 1
A33: HIGHLANDS | B33: 10967 | C33: Small-Medium | D33: 2 | E33: 0 | F33: 1 | G33: 1
A34: HILLSBOROUGH | B34: 202229 | C34: Very Large | D34: 5 | E34: 1 | F34: 1 | G34: 1
A35: HOLMES | B35: 2875 | C35: Small | D35: 1 | E35: 0 | F35: 1 | G35: 0
A36: IDEA CHARTER | B36: 901 | C36: Small | D36: 0 | E36: 1 | F36: 0 | G36: 0
A37: INDIAN RIVER | B37: 15543 | C37: Small-Medium | D37: 2 | E37: 1 | F37: 1 | G37: 1
A38: JACKSON | B38: 5138 | C38: Small | D38: 1 | E38: 0 | F38: 1 | G38: 1
A39: JEFFERSON | B39: 615 | C39: Small | D39: 1 | E39: 0 | F39: 1 | G39: 0
A40: KIPP-MIAMI | B40: 931 | C40: Small | D40: 0 | E40: 1 | F40: 0 | G40: 0
A41: LAFAYETTE | B41: 1026 | C41: Small | D41: 1 | E41: 0 | F41: 1 | G41: 0
A42: LAKE | B42: 41290 | C42: Large | D42: 4 | E42: 1 | F42: 1 | G42: 1
A43: LAKE WALES CHARTER | B43: 4406 | C43: Small | D43: 0 | E43: 1 | F43: 0 | G43: 1
A44: LEE | B44: 87595 | C44: Large | D44: 4 | E44: 1 | F44: 1 | G44: 1
A45: LEON | B45: 29336 | C45: Medium | D45: 3 | E45: 1 | F45: 1 | G45: 1
A46: LEVY | B46: 4931 | C46: Small | D46: 1 | E46: 1 | F46: 1 | G46: 1
A47: LIBERTY | B47: 1153 | C47: Small | D47: 1 | E47: 0 | F47: 1 | G47: 0
A48: MADISON | B48: 2150 | C48: Small | D48: 1 | E48: 0 | F48: 1 | G48: 1
A49: MANATEE | B49: 45382 | C49: Large | D49: 4 | E49: 1 | F49: 1 | G49: 1
A50: MARION | B50: 38776 | C50: Medium | D50: 3 | E50: 1 | F50: 1 | G50: 1
A51: MARTIN | B51: 16648 | C51: Small-Medium | D51: 2 | E51: 0 | F51: 1 | G51: 1
A52: MIAMI-DADE | B52: 293870 | C52: Very Large | D52: 5 | E52: 1 | F52: 1 | G52: 1
A53: MONROE | B53: 7791 | C53: Small-Medium | D53: 2 | E53: 0 | F53: 1 | G53: 0
A54: NASSAU | B54: 11248 | C54: Small-Medium | D54: 2 | E54: 0 | F54: 1 | G54: 0
A55: OKALOOSA | B55: 29206 | C55: Medium | D55: 3 | E55: 1 | F55: 1 | G55: 1
A56: OKEECHOBEE | B56: 5665 | C56: Small | D56: 1 | E56: 0 | F56: 1 | G56: 1
A57: ORANGE | B57: 184252 | C57: Very Large | D57: 5 | E57: 1 | F57: 1 | G57: 1
A58: OSCEOLA | B58: 65629 | C58: Large | D58: 4 | E58: 1 | F58: 1 | G58: 1
A59: PALM BEACH | B59: 168629 | C59: Very Large | D59: 5 | E59: 1 | F59: 1 | G59: 1
A60: PASCO | B60: 73870 | C60: Large | D60: 4 | E60: 1 | F60: 1 | G60: 1
A61: PINELLAS | B61: 83489 | C61: Large | D61: 4 | E61: 1 | F61: 1 | G61: 1
A62: POLK | B62: 94812 | C62: Large | D62: 4 | E62: 1 | F62: 1 | G62: 1
A63: PUTNAM | B63: 9123 | C63: Small-Medium | D63: 2 | E63: 1 | F63: 1 | G63: 1
A64: SANTA ROSA | B64: 27343 | C64: Medium | D64: 3 | E64: 1 | F64: 1 | G64: 1
A65: SARASOTA | B65: 39733 | C65: Medium | D65: 3 | E65: 1 | F65: 1 | G65: 1
A66: SEMINOLE | B66: 59915 | C66: Large | D66: 4 | E66: 0 | F66: 1 | G66: 1
A67: SOUTH TECH CHARTER | B67: 1325 | C67: Small | D67: 0 | E67: 1 | F67: 0 | G67: 0
A68: ST. JOHNS | B68: 43863 | C68: Large | D68: 4 | E68: 0 | F68: 1 | G68: 1
A69: ST. LUCIE | B69: 39542 | C69: Medium | D69: 3 | E69: 1 | F69: 1 | G69: 1
A70: SUMTER | B70: 8024 | C70: Small-Medium | D70: 2 | E70: 0 | F70: 1 | G70: 1
A71: SUWANNEE | B71: 5155 | C71: Small | D71: 1 | E71: 0 | F71: 1 | G71: 0
A72: TAYLOR | B72: 2366 | C72: Small | D72: 1 | E72: 0 | F72: 1 | G72: 1
A73: UCP | B73: 958 | C73: Small | D73: 0 | E73: 1 | F73: 0 | G73: 1
A74: UF LAB SCH | B74: 1125 | C74: Small (TA) | D74: 0 | E74: 0 | F74: 0 | G74: 0
A75: UNION | B75: 2131 | C75: Small | D75: 1 | E75: 0 | F75: 1 | G75: 0
A76: VOLUSIA | B76: 56036 | C76: Large | D76: 4 | E76: 1 | F76: 1 | G76: 1
A77: WAKULLA | B77: 4422 | C77: Small | D77: 1 | E77: 1 | F77: 1 | G77: 0
A78: WALTON | B78: 10002 | C78: Small-Medium | D78: 2 | E78: 1 | F78: 1 | G78: 0
A79: WASHINGTON | B79: 2967 | C79: Small | D79: 1 | E79: 0 | F79: 1 | G79: 0

Sheet 2021-22 FS3 and Tl list Trad (hidden)
A1: ID | B1: LEANum | C1: LEAName | D1: Snum | E1: School Name | F1: Grade Code | G1: Grade Combination | H1: School Type Code | I1: School Type | J1: Neglected or Delinquent Code | K1: Neglected or Delinquent Yes/No | L1: New School Yes/No | M1: Charter Status Code | N1: Charter Yes/No | O1: Membership (Ages 5-17) | P1: # Reduced ( 3 ) | Q1: # Reduced Direct Cert. ( E ) | R1: # Free Direct Cert. ( D ) | S1: # Free ( F ) | T1: Provision 2 (4) | U1: #Free Direct Cert. ( C ) | V1: # Reduced Direct Cert. ( R ) | W1: LEANum | X1: LEAName | Y1: SNum | Z1: School Name | AA1: School type | AB1: Total Students | AC1: Number CLIF | AD1: %CLIF | AE1: Percent CLIF | AF1: Selection Code | AG1: Program Type | AH1: MTW Status
A2: 010031 | B2: 01 | C2: ALACHUA | D2: 0031 | E2: CAROLYN BEATRICE PARKER ELEMENTARY | F2: 15 | G2: K-5 | H2: 1 | I2: Elementary | J2: Z | K2: NO | L2: NO | M2: Z | N2: NO | O2: 569 | P2: 0 | Q2: 0 | R2: 0 | S2: 0 | T2: 0 | U2: 249 | V2: 10 | W2: 1 | X2: ALACHUA | Y2: 31 | Z2: CAROLYN BEATRICE PARKER ELEMENTARY | AA2: Elementary | AB2: 622 | AC2: 259 | AD2: =AC2/AB2 -> 0.4163987138 | AE2: 0.4163 | AF2: D | AG2: SW | AH2: Matching
A3: 010041 | B3: 01 | C3: ALACHUA | D3: 0041 | E3: STEPHEN FOSTER ELEMENTARY SCHL | F3: 15 | G3: K-5 | H3: 1 | I3: Elementary | J3: Z | K3: NO | L3: NO | M3: Z | N3: NO | O3: 469 | P3: 0 | Q3: 0 | R3: 0 | S3: 0 | T3: 0 | U3: 289 | V3: 15 | W3: 1 | X3: ALACHUA | Y3: 41 | Z3: STEPHEN FOSTER ELEMENTARY SCHL | AA3: Elementary | AB3: 473 | AC3: 256 | AD3: =AC3/AB3 -> 0.5412262156 | AE3: 0.5412 | AF3: B | AG3: SW | AH3: Matching
A4: 010052 | B4: 01 | C4: ALACHUA | D4: 0052 | E4: A.QUINN JONES CENTER | F4: 69 | G4: 6-12 | H4: 3 | I4: Senior High | J4: Z | K4: NO | L4: NO | M4: Z | N4: NO | O4: 64 | P4: 0 | Q4: 0 | R4: 0 | S4: 0 | T4: 0 | U4: 61 | V4: 0 | W4: 1 | X4: ALACHUA | Y4: 52 | Z4: A. QUINN JONES CENTER | AA4: Senior High | AB4: 59 | AC4: 54 | AD4: 0.9152542373 | AE4: 0.9152 | AF4: A | AG4: SW | AH4: Matching
A5: 010071 | B5: 01 | C5: ALACHUA | D5: 0071 | E5: LAKE FOREST ELEMENTARY SCHOOL | F5: 8 | G5: PREK-5 | H5: 1 | I5: Elementary | J5: Z | K5: NO | L5: NO | M5: Z | N5: NO | O5: 317 | P5: 0 | Q5: 0 | R5: 0 | S5: 0 | T5: 0 | U5: 287 | V5: 8 | W5: 1 | X5: ALACHUA | Y5: 71 | Z5: LAKE FOREST ELEMENTARY SCHOOL | AA5: Elementary | AB5: 392 | AC5: 346 | AD5: 0.8826530612 | AE5: 0.8826 | AF5: A | AG5: SW | AH5: Matching
A6: 010081 | B6: 01 | C6: ALACHUA | D6: 0081 | E6: SIDNEY LANIER CENTER | F6: 28 | G6: K-12 | H6: 4 | I6: Combination Elementary & Secondary | J6: Z | K6: NO | L6: NO | M6: Z | N6: NO | O6: 89 | P6: 0 | Q6: 0 | R6: 0 | S6: 0 | T6: 0 | U6: 67 | V6: 2 | W6: 1 | X6: ALACHUA | Y6: 81 | Z6: SIDNEY LANIER CENTER | AA6: Combination Elementary & Secondary | AB6: 100 | AC6: 73 | AD6: 0.73 | AE6: 0.73 | AF6: B | AG6: SW | AH6: Matching
A7: 010082 | B7: 01 | C7: ALACHUA | D7: 0082 | E7: HOSPITAL HOMEBOUND | F7: 28 | G7: K-12 | H7: 4 | I7: Combination Elementary & Secondary | J7: Z | K7: NO | L7: NO | M7: Z | N7: NO | O7: 50 | P7: 0 | Q7: 0 | R7: 3 | S7: 0 | T7: 0 | U7: 17 | V7: 2 | AH7: Non-matching
A8: 010091 | B8: 01 | C8: ALACHUA | D8: 0091 | E8: LITTLEWOOD ELEMENTARY SCHOOL | F8: 8 | G8: PREK-5 | H8: 1 | I8: Elementary | J8: Z | K8: NO | L8: NO | M8: Z | N8: NO | O8: 656 | P8: 0 | Q8: 0 | R8: 0 | S8: 0 | T8: 0 | U8: 311 | V8: 12 | W8: 1 | X8: ALACHUA | Y8: 91 | Z8: LITTLEWOOD ELEMENTARY SCHOOL | AA8: Elementary | AB8: 729 | AC8: 342 | AD8: 0.4691358025 | AE8: 0.4691 | AF8: D | AG8: SW | AH8: Matching
A9: 010101 | B9: 01 | C9: ALACHUA | D9: 0101 | E9: W. A. METCALFE ELEMENTARY SCHOOL | F9: 8 | G9: PREK-5 | H9: 1 | I9: Elementary | J9: Z | K9: NO | L9: NO | M9: Z | N9: NO | O9: 255 | P9: 0 | Q9: 0 | R9: 0 | S9: 0 | T9: 0 | U9: 223 | V9: 1 | W9: 1 | X9: ALACHUA | Y9: 101 | Z9: W. A. METCALFE ELEMENTARY SCHOOL | AA9: Elementary | AB9: 207 | AC9: 176 | AD9: 0.8502415459 | AE9: 0.8502 | AF9: A | AG9: SW | AH9: Matching
A10: 010111 | B10: 01 | C10: ALACHUA | D10: 0111 | E10: JOSEPH WILLIAMS ELEM. SCHOOL | F10: 15 | G10: K-5 | H10: 1 | I10: Elementary | J10: Z | K10: NO | L10: NO | M10: Z | N10: NO | O10: 479 | P10: 0 | Q10: 0 | R10: 0 | S10: 0 | T10: 0 | U10: 332 | V10: 4 | W10: 1 | X10: ALACHUA | Y10: 111 | Z10: JOSEPH WILLIAMS ELEM. SCHOOL | AA10: Elementary | AB10: 557 | AC10: 396 | AD10: 0.710951526 | AE10: 0.7109 | AF10: B | AG10: SW | AH10: Matching
A11: 010112 | B11: 01 | C11: ALACHUA | D11: 0112 | E11: ABRAHAM LINCOLN MIDDLE SCHOOL | F11: 67 | G11: 6-8 | H11: 2 | I11: Middle/Junior | J11: Z | K11: NO | L11: NO | M11: Z | N11: NO | O11: 712 | P11: 0 | Q11: 0 | R11: 0 | S11: 0 | T11: 0 | U11: 391 | V11: 8 | AH11: Non-matching
A12: 010121 | B12: 01 | C12: ALACHUA | D12: 0121 | E12: HOWARD W. BISHOP MIDDLE SCHOOL | F12: 67 | G12: 6-8 | H12: 2 | I12: Middle/Junior | J12: Z | K12: NO | L12: NO | M12: Z | N12: NO | O12: 702 | P12: 0 | Q12: 0 | R12: 0 | S12: 0 | T12: 0 | U12: 383 | V12: 14 | AH12: Non-matching
A13: 010141 | B13: 01 | C13: ALACHUA | D13: 0141 | E13: WESTWOOD MIDDLE SCHOOL | F13: 67 | G13: 6-8 | H13: 2 | I13: Middle/Junior | J13: Z | K13: NO | L13: NO | M13: Z | N13: NO | O13: 859 | P13: 0 | Q13: 0 | R13: 0 | S13: 0 | T13: 0 | U13: 439 | V13: 22 | AH13: Non-matching
A14: 010151 | B14: 01 | C14: ALACHUA | D14: 0151 | E14: GAINESVILLE HIGH SCHOOL | F14: 85 | G14: 9-12 | H14: 3 | I14: Senior High | J14: Z | K14: NO | L14: NO | M14: Z | N14: NO | O14: 1335 | P14: 0 | Q14: 0 | R14: 0 | S14: 0 | T14: 0 | U14: 530 | V14: 26 | AH14: Non-matching
A15: 010161 | B15: 01 | C15: ALACHUA | D15: 0161 | E15: ALACHUA ELEMENTARY SCHOOL | F15: 43 | G15: 3-5 | H15: 1 | I15: Elementary | J15: Z | K15: NO | L15: NO | M15: Z | N15: NO | O15: 312 | P15: 0 | Q15: 0 | R15: 0 | S15: 0 | T15: 0 | U15: 205 | V15: 5 | W15: 1 | X15: ALACHUA | Y15: 161 | Z15: ALACHUA ELEMENTARY SCHOOL | AA15: Elementary | AB15: 296 | AC15: 181 | AD15: 0.6114864865 | AE15: 0.6114 | AF15: B | AG15: SW | AH15: Matching
A16: 010171 | B16: 01 | C16: ALACHUA | D16: 0171 | E16: ARCHER ELEMENTARY | F16: 8 | G16: PREK-5 | H16: 1 | I16: Elementary | J16: Z | K16: NO | L16: NO | M16: Z | N16: NO | O16: 488 | P16: 0 | Q16: 0 | R16: 0 | S16: 0 | T16: 0 | U16: 275 | V16: 13 | W16: 1 | X16: ALACHUA | Y16: 171 | Z16: ARCHER ELEMENTARY | AA16: Elementary | AB16: 532 | AC16: 293 | AD16: 0.5507518797 | AE16: 0.5507 | AF16: B | AG16: SW | AH16: Matching
A17: 010201 | B17: 01 | C17: ALACHUA | D17: 0201 | E17: HAWTHORNE MIDDLE/HIGH SCHOOL | F17: 69 | G17: 6-12 | H17: 3 | I17: Senior High | J17: Z | K17: NO | L17: NO | M17: Z | N17: NO | O17: 404 | P17: 0 | Q17: 0 | R17: 0 | S17: 0 | T17: 0 | U17: 297 | V17: 6 | W17: 1 | X17: ALACHUA | Y17: 201 | Z17: HAWTHORNE MIDDLE/HIGH SCHOOL | AA17: Senior High | AB17: 337 | AC17: 232 | AD17: 0.6884272997 | AE17: 0.6884 | AF17: B | AG17: SW | AH17: Matching
A18: 010221 | B18: 01 | C18: ALACHUA | D18: 0221 | E18: A. L. MEBANE MIDDLE SCHOOL | F18: 67 | G18: 6-8 | H18: 2 | I18: Middle/Junior | J18: Z | K18: NO | L18: NO | M18: Z | N18: NO | O18: 325 | P18: 0 | Q18: 0 | R18: 0 | S18: 0 | T18: 0 | U18: 207 | V18: 4 | AH18: Non-matching
A19: 010261 | B19: 01 | C19: ALACHUA | D19: 0261 | E19: NEWBERRY HIGH SCHOOL | F19: 85 | G19: 9-12 | H19: 3 | I19: Senior High | J19: Z | K19: NO | L19: NO | M19: Z | N19: NO | O19: 501 | P19: 0 | Q19: 0 | R19: 0 | S19: 0 | T19: 0 | U19: 200 | V19: 18 | AH19: Non-matching
A20: 010271 | B20: 01 | C20: ALACHUA | D20: 0271 | E20: SANTA FE HIGH SCHOOL | F20: 85 | G20: 9-12 | H20: 3 | I20: Senior High | J20: Z | K20: NO | L20: NO | M20: Z | N20: NO | O20: 807 | P20: 0 | Q20: 0 | R20: 0 | S20: 0 | T20: 0 | U20: 321 | V20: 17 | AH20: Non-matching
A21: 010281 | B21: 01 | C21: ALACHUA | D21: 0281 | E21: CHESTER SHELL ELEMENTARY SCHL | F21: 8 | G21: PREK-5 | H21: 1 | I21: Elementary | J21: Z | K21: NO | L21: NO | M21: Z | N21: NO | O21: 360 | P21: 0 | Q21: 0 | R21: 0 | S21: 0 | T21: 0 | U21: 285 | V21: 8 | W21: 1 | X21: ALACHUA | Y21: 281 | Z21: CHESTER SHELL ELEMENTARY SCHL | AA21: Elementary | AB21: 363 | AC21: 296 | AD21: 0.8154269972 | AE21: 0.8154 | AF21: A | AG21: SW | AH21: Matching
A22: 010311 | B22: 01 | C22: ALACHUA | D22: 0311 | E22: MYRA TERWILLIGER ELEM. SCHOOL | F22: 8 | G22: PREK-5 | H22: 1 | I22: Elementary | J22: Z | K22: NO | L22: NO | M22: Z | N22: NO | O22: 506 | P22: 0 | Q22: 0 | R22: 0 | S22: 0 | T22: 0 | U22: 403 | V22: 8 | W22: 1 | X22: ALACHUA | Y22: 311 | Z22: MYRA TERWILLIGER ELEM. SCHOOL | AA22: Elementary | AB22: 481 | AC22: 378 | AD22: 0.7858627859 | AE22: 0.7858 | AF22: A | AG22: SW | AH22: Matching
A23: 010321 | B23: 01 | C23: ALACHUA | D23: 0321 | E23: IDYLWILD ELEMENTARY SCHOOL | F23: 8 | G23: PREK-5 | H23: 1 | I23: Elementary | J23: Z | K23: NO | L23: NO | M23: Z | N23: NO | O23: 682 | P23: 0 | Q23: 0 | R23: 0 | S23: 0 | T23: 0 | U23: 544 | V23: 11 | W23: 1 | X23: ALACHUA | Y23: 321 | Z23: IDYLWILD ELEMENTARY SCHOOL | AA23: Elementary | AB23: 679 | AC23: 501 | AD23: 0.7378497791 | AE23: 0.7378 | AF23: B | AG23: SW | AH23: Matching
A24: 010331 | B24: 01 | C24: ALACHUA | D24: 0331 | E24: GLEN SPRINGS ELEMENTARY SCHOOL | F24: 15 | G24: K-5 | H24: 1 | I24: Elementary | J24: Z | K24: NO | L24: NO | M24: Z | N24: NO | O24: 396 | P24: 0 | Q24: 0 | R24: 0 | S24: 0 | T24: 0 | U24: 180 | V24: 16 | W24: 1 | X24: ALACHUA | Y24: 331 | Z24: GLEN SPRINGS ELEMENTARY SCHOOL | AA24: Elementary | AB24: 456 | AC24: 208 | AD24: 0.4561403509 | AE24: 0.4561 | AF24: D | AG24: SW | AH24: Matching
A25: 010341 | B25: 01 | C25: ALACHUA | D25: 0341 | E25: MARJORIE KINNAN RAWLINGS ELEM | F25: 34 | G25: 1-5 | H25: 1 | I25: Elementary | J25: Z | K25: NO | L25: NO | M25: Z | N25: NO | O25: 402 | P25: 0 | Q25: 0 | R25: 0 | S25: 0 | T25: 0 | U25: 372 | V25: 2 | W25: 1 | X25: ALACHUA | Y25: 341 | Z25: MARJORIE KINNAN RAWLINGS ELEM | AA25: Elementary | AB25: 305 | AC25: 283 | AD25: 0.9278688525 | AE25: 0.9278 | AF25: A | AG25: SW | AH25: Matching
A26: 010411 | B26: 01 | C26: ALACHUA | D26: 0411 | E26: PROFESSIONAL ACADEMY MAGNET AT LOFTEN HIGH | F26: 14 | G26: PREK-12 | H26: 4 | I26: Combination Elementary & Secondary | J26: Z | K26: NO | L26: NO | M26: Z | N26: NO | O26: 190 | P26: 0 | Q26: 0 | R26: 0 | S26: 0 | T26: 0 | U26: 69 | V26: 7 | AH26: Non-matching
A27: 010421 | B27: 01 | C27: ALACHUA | D27: 0421 | E27: EASTSIDE HIGH SCHOOL | F27: 85 | G27: 9-12 | H27: 3 | I27: Senior High | J27: Z | K27: NO | L27: NO | M27: Z | N27: NO | O27: 846 | P27: 0 | Q27: 0 | R27: 0 | S27: 0 | T27: 0 | U27: 446 | V27: 16 | AH27: Non-matching
A28: 010431 | B28: 01 | C28: ALACHUA | D28: 0431 | E28: F. W. BUCHHOLZ HIGH SCHOOL | F28: 85 | G28: 9-12 | H28: 3 | I28: Senior High | J28: Z | K28: NO | L28: NO | M28: Z | N28: NO | O28: 1838 | P28: 1 | Q28: 11 | R28: 528 | S28: 5 | T28: 0 | U28: 0 | V28: 0 | AH28: Non-matching
A29: 010461 | B29: 01 | C29: ALACHUA | D29: 0461 | E29: HIGH SPRINGS COMMUNITY SCHOOL | F29: 27 | G29: PREK-8 | H29: 4 | I29: Combination Elementary & Secondary | J29: Z | K29: NO | L29: NO | M29: Z | N29: NO | O29: 950 | P29: 0 | Q29: 0 | R29: 0 | S29: 0 | T29: 0 | U29: 356 | V29: 17 | AH29: Non-matching
A30: 010481 | B30: 01 | C30: ALACHUA | D30: 0481 | E30: FORT CLARKE MIDDLE SCHOOL | F30: 67 | G30: 6-8 | H30: 2 | I30: Middle/Junior | J30: Z | K30: NO | L30: NO | M30: Z | N30: NO | O30: 941 | P30: 0 | Q30: 0 | R30: 0 | S30: 0 | T30: 0 | U30: 414 | V30: 14 | AH30: Non-matching
A31: 010482 | B31: 01 | C31: ALACHUA | D31: 0482 | E31: HIDDEN OAK ELEMENTARY SCHOOL | F31: 8 | G31: PREK-5 | H31: 1 | I31: Elementary | J31: Z | K31: NO | L31: NO | M31: Z | N31: NO | O31: 754 | P31: 0 | Q31: 5 | R31: 232 | S31: 0 | T31: 0 | U31: 0 | V31: 0 | AH31: Non-matching
A32: 010501 | B32: 01 | C32: ALACHUA | D32: 0501 | E32: KIMBALL WILES ELEM. SCHOOL | F32: 8 | G32: PREK-5 | H32: 1 | I32: Elementary | J32: Z | K32: NO | L32: NO | M32: Z | N32: NO | O32: 863 | P32: 0 | Q32: 0 | R32: 0 | S32: 0 | T32: 0 | U32: 306 | V32: 29 | W32: 1 | X32: ALACHUA | Y32: 501 | Z32: KIMBALL WILES ELEM. SCHOOL | AA32: Elementary | AB32: 918 | AC32: 333 | AD32: 0.362745098 | AE32: 0.3627 | AF32: D | AG32: TA | AH32: Matching
A33: 010502 | B33: 01 | C33: ALACHUA | D33: 0502 | E33: KANAPAHA MIDDLE SCHOOL | F33: 67 | G33: 6-8 | H33: 2 | I33: Middle/Junior | J33: Z | K33: NO | L33: NO | M33: Z | N33: NO | O33: 1133 | P33: 0 | Q33: 0 | R33: 0 | S33: 0 | T33: 0 | U33: 518 | V33: 14 | AH33: Non-matching
A34: 010510 | B34: 01 | C34: ALACHUA | D34: 0510 | E34: LAWTON M. CHILES ELEM. SCHOOL | F34: 8 | G34: PREK-5 | H34: 1 | I34: Elementary | J34: Z | K34: NO | L34: NO | M34: Z | N34: NO | O34: 725 | P34: 0 | Q34: 0 | R34: 0 | S34: 0 | T34: 0 | U34: 222 | V34: 3 | AH34: Non-matching
A35: 010520 | B35: 01 | C35: ALACHUA | D35: 0520 | E35: MEADOWBROOK ELEMENTARY SCHOOL | F35: 15 | G35: K-5 | H35: 1 | I35: Elementary | J35: Z | K35: NO | L35: NO | M35: Z | N35: NO | O35: 848 | P35: 0 | Q35: 4 | R35: 236 | S35: 1 | T35: 0 | U35: 0 | V35: 0 | AH35: Non-matching
A36: 010531 | B36: 01 | C36: ALACHUA | D36: 0531 | E36: NEWBERRY ELEMENTARY SCHOOL | F36: 16 | G36: PREK-4 | H36: 1 | I36: Elementary | J36: Z | K36: NO | L36: NO | M36: Z | N36: NO | O36: 621 | P36: 0 | Q36: 0 | R36: 0 | S36: 0 | T36: 0 | U36: 275 | V36: 19 | W36: 1 | X36: ALACHUA | Y36: 531 | Z36: NEWBERRY ELEMENTARY SCHOOL | AA36: Elementary | AB36: 621 | AC36: 294 | AD36: 0.4734299517 | AE36: 0.4734 | AF36: B | AG36: SW | AH36: Matching
A37: 010541 | B37: 01 | C37: ALACHUA | D37: 0541 | E37: C. W. NORTON ELEMENTARY SCHOOL | F37: 8 | G37: PREK-5 | H37: 1 | I37: Elementary | J37: Z | K37: NO | L37: NO | M37: Z | N37: NO | O37: 559 | P37: 0 | Q37: 0 | R37: 0 | S37: 0 | T37: 0 | U37: 265 | V37: 10 | W37: 1 | X37: ALACHUA | Y37: 541 | Z37: C. W. NORTON ELEMENTARY SCHOOL | AA37: Elementary | AB37: 625 | AC37: 301 | AD37: 0.4816 | AE37: 0.4816 | AF37: B | AG37: SW | AH37: Matching
A38: 010561 | B38: 01 | C38: ALACHUA | D38: 0561 | E38: WILLIAM S. TALBOT ELEM SCHOOL | F38: 8 | G38: PREK-5 | H38: 1 | I38: Elementary | J38: Z | K38: NO | L38: NO | M38: Z | N38: NO | O38: 634 | P38: 0 | Q38: 0 | R38: 0 | S38: 0 | T38: 0 | U38: 199 | V38: 11 | AH38: Non-matching
A39: 010571 | B39: 01 | C39: ALACHUA | D39: 0571 | E39: W. W. IRBY ELEMENTARY SCHOOL | F39: 4 | G39: PREK-2 | H39: 1 | I39: Elementary | J39: Z | K39: NO | L39: NO | M39: Z | N39: NO | O39: 353 | P39: 0 | Q39: 0 | R39: 0 | S39: 0 | T39: 0 | U39: 240 | V39: 5 | W39: 1 | X39: ALACHUA | Y39: 571 | Z39: W. W. IRBY ELEMENTARY SCHOOL | AA39: Elementary | AB39: 358 | AC39: 223 | AD39: 0.6229050279 | AE39: 0.6229 | AF39: B | AG39: SW | AH39: Matching
A40: 010591 | B40: 01 | C40: ALACHUA | D40: 0591 | E40: OAK VIEW MIDDLE SCHOOL | F40: 61 | G40: 5-8 | H40: 2 | I40: Middle/Junior | J40: Z | K40: NO | L40: NO | M40: Z | N40: NO | O40: 948 | P40: 0 | Q40: 0 | R40: 0 | S40: 0 | T40: 0 | U40: 401 | V40: 27 | AH40: Non-matching
A41: 010602 | B41: 01 | C41: ALACHUA | D41: 0602 | E41: ALACHUA ACADEMY | F41: 69 | G41: 6-12 | H41: 3 | I41: Senior High | J41: D | K41: YES | L41: NO | M41: Z | N41: NO | O41: 9 | P41: 0 | Q41: 0 | R41: 0 | S41: 0 | T41: 0 | U41: 0 | V41: 0 | AH41: Non-matching
A42: 010603 | B42: 01 | C42: ALACHUA | D42: 0603 | E42: AMIKIDS | F42: 69 | G42: 6-12 | H42: 3 | I42: Senior High | J42: C | K42: YES | L42: NO | M42: Z | N42: NO | O42: 11 | P42: 0 | Q42: 0 | R42: 0 | S42: 0 | T42: 0 | U42: 9 | V42: 0 | W42: 1 | X42: ALACHUA | Y42: 603 | Z42: AMI KIDS | AA42: Senior High | AB42: 15 | AC42: 15 | AD42: 1 | AE42: 1 | AF42: A | AG42: SW | AH42: Matching
A43: 010604 | B43: 01 | C43: ALACHUA | D43: 0604 | E43: PACE | F43: 69 | G43: 6-12 | H43: 3 | I43: Senior High | J43: C | K43: YES | L43: NO | M43: Z | N43: NO | O43: 47 | P43: 0 | Q43: 0 | R43: 0 | S43: 0 | T43: 0 | U43: 36 | V43: 1 | W43: 1 | X43: ALACHUA | Y43: 604 | Z43: PACE CENTER FOR GIRLS | AA43: Senior High | AB43: 46 | AC43: 42 | AD43: 0.9130434783 | AE43: 0.913 | AF43: A | AG43: SW | AH43: Matching
A44: 010950 | B44: 01 | C44: ALACHUA | D44: 0950 | E44: THE ONE ROOM SCHOOL HOUSE PROJECT | F44: 18 | G44: K-6 | H44: 1 | I44: Elementary | J44: Z | K44: NO | L44: NO | M44: R | N44: YES | O44: 183 | P44: 0 | Q44: 0 | R44: 0 | S44: 0 | T44: 0 | U44: 120 | V44: 4 | W44: 1 | X44: ALACHUA | Y44: 950 | Z44: THE ONE ROOM SCHOOL HOUSE PROJECT | AA44: Elementary | AB44: 196 | AC44: 129 | AD44: 0.6581632653 | AE44: 0.6581 | AF44: B | AG44: SW | AH44: Matching
A45: 010951 | B45: 01 | C45: ALACHUA | D45: 0951 | E45: MICANOPY AREA COOPERATIVE SCHOOL, INC. | F45: 8 | G45: PREK-5 | H45: 1 | I45: Elementary | J45: Z | K45: NO | L45: NO | M45: R | N45: YES | O45: 212 | P45: 9 | Q45: 1 | R45: 72 | S45: 0 | T45: 0 | U45: 0 | V45: 0 | AH45: Non-matching
A46: 010953 | B46: 01 | C46: ALACHUA | D46: 0953 | E46: CARING & SHARING LEARNING SCHOOL | F46: 56 | G46: PREK-6 | H46: 1 | I46: Elementary | J46: Z | K46: NO | L46: NO | M46: R | N46: YES | O46: 190 | P46: 0 | Q46: 0 | R46: 0 | S46: 0 | T46: 0 | U46: 140 | V46: 1 | W46: 1 | X46: ALACHUA | Y46: 953 | Z46: CARING & SHARING LEARNING SCHOOL | AA46: Elementary | AB46: 186 | AC46: 129 | AD46: 0.6935483871 | AE46: 0.6935 | AF46: B | AG46: SW | AH46: Matching
A47: 010955 | B47: 01 | C47: ALACHUA | D47: 0955 | E47: THE EINSTEIN SCHOOL, INC. | F47: 102 | G47: 2-8 | H47: 4 | I47: Combination Elementary & Secondary | J47: Z | K47: NO | L47: NO | M47: R | N47: YES | O47: 100 | P47: 0 | Q47: 0 | R47: 0 | S47: 0 | T47: 0 | U47: 56 | V47: 2 | AH47: Non-matching
A48: 010956 | B48: 01 | C48: ALACHUA | D48: 0956 | E48: EXPRESSIONS LEARNING ARTS ACAD | F48: 15 | G48: K-5 | H48: 1 | I48: Elementary | J48: Z | K48: NO | L48: NO | M48: R | N48: YES | O48: 83 | P48: 0 | Q48: 0 | R48: 0 | S48: 0 | T48: 0 | U48: 21 | V48: 3 | AH48: Non-matching
A49: 010957 | B49: 01 | C49: ALACHUA | D49: 0957 | E49: ALACHUA LEARNING ACADEMY ELEMENTARY | F49: 15 | G49: K-5 | H49: 1 | I49: Elementary | J49: Z | K49: NO | L49: NO | M49: R | N49: YES | O49: 107 | P49: 0 | Q49: 0 | R49: 34 | S49: 1 | T49: 0 | U49: 0 | V49: 0 | W49: 1 | X49: ALACHUA | Y49: 957 | Z49: ALACHUA LEARNING ACADEMY ELEMENTARY | AA49: Elementary | AB49: 115 | AC49: 46 | AD49: 0.4 | AE49: 0.4 | AF49: D | AG49: SW | AH49: Matching
A50: 010961 | B50: 01 | C50: ALACHUA | D50: 0961 | E50: MICANOPY ACADEMY | F50: 103 | G50: 6-11 | H50: 4 | I50: Combination Elementary & Secondary | J50: Z | K50: NO | L50: NO | M50: R | N50: YES | O50: 86 | P50: 0 | Q50: 0 | R50: 0 | S50: 0 | T50: 0 | U50: 45 | V50: 2 | AH50: Non-matching
A51: 010981 | B51: 01 | C51: ALACHUA | D51: 0981 | E51: HEALTHY LEARNING ACADEMY CHARTER SCHOOL | F51: 15 | G51: K-5 | H51: 1 | I51: Elementary | J51: Z | K51: NO | L51: NO | M51: R | N51: YES | O51: 105 | P51: 0 | Q51: 2 | R51: 12 | S51: 0 | T51: 0 | U51: 0 | V51: 0 | AH51: Non-matching
A52: 010991 | B52: 01 | C52: ALACHUA | D52: 0991 | E52: SIATECH AT GAINESVILLE | F52: 85 | G52: 9-12 | H52: 3 | I52: Senior High | J52: Z | K52: NO | L52: NO | M52: R | N52: YES | O52: 55 | P52: 0 | Q52: 0 | R52: 0 | S52: 0 | T52: 0 | U52: 40 | V52: 2 | AH52: Non-matching
A53: 011003 | B53: 01 | C53: ALACHUA | D53: 1003 | E53: NORTH CENTRAL FLORIDA PUBLIC CHARTER SCHOOL | F53: 85 | G53: 9-12 | H53: 3 | I53: Senior High | J53: Z | K53: NO | L53: NO | M53: R | N53: YES | O53: 91 | P53: 0 | Q53: 0 | R53: 0 | S53: 0 | T53: 0 | U53: 79 | V53: 0 | W53: 1 | X53: ALACHUA | Y53: 1003 | Z53: NORTH CENTRAL FLORIDA PUBLIC CHARTER SCHOOL | AA53: Senior High | AB53: 83 | AC53: 66 | AD53: 0.7951807229 | AE53: 0.7951 | AF53: A | AG53: SW | AH53: Matching
A54: 011011 | B54: 01 | C54: ALACHUA | D54: 1011 | E54: ALACHUA LEARNING ACADEMY MIDDLE | F54: 67 | G54: 6-8 | H54: 2 | I54: Middle/Junior | J54: Z | K54: NO | L54: NO | M54: R | N54: YES | O54: 47 | P54: 0 | Q54: 0 | R54: 18 | S54: 0 | T54: 0 | U54: 0 | V54: 0 | AH54: Non-matching
A55: 011012 | B55: 01 | C55: ALACHUA | D55: 1012 | E55: BOULWARE SPRINGS CHARTER | F55: 15 | G55: K-5 | H55: 1 | I55: Elementary | J55: Z | K55: NO | L55: NO | M55: R | N55: YES | O55: 155 | P55: 0 | Q55: 0 | R55: 0 | S55: 0 | T55: 0 | U55: 92 | V55: 6 | W55: 1 | X55: ALACHUA | Y55: 1012 | Z55: BOULWARE SPRINGS CHARTER | AA55: Elementary | AB55: 152 | AC55: 110 | AD55: 0.7236842105 | AE55: 0.7236 | AF55: B | AG55: SW | AH55: Matching
A56: 011013 | B56: 01 | C56: ALACHUA | D56: 1013 | E56: RESILIENCE CHARTER SCHOOL INC | F56: 67 | G56: 6-8 | H56: 2 | I56: Middle/Junior | J56: Z | K56: NO | L56: NO | M56: R | N56: YES | O56: 114 | P56: 0 | Q56: 0 | R56: 0 | S56: 0 | T56: 0 | U56: 78 | V56: 2 | AH56: Non-matching
A57: 017004 | B57: 01 | C57: ALACHUA | D57: 7004 | E57: ALACHUA ESCHOOL (VIRTUAL FRANCHISE) | F57: 69 | G57: 6-12 | H57: 3 | I57: Senior High | J57: Z | K57: NO | L57: NO | M57: Z | N57: NO | O57: 405 | P57: 1 | Q57: 2 | R57: 21 | S57: 0 | T57: 0 | U57: 158 | V57: 7 | AH57: Non-matching
A58: 017023 | B58: 01 | C58: ALACHUA | D58: 7023 | E58: ALACHUA VIRTUAL INSTRUC PROG(DIST PROVIDED) | F58: 8 | G58: PREK-5 | H58: 1 | I58: Elementary | J58: Z | K58: NO | L58: NO | M58: Z | N58: NO | O58: 303 | P58: 0 | Q58: 0 | R58: 8 | S58: 0 | T58: 0 | U58: 126 | V58: 4 | AH58: Non-matching
A59: 019029 | B59: 01 | C59: ALACHUA | D59: 9029 | E59: ALACHUA REGIONAL JUVENILE DETENTION CENTER | F59: 69 | G59: 6-12 | H59: 3 | I59: Senior High | J59: D | K59: YES | L59: NO | M59: Z | N59: NO | O59: 17 | P59: 0 | Q59: 0 | R59: 4 | S59: 0 | T59: 0 | U59: 0 | V59: 0 | AH59: Non-matching
A60: 020012 | B60: 02 | C60: BAKER | D60: 0012 | E60: BAKER COUNTY SENIOR HIGH SCHOOL | F60: 85 | G60: 9-12 | H60: 3 | I60: Senior High | J60: Z | K60: NO | L60: NO | M60: Z | N60: NO | O60: 998 | P60: 0 | Q60: 0 | R60: 0 | S60: 0 | T60: 0 | U60: 401 | V60: 4 | AH60: Non-matching
A61: 020013 | B61: 02 | C61: BAKER | D61: 0013 | E61: MACCLENNY ELEMENTARY SCHOOL | F61: 32 | G61: 1-3 | H61: 1 | I61: Elementary | J61: Z | K61: NO | L61: NO | M61: Z | N61: NO | O61: 602 | P61: 0 | Q61: 0 | R61: 0 | S61: 0 | T61: 0 | U61: 333 | V61: 0 | W61: 2 | X61: BAKER | Y61: 13 | Z61: MACCLENNY ELEMENTARY SCHOOL | AA61: Elementary | AB61: 628 | AC61: 348 | AD61: 0.5541401274 | AE61: 0.5541401274 | AF61: B | AG61: SW | AH61: Matching
A62: 020022 | B62: 02 | C62: BAKER | D62: 0022 | E62: PREK/KINDERGARTEN CENTER | F62: 12 | G62: PREK-K | H62: 1 | I62: Elementary | J62: Z | K62: NO | L62: NO | M62: Z | N62: NO | O62: 407 | P62: 0 | Q62: 0 | R62: 0 | S62: 0 | T62: 0 | U62: 236 | V62: 6 | AH62: Non-matching
A63: 020031 | B63: 02 | C63: BAKER | D63: 0031 | E63: J FRANKLYN KELLER INTERMEDIATE SCHOOL | F63: 51 | G63: 4-5 | H63: 1 | I63: Elementary | J63: Z | K63: NO | L63: NO | M63: Z | N63: NO | O63: 749 | P63: 0 | Q63: 0 | R63: 0 | S63: 0 | T63: 0 | U63: 412 | V63: 1 | W63: 2 | X63: BAKER | Y63: 31 | Z63: J FRANKLYN KELLER INTERMEDIATE SCHOOL | AA63: Elementary | AB63: 684 | AC63: 400 | AD63: 0.5847953216 | AE63: 0.5847953216 | AF63: B | AG63: SW | AH63: Matching
A64: 020032 | B64: 02 | C64: BAKER | D64: 0032 | E64: BAKER COUNTY MIDDLE SCHOOL | F64: 67 | G64: 6-8 | H64: 2 | I64: Middle/Junior | J64: Z | K64: NO | L64: NO | M64: Z | N64: NO | O64: 1086 | P64: 0 | Q64: 0 | R64: 0 | S64: 0 | T64: 0 | U64: 540 | V64: 2 | AH64: Non-matching
A65: 020091 | B65: 02 | C65: BAKER | D65: 0091 | E65: WESTSIDE ELEMENTARY SCHOOL | F65: 32 | G65: 1-3 | H65: 1 | I65: Elementary | J65: Z | K65: NO | L65: NO | M65: Z | N65: NO | O65: 529 | P65: 0 | Q65: 0 | R65: 0 | S65: 0 | T65: 0 | U65: 323 | V65: 1 | W65: 2 | X65: BAKER | Y65: 91 | Z65: WESTSIDE ELEMENTARY SCHOOL | AA65: Elementary | AB65: 529 | AC65: 320 | AD65: 0.6049149338 | AE65: 0.6049149338 | AF65: B | AG65: SW | AH65: Matching
A66: 027004 | B66: 02 | C66: BAKER | D66: 7004 | E66: BAKER COUNTY VIRTUAL FRANCHISE | F66: 69 | G66: 6-12 | H66: 3 | I66: Senior High | J66: Z | K66: NO | L66: NO | M66: Z | N66: NO | O66: 1 | P66: 0 | Q66: 0 | R66: 0 | S66: 0 | T66: 0 | U66: 1 | V66: 0 | AH66: Non-matching
A67: 030061 | B67: 03 | C67: BAY | D67: 0061 | E67: BAY HIGH SCHOOL | F67: 85 | G67: 9-12 | H67: 3 | I67: Senior High | J67: Z | K67: NO | L67: NO | M67: Z | N67: NO | O67: 801 | P67: 0 | Q67: 0 | R67: 0 | S67: 0 | T67: 0 | U67: 441 | V67: 6 | W67: 3 | X67: BAY | Y67: 61 | Z67: BAY HIGH SCHOOL | AA67: Senior High | AB67: 755 | AC67: 380 | AD67: =AC67/AB67 -> 0.5033112583 | AE67: 0.5033112583 | AF67: B | AG67: SW | AH67: Matching
A68: 030071 | B68: 03 | C68: BAY | D68: 0071 | E68: MERRITT BROWN MIDDLE SCHOOL | F68: 67 | G68: 6-8 | H68: 2 | I68: Middle/Junior | J68: Z | K68: NO | L68: NO | M68: Z | N68: NO | O68: 674 | P68: 0 | Q68: 0 | R68: 0 | S68: 0 | T68: 0 | U68: 363 | V68: 6 | W68: 3 | X68: BAY | Y68: 71 | Z68: MERRITT BROWN MIDDLE SCHOOL | AA68: Middle/Junior | AB68: 608 | AC68: 343 | AD68: 0.5641447368 | AE68: 0.5641447368 | AF68: B | AG68: SW | AH68: Matching
A69: 030081 | B69: 03 | C69: BAY | D69: 0081 | E69: HUTCHISON BEACH ELEMENTARY SCHOOL | F69: 8 | G69: PREK-5 | H69: 1 | I69: Elementary | J69: Z | K69: NO | L69: NO | M69: Z | N69: NO | O69: 675 | P69: 0 | Q69: 0 | R69: 0 | S69: 0 | T69: 0 | U69: 351 | V69: 2 | AH69: Non-matching
A70: 030091 | B70: 03 | C70: BAY | D70: 0091 | E70: CEDAR GROVE ELEMENTARY SCHOOL | F70: 8 | G70: PREK-5 | H70: 1 | I70: Elementary | J70: Z | K70: NO | L70: NO | M70: Z | N70: NO | O70: 505 | P70: 0 | Q70: 0 | R70: 0 | S70: 0 | T70: 0 | U70: 396 | V70: 0 | W70: 3 | X70: BAY | Y70: 91 | Z70: CEDAR GROVE ELEMENTARY SCHOOL | AA70: Elementary | AB70: 524 | AC70: 404 | AD70: 0.7709923664 | AE70: 0.7709923664 | AF70: A | AG70: SW | AH70: Matching
A71: 030101 | B71: 03 | C71: BAY | D71: 0101 | E71: CALLAWAY ELEMENTARY SCHOOL | F71: 8 | G71: PREK-5 | H71: 1 | I71: Elementary | J71: Z | K71: NO | L71: NO | M71: Z | N71: NO | O71: 430 | P71: 0 | Q71: 0 | R71: 0 | S71: 0 | T71: 0 | U71: 312 | V71: 0 | W71: 3 | X71: BAY | Y71: 101 | Z71: CALLAWAY ELEMENTARY SCHOOL | AA71: Elementary | AB71: 383 | AC71: 281 | AD71: 0.7336814621 | AE71: 0.7336814621 | AF71: B | AG71: SW | AH71: Matching
A72: 030111 | B72: 03 | C72: BAY | D72: 0111 | E72: MERRIAM CHERRY STREET ELEM. | F72: 8 | G72: PREK-5 | H72: 1 | I72: Elementary | J72: Z | K72: NO | L72: NO | M72: Z | N72: NO | O72: 445 | P72: 0 | Q72: 0 | R72: 0 | S72: 0 | T72: 0 | U72: 336 | V72: 0 | W72: 3 | X72: BAY | Y72: 111 | Z72: MERRIAM CHERRY STREET ELEM. | AA72: Elementary | AB72: 432 | AC72: 312 | AD72: 0.7222222222 | AE72: 0.7222222222 | AF72: B | AG72: SW | AH72: Matching
A73: 030131 | B73: 03 | C73: BAY | D73: 0131 | E73: LUCILLE MOORE ELEMENTARY SCHL | F73: 8 | G73: PREK-5 | H73: 1 | I73: Elementary | J73: Z | K73: NO | L73: NO | M73: Z | N73: NO | O73: 462 | P73: 0 | Q73: 0 | R73: 0 | S73: 0 | T73: 0 | U73: 362 | V73: 1 | W73: 3 | X73: BAY | Y73: 131 | Z73: LUCILLE MOORE ELEMENTARY SCHL | AA73: Elementary | AB73: 473 | AC73: 352 | AD73: 0.7441860465 | AE73: 0.7441860465 | AF73: B | AG73: SW | AH73: Matching
A74: 030151 | B74: 03 | C74: BAY | D74: 0151 | E74: HILAND PARK ELEMENTARY SCHOOL | F74: 8 | G74: PREK-5 | H74: 1 | I74: Elementary | J74: Z | K74: NO | L74: NO | M74: Z | N74: NO | O74: 564 | P74: 0 | Q74: 0 | R74: 0 | S74: 0 | T74: 0 | U74: 319 | V74: 1 | W74: 3 | X74: BAY | Y74: 151 | Z74: HILAND PARK ELEMENTARY SCHOOL | AA74: Elementary | AB74: 479 | AC74: 268 | AD74: 0.5594989562 | AE74: 0.5594989562 | AF74: B | AG74: SW | AH74: Matching
A75: 030161 | B75: 03 | C75: BAY | D75: 0161 | E75: JINKS MIDDLE SCHOOL | F75: 67 | G75: 6-8 | H75: 2 | I75: Middle/Junior | J75: Z | K75: NO | L75: NO | M75: Z | N75: NO | O75: 505 | P75: 0 | Q75: 0 | R75: 0 | S75: 0 | T75: 0 | U75: 348 | V75: 2 | W75: 3 | X75: BAY | Y75: 161 | Z75: JINKS MIDDLE SCHOOL | AA75: Middle/Junior | AB75: 425 | AC75: 325 | AD75: 0.7647058824 | AE75: 0.7647058824 | AF75: A | AG75: SW | AH75: Matching
A76: 030171 | B76: 03 | C76: BAY | D76: 0171 | E76: LYNN HAVEN ELEMENTARY SCHOOL | F76: 8 | G76: PREK-5 | H76: 1 | I76: Elementary | J76: Z | K76: NO | L76: NO | M76: Z | N76: NO | O76: 583 | P76: 0 | Q76: 0 | R76: 0 | S76: 0 | T76: 0 | U76: 260 | V76: 3 | AH76: Non-matching
A77: 030201 | B77: 03 | C77: BAY | D77: 0201 | E77: SURFSIDE MIDDLE SCHOOL | F77: 67 | G77: 6-8 | H77: 2 | I77: Middle/Junior | J77: Z | K77: NO | L77: NO | M77: Z | N77: NO | O77: 817 | P77: 0 | Q77: 0 | R77: 0 | S77: 0 | T77: 0 | U77: 342 | V77: 3 | AH77: Non-matching
A78: 030211 | B78: 03 | C78: BAY | D78: 0211 | E78: PARKER ELEMENTARY SCHOOL | F78: 8 | G78: PREK-5 | H78: 1 | I78: Elementary | J78: Z | K78: NO | L78: NO | M78: Z | N78: NO | O78: 693 | P78: 0 | Q78: 0 | R78: 0 | S78: 0 | T78: 0 | U78: 524 | V78: 3 | W78: 3 | X78: BAY | Y78: 211 | Z78: PARKER ELEMENTARY SCHOOL | AA78: Elementary | AB78: 581 | AC78: 441 | AD78: 0.7590361446 | AE78: 0.7590361446 | AF78: A | AG78: SW | AH78: Matching
A79: 030221 | B79: 03 | C79: BAY | D79: 0221 | E79: SOUTHPORT ELEMENTARY SCHOOL | F79: 8 | G79: PREK-5 | H79: 1 | I79: Elementary | J79: Z | K79: NO | L79: NO | M79: Z | N79: NO | O79: 457 | P79: 0 | Q79: 0 | R79: 0 | S79: 0 | T79: 0 | U79: 244 | V79: 4 | W79: 3 | X79: BAY | Y79: 221 | Z79: SOUTHPORT ELEMENTARY SCHOOL | AA79: Elementary | AB79: 410 | AC79: 195 | AD79: 0.4756097561 | AE79: 0.4756097561 | AF79: B | AG79: SW | AH79: Matching
A80: 030241 | B80: 03 | C80: BAY | D80: 0241 | E80: ST. ANDREW SCHOOL AT OAKLAND TERRACE | F80: 15 | G80: K-5 | H80: 1 | I80: Elementary | J80: Z | K80: NO | L80: NO | M80: Z | N80: NO | O80: 114 | P80: 0 | Q80: 0 | R80: 0 | S80: 0 | T80: 0 | U80: 92 | V80: 0 | W80: 3 | X80: BAY | Y80: 241 | Z80: ST. ANDREW SCHOOL AT OAKLAND TERRACE | AA80: Elementary | AB80: 108 | AC80: 86 | AD80: 0.7962962963 | AE80: 0.7962962963 | AF80: A | AG80: SW | AH80: Matching
A81: 030251 | B81: 03 | C81: BAY | D81: 0251 | E81: WALLER ELEMENTARY SCHOOL | F81: 8 | G81: PREK-5 | H81: 1 | I81: Elementary | J81: Z | K81: NO | L81: NO | M81: Z | N81: NO | O81: 367 | P81: 0 | Q81: 0 | R81: 0 | S81: 0 | T81: 0 | U81: 288 | V81: 1 | W81: 3 | X81: BAY | Y81: 251 | Z81: WALLER ELEMENTARY SCHOOL | AA81: Elementary | AB81: 356 | AC81: 267 | AD81: 0.75 | AE81: 0.75 | AF81: B | AG81: SW | AH81: Matching
A82: 030262 | B82: 03 | C82: BAY | D82: 0262 | E82: WEST BAY ELEMENTARY SCHOOL | F82: 15 | G82: K-5 | H82: 1 | I82: Elementary | J82: Z | K82: NO | L82: NO | M82: Z | N82: NO | O82: 309 | P82: 0 | Q82: 0 | R82: 0 | S82: 0 | T82: 0 | U82: 160 | V82: 0 | W82: 3 | X82: BAY | Y82: 262 | Z82: WEST BAY ELEMENTARY SCHOOL | AA82: Elementary | AB82: 304 | AC82: 160 | AD82: 0.5263157895 | AE82: 0.5263157895 | AF82: B | AG82: SW | AH82: Matching
A83: 030281 | B83: 03 | C83: BAY | D83: 0281 | E83: MARGARET K. LEWIS IN MILLVILLE | F83: 14 | G83: PREK-12 | H83: 4 | I83: Combination Elementary & Secondary | J83: Z | K83: NO | L83: NO | M83: Z | N83: NO | O83: 123 | P83: 0 | Q83: 0 | R83: 0 | S83: 0 | T83: 0 | U83: 66 | V83: 1 | W83: 3 | X83: BAY | Y83: 281 | Z83: MARGARET K. LEWIS IN MILLVILLE | AA83: Combination Elementary & Secondary | AB83: 120 | AC83: 74 | AD83: 0.6166666667 | AE83: 0.6166666667 | AF83: B | AG83: SW | AH83: Matching
A84: 030331 | B84: 03 | C84: BAY | D84: 0331 | E84: MOWAT MIDDLE SCHOOL | F84: 67 | G84: 6-8 | H84: 2 | I84: Middle/Junior | J84: Z | K84: NO | L84: NO | M84: Z | N84: NO | O84: 846 | P84: 0 | Q84: 0 | R84: 0 | S84: 0 | T84: 0 | U84: 397 | V84: 9 | AH84: Non-matching
A85: 030341 | B85: 03 | C85: BAY | D85: 0341 | E85: RUTHERFORD HIGH SCHOOL | F85: 69 | G85: 6-12 | H85: 3 | I85: Senior High | J85: Z | K85: NO | L85: NO | M85: Z | N85: NO | O85: 1087 | P85: 0 | Q85: 0 | R85: 0 | S85: 0 | T85: 0 | U85: 710 | V85: 7 | W85: 3 | X85: BAY | Y85: 341 | Z85: RUTHERFORD HIGH SCHOOL | AA85: Senior High | AB85: 1151 | AC85: 761 | AD85: 0.661164205 | AE85: 0.661164205 | AF85: B | AG85: SW | AH85: Matching
A86: 030461 | B86: 03 | C86: BAY | D86: 0461 | E86: DEER POINT ELEMENTARY SCHOOL | F86: 8 | G86: PREK-5 | H86: 1 | I86: Elementary | J86: Z | K86: NO | L86: NO | M86: Z | N86: NO | O86: 583 | P86: 0 | Q86: 0 | R86: 0 | S86: 0 | T86: 0 | U86: 261 | V86: 1 | AH86: Non-matching
A87: 030471 | B87: 03 | C87: BAY | D87: 0471 | E87: NORTHSIDE ELEMENTARY SCHOOL | F87: 8 | G87: PREK-5 | H87: 1 | I87: Elementary | J87: Z | K87: NO | L87: NO | M87: Z | N87: NO | O87: 618 | P87: 0 | Q87: 0 | R87: 0 | S87: 0 | T87: 0 | U87: 387 | V87: 2 | W87: 3 | X87: BAY | Y87: 471 | Z87: NORTHSIDE ELEMENTARY SCHOOL | AA87: Elementary | AB87: 554 | AC87: 347 | AD87: 0.6263537906 | AE87: 0.6263537906 | AF87: B | AG87: SW | AH87: Matching
A88: 030491 | B88: 03 | C88: BAY | D88: 0491 | E88: A. CRAWFORD MOSLEY HIGH SCHOOL | F88: 85 | G88: 9-12 | H88: 3 | I88: Senior High | J88: Z | K88: NO | L88: NO | M88: Z | N88: NO | O88: 1438 | P88: 0 | Q88: 0 | R88: 0 | S88: 0 | T88: 0 | U88: 446 | V88: 14 | AH88: Non-matching
A89: 030501 | B89: 03 | C89: BAY | D89: 0501 | E89: TYNDALL ACADEMY | F89: 27 | G89: PREK-8 | H89: 4 | I89: Combination Elementary & Secondary | J89: Z | K89: NO | L89: NO | M89: Z | N89: NO | O89: 533 | P89: 0 | Q89: 0 | R89: 0 | S89: 0 | T89: 0 | U89: 125 | V89: 1 | AH89: Non-matching
A90: 030511 | B90: 03 | C90: BAY | D90: 0511 | E90: TOMMY SMITH ELEMENTARY SCHOOL | F90: 8 | G90: PREK-5 | H90: 1 | I90: Elementary | J90: Z | K90: NO | L90: NO | M90: Z | N90: NO | O90: 537 | P90: 0 | Q90: 0 | R90: 0 | S90: 0 | T90: 0 | U90: 283 | V90: 1 | W90: 3 | X90: BAY | Y90: 511 | Z90: TOMMY SMITH ELEMENTARY SCHOOL | AA90: Elementary | AB90: 475 | AC90: 249 | AD90: 0.5242105263 | AE90: 0.5242105263 | AF90: B | AG90: SW | AH90: Matching
A91: 030521 | B91: 03 | C91: BAY | D91: 0521 | E91: PATRONIS ELEMENTARY SCHOOL | F91: 8 | G91: PREK-5 | H91: 1 | I91: Elementary | J91: Z | K91: NO | L91: NO | M91: Z | N91: NO | O91: 642 | P91: 0 | Q91: 0 | R91: 0 | S91: 0 | T91: 0 | U91: 226 | V91: 2 | AH91: Non-matching
A92: 030531 | B92: 03 | C92: BAY | D92: 0531 | E92: NEW HORIZONS LEARNING CENTER | F92: 69 | G92: 6-12 | H92: 3 | I92: Senior High | J92: Z | K92: NO | L92: NO | M92: Z | N92: NO | O92: 91 | P92: 0 | Q92: 0 | R92: 0 | S92: 0 | T92: 0 | U92: 68 | V92: 1 | W92: 3 | X92: BAY | Y92: 531 | Z92: NEW HORIZONS LEARNING CENTER | AA92: Senior High | AB92: 107 | AC92: 87 | AD92: 0.8130841121 | AE92: 0.8130841121 | AF92: A | AG92: SW | AH92: Matching
A93: 030541 | B93: 03 | C93: BAY | D93: 0541 | E93: DEANE BOZEMAN SCHOOL | F93: 14 | G93: PREK-12 | H93: 4 | I93: Combination Elementary & Secondary | J93: Z | K93: NO | L93: NO | M93: Z | N93: NO | O93: 1315 | P93: 0 | Q93: 0 | R93: 0 | S93: 0 | T93: 0 | U93: 574 | V93: 20 | AH93: Non-matching
A94: 030551 | B94: 03 | C94: BAY | D94: 0551 | E94: J.R. ARNOLD HIGH SCHOOL | F94: 37 | G94: PREK, 9-12 | H94: 3 | I94: Senior High | J94: Z | K94: NO | L94: NO | M94: Z | N94: NO | O94: 1127 | P94: 0 | Q94: 0 | R94: 0 | S94: 0 | T94: 0 | U94: 327 | V94: 7 | AH94: Non-matching
A95: 030571 | B95: 03 | C95: BAY | D95: 0571 | E95: BREAKFAST POINT ACADEMY | F95: 27 | G95: PREK-8 | H95: 4 | I95: Combination Elementary & Secondary | J95: Z | K95: NO | L95: NO | M95: Z | N95: NO | O95: 1060 | P95: 0 | Q95: 0 | R95: 0 | S95: 0 | T95: 0 | U95: 405 | V95: 2 | AH95: Non-matching
A96: 030581 | B96: 03 | C96: BAY | D96: 0581 | E96: ROSENWALD HIGH SCHOOL | F96: 69 | G96: 6-12 | H96: 3 | I96: Senior High | J96: Z | K96: NO | L96: NO | M96: Z | N96: NO | O96: 170 | P96: 0 | Q96: 0 | R96: 0 | S96: 0 | T96: 0 | U96: 130 | V96: 2 | W96: 3 | X96: BAY | Y96: 581 | Z96: ROSENWALD HIGH SCHOOL | AA96: Senior High | AB96: 142 | AC96: 114 | AD96: 0.8028169014 | AE96: 0.8028169014 | AF96: A | AG96: SW | AH96: Matching
A97: 030602 | B97: 03 | C97: BAY | D97: 0602 | E97: BAY REG.JUVENILE DETENTION CTR | F97: 28 | G97: K-12 | H97: 4 | I97: Combination Elementary & Secondary | J97: D | K97: YES | L97: NO | M97: Z | N97: NO | O97: 15 | P97: 0 | Q97: 0 | R97: 7 | S97: 0 | T97: 0 | U97: 0 | V97: 0 | AH97: Non-matching
A98: 030611 | B98: 03 | C98: BAY | D98: 0611 | E98: A. GARY WALSINGHAM ACADEMY | F98: 27 | G98: PREK-8 | H98: 4 | I98: Combination Elementary & Secondary | J98: Z | K98: NO | L98: YES | M98: Z | N98: NO | O98: 113 | P98: 0 | Q98: 0 | R98: 24 | S98: 0 | T98: 0 | U98: 0 | V98: 0 | AH98: Non-matching
A99: 030701 | B99: 03 | C99: BAY | D99: 0701 | E99: BAY HAVEN CHARTER ACADEMY | F99: 15 | G99: K-5 | H99: 1 | I99: Elementary | J99: Z | K99: NO | L99: NO | M99: R | N99: YES | O99: 779 | P99: 0 | Q99: 0 | R99: 0 | S99: 0 | T99: 0 | U99: 217 | V99: 14 | AH99: Non-matching
A100: 030711 | B100: 03 | C100: BAY | D100: 0711 | E100: BAY HAVEN CHARTER MIDDLE SCHOOL | F100: 67 | G100: 6-8 | H100: 2 | I100: Middle/Junior | J100: Z | K100: NO | L100: NO | M100: R | N100: YES | O100: 429 | P100: 0 | Q100: 0 | R100: 0 | S100: 0 | T100: 0 | U100: 113 | V100: 8 | AH100: Non-matching
A101: 030731 | B101: 03 | C101: BAY | D101: 0731 | E101: NORTH BAY HAVEN CHARTER ACADEMY MIDDLE SCHOOL | F101: 67 | G101: 6-8 | H101: 2 | I101: Middle/Junior | J101: Z | K101: NO | L101: NO | M101: R | N101: YES | O101: 524 | P101: 0 | Q101: 0 | R101: 0 | S101: 0 | T101: 0 | U101: 128 | V101: 10 | AH101: Non-matching
A102: 030741 | B102: 03 | C102: BAY | D102: 0741 | E102: NORTH BAY HAVEN CAREER ACADEMY | F102: 85 | G102: 9-12 | H102: 3 | I102: Senior High | J102: Z | K102: NO | L102: NO | M102: R | N102: YES | O102: 674 | P102: 0 | Q102: 0 | R102: 0 | S102: 0 | T102: 0 | U102: 125 | V102: 7 | AH102: Non-matching
A103: 030751 | B103: 03 | C103: BAY | D103: 0751 | E103: NORTH BAY HAVEN CHARTER ACADEMY ELEM SCHOOL | F103: 15 | G103: K-5 | H103: 1 | I103: Elementary | J103: Z | K103: NO | L103: NO | M103: R | N103: YES | O103: 696 | P103: 0 | Q103: 0 | R103: 0 | S103: 0 | T103: 0 | U103: 194 | V103: 10 | AH103: Non-matching
A104: 030771 | B104: 03 | C104: BAY | D104: 0771 | E104: PALM BAY PREPARATORY ACADEMY 6-12 | F104: 69 | G104: 6-12 | H104: 3 | I104: Senior High | J104: Z | K104: NO | L104: NO | M104: R | N104: YES | O104: 178 | P104: 0 | Q104: 0 | R104: 0 | S104: 0 | T104: 0 | U104: 99 | V104: 5 | W104: 3 | X104: BAY | Y104: 771 | Z104: PALM BAY PREPARATORY ACADEMY 6-12 | AA104: Senior High | AB104: 235 | AC104: 123 | AD104: 0.5234042553 | AE104: 0.5234042553 | AF104: B | AG104: SW | AH104: Matching
A105: 030782 | B105: 03 | C105: BAY | D105: 0782 | E105: CENTRAL HIGH SCHOOL | F105: 85 | G105: 9-12 | H105: 3 | I105: Senior High | J105: Z | K105: NO | L105: NO | M105: R | N105: YES | O105: 40 | P105: 0 | Q105: 0 | R105: 0 | S105: 0 | T105: 0 | U105: 26 | V105: 1 | W105: 3 | X105: BAY | Y105: 782 | Z105: CENTRAL HIGH SCHOOL | AA105: Senior High | AB105: 60 | AC105: 36 | AD105: 0.6 | AE105: 0.6 | AF105: B | AG105: SW | AH105: Matching
A106: 030801 | B106: 03 | C106: BAY | D106: 0801 | E106: PALM BAY ELEMENTARY SCHOOL | F106: 15 | G106: K-5 | H106: 1 | I106: Elementary | J106: Z | K106: NO | L106: NO | M106: R | N106: YES | O106: 260 | P106: 0 | Q106: 0 | R106: 0 | S106: 0 | T106: 0 | U106: 168 | V106: 6 | W106: 3 | X106: BAY | Y106: 801 | Z106: PALM BAY ELEMENTARY SCHOOL | AA106: Elementary | AB106: 295 | AC106: 157 | AD106: 0.5322033898 | AE106: 0.5322033898 | AF106: B | AG106: SW | AH106: Matching
A107: 032701 | B107: 03 | C107: BAY | D107: 2701 | E107: RISING LEADERS ACADEMY | F107: 26 | G107: K-9 | H107: 4 | I107: Combination Elementary & Secondary | J107: Z | K107: NO | L107: NO | M107: R | N107: YES | O107: 271 | P107: 0 | Q107: 0 | R107: 0 | S107: 0 | T107: 0 | U107: 103 | V107: 5 | AH107: Non-matching
A108: 032711 | B108: 03 | C108: BAY | D108: 2711 | E108: UNIVERSITY ACADEMY SABL INC | F108: 25 | G108: K-8 | H108: 4 | I108: Combination Elementary & Secondary | J108: Z | K108: NO | L108: NO | M108: R | N108: YES | O108: 675 | P108: 15 | Q108: 10 | R108: 69 | S108: 30 | T108: 0 | U108: 0 | V108: 0 | AH108: Non-matching
A109: 037001 | B109: 03 | C109: BAY | D109: 7001 | E109: BAY VIRTUAL INSTRUCTION PROGRAM | F109: 15 | G109: K-5 | H109: 1 | I109: Elementary | J109: Z | K109: NO | L109: NO | M109: Z | N109: NO | O109: 9 | P109: 0 | Q109: 0 | R109: 0 | S109: 0 | T109: 0 | U109: 4 | V109: 0 | AH109: Non-matching
A110: 037004 | B110: 03 | C110: BAY | D110: 7004 | E110: BAY VIRTUAL FRANCHISE | F110: 69 | G110: 6-12 | H110: 3 | I110: Senior High | J110: Z | K110: NO | L110: NO | M110: Z | N110: NO | O110: 102 | P110: 0 | Q110: 0 | R110: 1 | S110: 0 | T110: 0 | U110: 17 | V110: 1 | AH110: Non-matching
A111: 037023 | B111: 03 | C111: BAY | D111: 7023 | E111: BAY VIRTUAL INSTRUCTION PROGRAM | F111: 28 | G111: K-12 | H111: 4 | I111: Combination Elementary & Secondary | J111: Z | K111: NO | L111: NO | M111: Z | N111: NO | O111: 138 | P111: 0 | Q111: 0 | R111: 1 | S111: 0 | T111: 0 | U111: 43 | V111: 0 | AH111: Non-matching
A112: 040021 | B112: 04 | C112: BRADFORD | D112: 0021 | E112: BRADFORD HIGH SCHOOL | F112: 85 | G112: 9-12 | H112: 3 | I112: Senior High | J112: Z | K112: NO | L112: NO | M112: Z | N112: NO | O112: 541 | P112: 0 | Q112: 0 | R112: 0 | S112: 0 | T112: 0 | U112: 271 | V112: 2 | AH112: Non-matching
A113: 040051 | B113: 04 | C113: BRADFORD | D113: 0051 | E113: STARKE ELEMENTARY SCHOOL | F113: 8 | G113: PREK-5 | H113: 1 | I113: Elementary | J113: Z | K113: NO | L113: NO | M113: Z | N113: NO | O113: 516 | P113: 0 | Q113: 0 | R113: 0 | S113: 0 | T113: 0 | U113: 335 | V113: 4 | W113: 4 | X113: BRADFORD | Y113: 51 | Z113: STARKE ELEMENTARY SCHOOL | AA113: Elementary | AB113: 398 | AC113: 232 | AD113: 0.5829145729 | AE113: 0.5829 | AF113: B | AG113: SW | AH113: Matching
A114: 040081 | B114: 04 | C114: BRADFORD | D114: 0081 | E114: SOUTHSIDE ELEMENTARY SCHOOL | F114: 8 | G114: PREK-5 | H114: 1 | I114: Elementary | J114: Z | K114: NO | L114: NO | M114: Z | N114: NO | O114: 610 | P114: 0 | Q114: 0 | R114: 0 | S114: 0 | T114: 0 | U114: 448 | V114: 1 | W114: 4 | X114: BRADFORD | Y114: 81 | Z114: SOUTHSIDE ELEMENTARY SCHOOL | AA114: Elementary | AB114: 393 | AC114: 303 | AD114: 0.7709923664 | AE114: 0.771 | AF114: A | AG114: SW | AH114: Matching
A115: 040131 | B115: 04 | C115: BRADFORD | D115: 0131 | E115: LAWTEY ELEMENTARY SCHOOL | F115: 8 | G115: PREK-5 | H115: 1 | I115: Elementary | J115: Z | K115: NO | L115: NO | M115: Z | N115: NO | O115: 226 | P115: 0 | Q115: 0 | R115: 0 | S115: 0 | T115: 0 | U115: 135 | V115: 1 | W115: 4 | X115: BRADFORD | Y115: 131 | Z115: LAWTEY ELEMENTARY SCHOOL | AA115: Elementary | AB115: 197 | AC115: 125 | AD115: 0.6345177665 | AE115: 0.6345 | AF115: B | AG115: SW | AH115: Matching
A116: 040172 | B116: 04 | C116: BRADFORD | D116: 0172 | E116: BRADFORD MIDDLE SCHOOL | F116: 67 | G116: 6-8 | H116: 2 | I116: Middle/Junior | J116: Z | K116: NO | L116: NO | M116: Z | N116: NO | O116: 647 | P116: 0 | Q116: 0 | R116: 0 | S116: 0 | T116: 0 | U116: 412 | V116: 0 | AH116: Non-matching
A117: 047004 | B117: 04 | C117: BRADFORD | D117: 7004 | E117: BRADFORD VIRTUAL FRANCHISE | F117: 28 | G117: K-12 | H117: 4 | I117: Combination Elementary & Secondary | J117: Z | K117: NO | L117: NO | M117: Z | N117: NO | O117: 3 | P117: 0 | Q117: 0 | R117: 0 | S117: 0 | T117: 0 | U117: 2 | V117: 0 | AH117: Non-matching
A118: 047023 | B118: 04 | C118: BRADFORD | D118: 7023 | E118: BRADFORD VIRTUAL INSTRUC (DISTRICT PROVIDED) | F118: 28 | G118: K-12 | H118: 4 | I118: Combination Elementary & Secondary | J118: Z | K118: NO | L118: NO | M118: Z | N118: NO | O118: 12 | P118: 0 | Q118: 0 | R118: 0 | S118: 0 | T118: 0 | U118: 10 | V118: 0 | AH118: Non-matching
A119: 050011 | B119: 05 | C119: BREVARD | D119: 0011 | E119: TITUSVILLE HIGH SCHOOL | F119: 37 | G119: PREK, 9-12 | H119: 3 | I119: Senior High | J119: Z | K119: NO | L119: NO | M119: Z | N119: NO | O119: 854 | P119: 36 | Q119: 6 | R119: 356 | S119: 64 | T119: 0 | U119: 0 | V119: 0 | AH119: Non-matching
A120: 050051 | B120: 05 | C120: BREVARD | D120: 0051 | E120: OAK PARK ELEMENTARY SCHOOL | F120: 56 | G120: PREK-6 | H120: 1 | I120: Elementary | J120: Z | K120: NO | L120: NO | M120: Z | N120: NO | O120: 524 | P120: 0 | Q120: 0 | R120: 0 | S120: 0 | T120: 0 | U120: 355 | V120: 4 | W120: 5 | X120: BREVARD | Y120: 51 | Z120: OAK PARK ELEMENTARY SCHOOL | AA120: Elementary | AB120: 575 | AC120: 575 | AD120: 1 | AE120: 1 | AF120: A | AG120: SW | AH120: Matching
A121: 050052 | B121: 05 | C121: BREVARD | D121: 0052 | E121: JAMES MADISON MIDDLE SCHOOL | F121: 73 | G121: 7-8 | H121: 2 | I121: Middle/Junior | J121: Z | K121: NO | L121: NO | M121: Z | N121: NO | O121: 476 | P121: 16 | Q121: 5 | R121: 284 | S121: 36 | T121: 0 | U121: 0 | V121: 0 | AH121: Non-matching
A122: 050061 | B122: 05 | C122: BREVARD | D122: 0061 | E122: APOLLO ELEMENTARY SCHOOL | F122: 56 | G122: PREK-6 | H122: 1 | I122: Elementary | J122: Z | K122: NO | L122: NO | M122: Z | N122: NO | O122: 798 | P122: 0 | Q122: 0 | R122: 0 | S122: 0 | T122: 0 | U122: 509 | V122: 8 | W122: 5 | X122: BREVARD | Y122: 61 | Z122: APOLLO ELEMENTARY SCHOOL | AA122: Elementary | AB122: 799 | AC122: 799 | AD122: 1 | AE122: 1 | AF122: A | AG122: SW | AH122: Matching
A123: 050089 | B123: 05 | C123: BREVARD | D123: 0089 | E123: FIELDSTON PREPARATORY SCHOOL | F123: 28 | G123: K-12 | H123: 4 | I123: Combination Elementary & Secondary | J123: Z | K123: NO | L123: NO | M123: Z | N123: NO | O123: 62 | P123: 0 | Q123: 0 | R123: 41 | S123: 9 | T123: 0 | U123: 0 | V123: 0 | W123: 5 | X123: BREVARD | Y123: 89 | Z123: FIELDSTON PREPARATORY SCHOOL | AA123: Combination Elementary & Secondary | AB123: 69 | AC123: 62 | AD123: 0.8985507246 | AE123: 0.8985 | AF123: A | AG123: SW | AH123: Matching
A124: 050091 | B124: 05 | C124: BREVARD | D124: 0091 | E124: COQUINA ELEMENTARY SCHOOL | F124: 56 | G124: PREK-6 | H124: 1 | I124: Elementary | J124: Z | K124: NO | L124: NO | M124: Z | N124: NO | O124: 491 | P124: 0 | Q124: 0 | R124: 0 | S124: 0 | T124: 0 | U124: 319 | V124: 8 | W124: 5 | X124: BREVARD | Y124: 91 | Z124: COQUINA ELEMENTARY SCHOOL | AA124: Elementary | AB124: 475 | AC124: 475 | AD124: 1 | AE124: 1 | AF124: A | AG124: SW | AH124: Matching
A125: 050101 | B125: 05 | C125: BREVARD | D125: 0101 | E125: MIMS ELEMENTARY SCHOOL | F125: 56 | G125: PREK-6 | H125: 1 | I125: Elementary | J125: Z | K125: NO | L125: NO | M125: Z | N125: NO | O125: 400 | P125: 0 | Q125: 0 | R125: 0 | S125: 0 | T125: 0 | U125: 291 | V125: 4 | W125: 5 | X125: BREVARD | Y125: 101 | Z125: MIMS ELEMENTARY SCHOOL | AA125: Elementary | AB125: 360 | AC125: 360 | AD125: 1 | AE125: 1 | AF125: A | AG125: SW | AH125: Matching
A126: 050122 | B126: 05 | C126: BREVARD | D126: 0122 | E126: SOUTH LAKE ELEMENTARY | F126: 18 | G126: K-6 | H126: 1 | I126: Elementary | J126: Z | K126: NO | L126: NO | M126: Z | N126: NO | O126: 390 | P126: 19 | Q126: 1 | R126: 97 | S126: 22 | T126: 0 | U126: 0 | V126: 0 | AH126: Non-matching
A127: 050141 | B127: 05 | C127: BREVARD | D127: 0141 | E127: ANDREW JACKSON MIDDLE SCHOOL | F127: 73 | G127: 7-8 | H127: 2 | I127: Middle/Junior | J127: Z | K127: NO | L127: NO | M127: Z | N127: NO | O127: 559 | P127: 21 | Q127: 0 | R127: 319 | S127: 49 | T127: 0 | U127: 0 | V127: 0 | AH127: Non-matching
A128: 050151 | B128: 05 | C128: BREVARD | D128: 0151 | E128: IMPERIAL ESTATES ELEM. SCHOOL | F128: 18 | G128: K-6 | H128: 1 | I128: Elementary | J128: Z | K128: NO | L128: NO | M128: Z | N128: NO | O128: 606 | P128: 0 | Q128: 0 | R128: 0 | S128: 0 | T128: 0 | U128: 333 | V128: 4 | W128: 5 | X128: BREVARD | Y128: 151 | Z128: IMPERIAL ESTATES ELEM. SCHOOL | AA128: Elementary | AB128: 597 | AC128: 528 | AD128: 0.8844221106 | AE128: 0.8843 | AF128: A | AG128: SW | AH128: Matching
A129: 050161 | B129: 05 | C129: BREVARD | D129: 0161 | E129: ASTRONAUT HIGH SCHOOL | F129: 85 | G129: 9-12 | H129: 3 | I129: Senior High | J129: Z | K129: NO | L129: NO | M129: Z | N129: NO | O129: 757 | P129: 34 | Q129: 6 | R129: 322 | S129: 59 | T129: 0 | U129: 0 | V129: 0 | AH129: Non-matching
A130: 050181 | B130: 05 | C130: BREVARD | D130: 0181 | E130: PINEWOOD ELEMENTARY SCHOOL | F130: 56 | G130: PREK-6 | H130: 1 | I130: Elementary | J130: Z | K130: NO | L130: NO | M130: Z | N130: NO | O130: 467 | P130: 0 | Q130: 0 | R130: 0 | S130: 0 | T130: 0 | U130: 232 | V130: 2 | W130: 5 | X130: BREVARD | Y130: 181 | Z130: PINEWOOD ELEMENTARY SCHOOL | AA130: Elementary | AB130: 439 | AC130: 321 | AD130: 0.7312072893 | AE130: 0.7324 | AF130: B | AG130: SW | AH130: Matching
A131: 050191 | B131: 05 | C131: BREVARD | D131: 0191 | E131: CHALLENGER 7 ELEMENTARY SCHOOL | F131: 56 | G131: PREK-6 | H131: 1 | I131: Elementary | J131: Z | K131: NO | L131: NO | M131: Z | N131: NO | O131: 499 | P131: 28 | Q131: 6 | R131: 242 | S131: 52 | T131: 0 | U131: 0 | V131: 0 | W131: 5 | X131: BREVARD | Y131: 191 | Z131: CHALLENGER 7 ELEMENTARY SCHOOL | AA131: Elementary | AB131: 483 | AC131: 306 | AD131: =AC131/AB131 -> 0.6335403727 | AE131: 0.6335 | AF131: B | AG131: SW | AH131: Matching
A132: 050201 | B132: 05 | C132: BREVARD | D132: 0201 | E132: ATLANTIS ELEMENTARY SCHOOL | F132: 56 | G132: PREK-6 | H132: 1 | I132: Elementary | J132: Z | K132: NO | L132: NO | M132: Z | N132: NO | O132: 604 | P132: 0 | Q132: 0 | R132: 0 | S132: 0 | T132: 0 | U132: 311 | V132: 3 | W132: 5 | X132: BREVARD | Y132: 201 | Z132: ATLANTIS ELEMENTARY SCHOOL | AA132: Elementary | AB132: 616 | AC132: 492 | AD132: 0.7987012987 | AE132: 0.8 | AF132: A | AG132: SW | AH132: Matching
A133: 050301 | B133: 05 | C133: BREVARD | D133: 0301 | E133: ENTERPRISE ELEMENTARY SCHOOL | F133: 56 | G133: PREK-6 | H133: 1 | I133: Elementary | J133: Z | K133: NO | L133: NO | M133: Z | N133: NO | O133: 568 | P133: 25 | Q133: 4 | R133: 206 | S133: 56 | T133: 0 | U133: 0 | V133: 0 | AH133: Non-matching
A134: 050302 | B134: 05 | C134: BREVARD | D134: 0302 | E134: SPACE COAST JR/SR HIGH SCHOOL | F134: 75 | G134: 7-12 | H134: 3 | I134: Senior High | J134: Z | K134: NO | L134: NO | M134: Z | N134: NO | O134: 1221 | P134: 71 | Q134: 5 | R134: 490 | S134: 120 | T134: 0 | U134: 0 | V134: 0 | AH134: Non-matching
A135: 051002 | B135: 05 | C135: BREVARD | D135: 1002 | E135: BREVARD GROUP TREATMENT HOME | F135: 68 | G135: 6-9 | H135: 4 | I135: Combination Elementary & Secondary | J135: D | K135: YES | L135: NO | M135: Z | N135: NO | O135: 13 | P135: 0 | Q135: 0 | R135: 0 | S135: 0 | T135: 0 | U135: 0 | V135: 0 | AH135: Non-matching
A136: 051011 | B136: 05 | C136: BREVARD | D136: 1011 | E136: ROCKLEDGE SENIOR HIGH SCHOOL | F136: 85 | G136: 9-12 | H136: 3 | I136: Senior High | J136: Z | K136: NO | L136: NO | M136: Z | N136: NO | O136: 1107 | P136: 46 | Q136: 2 | R136: 458 | S136: 78 | T136: 0 | U136: 0 | V136: 0 | AH136: Non-matching
A137: 051014 | B137: 05 | C137: BREVARD | D137: 1014 | E137: BREVARD COUNTY JAIL COMPLEX | F137: 63 | G137: 5-12 | H137: 3 | I137: Senior High | J137: D | K137: YES | L137: NO | M137: Z | N137: NO | O137: 3 | P137: 0 | Q137: 0 | R137: 0 | S137: 0 | T137: 0 | U137: 0 | V137: 0 | AH137: Non-matching
A138: 051017 | B138: 05 | C138: BREVARD | D138: 1017 | E138: NORTH/CENTRAL AREA ALTERNATIVE LEARNING | F138: 69 | G138: 6-12 | H138: 3 | I138: Senior High | J138: Z | K138: NO | L138: NO | M138: Z | N138: NO | O138: 72 | P138: 0 | Q138: 0 | R138: 57 | S138: 5 | T138: 0 | U138: 0 | V138: 0 | W138: 5 | X138: BREVARD | Y138: 1017 | Z138: NORTH/CENTRAL AREA ALTERNATIVE LEARNING | AA138: Senior High | AB138: 54 | AC138: 43 | AD138: 0.7962962963 | AE138: 0.7962 | AF138: A | AG138: SW | AH138: Matching
A139: 051018 | B139: 05 | C139: BREVARD | D139: 1018 | E139: SOUTH AREA ALTERNATIVE LEARNING CENTER | F139: 69 | G139: 6-12 | H139: 3 | I139: Senior High | J139: Z | K139: NO | L139: NO | M139: Z | N139: NO | O139: 104 | P139: 2 | Q139: 2 | R139: 59 | S139: 11 | T139: 0 | U139: 0 | V139: 0 | AH139: Non-matching
A140: 051021 | B140: 05 | C140: BREVARD | D140: 1021 | E140: PRE-K ESE SERVICES | F140: 1 | G140: PREK | H140: 1 | I140: Elementary | J140: Z | K140: NO | L140: NO | M140: Z | N140: NO | O140: 6 | P140: 0 | Q140: 0 | R140: 1 | S140: 0 | T140: 0 | U140: 0 | V140: 0 | AH140: Non-matching
A141: 051025 | B141: 05 | C141: BREVARD | D141: 1025 | E141: BREVARD COUNTY JUV.DET.CTR. | F141: 69 | G141: 6-12 | H141: 3 | I141: Senior High | J141: D | K141: YES | L141: NO | M141: Z | N141: NO | O141: 16 | P141: 0 | Q141: 0 | R141: 4 | S141: 0 | T141: 0 | U141: 0 | V141: 0 | AH141: Non-matching
A142: 051027 | B142: 05 | C142: BREVARD | D142: 1027 | E142: MELBOURNE CENTER FOR PERSONAL GROWTH | F142: 75 | G142: 7-12 | H142: 3 | I142: Senior High | J142: D | K142: YES | L142: NO | M142: Z | N142: NO | O142: 3 | P142: 0 | Q142: 0 | R142: 0 | S142: 0 | T142: 0 | U142: 0 | V142: 0 | AH142: Non-matching
A143: 051028 | B143: 05 | C143: BREVARD | D143: 1028 | E143: DEVEREUX HOSPITAL | F143: 28 | G143: K-12 | H143: 4 | I143: Combination Elementary & Secondary | J143: Z | K143: NO | L143: NO | M143: Z | N143: NO | O143: 65 | P143: 0 | Q143: 0 | R143: 2 | S143: 2 | T143: 0 | U143: 0 | V143: 0 | AH143: Non-matching
A144: 051029 | B144: 05 | C144: BREVARD | D144: 1029 | E144: RIVERDALE COUNTRY DAY SCHOOL | F144: 28 | G144: K-12 | H144: 4 | I144: Combination Elementary & Secondary | J144: Z | K144: NO | L144: NO | M144: Z | N144: NO | O144: 32 | P144: 1 | Q144: 0 | R144: 25 | S144: 3 | T144: 0 | U144: 0 | V144: 0 | W144: 5 | X144: BREVARD | Y144: 1029 | Z144: RIVERDALE COUNTRY DAY SCHOOL | AA144: Combination Elementary & Secondary | AB144: 44 | AC144: 38 | AD144: 0.8636363636 | AE144: 0.8636 | AF144: A | AG144: SW | AH144: Matching
A145: 051041 | B145: 05 | C145: BREVARD | D145: 1041 | E145: CAMBRIDGE ELEM MAGNET SCHOOL | F145: 56 | G145: PREK-6 | H145: 1 | I145: Elementary | J145: Z | K145: NO | L145: NO | M145: Z | N145: NO | O145: 451 | P145: 0 | Q145: 0 | R145: 0 | S145: 0 | T145: 0 | U145: 334 | V145: 2 | W145: 5 | X145: BREVARD | Y145: 1041 | Z145: CAMBRIDGE ELEM MAGNET SCHOOL | AA145: Elementary | AB145: 483 | AC145: 483 | AD145: 1 | AE145: 1 | AF145: A | AG145: SW | AH145: Matching
A146: 051051 | B146: 05 | C146: BREVARD | D146: 1051 | E146: ENDEAVOUR ELEMENTARY SCHOOL | F146: 56 | G146: PREK-6 | H146: 1 | I146: Elementary | J146: Z | K146: NO | L146: NO | M146: Z | N146: NO | O146: 618 | P146: 0 | Q146: 0 | R146: 0 | S146: 0 | T146: 0 | U146: 429 | V146: 3 | W146: 5 | X146: BREVARD | Y146: 1051 | Z146: ENDEAVOUR ELEMENTARY SCHOOL | AA146: Elementary | AB146: 603 | AC146: 603 | AD146: 1 | AE146: 1 | AF146: A | AG146: SW | AH146: Matching
A147: 051071 | B147: 05 | C147: BREVARD | D147: 1071 | E147: GOLFVIEW ELEMENTARY MAGNET SCHOOL | F147: 56 | G147: PREK-6 | H147: 1 | I147: Elementary | J147: Z | K147: NO | L147: NO | M147: Z | N147: NO | O147: 430 | P147: 0 | Q147: 0 | R147: 0 | S147: 0 | T147: 0 | U147: 311 | V147: 0 | W147: 5 | X147: BREVARD | Y147: 1071 | Z147: GOLFVIEW ELEMENTARY MAGNET SCHOOL | AA147: Elementary | AB147: 430 | AC147: 430 | AD147: 1 | AE147: 1 | AF147: A | AG147: SW | AH147: Matching
A148: 051081 | B148: 05 | C148: BREVARD | D148: 1081 | E148: RONALD MCNAIR MAGNET MIDDLE SCHOOL | F148: 73 | G148: 7-8 | H148: 2 | I148: Middle/Junior | J148: Z | K148: NO | L148: NO | M148: Z | N148: NO | O148: 342 | P148: 9 | Q148: 2 | R148: 169 | S148: 26 | T148: 0 | U148: 0 | V148: 0 | AH148: Non-matching
A149: 051091 | B149: 05 | C149: BREVARD | D149: 1091 | E149: FAIRGLEN ELEMENTARY SCHOOL | F149: 56 | G149: PREK-6 | H149: 1 | I149: Elementary | J149: Z | K149: NO | L149: NO | M149: Z | N149: NO | O149: 564 | P149: 0 | Q149: 0 | R149: 0 | S149: 0 | T149: 0 | U149: 362 | V149: 1 | W149: 5 | X149: BREVARD | Y149: 1091 | Z149: FAIRGLEN ELEMENTARY SCHOOL | AA149: Elementary | AB149: 579 | AC149: 579 | AD149: 1 | AE149: 1 | AF149: A | AG149: SW | AH149: Matching
A150: 051101 | B150: 05 | C150: BREVARD | D150: 1101 | E150: JOHN F. KENNEDY MIDDLE SCHOOL | F150: 73 | G150: 7-8 | H150: 2 | I150: Middle/Junior | J150: Z | K150: NO | L150: NO | M150: Z | N150: NO | O150: 676 | P150: 20 | Q150: 1 | R150: 236 | S150: 43 | T150: 0 | U150: 0 | V150: 0 | AH150: Non-matching
A151: 051121 | B151: 05 | C151: BREVARD | D151: 1121 | E151: COCOA HIGH SCHOOL | F151: 75 | G151: 7-12 | H151: 3 | I151: Senior High | J151: Z | K151: NO | L151: NO | M151: Z | N151: NO | O151: 1161 | P151: 42 | Q151: 4 | R151: 794 | S151: 102 | T151: 0 | U151: 0 | V151: 0 | W151: 5 | X151: BREVARD | Y151: 1121 | Z151: COCOA HIGH SCHOOL | AA151: Senior High | AB151: 1219 | AC151: 997 | AD151: 0.8178835111 | AE151: 0.8178 | AF151: A | AG151: SW | AH151: Matching
A152: 051131 | B152: 05 | C152: BREVARD | D152: 1131 | E152: SATURN ELEMENTARY SCHOOL | F152: 56 | G152: PREK-6 | H152: 1 | I152: Elementary | J152: Z | K152: NO | L152: NO | M152: Z | N152: NO | O152: 571 | P152: 0 | Q152: 0 | R152: 0 | S152: 0 | T152: 0 | U152: 455 | V152: 3 | W152: 5 | X152: BREVARD | Y152: 1131 | Z152: SATURN ELEMENTARY SCHOOL | AA152: Elementary | AB152: 675 | AC152: 675 | AD152: 1 | AE152: 1 | AF152: A | AG152: SW | AH152: Matching
A153: 051141 | B153: 05 | C153: BREVARD | D153: 1141 | E153: HANS CHRISTIAN ANDERSEN ELEMENTARY SCHOOL | F153: 56 | G153: PREK-6 | H153: 1 | I153: Elementary | J153: Z | K153: NO | L153: NO | M153: Z | N153: NO | O153: 606 | P153: 25 | Q153: 4 | R153: 296 | S153: 48 | T153: 0 | U153: 0 | V153: 0 | AH153: Non-matching
A154: 051151 | B154: 05 | C154: BREVARD | D154: 1151 | E154: RALPH M WILLIAMS JUNIOR ELEMENTARY SCHOOL | F154: 56 | G154: PREK-6 | H154: 1 | I154: Elementary | J154: Z | K154: NO | L154: NO | M154: Z | N154: NO | O154: 452 | P154: 7 | Q154: 0 | R154: 133 | S154: 30 | T154: 0 | U154: 0 | V154: 0 | AH154: Non-matching
A155: 051161 | B155: 05 | C155: BREVARD | D155: 1161 | E155: MANATEE ELEMENTARY SCHOOL | F155: 56 | G155: PREK-6 | H155: 1 | I155: Elementary | J155: Z | K155: NO | L155: NO | M155: Z | N155: NO | O155: 859 | P155: 12 | Q155: 4 | R155: 124 | S155: 25 | T155: 0 | U155: 0 | V155: 0 | AH155: Non-matching
A156: 051171 | B156: 05 | C156: BREVARD | D156: 1171 | E156: VIERA HIGH SCHOOL | F156: 37 | G156: PREK, 9-12 | H156: 3 | I156: Senior High | J156: Z | K156: NO | L156: NO | M156: Z | N156: NO | O156: 1620 | P156: 38 | Q156: 3 | R156: 191 | S156: 43 | T156: 0 | U156: 0 | V156: 0 | AH156: Non-matching
A157: 052011 | B157: 05 | C157: BREVARD | D157: 2011 | E157: MELBOURNE SENIOR HIGH SCHOOL | F157: 85 | G157: 9-12 | H157: 3 | I157: Senior High | J157: Z | K157: NO | L157: NO | M157: Z | N157: NO | O157: 1572 | P157: 63 | Q157: 6 | R157: 378 | S157: 83 | T157: 0 | U157: 0 | V157: 0 | AH157: Non-matching
A158: 052021 | B158: 05 | C158: BREVARD | D158: 2021 | E158: PALM BAY MAGNET SENIOR HIGH SCHOOL | F158: 85 | G158: 9-12 | H158: 3 | I158: Senior High | J158: Z | K158: NO | L158: NO | M158: Z | N158: NO | O158: 869 | P158: 56 | Q158: 5 | R158: 466 | S158: 98 | T158: 0 | U158: 0 | V158: 0 | AH158: Non-matching
A159: 052031 | B159: 05 | C159: BREVARD | D159: 2031 | E159: MEADOWLANE INTERMEDIATE ELEMENTARY SCHOOL | F159: 44 | G159: 3-6 | H159: 1 | I159: Elementary | J159: Z | K159: NO | L159: NO | M159: Z | N159: NO | O159: 845 | P159: 34 | Q159: 1 | R159: 257 | S159: 75 | T159: 0 | U159: 0 | V159: 0 | AH159: Non-matching
A160: 052041 | B160: 05 | C160: BREVARD | D160: 2041 | E160: MEADOWLANE PRIMARY ELEMENTARY SCHOOL | F160: 5 | G160: K-2 | H160: 1 | I160: Elementary | J160: Z | K160: NO | L160: NO | M160: Z | N160: NO | O160: 685 | P160: 17 | Q160: 7 | R160: 243 | S160: 36 | T160: 0 | U160: 0 | V160: 0 | AH160: Non-matching
A161: 052042 | B161: 05 | C161: BREVARD | D161: 2042 | E161: W. MELBOURNE ELEMENTARY SCHOOL FOR SCIENCE | F161: 56 | G161: PREK-6 | H161: 1 | I161: Elementary | J161: Z | K161: NO | L161: NO | M161: Z | N161: NO | O161: 542 | P161: 27 | Q161: 2 | R161: 73 | S161: 25 | T161: 0 | U161: 0 | V161: 0 | AH161: Non-matching
A162: 052051 | B162: 05 | C162: BREVARD | D162: 2051 | E162: UNIVERSITY PARK ELEMENTARY SCHOOL | F162: 56 | G162: PREK-6 | H162: 1 | I162: Elementary | J162: Z | K162: NO | L162: NO | M162: Z | N162: NO | O162: 406 | P162: 0 | Q162: 0 | R162: 0 | S162: 0 | T162: 0 | U162: 276 | V162: 0 | W162: 5 | X162: BREVARD | Y162: 2051 | Z162: UNIVERSITY PARK ELEMENTARY SCHOOL | AA162: Elementary | AB162: 378 | AC162: 378 | AD162: 1 | AE162: 1 | AF162: A | AG162: SW | AH162: Matching
A163: 052061 | B163: 05 | C163: BREVARD | D163: 2061 | E163: PORT MALABAR ELEMENTARY SCHOOL | F163: 56 | G163: PREK-6 | H163: 1 | I163: Elementary | J163: Z | K163: NO | L163: NO | M163: Z | N163: NO | O163: 595 | P163: 0 | Q163: 0 | R163: 0 | S163: 0 | T163: 0 | U163: 366 | V163: 6 | W163: 5 | X163: BREVARD | Y163: 2061 | Z163: PORT MALABAR ELEMENTARY SCHOOL | AA163: Elementary | AB163: 609 | AC163: 579 | AD163: 0.9507389163 | AE163: 0.951 | AF163: A | AG163: SW | AH163: Matching
A164: 052071 | B164: 05 | C164: BREVARD | D164: 2071 | E164: STONE MAGNET MIDDLE SCHOOL | F164: 73 | G164: 7-8 | H164: 2 | I164: Middle/Junior | J164: Z | K164: NO | L164: NO | M164: Z | N164: NO | O164: 748 | P164: 53 | Q164: 7 | R164: 454 | S164: 91 | T164: 0 | U164: 0 | V164: 0 | W164: 5 | X164: BREVARD | Y164: 2071 | Z164: STONE MAGNET MIDDLE SCHOOL | AA164: Middle/Junior | AB164: 785 | AC164: 610 | AD164: 0.7770700637 | AE164: 0.777 | AF164: A | AG164: SW | AH164: Matching
A165: 052081 | B165: 05 | C165: BREVARD | D165: 2081 | E165: PALM BAY ELEMENTARY SCHOOL | F165: 56 | G165: PREK-6 | H165: 1 | I165: Elementary | J165: Z | K165: NO | L165: NO | M165: Z | N165: NO | O165: 484 | P165: 0 | Q165: 0 | R165: 0 | S165: 0 | T165: 0 | U165: 353 | V165: 0 | W165: 5 | X165: BREVARD | Y165: 2081 | Z165: PALM BAY ELEMENTARY SCHOOL | AA165: Elementary | AB165: 535 | AC165: 535 | AD165: 1 | AE165: 1 | AF165: A | AG165: SW | AH165: Matching
A166: 052111 | B166: 05 | C166: BREVARD | D166: 2111 | E166: LOCKMAR ELEMENTARY SCHOOL | F166: 56 | G166: PREK-6 | H166: 1 | I166: Elementary | J166: Z | K166: NO | L166: NO | M166: Z | N166: NO | O166: 597 | P166: 34 | Q166: 5 | R166: 288 | S166: 49 | T166: 0 | U166: 0 | V166: 0 | AH166: Non-matching
A167: 052121 | B167: 05 | C167: BREVARD | D167: 2121 | E167: JOHN F. TURNER, SENIOR ELEMENTARY SCHOOL | F167: 56 | G167: PREK-6 | H167: 1 | I167: Elementary | J167: Z | K167: NO | L167: NO | M167: Z | N167: NO | O167: 530 | P167: 0 | Q167: 0 | R167: 0 | S167: 0 | T167: 0 | U167: 312 | V167: 6 | W167: 5 | X167: BREVARD | Y167: 2121 | Z167: JOHN F. TURNER, SENIOR ELEMENTARY SCHOOL | AA167: Elementary | AB167: 508 | AC167: 507 | AD167: 0.9980314961 | AE167: 0.9984 | AF167: A | AG167: SW | AH167: Matching
A168: 052122 | B168: 05 | C168: BREVARD | D168: 2122 | E168: SOUTHWEST MIDDLE SCHOOL | F168: 73 | G168: 7-8 | H168: 2 | I168: Middle/Junior | J168: Z | K168: NO | L168: NO | M168: Z | N168: NO | O168: 938 | P168: 52 | Q168: 4 | R168: 463 | S168: 103 | T168: 0 | U168: 0 | V168: 0 | AH168: Non-matching
A169: 052131 | B169: 05 | C169: BREVARD | D169: 2131 | E169: COLUMBIA ELEMENTARY SCHOOL | F169: 56 | G169: PREK-6 | H169: 1 | I169: Elementary | J169: Z | K169: NO | L169: NO | M169: Z | N169: NO | O169: 432 | P169: 0 | Q169: 0 | R169: 0 | S169: 0 | T169: 0 | U169: 281 | V169: 6 | W169: 5 | X169: BREVARD | Y169: 2131 | Z169: COLUMBIA ELEMENTARY SCHOOL | AA169: Elementary | AB169: 375 | AC169: 375 | AD169: 1 | AE169: 1 | AF169: A | AG169: SW | AH169: Matching
A170: 052151 | B170: 05 | C170: BREVARD | D170: 2151 | E170: DISCOVERY ELEMENTARY SCHOOL | F170: 56 | G170: PREK-6 | H170: 1 | I170: Elementary | J170: Z | K170: NO | L170: NO | M170: Z | N170: NO | O170: 564 | P170: 0 | Q170: 0 | R170: 0 | S170: 0 | T170: 0 | U170: 340 | V170: 5 | W170: 5 | X170: BREVARD | Y170: 2151 | Z170: DISCOVERY ELEMENTARY SCHOOL | AA170: Elementary | AB170: 547 | AC170: 524 | AD170: 0.957952468 | AE170: 0.9593 | AF170: A | AG170: SW | AH170: Matching
A171: 052161 | B171: 05 | C171: BREVARD | D171: 2161 | E171: CHRISTA MCAULIFFE ELEM. SCHOOL | F171: 56 | G171: PREK-6 | H171: 1 | I171: Elementary | J171: Z | K171: NO | L171: NO | M171: Z | N171: NO | O171: 617 | P171: 0 | Q171: 0 | R171: 0 | S171: 0 | T171: 0 | U171: 366 | V171: 2 | W171: 5 | X171: BREVARD | Y171: 2161 | Z171: CHRISTA MCAULIFFE ELEM. SCHOOL | AA171: Elementary | AB171: 645 | AC171: 576 | AD171: 0.8930232558 | AE171: 0.8929 | AF171: A | AG171: SW | AH171: Matching
A172: 052171 | B172: 05 | C172: BREVARD | D172: 2171 | E172: RIVIERA ELEMENTARY SCHOOL | F172: 56 | G172: PREK-6 | H172: 1 | I172: Elementary | J172: Z | K172: NO | L172: NO | M172: Z | N172: NO | O172: 602 | P172: 0 | Q172: 0 | R172: 0 | S172: 0 | T172: 0 | U172: 368 | V172: 5 | W172: 5 | X172: BREVARD | Y172: 2171 | Z172: RIVIERA ELEMENTARY SCHOOL | AA172: Elementary | AB172: 541 | AC172: 513 | AD172: 0.9482439926 | AE172: 0.9492 | AF172: A | AG172: SW | AH172: Matching
A173: 052191 | B173: 05 | C173: BREVARD | D173: 2191 | E173: JUPITER ELEMENTARY SCHOOL | F173: 56 | G173: PREK-6 | H173: 1 | I173: Elementary | J173: Z | K173: NO | L173: NO | M173: Z | N173: NO | O173: 684 | P173: 0 | Q173: 0 | R173: 0 | S173: 0 | T173: 0 | U173: 409 | V173: 2 | W173: 5 | X173: BREVARD | Y173: 2191 | Z173: JUPITER ELEMENTARY SCHOOL | AA173: Elementary | AB173: 635 | AC173: 604 | AD173: 0.9511811024 | AE173: 0.9523 | AF173: A | AG173: SW | AH173: Matching
A174: 052211 | B174: 05 | C174: BREVARD | D174: 2211 | E174: BAYSIDE HIGH SCHOOL | F174: 85 | G174: 9-12 | H174: 3 | I174: Senior High | J174: Z | K174: NO | L174: NO | M174: Z | N174: NO | O174: 1198 | P174: 64 | Q174: 9 | R174: 462 | S174: 121 | T174: 0 | U174: 0 | V174: 0 | AH174: Non-matching
A175: 052212 | B175: 05 | C175: BREVARD | D175: 2212 | E175: WESTSIDE ELEMENTARY SCHOOL | F175: 56 | G175: PREK-6 | H175: 1 | I175: Elementary | J175: Z | K175: NO | L175: NO | M175: Z | N175: NO | O175: 753 | P175: 54 | Q175: 5 | R175: 318 | S175: 93 | T175: 0 | U175: 0 | V175: 0 | W175: 5 | X175: BREVARD | Y175: 2212 | Z175: WESTSIDE ELEMENTARY SCHOOL | AA175: Elementary | AB175: 677 | AC175: 431 | AD175: 0.6366322009 | AE175: 0.6366 | AF175: B | AG175: SW | AH175: Matching
A176: 052221 | B176: 05 | C176: BREVARD | D176: 2221 | E176: SUNRISE ELEMENTARY SCHOOL | F176: 56 | G176: PREK-6 | H176: 1 | I176: Elementary | J176: Z | K176: NO | L176: NO | M176: Z | N176: NO | O176: 700 | P176: 32 | Q176: 7 | R176: 327 | S176: 60 | T176: 0 | U176: 0 | V176: 0 | W176: 5 | X176: BREVARD | Y176: 2221 | Z176: SUNRISE ELEMENTARY SCHOOL | AA176: Elementary | AB176: 690 | AC176: 450 | AD176: 0.652173913 | AE176: 0.6521 | AF176: B | AG176: SW | AH176: Matching
A177: 052311 | B177: 05 | C177: BREVARD | D177: 2311 | E177: HERITAGE HIGH SCHOOL | F177: 85 | G177: 9-12 | H177: 3 | I177: Senior High | J177: Z | K177: NO | L177: NO | M177: Z | N177: NO | O177: 1351 | P177: 82 | Q177: 11 | R177: 609 | S177: 163 | T177: 0 | U177: 0 | V177: 0 | AH177: Non-matching
A178: 053011 | B178: 05 | C178: BREVARD | D178: 3011 | E178: EAU GALLIE HIGH SCHOOL | F178: 37 | G178: PREK, 9-12 | H178: 3 | I178: Senior High | J178: Z | K178: NO | L178: NO | M178: Z | N178: NO | O178: 1084 | P178: 53 | Q178: 8 | R178: 472 | S178: 96 | T178: 0 | U178: 0 | V178: 0 | AH178: Non-matching
A179: 053021 | B179: 05 | C179: BREVARD | D179: 3021 | E179: CENTRAL MIDDLE SCHOOL | F179: 73 | G179: 7-8 | H179: 2 | I179: Middle/Junior | J179: Z | K179: NO | L179: NO | M179: Z | N179: NO | O179: 1160 | P179: 79 | Q179: 10 | R179: 465 | S179: 113 | T179: 0 | U179: 0 | V179: 0 | AH179: Non-matching
A180: 053031 | B180: 05 | C180: BREVARD | D180: 3031 | E180: LYNDON B. JOHNSON MIDDLE SCHL | F180: 73 | G180: 7-8 | H180: 2 | I180: Middle/Junior | J180: Z | K180: NO | L180: NO | M180: Z | N180: NO | O180: 677 | P180: 24 | Q180: 2 | R180: 345 | S180: 61 | T180: 0 | U180: 0 | V180: 0 | AH180: Non-matching
A181: 053041 | B181: 05 | C181: BREVARD | D181: 3041 | E181: SHERWOOD ELEMENTARY SCHOOL | F181: 56 | G181: PREK-6 | H181: 1 | I181: Elementary | J181: Z | K181: NO | L181: NO | M181: Z | N181: NO | O181: 380 | P181: 26 | Q181: 1 | R181: 207 | S181: 29 | T181: 0 | U181: 0 | V181: 0 | W181: 5 | X181: BREVARD | Y181: 3041 | Z181: SHERWOOD ELEMENTARY SCHOOL | AA181: Elementary | AB181: 356 | AC181: 246 | AD181: 0.691011236 | AE181: 0.691 | AF181: B | AG181: SW | AH181: Matching
A182: 053061 | B182: 05 | C182: BREVARD | D182: 3061 | E182: HARBOR CITY ELEMENTARY SCHOOL | F182: 56 | G182: PREK-6 | H182: 1 | I182: Elementary | J182: Z | K182: NO | L182: NO | M182: Z | N182: NO | O182: 340 | P182: 0 | Q182: 0 | R182: 0 | S182: 0 | T182: 0 | U182: 228 | V182: 2 | W182: 5 | X182: BREVARD | Y182: 3061 | Z182: HARBOR CITY ELEMENTARY SCHOOL | AA182: Elementary | AB182: 339 | AC182: 339 | AD182: 1 | AE182: 1 | AF182: A | AG182: SW | AH182: Matching
A183: 053071 | B183: 05 | C183: BREVARD | D183: 3071 | E183: SABAL ELEMENTARY SCHOOL | F183: 56 | G183: PREK-6 | H183: 1 | I183: Elementary | J183: Z | K183: NO | L183: NO | M183: Z | N183: NO | O183: 483 | P183: 0 | Q183: 0 | R183: 0 | S183: 0 | T183: 0 | U183: 295 | V183: 6 | W183: 5 | X183: BREVARD | Y183: 3071 | Z183: SABAL ELEMENTARY SCHOOL | AA183: Elementary | AB183: 529 | AC183: 526 | AD183: 0.9943289225 | AE183: 0.995 | AF183: A | AG183: SW | AH183: Matching
A184: 053091 | B184: 05 | C184: BREVARD | D184: 3091 | E184: CROTON ELEMENTARY SCHOOL | F184: 56 | G184: PREK-6 | H184: 1 | I184: Elementary | J184: Z | K184: NO | L184: NO | M184: Z | N184: NO | O184: 485 | P184: 0 | Q184: 0 | R184: 0 | S184: 0 | T184: 0 | U184: 288 | V184: 5 | W184: 5 | X184: BREVARD | Y184: 3091 | Z184: CROTON ELEMENTARY SCHOOL | AA184: Elementary | AB184: 464 | AC184: 438 | AD184: 0.9439655172 | AE184: 0.9448 | AF184: A | AG184: SW | AH184: Matching
A185: 053101 | B185: 05 | C185: BREVARD | D185: 3101 | E185: ROY ALLEN ELEMENTARY SCHOOL | F185: 56 | G185: PREK-6 | H185: 1 | I185: Elementary | J185: Z | K185: NO | L185: NO | M185: Z | N185: NO | O185: 621 | P185: 32 | Q185: 2 | R185: 292 | S185: 61 | T185: 0 | U185: 0 | V185: 0 | W185: 5 | X185: BREVARD | Y185: 3101 | Z185: ROY ALLEN ELEMENTARY SCHOOL | AA185: Elementary | AB185: 615 | AC185: 391 | AD185: 0.6357723577 | AE185: 0.6557 | AF185: B | AG185: SW | AH185: Matching
A186: 053121 | B186: 05 | C186: BREVARD | D186: 3121 | E186: SUNTREE ELEMENTARY SCHOOL | F186: 56 | G186: PREK-6 | H186: 1 | I186: Elementary | J186: Z | K186: NO | L186: NO | M186: Z | N186: NO | O186: 605 | P186: 13 | Q186: 0 | R186: 114 | S186: 28 | T186: 0 | U186: 0 | V186: 0 | AH186: Non-matching
A187: 053131 | B187: 05 | C187: BREVARD | D187: 3131 | E187: LONGLEAF ELEMENTARY SCHOOL | F187: 56 | G187: PREK-6 | H187: 1 | I187: Elementary | J187: Z | K187: NO | L187: NO | M187: Z | N187: NO | O187: 581 | P187: 20 | Q187: 2 | R187: 106 | S187: 23 | T187: 0 | U187: 0 | V187: 0 | AH187: Non-matching
A188: 053141 | B188: 05 | C188: BREVARD | D188: 3141 | E188: WEST SHORE JUNIOR/SENIOR HIGH SCHOOL | F188: 75 | G188: 7-12 | H188: 3 | I188: Senior High | J188: Z | K188: NO | L188: NO | M188: Z | N188: NO | O188: 779 | P188: 27 | Q188: 1 | R188: 70 | S188: 17 | T188: 0 | U188: 0 | V188: 0 | AH188: Non-matching
A189: 053151 | B189: 05 | C189: BREVARD | D189: 3151 | E189: QUEST ELEMENTARY SCHOOL | F189: 56 | G189: PREK-6 | H189: 1 | I189: Elementary | J189: Z | K189: NO | L189: NO | M189: Z | N189: NO | O189: 688 | P189: 10 | Q189: 2 | R189: 96 | S189: 25 | T189: 0 | U189: 0 | V189: 0 | AH189: Non-matching
A190: 053161 | B190: 05 | C190: BREVARD | D190: 3161 | E190: VIERA ELEMENTARY SCHOOL | F190: 18 | G190: K-6 | H190: 1 | I190: Elementary | J190: Z | K190: NO | L190: NO | M190: Z | N190: NO | O190: 585 | P190: 7 | Q190: 1 | R190: 49 | S190: 20 | T190: 0 | U190: 0 | V190: 0 | AH190: Non-matching
A191: 054011 | B191: 05 | C191: BREVARD | D191: 4011 | E191: MERRITT ISLAND HIGH SCHOOL | F191: 37 | G191: PREK, 9-12 | H191: 3 | I191: Senior High | J191: Z | K191: NO | L191: NO | M191: Z | N191: NO | O191: 1049 | P191: 40 | Q191: 5 | R191: 313 | S191: 48 | T191: 0 | U191: 0 | V191: 0 | AH191: Non-matching
A192: 054021 | B192: 05 | C192: BREVARD | D192: 4021 | E192: EDGEWOOD JR/SR HIGH SCHOOL | F192: 75 | G192: 7-12 | H192: 3 | I192: Senior High | J192: Z | K192: NO | L192: NO | M192: Z | N192: NO | O192: 790 | P192: 24 | Q192: 1 | R192: 98 | S192: 13 | T192: 0 | U192: 0 | V192: 0 | AH192: Non-matching
A193: 054031 | B193: 05 | C193: BREVARD | D193: 4031 | E193: MILA ELEMENTARY SCHOOL | F193: 56 | G193: PREK-6 | H193: 1 | I193: Elementary | J193: Z | K193: NO | L193: NO | M193: Z | N193: NO | O193: 401 | P193: 0 | Q193: 0 | R193: 0 | S193: 0 | T193: 0 | U193: 277 | V193: 1 | W193: 5 | X193: BREVARD | Y193: 4031 | Z193: MILA ELEMENTARY SCHOOL | AA193: Elementary | AB193: 385 | AC193: 385 | AD193: 1 | AE193: 1 | AF193: A | AG193: SW | AH193: Matching
A194: 054041 | B194: 05 | C194: BREVARD | D194: 4041 | E194: TROPICAL ELEMENTARY SCHOOL | F194: 56 | G194: PREK-6 | H194: 1 | I194: Elementary | J194: Z | K194: NO | L194: NO | M194: Z | N194: NO | O194: 661 | P194: 18 | Q194: 1 | R194: 272 | S194: 40 | T194: 0 | U194: 0 | V194: 0 | AH194: Non-matching
A195: 054051 | B195: 05 | C195: BREVARD | D195: 4051 | E195: AUDUBON ELEMENTARY SCHOOL | F195: 56 | G195: PREK-6 | H195: 1 | I195: Elementary | J195: Z | K195: NO | L195: NO | M195: Z | N195: NO | O195: 444 | P195: 0 | Q195: 0 | R195: 0 | S195: 0 | T195: 0 | U195: 228 | V195: 4 | W195: 5 | X195: BREVARD | Y195: 4051 | Z195: AUDUBON ELEMENTARY SCHOOL | AA195: Elementary | AB195: 432 | AC195: 336 | AD195: =AC195/AB195 -> 0.7777777778 | AE195: 0.7777 | AF195: A | AG195: SW | AH195: Matching
A196: 054071 | B196: 05 | C196: BREVARD | D196: 4071 | E196: ROBERT L. STEVENSON ELEMENTARY SCHOOL | F196: 18 | G196: K-6 | H196: 1 | I196: Elementary | J196: Z | K196: NO | L196: NO | M196: Z | N196: NO | O196: 494 | P196: 7 | Q196: 4 | R196: 86 | S196: 15 | T196: 0 | U196: 0 | V196: 0 | AH196: Non-matching
A197: 054111 | B197: 05 | C197: BREVARD | D197: 4111 | E197: THOMAS JEFFERSON MIDDLE SCHOOL | F197: 73 | G197: 7-8 | H197: 2 | I197: Middle/Junior | J197: Z | K197: NO | L197: NO | M197: Z | N197: NO | O197: 602 | P197: 23 | Q197: 3 | R197: 231 | S197: 42 | T197: 0 | U197: 0 | V197: 0 | AH197: Non-matching
A198: 054121 | B198: 05 | C198: BREVARD | D198: 4121 | E198: LEWIS CARROLL ELEMENTARY SCHL | F198: 56 | G198: PREK-6 | H198: 1 | I198: Elementary | J198: Z | K198: NO | L198: NO | M198: Z | N198: NO | O198: 613 | P198: 21 | Q198: 3 | R198: 187 | S198: 29 | T198: 0 | U198: 0 | V198: 0 | AH198: Non-matching
A199: 055011 | B199: 05 | C199: BREVARD | D199: 5011 | E199: COCOA BEACH JUNIOR/SENIOR HIGH SCHOOL | F199: 75 | G199: 7-12 | H199: 3 | I199: Senior High | J199: Z | K199: NO | L199: NO | M199: Z | N199: NO | O199: 760 | P199: 24 | Q199: 3 | R199: 207 | S199: 27 | T199: 0 | U199: 0 | V199: 0 | AH199: Non-matching
A200: 055012 | B200: 05 | C200: BREVARD | D200: 5012 | E200: THEODORE ROOSEVELT ELEMENTARY SCHOOL | F200: 56 | G200: PREK-6 | H200: 1 | I200: Elementary | J200: Z | K200: NO | L200: NO | M200: Z | N200: NO | O200: 284 | P200: 4 | Q200: 4 | R200: 77 | S200: 12 | T200: 0 | U200: 0 | V200: 0 | AH200: Non-matching
... 2050 more rows

Sheet 01-Alachua
A1: ID | B1: LEANum | C1: LEAName | D1: Snum | E1: School Name | F1: Grade Code | G1: Grade Combination | H1: School Type Code | I1: School Type | J1: Neglected or Delinquent Code | K1: Neglected or Delinquent Yes/No | L1: New School Yes/No | M1: Charter Status Code | N1: Charter Yes/No | O1: Membership (Ages 5-17) | P1: # Reduced ( 3 ) | Q1: # Reduced Direct Cert. ( E ) | R1: # Free Direct Cert. ( D ) | S1: # Free ( F ) | T1: Provision 2 (4) | U1: #Free Direct Cert. ( C ) | V1: # Reduced Direct Cert. ( R ) | W1: LEANum | X1: LEAName | Y1: SNum | Z1: School Name | AA1: School type | AB1: Total Students | AC1: Number CLIF | AD1: %CLIF | AE1: Percent CLIF | AF1: Selection Code | AG1: Program Type | AH1: MTW Status
A2: 11012 | B2: 01 | C2: ALACHUA | D2: 1012 | E2: BOULWARE SPRINGS CHARTER | F2: 15 | G2: K-5 | H2: 1 | I2: Elementary | J2: Z | K2: NO | L2: NO | M2: R | N2: YES | O2: 155 | P2: 0 | Q2: 0 | R2: 0 | S2: 0 | T2: 0 | U2: 92 | V2: 6 | W2: 1 | X2: ALACHUA | Y2: 1012 | Z2: BOULWARE SPRINGS CHARTER | AA2: Elementary | AB2: 152 | AC2: 110 | AD2: 0.7236842105 | AE2: 0.7236 | AF2: B | AG2: SW | AH2: Matching
A3: 10531 | B3: 01 | C3: ALACHUA | D3: 0531 | E3: NEWBERRY ELEMENTARY SCHOOL | F3: 16 | G3: PREK-4 | H3: 1 | I3: Elementary | J3: Z | K3: NO | L3: NO | M3: Z | N3: NO | O3: 621 | P3: 0 | Q3: 0 | R3: 0 | S3: 0 | T3: 0 | U3: 275 | V3: 19 | W3: 1 | X3: ALACHUA | Y3: 531 | Z3: NEWBERRY ELEMENTARY SCHOOL | AA3: Elementary | AB3: 621 | AC3: 294 | AD3: 0.4734299517 | AE3: 0.4734 | AF3: B | AG3: SW | AH3: Matching
A4: 10541 | B4: 01 | C4: ALACHUA | D4: 0541 | E4: C. W. NORTON ELEMENTARY SCHOOL | F4: 8 | G4: PREK-5 | H4: 1 | I4: Elementary | J4: Z | K4: NO | L4: NO | M4: Z | N4: NO | O4: 559 | P4: 0 | Q4: 0 | R4: 0 | S4: 0 | T4: 0 | U4: 265 | V4: 10 | W4: 1 | X4: ALACHUA | Y4: 541 | Z4: C. W. NORTON ELEMENTARY SCHOOL | AA4: Elementary | AB4: 625 | AC4: 301 | AD4: 0.4816 | AE4: 0.4816 | AF4: B | AG4: SW | AH4: Matching
A5: 10201 | B5: 01 | C5: ALACHUA | D5: 0201 | E5: HAWTHORNE MIDDLE/HIGH SCHOOL | F5: 69 | G5: 6-12 | H5: 3 | I5: Senior High | J5: Z | K5: NO | L5: NO | M5: Z | N5: NO | O5: 404 | P5: 0 | Q5: 0 | R5: 0 | S5: 0 | T5: 0 | U5: 297 | V5: 6 | W5: 1 | X5: ALACHUA | Y5: 201 | Z5: HAWTHORNE MIDDLE/HIGH SCHOOL | AA5: Senior High | AB5: 337 | AC5: 232 | AD5: 0.6884272997 | AE5: 0.6884 | AF5: B | AG5: SW | AH5: Matching
A6: 10341 | B6: 01 | C6: ALACHUA | D6: 0341 | E6: MARJORIE KINNAN RAWLINGS ELEM | F6: 34 | G6: 1-5 | H6: 1 | I6: Elementary | J6: Z | K6: NO | L6: NO | M6: Z | N6: NO | O6: 402 | P6: 0 | Q6: 0 | R6: 0 | S6: 0 | T6: 0 | U6: 372 | V6: 2 | W6: 1 | X6: ALACHUA | Y6: 341 | Z6: MARJORIE KINNAN RAWLINGS ELEM | AA6: Elementary | AB6: 305 | AC6: 283 | AD6: 0.9278688525 | AE6: 0.9278 | AF6: A | AG6: SW | AH6: Matching
A7: 10571 | B7: 01 | C7: ALACHUA | D7: 0571 | E7: W. W. IRBY ELEMENTARY SCHOOL | F7: 4 | G7: PREK-2 | H7: 1 | I7: Elementary | J7: Z | K7: NO | L7: NO | M7: Z | N7: NO | O7: 353 | P7: 0 | Q7: 0 | R7: 0 | S7: 0 | T7: 0 | U7: 240 | V7: 5 | W7: 1 | X7: ALACHUA | Y7: 571 | Z7: W. W. IRBY ELEMENTARY SCHOOL | AA7: Elementary | AB7: 358 | AC7: 223 | AD7: 0.6229050279 | AE7: 0.6229 | AF7: B | AG7: SW | AH7: Matching
A8: 10161 | B8: 01 | C8: ALACHUA | D8: 0161 | E8: ALACHUA ELEMENTARY SCHOOL | F8: 43 | G8: 3-5 | H8: 1 | I8: Elementary | J8: Z | K8: NO | L8: NO | M8: Z | N8: NO | O8: 312 | P8: 0 | Q8: 0 | R8: 0 | S8: 0 | T8: 0 | U8: 205 | V8: 5 | W8: 1 | X8: ALACHUA | Y8: 161 | Z8: ALACHUA ELEMENTARY SCHOOL | AA8: Elementary | AB8: 296 | AC8: 181 | AD8: 0.6114864865 | AE8: 0.6114 | AF8: B | AG8: SW | AH8: Matching
A9: 10041 | B9: 01 | C9: ALACHUA | D9: 0041 | E9: STEPHEN FOSTER ELEMENTARY SCHL | F9: 15 | G9: K-5 | H9: 1 | I9: Elementary | J9: Z | K9: NO | L9: NO | M9: Z | N9: NO | O9: 469 | P9: 0 | Q9: 0 | R9: 0 | S9: 0 | T9: 0 | U9: 289 | V9: 15 | W9: 1 | X9: ALACHUA | Y9: 41 | Z9: STEPHEN FOSTER ELEMENTARY SCHL | AA9: Elementary | AB9: 473 | AC9: 256 | AD9: 0.5412262156 | AE9: 0.5412 | AF9: B | AG9: SW | AH9: Matching
A10: 10101 | B10: 01 | C10: ALACHUA | D10: 0101 | E10: W. A. METCALFE ELEMENTARY SCHOOL | F10: 8 | G10: PREK-5 | H10: 1 | I10: Elementary | J10: Z | K10: NO | L10: NO | M10: Z | N10: NO | O10: 255 | P10: 0 | Q10: 0 | R10: 0 | S10: 0 | T10: 0 | U10: 223 | V10: 1 | W10: 1 | X10: ALACHUA | Y10: 101 | Z10: W. A. METCALFE ELEMENTARY SCHOOL | AA10: Elementary | AB10: 207 | AC10: 176 | AD10: 0.8502415459 | AE10: 0.8502 | AF10: A | AG10: SW | AH10: Matching
A11: 10071 | B11: 01 | C11: ALACHUA | D11: 0071 | E11: LAKE FOREST ELEMENTARY SCHOOL | F11: 8 | G11: PREK-5 | H11: 1 | I11: Elementary | J11: Z | K11: NO | L11: NO | M11: Z | N11: NO | O11: 317 | P11: 0 | Q11: 0 | R11: 0 | S11: 0 | T11: 0 | U11: 287 | V11: 8 | W11: 1 | X11: ALACHUA | Y11: 71 | Z11: LAKE FOREST ELEMENTARY SCHOOL | AA11: Elementary | AB11: 392 | AC11: 346 | AD11: 0.8826530612 | AE11: 0.8826 | AF11: A | AG11: SW | AH11: Matching
A12: 10321 | B12: 01 | C12: ALACHUA | D12: 0321 | E12: IDYLWILD ELEMENTARY SCHOOL | F12: 8 | G12: PREK-5 | H12: 1 | I12: Elementary | J12: Z | K12: NO | L12: NO | M12: Z | N12: NO | O12: 682 | P12: 0 | Q12: 0 | R12: 0 | S12: 0 | T12: 0 | U12: 544 | V12: 11 | W12: 1 | X12: ALACHUA | Y12: 321 | Z12: IDYLWILD ELEMENTARY SCHOOL | AA12: Elementary | AB12: 679 | AC12: 501 | AD12: 0.7378497791 | AE12: 0.7378 | AF12: B | AG12: SW | AH12: Matching
A13: 10603 | B13: 01 | C13: ALACHUA | D13: 0603 | E13: AMIKIDS | F13: 69 | G13: 6-12 | H13: 3 | I13: Senior High | J13: C | K13: YES | L13: NO | M13: Z | N13: NO | O13: 11 | P13: 0 | Q13: 0 | R13: 0 | S13: 0 | T13: 0 | U13: 9 | V13: 0 | W13: 1 | X13: ALACHUA | Y13: 603 | Z13: AMI KIDS | AA13: Senior High | AB13: 15 | AC13: 15 | AD13: 1 | AE13: 1 | AF13: A | AG13: SW | AH13: Matching
A14: 10331 | B14: 01 | C14: ALACHUA | D14: 0331 | E14: GLEN SPRINGS ELEMENTARY SCHOOL | F14: 15 | G14: K-5 | H14: 1 | I14: Elementary | J14: Z | K14: NO | L14: NO | M14: Z | N14: NO | O14: 396 | P14: 0 | Q14: 0 | R14: 0 | S14: 0 | T14: 0 | U14: 180 | V14: 16 | W14: 1 | X14: ALACHUA | Y14: 331 | Z14: GLEN SPRINGS ELEMENTARY SCHOOL | AA14: Elementary | AB14: 456 | AC14: 208 | AD14: 0.4561403509 | AE14: 0.4561 | AF14: D | AG14: SW | AH14: Matching
A15: 10957 | B15: 01 | C15: ALACHUA | D15: 0957 | E15: ALACHUA LEARNING ACADEMY ELEMENTARY | F15: 15 | G15: K-5 | H15: 1 | I15: Elementary | J15: Z | K15: NO | L15: NO | M15: R | N15: YES | O15: 107 | P15: 0 | Q15: 0 | R15: 34 | S15: 1 | T15: 0 | U15: 0 | V15: 0 | W15: 1 | X15: ALACHUA | Y15: 957 | Z15: ALACHUA LEARNING ACADEMY ELEMENTARY | AA15: Elementary | AB15: 115 | AC15: 46 | AD15: 0.4 | AE15: 0.4 | AF15: D | AG15: SW | AH15: Matching
A16: 10091 | B16: 01 | C16: ALACHUA | D16: 0091 | E16: LITTLEWOOD ELEMENTARY SCHOOL | F16: 8 | G16: PREK-5 | H16: 1 | I16: Elementary | J16: Z | K16: NO | L16: NO | M16: Z | N16: NO | O16: 656 | P16: 0 | Q16: 0 | R16: 0 | S16: 0 | T16: 0 | U16: 311 | V16: 12 | W16: 1 | X16: ALACHUA | Y16: 91 | Z16: LITTLEWOOD ELEMENTARY SCHOOL | AA16: Elementary | AB16: 729 | AC16: 342 | AD16: 0.4691358025 | AE16: 0.4691 | AF16: D | AG16: SW | AH16: Matching
A17: 10031 | B17: 01 | C17: ALACHUA | D17: 0031 | E17: CAROLYN BEATRICE PARKER ELEMENTARY | F17: 15 | G17: K-5 | H17: 1 | I17: Elementary | J17: Z | K17: NO | L17: NO | M17: Z | N17: NO | O17: 569 | P17: 0 | Q17: 0 | R17: 0 | S17: 0 | T17: 0 | U17: 249 | V17: 10 | W17: 1 | X17: ALACHUA | Y17: 31 | Z17: CAROLYN BEATRICE PARKER ELEMENTARY | AA17: Elementary | AB17: 622 | AC17: 259 | AD17: 0.4163987138 | AE17: 0.4163 | AF17: D | AG17: SW | AH17: Matching
A18: 10111 | B18: 01 | C18: ALACHUA | D18: 0111 | E18: JOSEPH WILLIAMS ELEM. SCHOOL | F18: 15 | G18: K-5 | H18: 1 | I18: Elementary | J18: Z | K18: NO | L18: NO | M18: Z | N18: NO | O18: 479 | P18: 0 | Q18: 0 | R18: 0 | S18: 0 | T18: 0 | U18: 332 | V18: 4 | W18: 1 | X18: ALACHUA | Y18: 111 | Z18: JOSEPH WILLIAMS ELEM. SCHOOL | AA18: Elementary | AB18: 557 | AC18: 396 | AD18: 0.710951526 | AE18: 0.7109 | AF18: B | AG18: SW | AH18: Matching
A19: 10604 | B19: 01 | C19: ALACHUA | D19: 0604 | E19: PACE | F19: 69 | G19: 6-12 | H19: 3 | I19: Senior High | J19: C | K19: YES | L19: NO | M19: Z | N19: NO | O19: 47 | P19: 0 | Q19: 0 | R19: 0 | S19: 0 | T19: 0 | U19: 36 | V19: 1 | W19: 1 | X19: ALACHUA | Y19: 604 | Z19: PACE CENTER FOR GIRLS | AA19: Senior High | AB19: 46 | AC19: 42 | AD19: 0.9130434783 | AE19: 0.913 | AF19: A | AG19: SW | AH19: Matching
A20: 11003 | B20: 01 | C20: ALACHUA | D20: 1003 | E20: NORTH CENTRAL FLORIDA PUBLIC CHARTER SCHOOL | F20: 85 | G20: 9-12 | H20: 3 | I20: Senior High | J20: Z | K20: NO | L20: NO | M20: R | N20: YES | O20: 91 | P20: 0 | Q20: 0 | R20: 0 | S20: 0 | T20: 0 | U20: 79 | V20: 0 | W20: 1 | X20: ALACHUA | Y20: 1003 | Z20: NORTH CENTRAL FLORIDA PUBLIC CHARTER SCHOOL | AA20: Senior High | AB20: 83 | AC20: 66 | AD20: 0.7951807229 | AE20: 0.7951 | AF20: A | AG20: SW | AH20: Matching
A21: 10953 | B21: 01 | C21: ALACHUA | D21: 0953 | E21: CARING & SHARING LEARNING SCHOOL | F21: 56 | G21: PREK-6 | H21: 1 | I21: Elementary | J21: Z | K21: NO | L21: NO | M21: R | N21: YES | O21: 190 | P21: 0 | Q21: 0 | R21: 0 | S21: 0 | T21: 0 | U21: 140 | V21: 1 | W21: 1 | X21: ALACHUA | Y21: 953 | Z21: CARING & SHARING LEARNING SCHOOL | AA21: Elementary | AB21: 186 | AC21: 129 | AD21: 0.6935483871 | AE21: 0.6935 | AF21: B | AG21: SW | AH21: Matching
A22: 10281 | B22: 01 | C22: ALACHUA | D22: 0281 | E22: CHESTER SHELL ELEMENTARY SCHL | F22: 8 | G22: PREK-5 | H22: 1 | I22: Elementary | J22: Z | K22: NO | L22: NO | M22: Z | N22: NO | O22: 360 | P22: 0 | Q22: 0 | R22: 0 | S22: 0 | T22: 0 | U22: 285 | V22: 8 | W22: 1 | X22: ALACHUA | Y22: 281 | Z22: CHESTER SHELL ELEMENTARY SCHL | AA22: Elementary | AB22: 363 | AC22: 296 | AD22: 0.8154269972 | AE22: 0.8154 | AF22: A | AG22: SW | AH22: Matching
A23: 10171 | B23: 01 | C23: ALACHUA | D23: 0171 | E23: ARCHER ELEMENTARY | F23: 8 | G23: PREK-5 | H23: 1 | I23: Elementary | J23: Z | K23: NO | L23: NO | M23: Z | N23: NO | O23: 488 | P23: 0 | Q23: 0 | R23: 0 | S23: 0 | T23: 0 | U23: 275 | V23: 13 | W23: 1 | X23: ALACHUA | Y23: 171 | Z23: ARCHER ELEMENTARY | AA23: Elementary | AB23: 532 | AC23: 293 | AD23: 0.5507518797 | AE23: 0.5507 | AF23: B | AG23: SW | AH23: Matching
A24: 10081 | B24: 01 | C24: ALACHUA | D24: 0081 | E24: SIDNEY LANIER CENTER | F24: 28 | G24: K-12 | H24: 4 | I24: Combination Elementary & Secondary | J24: Z | K24: NO | L24: NO | M24: Z | N24: NO | O24: 89 | P24: 0 | Q24: 0 | R24: 0 | S24: 0 | T24: 0 | U24: 67 | V24: 2 | W24: 1 | X24: ALACHUA | Y24: 81 | Z24: SIDNEY LANIER CENTER | AA24: Combination Elementary & Secondary | AB24: 100 | AC24: 73 | AD24: 0.73 | AE24: 0.73 | AF24: B | AG24: SW | AH24: Matching
A25: 10052 | B25: 01 | C25: ALACHUA | D25: 0052 | E25: A.QUINN JONES CENTER | F25: 69 | G25: 6-12 | H25: 3 | I25: Senior High | J25: Z | K25: NO | L25: NO | M25: Z | N25: NO | O25: 64 | P25: 0 | Q25: 0 | R25: 0 | S25: 0 | T25: 0 | U25: 61 | V25: 0 | W25: 1 | X25: ALACHUA | Y25: 52 | Z25: A. QUINN JONES CENTER | AA25: Senior High | AB25: 59 | AC25: 54 | AD25: 0.9152542373 | AE25: 0.9152 | AF25: A | AG25: SW | AH25: Matching
A26: 10311 | B26: 01 | C26: ALACHUA | D26: 0311 | E26: MYRA TERWILLIGER ELEM. SCHOOL | F26: 8 | G26: PREK-5 | H26: 1 | I26: Elementary | J26: Z | K26: NO | L26: NO | M26: Z | N26: NO | O26: 506 | P26: 0 | Q26: 0 | R26: 0 | S26: 0 | T26: 0 | U26: 403 | V26: 8 | W26: 1 | X26: ALACHUA | Y26: 311 | Z26: MYRA TERWILLIGER ELEM. SCHOOL | AA26: Elementary | AB26: 481 | AC26: 378 | AD26: 0.7858627859 | AE26: 0.7858 | AF26: A | AG26: SW | AH26: Matching
A27: 10950 | B27: 01 | C27: ALACHUA | D27: 0950 | E27: THE ONE ROOM SCHOOL HOUSE PROJECT | F27: 18 | G27: K-6 | H27: 1 | I27: Elementary | J27: Z | K27: NO | L27: NO | M27: R | N27: YES | O27: 183 | P27: 0 | Q27: 0 | R27: 0 | S27: 0 | T27: 0 | U27: 120 | V27: 4 | W27: 1 | X27: ALACHUA | Y27: 950 | Z27: THE ONE ROOM SCHOOL HOUSE PROJECT | AA27: Elementary | AB27: 196 | AC27: 129 | AD27: 0.6581632653 | AE27: 0.6581 | AF27: B | AG27: SW | AH27: Matching
D30: District | E30: Non-Profit Private School Name | F30: School Code
D31: ALACHUA | E31: LIVING SPRINGS ACADEMY | F31: 3655

Sheet 02-Baker
A1: ID | B1: LEANum | C1: LEAName | D1: Snum | E1: School Name | F1: Grade Code | G1: Grade Combination | H1: School Type Code | I1: School Type | J1: Neglected or Delinquent Code | K1: Neglected or Delinquent Yes/No | L1: New School Yes/No | M1: Charter Status Code | N1: Charter Yes/No | O1: Membership (Ages 5-17) | P1: # Reduced ( 3 ) | Q1: # Reduced Direct Cert. ( E ) | R1: # Free Direct Cert. ( D ) | S1: # Free ( F ) | T1: Provision 2 (4) | U1: #Free Direct Cert. ( C ) | V1: # Reduced Direct Cert. ( R ) | W1: LEANum | X1: LEAName | Y1: SNum | Z1: School Name | AA1: School type | AB1: Total Students | AC1: Number CLIF | AD1: %CLIF | AE1: Percent CLIF | AF1: Selection Code | AG1: Program Type | AH1: MTW Status
A2: 20013 | B2: 02 | C2: BAKER | D2: 0013 | E2: MACCLENNY ELEMENTARY SCHOOL | F2: 32 | G2: 1-3 | H2: 1 | I2: Elementary | J2: Z | K2: NO | L2: NO | M2: Z | N2: NO | O2: 602 | P2: 0 | Q2: 0 | R2: 0 | S2: 0 | T2: 0 | U2: 333 | V2: 0 | W2: 2 | X2: BAKER | Y2: 13 | Z2: MACCLENNY ELEMENTARY SCHOOL | AA2: Elementary | AB2: 628 | AC2: 348 | AD2: 0.5541401274 | AE2: 0.5541401274 | AF2: B | AG2: SW | AH2: Matching
A3: 20091 | B3: 02 | C3: BAKER | D3: 0091 | E3: WESTSIDE ELEMENTARY SCHOOL | F3: 32 | G3: 1-3 | H3: 1 | I3: Elementary | J3: Z | K3: NO | L3: NO | M3: Z | N3: NO | O3: 529 | P3: 0 | Q3: 0 | R3: 0 | S3: 0 | T3: 0 | U3: 323 | V3: 1 | W3: 2 | X3: BAKER | Y3: 91 | Z3: WESTSIDE ELEMENTARY SCHOOL | AA3: Elementary | AB3: 529 | AC3: 320 | AD3: 0.6049149338 | AE3: 0.6049149338 | AF3: B | AG3: SW | AH3: Matching
A4: 20031 | B4: 02 | C4: BAKER | D4: 0031 | E4: J FRANKLYN KELLER INTERMEDIATE SCHOOL | F4: 51 | G4: 4-5 | H4: 1 | I4: Elementary | J4: Z | K4: NO | L4: NO | M4: Z | N4: NO | O4: 749 | P4: 0 | Q4: 0 | R4: 0 | S4: 0 | T4: 0 | U4: 412 | V4: 1 | W4: 2 | X4: BAKER | Y4: 31 | Z4: J FRANKLYN KELLER INTERMEDIATE SCHOOL | AA4: Elementary | AB4: 684 | AC4: 400 | AD4: 0.5847953216 | AE4: 0.5847953216 | AF4: B | AG4: SW | AH4: Matching
D7: District | E7: Non-Profit Private School Name | F7: School Code
D8: BAKER | E8: FAITH BAPTIST ACADEMY | F8: 7179

Sheet 03-Bay
A1: ID | B1: LEANum | C1: LEAName | D1: Snum | E1: School Name | F1: Grade Code | G1: Grade Combination | H1: School Type Code | I1: School Type | J1: Neglected or Delinquent Code | K1: Neglected or Delinquent Yes/No | L1: New School Yes/No | M1: Charter Status Code | N1: Charter Yes/No | O1: Membership (Ages 5-17) | P1: # Reduced ( 3 ) | Q1: # Reduced Direct Cert. ( E ) | R1: # Free Direct Cert. ( D ) | S1: # Free ( F ) | T1: Provision 2 (4) | U1: #Free Direct Cert. ( C ) | V1: # Reduced Direct Cert. ( R ) | W1: LEANum | X1: LEAName | Y1: SNum | Z1: School Name | AA1: School type | AB1: Total Students | AC1: Number CLIF | AD1: %CLIF | AE1: Percent CLIF | AF1: Selection Code | AG1: Program Type | AH1: MTW Status
A2: 30101 | B2: 03 | C2: BAY | D2: 0101 | E2: CALLAWAY ELEMENTARY SCHOOL | F2: 8 | G2: PREK-5 | H2: 1 | I2: Elementary | J2: Z | K2: NO | L2: NO | M2: Z | N2: NO | O2: 430 | P2: 0 | Q2: 0 | R2: 0 | S2: 0 | T2: 0 | U2: 312 | V2: 0 | W2: 3 | X2: BAY | Y2: 101 | Z2: CALLAWAY ELEMENTARY SCHOOL | AA2: Elementary | AB2: 383 | AC2: 281 | AD2: 0.7336814621 | AE2: 0.7336814621 | AF2: B | AG2: SW | AH2: Matching
A3: 30111 | B3: 03 | C3: BAY | D3: 0111 | E3: MERRIAM CHERRY STREET ELEM. | F3: 8 | G3: PREK-5 | H3: 1 | I3: Elementary | J3: Z | K3: NO | L3: NO | M3: Z | N3: NO | O3: 445 | P3: 0 | Q3: 0 | R3: 0 | S3: 0 | T3: 0 | U3: 336 | V3: 0 | W3: 3 | X3: BAY | Y3: 111 | Z3: MERRIAM CHERRY STREET ELEM. | AA3: Elementary | AB3: 432 | AC3: 312 | AD3: 0.7222222222 | AE3: 0.7222222222 | AF3: B | AG3: SW | AH3: Matching
A4: 30091 | B4: 03 | C4: BAY | D4: 0091 | E4: CEDAR GROVE ELEMENTARY SCHOOL | F4: 8 | G4: PREK-5 | H4: 1 | I4: Elementary | J4: Z | K4: NO | L4: NO | M4: Z | N4: NO | O4: 505 | P4: 0 | Q4: 0 | R4: 0 | S4: 0 | T4: 0 | U4: 396 | V4: 0 | W4: 3 | X4: BAY | Y4: 91 | Z4: CEDAR GROVE ELEMENTARY SCHOOL | AA4: Elementary | AB4: 524 | AC4: 404 | AD4: 0.7709923664 | AE4: 0.7709923664 | AF4: A | AG4: SW | AH4: Matching
A5: 30341 | B5: 03 | C5: BAY | D5: 0341 | E5: RUTHERFORD HIGH SCHOOL | F5: 69 | G5: 6-12 | H5: 3 | I5: Senior High | J5: Z | K5: NO | L5: NO | M5: Z | N5: NO | O5: 1087 | P5: 0 | Q5: 0 | R5: 0 | S5: 0 | T5: 0 | U5: 710 | V5: 7 | W5: 3 | X5: BAY | Y5: 341 | Z5: RUTHERFORD HIGH SCHOOL | AA5: Senior High | AB5: 1151 | AC5: 761 | AD5: 0.661164205 | AE5: 0.661164205 | AF5: B | AG5: SW | AH5: Matching
A6: 30211 | B6: 03 | C6: BAY | D6: 0211 | E6: PARKER ELEMENTARY SCHOOL | F6: 8 | G6: PREK-5 | H6: 1 | I6: Elementary | J6: Z | K6: NO | L6: NO | M6: Z | N6: NO | O6: 693 | P6: 0 | Q6: 0 | R6: 0 | S6: 0 | T6: 0 | U6: 524 | V6: 3 | W6: 3 | X6: BAY | Y6: 211 | Z6: PARKER ELEMENTARY SCHOOL | AA6: Elementary | AB6: 581 | AC6: 441 | AD6: 0.7590361446 | AE6: 0.7590361446 | AF6: A | AG6: SW | AH6: Matching
A7: 30531 | B7: 03 | C7: BAY | D7: 0531 | E7: NEW HORIZONS LEARNING CENTER | F7: 69 | G7: 6-12 | H7: 3 | I7: Senior High | J7: Z | K7: NO | L7: NO | M7: Z | N7: NO | O7: 91 | P7: 0 | Q7: 0 | R7: 0 | S7: 0 | T7: 0 | U7: 68 | V7: 1 | W7: 3 | X7: BAY | Y7: 531 | Z7: NEW HORIZONS LEARNING CENTER | AA7: Senior High | AB7: 107 | AC7: 87 | AD7: 0.8130841121 | AE7: 0.8130841121 | AF7: A | AG7: SW | AH7: Matching
A8: 30262 | B8: 03 | C8: BAY | D8: 0262 | E8: WEST BAY ELEMENTARY SCHOOL | F8: 15 | G8: K-5 | H8: 1 | I8: Elementary | J8: Z | K8: NO | L8: NO | M8: Z | N8: NO | O8: 309 | P8: 0 | Q8: 0 | R8: 0 | S8: 0 | T8: 0 | U8: 160 | V8: 0 | W8: 3 | X8: BAY | Y8: 262 | Z8: WEST BAY ELEMENTARY SCHOOL | AA8: Elementary | AB8: 304 | AC8: 160 | AD8: 0.5263157895 | AE8: 0.5263157895 | AF8: B | AG8: SW | AH8: Matching
A9: 30061 | B9: 03 | C9: BAY | D9: 0061 | E9: BAY HIGH SCHOOL | F9: 85 | G9: 9-12 | H9: 3 | I9: Senior High | J9: Z | K9: NO | L9: NO | M9: Z | N9: NO | O9: 801 | P9: 0 | Q9: 0 | R9: 0 | S9: 0 | T9: 0 | U9: 441 | V9: 6 | W9: 3 | X9: BAY | Y9: 61 | Z9: BAY HIGH SCHOOL | AA9: Senior High | AB9: 755 | AC9: 380 | AD9: 0.5033112583 | AE9: 0.5033112583 | AF9: B | AG9: SW | AH9: Matching
A10: 30251 | B10: 03 | C10: BAY | D10: 0251 | E10: WALLER ELEMENTARY SCHOOL | F10: 8 | G10: PREK-5 | H10: 1 | I10: Elementary | J10: Z | K10: NO | L10: NO | M10: Z | N10: NO | O10: 367 | P10: 0 | Q10: 0 | R10: 0 | S10: 0 | T10: 0 | U10: 288 | V10: 1 | W10: 3 | X10: BAY | Y10: 251 | Z10: WALLER ELEMENTARY SCHOOL | AA10: Elementary | AB10: 356 | AC10: 267 | AD10: 0.75 | AE10: 0.75 | AF10: B | AG10: SW | AH10: Matching
A11: 30151 | B11: 03 | C11: BAY | D11: 0151 | E11: HILAND PARK ELEMENTARY SCHOOL | F11: 8 | G11: PREK-5 | H11: 1 | I11: Elementary | J11: Z | K11: NO | L11: NO | M11: Z | N11: NO | O11: 564 | P11: 0 | Q11: 0 | R11: 0 | S11: 0 | T11: 0 | U11: 319 | V11: 1 | W11: 3 | X11: BAY | Y11: 151 | Z11: HILAND PARK ELEMENTARY SCHOOL | AA11: Elementary | AB11: 479 | AC11: 268 | AD11: 0.5594989562 | AE11: 0.5594989562 | AF11: B | AG11: SW | AH11: Matching
A12: 30131 | B12: 03 | C12: BAY | D12: 0131 | E12: LUCILLE MOORE ELEMENTARY SCHL | F12: 8 | G12: PREK-5 | H12: 1 | I12: Elementary | J12: Z | K12: NO | L12: NO | M12: Z | N12: NO | O12: 462 | P12: 0 | Q12: 0 | R12: 0 | S12: 0 | T12: 0 | U12: 362 | V12: 1 | W12: 3 | X12: BAY | Y12: 131 | Z12: LUCILLE MOORE ELEMENTARY SCHL | AA12: Elementary | AB12: 473 | AC12: 352 | AD12: 0.7441860465 | AE12: 0.7441860465 | AF12: B | AG12: SW | AH12: Matching
A13: 30221 | B13: 03 | C13: BAY | D13: 0221 | E13: SOUTHPORT ELEMENTARY SCHOOL | F13: 8 | G13: PREK-5 | H13: 1 | I13: Elementary | J13: Z | K13: NO | L13: NO | M13: Z | N13: NO | O13: 457 | P13: 0 | Q13: 0 | R13: 0 | S13: 0 | T13: 0 | U13: 244 | V13: 4 | W13: 3 | X13: BAY | Y13: 221 | Z13: SOUTHPORT ELEMENTARY SCHOOL | AA13: Elementary | AB13: 410 | AC13: 195 | AD13: 0.4756097561 | AE13: 0.4756097561 | AF13: B | AG13: SW | AH13: Matching
A14: 30801 | B14: 03 | C14: BAY | D14: 0801 | E14: PALM BAY ELEMENTARY SCHOOL | F14: 15 | G14: K-5 | H14: 1 | I14: Elementary | J14: Z | K14: NO | L14: NO | M14: R | N14: YES | O14: 260 | P14: 0 | Q14: 0 | R14: 0 | S14: 0 | T14: 0 | U14: 168 | V14: 6 | W14: 3 | X14: BAY | Y14: 801 | Z14: PALM BAY ELEMENTARY SCHOOL | AA14: Elementary | AB14: 295 | AC14: 157 | AD14: 0.5322033898 | AE14: 0.5322033898 | AF14: B | AG14: SW | AH14: Matching
A15: 30281 | B15: 03 | C15: BAY | D15: 0281 | E15: MARGARET K. LEWIS IN MILLVILLE | F15: 14 | G15: PREK-12 | H15: 4 | I15: Combination Elementary & Secondary | J15: Z | K15: NO | L15: NO | M15: Z | N15: NO | O15: 123 | P15: 0 | Q15: 0 | R15: 0 | S15: 0 | T15: 0 | U15: 66 | V15: 1 | W15: 3 | X15: BAY | Y15: 281 | Z15: MARGARET K. LEWIS IN MILLVILLE | AA15: Combination Elementary & Secondary | AB15: 120 | AC15: 74 | AD15: 0.6166666667 | AE15: 0.6166666667 | AF15: B | AG15: SW | AH15: Matching
A16: 30782 | B16: 03 | C16: BAY | D16: 0782 | E16: CENTRAL HIGH SCHOOL | F16: 85 | G16: 9-12 | H16: 3 | I16: Senior High | J16: Z | K16: NO | L16: NO | M16: R | N16: YES | O16: 40 | P16: 0 | Q16: 0 | R16: 0 | S16: 0 | T16: 0 | U16: 26 | V16: 1 | W16: 3 | X16: BAY | Y16: 782 | Z16: CENTRAL HIGH SCHOOL | AA16: Senior High | AB16: 60 | AC16: 36 | AD16: 0.6 | AE16: 0.6 | AF16: B | AG16: SW | AH16: Matching
A17: 30471 | B17: 03 | C17: BAY | D17: 0471 | E17: NORTHSIDE ELEMENTARY SCHOOL | F17: 8 | G17: PREK-5 | H17: 1 | I17: Elementary | J17: Z | K17: NO | L17: NO | M17: Z | N17: NO | O17: 618 | P17: 0 | Q17: 0 | R17: 0 | S17: 0 | T17: 0 | U17: 387 | V17: 2 | W17: 3 | X17: BAY | Y17: 471 | Z17: NORTHSIDE ELEMENTARY SCHOOL | AA17: Elementary | AB17: 554 | AC17: 347 | AD17: 0.6263537906 | AE17: 0.6263537906 | AF17: B | AG17: SW | AH17: Matching
A18: 30511 | B18: 03 | C18: BAY | D18: 0511 | E18: TOMMY SMITH ELEMENTARY SCHOOL | F18: 8 | G18: PREK-5 | H18: 1 | I18: Elementary | J18: Z | K18: NO | L18: NO | M18: Z | N18: NO | O18: 537 | P18: 0 | Q18: 0 | R18: 0 | S18: 0 | T18: 0 | U18: 283 | V18: 1 | W18: 3 | X18: BAY | Y18: 511 | Z18: TOMMY SMITH ELEMENTARY SCHOOL | AA18: Elementary | AB18: 475 | AC18: 249 | AD18: 0.5242105263 | AE18: 0.5242105263 | AF18: B | AG18: SW | AH18: Matching
A19: 30771 | B19: 03 | C19: BAY | D19: 0771 | E19: PALM BAY PREPARATORY ACADEMY 6-12 | F19: 69 | G19: 6-12 | H19: 3 | I19: Senior High | J19: Z | K19: NO | L19: NO | M19: R | N19: YES | O19: 178 | P19: 0 | Q19: 0 | R19: 0 | S19: 0 | T19: 0 | U19: 99 | V19: 5 | W19: 3 | X19: BAY | Y19: 771 | Z19: PALM BAY PREPARATORY ACADEMY 6-12 | AA19: Senior High | AB19: 235 | AC19: 123 | AD19: 0.5234042553 | AE19: 0.5234042553 | AF19: B | AG19: SW | AH19: Matching
A20: 30071 | B20: 03 | C20: BAY | D20: 0071 | E20: MERRITT BROWN MIDDLE SCHOOL | F20: 67 | G20: 6-8 | H20: 2 | I20: Middle/Junior | J20: Z | K20: NO | L20: NO | M20: Z | N20: NO | O20: 674 | P20: 0 | Q20: 0 | R20: 0 | S20: 0 | T20: 0 | U20: 363 | V20: 6 | W20: 3 | X20: BAY | Y20: 71 | Z20: MERRITT BROWN MIDDLE SCHOOL | AA20: Middle/Junior | AB20: 608 | AC20: 343 | AD20: 0.5641447368 | AE20: 0.5641447368 | AF20: B | AG20: SW | AH20: Matching
A21: 30581 | B21: 03 | C21: BAY | D21: 0581 | E21: ROSENWALD HIGH SCHOOL | F21: 69 | G21: 6-12 | H21: 3 | I21: Senior High | J21: Z | K21: NO | L21: NO | M21: Z | N21: NO | O21: 170 | P21: 0 | Q21: 0 | R21: 0 | S21: 0 | T21: 0 | U21: 130 | V21: 2 | W21: 3 | X21: BAY | Y21: 581 | Z21: ROSENWALD HIGH SCHOOL | AA21: Senior High | AB21: 142 | AC21: 114 | AD21: 0.8028169014 | AE21: 0.8028169014 | AF21: A | AG21: SW | AH21: Matching
A22: 30161 | B22: 03 | C22: BAY | D22: 0161 | E22: JINKS MIDDLE SCHOOL | F22: 67 | G22: 6-8 | H22: 2 | I22: Middle/Junior | J22: Z | K22: NO | L22: NO | M22: Z | N22: NO | O22: 505 | P22: 0 | Q22: 0 | R22: 0 | S22: 0 | T22: 0 | U22: 348 | V22: 2 | W22: 3 | X22: BAY | Y22: 161 | Z22: JINKS MIDDLE SCHOOL | AA22: Middle/Junior | AB22: 425 | AC22: 325 | AD22: 0.7647058824 | AE22: 0.7647058824 | AF22: A | AG22: SW | AH22: Matching
A23: 30241 | B23: 03 | C23: BAY | D23: 0241 | E23: ST. ANDREW SCHOOL AT OAKLAND TERRACE | F23: 15 | G23: K-5 | H23: 1 | I23: Elementary | J23: Z | K23: NO | L23: NO | M23: Z | N23: NO | O23: 114 | P23: 0 | Q23: 0 | R23: 0 | S23: 0 | T23: 0 | U23: 92 | V23: 0 | W23: 3 | X23: BAY | Y23: 241 | Z23: ST. ANDREW SCHOOL AT OAKLAND TERRACE | AA23: Elementary | AB23: 108 | AC23: 86 | AD23: 0.7962962963 | AE23: 0.7962962963 | AF23: A | AG23: SW | AH23: Matching
D25: District | E25: Non-Profit Private School Name | F25: School Code
D26: BAY | E26: SQUARE PEGS LEARNING CENTER | F26: 6769

Sheet 04-Bradford
A1: ID | B1: LEANum | C1: LEAName | D1: Snum | E1: School Name | F1: Grade Code | G1: Grade Combination | H1: School Type Code | I1: School Type | J1: Neglected or Delinquent Code | K1: Neglected or Delinquent Yes/No | L1: New School Yes/No | M1: Charter Status Code | N1: Charter Yes/No | O1: Membership (Ages 5-17) | P1: # Reduced ( 3 ) | Q1: # Reduced Direct Cert. ( E ) | R1: # Free Direct Cert. ( D ) | S1: # Free ( F ) | T1: Provision 2 (4) | U1: #Free Direct Cert. ( C ) | V1: # Reduced Direct Cert. ( R ) | W1: LEANum | X1: LEAName | Y1: SNum | Z1: School Name | AA1: School type | AB1: Total Students | AC1: Number CLIF | AD1: %CLIF | AE1: Percent CLIF | AF1: Selection Code | AG1: Program Type | AH1: MTW Status
A2: 40081 | B2: 04 | C2: BRADFORD | D2: 0081 | E2: SOUTHSIDE ELEMENTARY SCHOOL | F2: 8 | G2: PREK-5 | H2: 1 | I2: Elementary | J2: Z | K2: NO | L2: NO | M2: Z | N2: NO | O2: 610 | P2: 0 | Q2: 0 | R2: 0 | S2: 0 | T2: 0 | U2: 448 | V2: 1 | W2: 4 | X2: BRADFORD | Y2: 81 | Z2: SOUTHSIDE ELEMENTARY SCHOOL | AA2: Elementary | AB2: 393 | AC2: 303 | AD2: 0.7709923664 | AE2: 0.771 | AF2: A | AG2: SW | AH2: Matching
A3: 40131 | B3: 04 | C3: BRADFORD | D3: 0131 | E3: LAWTEY ELEMENTARY SCHOOL | F3: 8 | G3: PREK-5 | H3: 1 | I3: Elementary | J3: Z | K3: NO | L3: NO | M3: Z | N3: NO | O3: 226 | P3: 0 | Q3: 0 | R3: 0 | S3: 0 | T3: 0 | U3: 135 | V3: 1 | W3: 4 | X3: BRADFORD | Y3: 131 | Z3: LAWTEY ELEMENTARY SCHOOL | AA3: Elementary | AB3: 197 | AC3: 125 | AD3: 0.6345177665 | AE3: 0.6345 | AF3: B | AG3: SW | AH3: Matching
A4: 40051 | B4: 04 | C4: BRADFORD | D4: 0051 | E4: STARKE ELEMENTARY SCHOOL | F4: 8 | G4: PREK-5 | H4: 1 | I4: Elementary | J4: Z | K4: NO | L4: NO | M4: Z | N4: NO | O4: 516 | P4: 0 | Q4: 0 | R4: 0 | S4: 0 | T4: 0 | U4: 335 | V4: 4 | W4: 4 | X4: BRADFORD | Y4: 51 | Z4: STARKE ELEMENTARY SCHOOL | AA4: Elementary | AB4: 398 | AC4: 232 | AD4: 0.5829145729 | AE4: 0.5829 | AF4: B | AG4: SW | AH4: Matching
D7: District | E7: Non-Profit Private School Name | F7: School Code
D8: BRADFORD | E8: KINGDOM CHRISTIAN ACADEMY | F8: 6717

Sheet 05-Brevard
A1: ID | B1: LEANum | C1: LEAName | D1: Snum | E1: School Name | F1: Grade Code | G1: Grade Combination | H1: School Type Code | I1: School Type | J1: Neglected or Delinquent Code | K1: Neglected or Delinquent Yes/No | L1: New School Yes/No | M1: Charter Status Code | N1: Charter Yes/No | O1: Membership (Ages 5-17) | P1: # Reduced ( 3 ) | Q1: # Reduced Direct Cert. ( E ) | R1: # Free Direct Cert. ( D ) | S1: # Free ( F ) | T1: Provision 2 (4) | U1: #Free Direct Cert. ( C ) | V1: # Reduced Direct Cert. ( R ) | W1: LEANum | X1: LEAName | Y1: SNum | Z1: School Name | AA1: School type | AB1: Total Students | AC1: Number CLIF | AD1: %CLIF | AE1: Percent CLIF | AF1: Selection Code | AG1: Program Type | AH1: MTW Status
A2: 52051 | B2: 05 | C2: BREVARD | D2: 2051 | E2: UNIVERSITY PARK ELEMENTARY SCHOOL | F2: 56 | G2: PREK-6 | H2: 1 | I2: Elementary | J2: Z | K2: NO | L2: NO | M2: Z | N2: NO | O2: 406 | P2: 0 | Q2: 0 | R2: 0 | S2: 0 | T2: 0 | U2: 276 | V2: 0 | W2: 5 | X2: BREVARD | Y2: 2051 | Z2: UNIVERSITY PARK ELEMENTARY SCHOOL | AA2: Elementary | AB2: 378 | AC2: 378 | AD2: 1 | AE2: 1 | AF2: A | AG2: SW | AH2: Matching
A3: 55031 | B3: 05 | C3: BREVARD | D3: 5031 | E3: CAPE VIEW ELEMENTARY SCHOOL | F3: 56 | G3: PREK-6 | H3: 1 | I3: Elementary | J3: Z | K3: NO | L3: NO | M3: Z | N3: NO | O3: 257 | P3: 0 | Q3: 0 | R3: 0 | S3: 0 | T3: 0 | U3: 139 | V3: 7 | W3: 5 | X3: BREVARD | Y3: 5031 | Z3: CAPE VIEW ELEMENTARY SCHOOL | AA3: Elementary | AB3: 277 | AC3: 233 | AD3: 0.8411552347 | AE3: 0.8432 | AF3: A | AG3: SW | AH3: Matching
A4: 50191 | B4: 05 | C4: BREVARD | D4: 0191 | E4: CHALLENGER 7 ELEMENTARY SCHOOL | F4: 56 | G4: PREK-6 | H4: 1 | I4: Elementary | J4: Z | K4: NO | L4: NO | M4: Z | N4: NO | O4: 499 | P4: 28 | Q4: 6 | R4: 242 | S4: 52 | T4: 0 | U4: 0 | V4: 0 | W4: 5 | X4: BREVARD | Y4: 191 | Z4: CHALLENGER 7 ELEMENTARY SCHOOL | AA4: Elementary | AB4: 483 | AC4: 306 | AD4: 0.6335403727 | AE4: 0.6335 | AF4: B | AG4: SW | AH4: Matching
A5: 56501 | B5: 05 | C5: BREVARD | D5: 6501 | E5: PALM BAY ACADEMY CHARTER SCHOOL | F5: 25 | G5: K-8 | H5: 4 | I5: Combination Elementary & Secondary | J5: Z | K5: NO | L5: NO | M5: R | N5: YES | O5: 352 | P5: 0 | Q5: 0 | R5: 0 | S5: 0 | T5: 0 | U5: 350 | V5: 0 | W5: 5 | X5: BREVARD | Y5: 6501 | Z5: PALM BAY ACADEMY CHARTER SCHOOL | AA5: Combination Elementary & Secondary | AB5: 331 | AC5: 331 | AD5: 1 | AE5: 1 | AF5: A | AG5: SW | AH5: Matching
A6: 53061 | B6: 05 | C6: BREVARD | D6: 3061 | E6: HARBOR CITY ELEMENTARY SCHOOL | F6: 56 | G6: PREK-6 | H6: 1 | I6: Elementary | J6: Z | K6: NO | L6: NO | M6: Z | N6: NO | O6: 340 | P6: 0 | Q6: 0 | R6: 0 | S6: 0 | T6: 0 | U6: 228 | V6: 2 | W6: 5 | X6: BREVARD | Y6: 3061 | Z6: HARBOR CITY ELEMENTARY SCHOOL | AA6: Elementary | AB6: 339 | AC6: 339 | AD6: 1 | AE6: 1 | AF6: A | AG6: SW | AH6: Matching
A7: 56507 | B7: 05 | C7: BREVARD | D7: 6507 | E7: ODYSSEY CHARTER SCHOOL | F7: 28 | G7: K-12 | H7: 4 | I7: Combination Elementary & Secondary | J7: Z | K7: NO | L7: NO | M7: R | N7: YES | O7: 1744 | P7: 0 | Q7: 0 | R7: 0 | S7: 0 | T7: 0 | U7: 741 | V7: 31 | W7: 5 | X7: BREVARD | Y7: 6507 | Z7: ODYSSEY CHARTER SCHOOL | AA7: Combination Elementary & Secondary | AB7: 1571 | AC7: 1150 | AD7: 0.732017823 | AE7: 0.7321 | AF7: B | AG7: SW | AH7: Matching
A8: 52071 | B8: 05 | C8: BREVARD | D8: 2071 | E8: STONE MAGNET MIDDLE SCHOOL | F8: 73 | G8: 7-8 | H8: 2 | I8: Middle/Junior | J8: Z | K8: NO | L8: NO | M8: Z | N8: NO | O8: 748 | P8: 53 | Q8: 7 | R8: 454 | S8: 91 | T8: 0 | U8: 0 | V8: 0 | W8: 5 | X8: BREVARD | Y8: 2071 | Z8: STONE MAGNET MIDDLE SCHOOL | AA8: Middle/Junior | AB8: 785 | AC8: 610 | AD8: 0.7770700637 | AE8: 0.777 | AF8: A | AG8: SW | AH8: Matching
A9: 52212 | B9: 05 | C9: BREVARD | D9: 2212 | E9: WESTSIDE ELEMENTARY SCHOOL | F9: 56 | G9: PREK-6 | H9: 1 | I9: Elementary | J9: Z | K9: NO | L9: NO | M9: Z | N9: NO | O9: 753 | P9: 54 | Q9: 5 | R9: 318 | S9: 93 | T9: 0 | U9: 0 | V9: 0 | W9: 5 | X9: BREVARD | Y9: 2212 | Z9: WESTSIDE ELEMENTARY SCHOOL | AA9: Elementary | AB9: 677 | AC9: 431 | AD9: 0.6366322009 | AE9: 0.6366 | AF9: B | AG9: SW | AH9: Matching
A10: 50061 | B10: 05 | C10: BREVARD | D10: 0061 | E10: APOLLO ELEMENTARY SCHOOL | F10: 56 | G10: PREK-6 | H10: 1 | I10: Elementary | J10: Z | K10: NO | L10: NO | M10: Z | N10: NO | O10: 798 | P10: 0 | Q10: 0 | R10: 0 | S10: 0 | T10: 0 | U10: 509 | V10: 8 | W10: 5 | X10: BREVARD | Y10: 61 | Z10: APOLLO ELEMENTARY SCHOOL | AA10: Elementary | AB10: 799 | AC10: 799 | AD10: 1 | AE10: 1 | AF10: A | AG10: SW | AH10: Matching
A11: 52121 | B11: 05 | C11: BREVARD | D11: 2121 | E11: JOHN F. TURNER, SENIOR ELEMENTARY SCHOOL | F11: 56 | G11: PREK-6 | H11: 1 | I11: Elementary | J11: Z | K11: NO | L11: NO | M11: Z | N11: NO | O11: 530 | P11: 0 | Q11: 0 | R11: 0 | S11: 0 | T11: 0 | U11: 312 | V11: 6 | W11: 5 | X11: BREVARD | Y11: 2121 | Z11: JOHN F. TURNER, SENIOR ELEMENTARY SCHOOL | AA11: Elementary | AB11: 508 | AC11: 507 | AD11: 0.9980314961 | AE11: 0.9984 | AF11: A | AG11: SW | AH11: Matching
A12: 56523 | B12: 05 | C12: BREVARD | D12: 6523 | E12: EMMA JEWEL CHARTER ACADEMY | F12: 25 | G12: K-8 | H12: 4 | I12: Combination Elementary & Secondary | J12: Z | K12: NO | L12: NO | M12: R | N12: YES | O12: 347 | P12: 0 | Q12: 0 | R12: 0 | S12: 0 | T12: 0 | U12: 296 | V12: 2 | W12: 5 | X12: BREVARD | Y12: 6523 | Z12: EMMA JEWEL CHARTER ACADEMY | AA12: Combination Elementary & Secondary | AB12: 354 | AC12: 354 | AD12: 1 | AE12: 1 | AF12: A | AG12: SW | AH12: Matching
A13: 50091 | B13: 05 | C13: BREVARD | D13: 0091 | E13: COQUINA ELEMENTARY SCHOOL | F13: 56 | G13: PREK-6 | H13: 1 | I13: Elementary | J13: Z | K13: NO | L13: NO | M13: Z | N13: NO | O13: 491 | P13: 0 | Q13: 0 | R13: 0 | S13: 0 | T13: 0 | U13: 319 | V13: 8 | W13: 5 | X13: BREVARD | Y13: 91 | Z13: COQUINA ELEMENTARY SCHOOL | AA13: Elementary | AB13: 475 | AC13: 475 | AD13: 1 | AE13: 1 | AF13: A | AG13: SW | AH13: Matching
A14: 52221 | B14: 05 | C14: BREVARD | D14: 2221 | E14: SUNRISE ELEMENTARY SCHOOL | F14: 56 | G14: PREK-6 | H14: 1 | I14: Elementary | J14: Z | K14: NO | L14: NO | M14: Z | N14: NO | O14: 700 | P14: 32 | Q14: 7 | R14: 327 | S14: 60 | T14: 0 | U14: 0 | V14: 0 | W14: 5 | X14: BREVARD | Y14: 2221 | Z14: SUNRISE ELEMENTARY SCHOOL | AA14: Elementary | AB14: 690 | AC14: 450 | AD14: 0.652173913 | AE14: 0.6521 | AF14: B | AG14: SW | AH14: Matching
A15: 52131 | B15: 05 | C15: BREVARD | D15: 2131 | E15: COLUMBIA ELEMENTARY SCHOOL | F15: 56 | G15: PREK-6 | H15: 1 | I15: Elementary | J15: Z | K15: NO | L15: NO | M15: Z | N15: NO | O15: 432 | P15: 0 | Q15: 0 | R15: 0 | S15: 0 | T15: 0 | U15: 281 | V15: 6 | W15: 5 | X15: BREVARD | Y15: 2131 | Z15: COLUMBIA ELEMENTARY SCHOOL | AA15: Elementary | AB15: 375 | AC15: 375 | AD15: 1 | AE15: 1 | AF15: A | AG15: SW | AH15: Matching
A16: 53101 | B16: 05 | C16: BREVARD | D16: 3101 | E16: ROY ALLEN ELEMENTARY SCHOOL | F16: 56 | G16: PREK-6 | H16: 1 | I16: Elementary | J16: Z | K16: NO | L16: NO | M16: Z | N16: NO | O16: 621 | P16: 32 | Q16: 2 | R16: 292 | S16: 61 | T16: 0 | U16: 0 | V16: 0 | W16: 5 | X16: BREVARD | Y16: 3101 | Z16: ROY ALLEN ELEMENTARY SCHOOL | AA16: Elementary | AB16: 615 | AC16: 391 | AD16: 0.6357723577 | AE16: 0.6557 | AF16: B | AG16: SW | AH16: Matching
A17: 53041 | B17: 05 | C17: BREVARD | D17: 3041 | E17: SHERWOOD ELEMENTARY SCHOOL | F17: 56 | G17: PREK-6 | H17: 1 | I17: Elementary | J17: Z | K17: NO | L17: NO | M17: Z | N17: NO | O17: 380 | P17: 26 | Q17: 1 | R17: 207 | S17: 29 | T17: 0 | U17: 0 | V17: 0 | W17: 5 | X17: BREVARD | Y17: 3041 | Z17: SHERWOOD ELEMENTARY SCHOOL | AA17: Elementary | AB17: 356 | AC17: 246 | AD17: 0.691011236 | AE17: 0.691 | AF17: B | AG17: SW | AH17: Matching
A18: 50151 | B18: 05 | C18: BREVARD | D18: 0151 | E18: IMPERIAL ESTATES ELEM. SCHOOL | F18: 18 | G18: K-6 | H18: 1 | I18: Elementary | J18: Z | K18: NO | L18: NO | M18: Z | N18: NO | O18: 606 | P18: 0 | Q18: 0 | R18: 0 | S18: 0 | T18: 0 | U18: 333 | V18: 4 | W18: 5 | X18: BREVARD | Y18: 151 | Z18: IMPERIAL ESTATES ELEM. SCHOOL | AA18: Elementary | AB18: 597 | AC18: 528 | AD18: 0.8844221106 | AE18: 0.8843 | AF18: A | AG18: SW | AH18: Matching
A19: 56509 | B19: 05 | C19: BREVARD | D19: 6509 | E19: ROYAL PALM CHARTER SCHOOL | F19: 25 | G19: K-8 | H19: 4 | I19: Combination Elementary & Secondary | J19: Z | K19: NO | L19: NO | M19: R | N19: YES | O19: 335 | P19: 53 | Q19: 0 | R19: 74 | S19: 122 | T19: 0 | U19: 0 | V19: 0 | W19: 5 | X19: BREVARD | Y19: 6509 | Z19: ROYAL PALM CHARTER SCHOOL | AA19: Combination Elementary & Secondary | AB19: 330 | AC19: 228 | AD19: 0.6909090909 | AE19: 0.6909 | AF19: B | AG19: SW | AH19: Matching
A20: 56515 | B20: 05 | C20: BREVARD | D20: 6515 | E20: IMAGINE SCHOOLS AT WEST MELBOURNE | F20: 18 | G20: K-6 | H20: 1 | I20: Elementary | J20: Z | K20: NO | L20: NO | M20: R | N20: YES | O20: 527 | P20: 0 | Q20: 0 | R20: 0 | S20: 0 | T20: 0 | U20: 309 | V20: 5 | W20: 5 | X20: BREVARD | Y20: 6515 | Z20: IMAGINE SCHOOLS AT WEST MELBOURNE | AA20: Elementary | AB20: 478 | AC20: 456 | AD20: 0.9539748954 | AE20: 0.9539 | AF20: A | AG20: SW | AH20: Matching
A21: 51041 | B21: 05 | C21: BREVARD | D21: 1041 | E21: CAMBRIDGE ELEM MAGNET SCHOOL | F21: 56 | G21: PREK-6 | H21: 1 | I21: Elementary | J21: Z | K21: NO | L21: NO | M21: Z | N21: NO | O21: 451 | P21: 0 | Q21: 0 | R21: 0 | S21: 0 | T21: 0 | U21: 334 | V21: 2 | W21: 5 | X21: BREVARD | Y21: 1041 | Z21: CAMBRIDGE ELEM MAGNET SCHOOL | AA21: Elementary | AB21: 483 | AC21: 483 | AD21: 1 | AE21: 1 | AF21: A | AG21: SW | AH21: Matching
A22: 50181 | B22: 05 | C22: BREVARD | D22: 0181 | E22: PINEWOOD ELEMENTARY SCHOOL | F22: 56 | G22: PREK-6 | H22: 1 | I22: Elementary | J22: Z | K22: NO | L22: NO | M22: Z | N22: NO | O22: 467 | P22: 0 | Q22: 0 | R22: 0 | S22: 0 | T22: 0 | U22: 232 | V22: 2 | W22: 5 | X22: BREVARD | Y22: 181 | Z22: PINEWOOD ELEMENTARY SCHOOL | AA22: Elementary | AB22: 439 | AC22: 321 | AD22: 0.7312072893 | AE22: 0.7324 | AF22: B | AG22: SW | AH22: Matching
A23: 51017 | B23: 05 | C23: BREVARD | D23: 1017 | E23: NORTH/CENTRAL AREA ALTERNATIVE LEARNING | F23: 69 | G23: 6-12 | H23: 3 | I23: Senior High | J23: Z | K23: NO | L23: NO | M23: Z | N23: NO | O23: 72 | P23: 0 | Q23: 0 | R23: 57 | S23: 5 | T23: 0 | U23: 0 | V23: 0 | W23: 5 | X23: BREVARD | Y23: 1017 | Z23: NORTH/CENTRAL AREA ALTERNATIVE LEARNING | AA23: Senior High | AB23: 54 | AC23: 43 | AD23: 0.7962962963 | AE23: 0.7962 | AF23: A | AG23: SW | AH23: Matching
A24: 52161 | B24: 05 | C24: BREVARD | D24: 2161 | E24: CHRISTA MCAULIFFE ELEM. SCHOOL | F24: 56 | G24: PREK-6 | H24: 1 | I24: Elementary | J24: Z | K24: NO | L24: NO | M24: Z | N24: NO | O24: 617 | P24: 0 | Q24: 0 | R24: 0 | S24: 0 | T24: 0 | U24: 366 | V24: 2 | W24: 5 | X24: BREVARD | Y24: 2161 | Z24: CHRISTA MCAULIFFE ELEM. SCHOOL | AA24: Elementary | AB24: 645 | AC24: 576 | AD24: 0.8930232558 | AE24: 0.8929 | AF24: A | AG24: SW | AH24: Matching
A25: 52191 | B25: 05 | C25: BREVARD | D25: 2191 | E25: JUPITER ELEMENTARY SCHOOL | F25: 56 | G25: PREK-6 | H25: 1 | I25: Elementary | J25: Z | K25: NO | L25: NO | M25: Z | N25: NO | O25: 684 | P25: 0 | Q25: 0 | R25: 0 | S25: 0 | T25: 0 | U25: 409 | V25: 2 | W25: 5 | X25: BREVARD | Y25: 2191 | Z25: JUPITER ELEMENTARY SCHOOL | AA25: Elementary | AB25: 635 | AC25: 604 | AD25: 0.9511811024 | AE25: 0.9523 | AF25: A | AG25: SW | AH25: Matching
A26: 54031 | B26: 05 | C26: BREVARD | D26: 4031 | E26: MILA ELEMENTARY SCHOOL | F26: 56 | G26: PREK-6 | H26: 1 | I26: Elementary | J26: Z | K26: NO | L26: NO | M26: Z | N26: NO | O26: 401 | P26: 0 | Q26: 0 | R26: 0 | S26: 0 | T26: 0 | U26: 277 | V26: 1 | W26: 5 | X26: BREVARD | Y26: 4031 | Z26: MILA ELEMENTARY SCHOOL | AA26: Elementary | AB26: 385 | AC26: 385 | AD26: 1 | AE26: 1 | AF26: A | AG26: SW | AH26: Matching
A27: 51121 | B27: 05 | C27: BREVARD | D27: 1121 | E27: COCOA HIGH SCHOOL | F27: 75 | G27: 7-12 | H27: 3 | I27: Senior High | J27: Z | K27: NO | L27: NO | M27: Z | N27: NO | O27: 1161 | P27: 42 | Q27: 4 | R27: 794 | S27: 102 | T27: 0 | U27: 0 | V27: 0 | W27: 5 | X27: BREVARD | Y27: 1121 | Z27: COCOA HIGH SCHOOL | AA27: Senior High | AB27: 1219 | AC27: 997 | AD27: 0.8178835111 | AE27: 0.8178 | AF27: A | AG27: SW | AH27: Matching
A28: 52151 | B28: 05 | C28: BREVARD | D28: 2151 | E28: DISCOVERY ELEMENTARY SCHOOL | F28: 56 | G28: PREK-6 | H28: 1 | I28: Elementary | J28: Z | K28: NO | L28: NO | M28: Z | N28: NO | O28: 564 | P28: 0 | Q28: 0 | R28: 0 | S28: 0 | T28: 0 | U28: 340 | V28: 5 | W28: 5 | X28: BREVARD | Y28: 2151 | Z28: DISCOVERY ELEMENTARY SCHOOL | AA28: Elementary | AB28: 547 | AC28: 524 | AD28: 0.957952468 | AE28: 0.9593 | AF28: A | AG28: SW | AH28: Matching
A29: 51071 | B29: 05 | C29: BREVARD | D29: 1071 | E29: GOLFVIEW ELEMENTARY MAGNET SCHOOL | F29: 56 | G29: PREK-6 | H29: 1 | I29: Elementary | J29: Z | K29: NO | L29: NO | M29: Z | N29: NO | O29: 430 | P29: 0 | Q29: 0 | R29: 0 | S29: 0 | T29: 0 | U29: 311 | V29: 0 | W29: 5 | X29: BREVARD | Y29: 1071 | Z29: GOLFVIEW ELEMENTARY MAGNET SCHOOL | AA29: Elementary | AB29: 430 | AC29: 430 | AD29: 1 | AE29: 1 | AF29: A | AG29: SW | AH29: Matching
A30: 56141 | B30: 05 | C30: BREVARD | D30: 6141 | E30: DR. W.J. CREEL ELEMENTARY SCHL | F30: 56 | G30: PREK-6 | H30: 1 | I30: Elementary | J30: Z | K30: NO | L30: NO | M30: Z | N30: NO | O30: 668 | P30: 0 | Q30: 0 | R30: 0 | S30: 0 | T30: 0 | U30: 461 | V30: 2 | W30: 5 | X30: BREVARD | Y30: 6141 | Z30: DR. W.J. CREEL ELEMENTARY SCHL | AA30: Elementary | AB30: 681 | AC30: 681 | AD30: 1 | AE30: 1 | AF30: A | AG30: SW | AH30: Matching
A31: 53091 | B31: 05 | C31: BREVARD | D31: 3091 | E31: CROTON ELEMENTARY SCHOOL | F31: 56 | G31: PREK-6 | H31: 1 | I31: Elementary | J31: Z | K31: NO | L31: NO | M31: Z | N31: NO | O31: 485 | P31: 0 | Q31: 0 | R31: 0 | S31: 0 | T31: 0 | U31: 288 | V31: 5 | W31: 5 | X31: BREVARD | Y31: 3091 | Z31: CROTON ELEMENTARY SCHOOL | AA31: Elementary | AB31: 464 | AC31: 438 | AD31: 0.9439655172 | AE31: 0.9448 | AF31: A | AG31: SW | AH31: Matching
A32: 52081 | B32: 05 | C32: BREVARD | D32: 2081 | E32: PALM BAY ELEMENTARY SCHOOL | F32: 56 | G32: PREK-6 | H32: 1 | I32: Elementary | J32: Z | K32: NO | L32: NO | M32: Z | N32: NO | O32: 484 | P32: 0 | Q32: 0 | R32: 0 | S32: 0 | T32: 0 | U32: 353 | V32: 0 | W32: 5 | X32: BREVARD | Y32: 2081 | Z32: PALM BAY ELEMENTARY SCHOOL | AA32: Elementary | AB32: 535 | AC32: 535 | AD32: 1 | AE32: 1 | AF32: A | AG32: SW | AH32: Matching
A33: 51131 | B33: 05 | C33: BREVARD | D33: 1131 | E33: SATURN ELEMENTARY SCHOOL | F33: 56 | G33: PREK-6 | H33: 1 | I33: Elementary | J33: Z | K33: NO | L33: NO | M33: Z | N33: NO | O33: 571 | P33: 0 | Q33: 0 | R33: 0 | S33: 0 | T33: 0 | U33: 455 | V33: 3 | W33: 5 | X33: BREVARD | Y33: 1131 | Z33: SATURN ELEMENTARY SCHOOL | AA33: Elementary | AB33: 675 | AC33: 675 | AD33: 1 | AE33: 1 | AF33: A | AG33: SW | AH33: Matching
A34: 53071 | B34: 05 | C34: BREVARD | D34: 3071 | E34: SABAL ELEMENTARY SCHOOL | F34: 56 | G34: PREK-6 | H34: 1 | I34: Elementary | J34: Z | K34: NO | L34: NO | M34: Z | N34: NO | O34: 483 | P34: 0 | Q34: 0 | R34: 0 | S34: 0 | T34: 0 | U34: 295 | V34: 6 | W34: 5 | X34: BREVARD | Y34: 3071 | Z34: SABAL ELEMENTARY SCHOOL | AA34: Elementary | AB34: 529 | AC34: 526 | AD34: 0.9943289225 | AE34: 0.995 | AF34: A | AG34: SW | AH34: Matching
A35: 54051 | B35: 05 | C35: BREVARD | D35: 4051 | E35: AUDUBON ELEMENTARY SCHOOL | F35: 56 | G35: PREK-6 | H35: 1 | I35: Elementary | J35: Z | K35: NO | L35: NO | M35: Z | N35: NO | O35: 444 | P35: 0 | Q35: 0 | R35: 0 | S35: 0 | T35: 0 | U35: 228 | V35: 4 | W35: 5 | X35: BREVARD | Y35: 4051 | Z35: AUDUBON ELEMENTARY SCHOOL | AA35: Elementary | AB35: 432 | AC35: 336 | AD35: 0.7777777778 | AE35: 0.7777 | AF35: A | AG35: SW | AH35: Matching
A36: 51029 | B36: 05 | C36: BREVARD | D36: 1029 | E36: RIVERDALE COUNTRY DAY SCHOOL | F36: 28 | G36: K-12 | H36: 4 | I36: Combination Elementary & Secondary | J36: Z | K36: NO | L36: NO | M36: Z | N36: NO | O36: 32 | P36: 1 | Q36: 0 | R36: 25 | S36: 3 | T36: 0 | U36: 0 | V36: 0 | W36: 5 | X36: BREVARD | Y36: 1029 | Z36: RIVERDALE COUNTRY DAY SCHOOL | AA36: Combination Elementary & Secondary | AB36: 44 | AC36: 38 | AD36: 0.8636363636 | AE36: 0.8636 | AF36: A | AG36: SW | AH36: Matching
A37: 50089 | B37: 05 | C37: BREVARD | D37: 0089 | E37: FIELDSTON PREPARATORY SCHOOL | F37: 28 | G37: K-12 | H37: 4 | I37: Combination Elementary & Secondary | J37: Z | K37: NO | L37: NO | M37: Z | N37: NO | O37: 62 | P37: 0 | Q37: 0 | R37: 41 | S37: 9 | T37: 0 | U37: 0 | V37: 0 | W37: 5 | X37: BREVARD | Y37: 89 | Z37: FIELDSTON PREPARATORY SCHOOL | AA37: Combination Elementary & Secondary | AB37: 69 | AC37: 62 | AD37: 0.8985507246 | AE37: 0.8985 | AF37: A | AG37: SW | AH37: Matching
A38: 50051 | B38: 05 | C38: BREVARD | D38: 0051 | E38: OAK PARK ELEMENTARY SCHOOL | F38: 56 | G38: PREK-6 | H38: 1 | I38: Elementary | J38: Z | K38: NO | L38: NO | M38: Z | N38: NO | O38: 524 | P38: 0 | Q38: 0 | R38: 0 | S38: 0 | T38: 0 | U38: 355 | V38: 4 | W38: 5 | X38: BREVARD | Y38: 51 | Z38: OAK PARK ELEMENTARY SCHOOL | AA38: Elementary | AB38: 575 | AC38: 575 | AD38: 1 | AE38: 1 | AF38: A | AG38: SW | AH38: Matching
A39: 51091 | B39: 05 | C39: BREVARD | D39: 1091 | E39: FAIRGLEN ELEMENTARY SCHOOL | F39: 56 | G39: PREK-6 | H39: 1 | I39: Elementary | J39: Z | K39: NO | L39: NO | M39: Z | N39: NO | O39: 564 | P39: 0 | Q39: 0 | R39: 0 | S39: 0 | T39: 0 | U39: 362 | V39: 1 | W39: 5 | X39: BREVARD | Y39: 1091 | Z39: FAIRGLEN ELEMENTARY SCHOOL | AA39: Elementary | AB39: 579 | AC39: 579 | AD39: 1 | AE39: 1 | AF39: A | AG39: SW | AH39: Matching
A40: 52061 | B40: 05 | C40: BREVARD | D40: 2061 | E40: PORT MALABAR ELEMENTARY SCHOOL | F40: 56 | G40: PREK-6 | H40: 1 | I40: Elementary | J40: Z | K40: NO | L40: NO | M40: Z | N40: NO | O40: 595 | P40: 0 | Q40: 0 | R40: 0 | S40: 0 | T40: 0 | U40: 366 | V40: 6 | W40: 5 | X40: BREVARD | Y40: 2061 | Z40: PORT MALABAR ELEMENTARY SCHOOL | AA40: Elementary | AB40: 609 | AC40: 579 | AD40: 0.9507389163 | AE40: 0.951 | AF40: A | AG40: SW | AH40: Matching
A41: 50201 | B41: 05 | C41: BREVARD | D41: 0201 | E41: ATLANTIS ELEMENTARY SCHOOL | F41: 56 | G41: PREK-6 | H41: 1 | I41: Elementary | J41: Z | K41: NO | L41: NO | M41: Z | N41: NO | O41: 604 | P41: 0 | Q41: 0 | R41: 0 | S41: 0 | T41: 0 | U41: 311 | V41: 3 | W41: 5 | X41: BREVARD | Y41: 201 | Z41: ATLANTIS ELEMENTARY SCHOOL | AA41: Elementary | AB41: 616 | AC41: 492 | AD41: 0.7987012987 | AE41: 0.8 | AF41: A | AG41: SW | AH41: Matching
A42: 51051 | B42: 05 | C42: BREVARD | D42: 1051 | E42: ENDEAVOUR ELEMENTARY SCHOOL | F42: 56 | G42: PREK-6 | H42: 1 | I42: Elementary | J42: Z | K42: NO | L42: NO | M42: Z | N42: NO | O42: 618 | P42: 0 | Q42: 0 | R42: 0 | S42: 0 | T42: 0 | U42: 429 | V42: 3 | W42: 5 | X42: BREVARD | Y42: 1051 | Z42: ENDEAVOUR ELEMENTARY SCHOOL | AA42: Elementary | AB42: 603 | AC42: 603 | AD42: 1 | AE42: 1 | AF42: A | AG42: SW | AH42: Matching
A43: 56541 | B43: 05 | C43: BREVARD | D43: 6541 | E43: ODYSSEY PREPARATORY CHARTER ACADEMY | F43: 15 | G43: K-5 | H43: 1 | I43: Elementary | J43: Z | K43: NO | L43: NO | M43: R | N43: YES | O43: 422 | P43: 0 | Q43: 0 | R43: 0 | S43: 0 | T43: 0 | U43: 219 | V43: 12 | W43: 5 | X43: BREVARD | Y43: 6541 | Z43: ODYSSEY PREPARATORY CHARTER ACADEMY | AA43: Elementary | AB43: 419 | AC43: 393 | AD43: 0.937947494 | AE43: 0.9393 | AF43: A | AG43: SW | AH43: Matching
A44: 52171 | B44: 05 | C44: BREVARD | D44: 2171 | E44: RIVIERA ELEMENTARY SCHOOL | F44: 56 | G44: PREK-6 | H44: 1 | I44: Elementary | J44: Z | K44: NO | L44: NO | M44: Z | N44: NO | O44: 602 | P44: 0 | Q44: 0 | R44: 0 | S44: 0 | T44: 0 | U44: 368 | V44: 5 | W44: 5 | X44: BREVARD | Y44: 2171 | Z44: RIVIERA ELEMENTARY SCHOOL | AA44: Elementary | AB44: 541 | AC44: 513 | AD44: 0.9482439926 | AE44: 0.9492 | AF44: A | AG44: SW | AH44: Matching
A45: 50101 | B45: 05 | C45: BREVARD | D45: 0101 | E45: MIMS ELEMENTARY SCHOOL | F45: 56 | G45: PREK-6 | H45: 1 | I45: Elementary | J45: Z | K45: NO | L45: NO | M45: Z | N45: NO | O45: 400 | P45: 0 | Q45: 0 | R45: 0 | S45: 0 | T45: 0 | U45: 291 | V45: 4 | W45: 5 | X45: BREVARD | Y45: 101 | Z45: MIMS ELEMENTARY SCHOOL | AA45: Elementary | AB45: 360 | AC45: 360 | AD45: 1 | AE45: 1 | AF45: A | AG45: SW | AH45: Matching
D48: District | E48: Non-Profit Private School Name | F48: School Code
D49: BREVARD | E49: RFM CHRISTIAN ACADEMY | F49: 4415

Sheet 06-Broward
A1: ID | B1: LEANum | C1: LEAName | D1: Snum | E1: School Name | F1: Grade Code | G1: Grade Combination | H1: School Type Code | I1: School Type | J1: Neglected or Delinquent Code | K1: Neglected or Delinquent Yes/No | L1: New School Yes/No | M1: Charter Status Code | N1: Charter Yes/No | O1: Membership (Ages 5-17) | P1: # Reduced ( 3 ) | Q1: # Reduced Direct Cert. ( E ) | R1: # Free Direct Cert. ( D ) | S1: # Free ( F ) | T1: Provision 2 (4) | U1: #Free Direct Cert. ( C ) | V1: # Reduced Direct Cert. ( R ) | W1: LEANum | X1: LEAName | Y1: SNum | Z1: School Name | AA1: School type | AB1: Total Students | AC1: Number CLIF | AD1: %CLIF | AE1: Percent CLIF | AF1: Selection Code | AG1: Program Type | AH1: MTW Status
A2: 65419 | B2: 06 | C2: BROWARD | D2: 5419 | E2: SOMERSET ACADEMY RIVERSIDE CHARTER MIDDLE SCH | F2: 67 | G2: 6-8 | H2: 2 | I2: Middle/Junior | J2: Z | K2: NO | L2: NO | M2: R | N2: YES | O2: 116 | P2: 9 | Q2: 0 | R2: 44 | S2: 20 | T2: 0 | U2: 0 | V2: 0 | W2: 6 | X2: BROWARD | Y2: 5419 | Z2: SOMERSET ACADEMY RIVERSIDE CHARTER MIDDLE SCH | AA2: Middle/Junior | AB2: 80 | AC2: 80 | AD2: 1 | AE2: 1 | AF2: A | AG2: SW | AH2: Matching
A3: 61391 | B3: 06 | C3: BROWARD | D3: 1391 | E3: LAUDERHILL 6-12 | F3: 103 | G3: 6-11 | H3: 4 | I3: Combination Elementary & Secondary | J3: Z | K3: NO | L3: NO | M3: Z | N3: NO | O3: 688 | P3: 20 | Q3: 5 | R3: 470 | S3: 53 | T3: 0 | U3: 0 | V3: 0 | W3: 6 | X3: BROWARD | Y3: 1391 | Z3: LAUDERHILL 6-12 | AA3: Combo. Elem. & Second. | AB3: 795 | AC3: 728 | AD3: 0.9157232704 | AE3: 0.9157 | AF3: A | AG3: SW | AH3: Matching
A4: 65004 | B4: 06 | C4: BROWARD | D4: 5004 | E4: SOMERSET VILLAGE ACADEMY | F4: 15 | G4: K-5 | H4: 1 | I4: Elementary | J4: Z | K4: NO | L4: NO | M4: R | N4: YES | O4: 251 | P4: 7 | Q4: 6 | R4: 174 | S4: 50 | T4: 0 | U4: 0 | V4: 0 | W4: 6 | X4: BROWARD | Y4: 5004 | Z4: SOMERSET VILLAGE ACADEMY | AA4: Elem. | AB4: 230 | AC4: 218 | AD4: 0.947826087 | AE4: 0.9478 | AF4: A | AG4: SW | AH4: Matching
A5: 65046 | B5: 06 | C5: BROWARD | D5: 5046 | E5: FRANKLIN ACADEMY F | F5: 25 | G5: K-8 | H5: 4 | I5: Combination Elementary & Secondary | J5: Z | K5: NO | L5: NO | M5: R | N5: YES | O5: 1106 | P5: 65 | Q5: 0 | R5: 366 | S5: 157 | T5: 0 | U5: 0 | V5: 0 | W5: 6 | X5: BROWARD | Y5: 5046 | Z5: FRANKLIN ACADEMY F | AA5: Combo. Elem. & Second. | AB5: 1170 | AC5: 611 | AD5: 0.5222222222 | AE5: 0.5222 | AF5: D | AG5: SW | AH5: Matching
A6: 60011 | B6: 06 | C6: BROWARD | D6: 0011 | E6: DEERFIELD BEACH ELEMENTARY SCHOOL | F6: 8 | G6: PREK-5 | H6: 1 | I6: Elementary | J6: Z | K6: NO | L6: NO | M6: Z | N6: NO | O6: 537 | P6: 17 | Q6: 9 | R6: 318 | S6: 59 | T6: 0 | U6: 0 | V6: 0 | W6: 6 | X6: BROWARD | Y6: 11 | Z6: DEERFIELD BEACH ELEMENTARY SCHOOL | AA6: Elem. | AB6: 579 | AC6: 444 | AD6: 0.7668393782 | AE6: 0.7668 | AF6: A | AG6: SW | AH6: Matching
A7: 60131 | B7: 06 | C7: BROWARD | D7: 0131 | E7: GULFSTREAM ACADEMY OF HALLANDALE BEACH | F7: 25 | G7: K-8 | H7: 4 | I7: Combination Elementary & Secondary | J7: Z | K7: NO | L7: NO | M7: Z | N7: NO | O7: 1358 | P7: 25 | Q7: 13 | R7: 882 | S7: 85 | T7: 0 | U7: 0 | V7: 0 | W7: 6 | X7: BROWARD | Y7: 131 | Z7: GULFSTREAM ACADEMY OF HALLANDALE BEACH | AA7: Combo. Elem. & Second. | AB7: 1469 | AC7: 1272 | AD7: 0.8658951668 | AE7: 0.8658 | AF7: A | AG7: SW | AH7: Matching
A8: 60151 | B8: 06 | C8: BROWARD | D8: 0151 | E8: RIVERLAND ELEMENTARY SCHOOL | F8: 8 | G8: PREK-5 | H8: 1 | I8: Elementary | J8: Z | K8: NO | L8: NO | M8: Z | N8: NO | O8: 455 | P8: 11 | Q8: 0 | R8: 348 | S8: 34 | T8: 0 | U8: 0 | V8: 0 | W8: 6 | X8: BROWARD | Y8: 151 | Z8: RIVERLAND ELEMENTARY SCHOOL | AA8: Elem. | AB8: 539 | AC8: 498 | AD8: 0.9239332096 | AE8: 0.9239 | AF8: A | AG8: SW | AH8: Matching
A9: 65003 | B9: 06 | C9: BROWARD | D9: 5003 | E9: SOMERSET PREP ACADEMY AT N LAUDERDALE | F9: 25 | G9: K-8 | H9: 4 | I9: Combination Elementary & Secondary | J9: Z | K9: NO | L9: NO | M9: R | N9: YES | O9: 707 | P9: 29 | Q9: 8 | R9: 428 | S9: 179 | T9: 0 | U9: 0 | V9: 0 | W9: 6 | X9: BROWARD | Y9: 5003 | Z9: SOMERSET PREP ACADEMY AT N LAUDERDALE | AA9: Combo. Elem. & Second. | AB9: 755 | AC9: 693 | AD9: 0.9178807947 | AE9: 0.9178 | AF9: A | AG9: SW | AH9: Matching
A10: 65215 | B10: 06 | C10: BROWARD | D10: 5215 | E10: CHAMPIONSHIP ACADEMY OF DISTINCTION MIDDLE | F10: 67 | G10: 6-8 | H10: 2 | I10: Middle/Junior | J10: Z | K10: NO | L10: NO | M10: R | N10: YES | O10: 256 | P10: 15 | Q10: 0 | R10: 132 | S10: 35 | T10: 0 | U10: 0 | V10: 0 | W10: 6 | X10: BROWARD | Y10: 5215 | Z10: CHAMPIONSHIP ACADEMY OF DISTINCTION MIDDLE | AA10: Middle/Junior | AB10: 216 | AC10: 148 | AD10: 0.6851851852 | AE10: 0.6851 | AF10: B | AG10: SW | AH10: Matching
A11: 60391 | B11: 06 | C11: BROWARD | D11: 0391 | E11: DEERFIELD PARK ELEMENTARY SCHL | F11: 8 | G11: PREK-5 | H11: 1 | I11: Elementary | J11: Z | K11: NO | L11: NO | M11: Z | N11: NO | O11: 507 | P11: 9 | Q11: 4 | R11: 408 | S11: 19 | T11: 0 | U11: 0 | V11: 0 | W11: 6 | X11: BROWARD | Y11: 391 | Z11: DEERFIELD PARK ELEMENTARY SCHL | AA11: Elem. | AB11: 538 | AC11: 510 | AD11: 0.9479553903 | AE11: 0.9479 | AF11: A | AG11: SW | AH11: Matching
A12: 63301 | B12: 06 | C12: BROWARD | D12: 3301 | E12: ENDEAVOUR PRIMARY LEARNING CENTER | F12: 7 | G12: PREK-3 | H12: 1 | I12: Elementary | J12: Z | K12: NO | L12: NO | M12: Z | N12: NO | O12: 311 | P12: 1 | Q12: 3 | R12: 266 | S12: 5 | T12: 0 | U12: 0 | V12: 0 | W12: 6 | X12: BROWARD | Y12: 3301 | Z12: ENDEAVOUR PRIMARY LEARNING CENTER | AA12: Elem. | AB12: 329 | AC12: 315 | AD12: 0.9574468085 | AE12: 0.9574 | AF12: A | AG12: SW | AH12: Matching
A13: 65023 | B13: 06 | C13: BROWARD | D13: 5023 | E13: RENAISSANCE CHARTER SCHOOL AT PLANTATION | F13: 25 | G13: K-8 | H13: 4 | I13: Combination Elementary & Secondary | J13: Z | K13: NO | L13: NO | M13: R | N13: YES | O13: 1053 | P13: 58 | Q13: 0 | R13: 33 | S13: 742 | T13: 0 | U13: 0 | V13: 0 | W13: 6 | X13: BROWARD | Y13: 5023 | Z13: RENAISSANCE CHARTER SCHOOL AT PLANTATION | AA13: Combo. Elem. & Second. | AB13: 959 | AC13: 806 | AD13: 0.8404588113 | AE13: 0.8404 | AF13: A | AG13: SW | AH13: Matching
A14: 61171 | B14: 06 | C14: BROWARD | D14: 1171 | E14: SUNSHINE ELEMENTARY SCHOOL | F14: 8 | G14: PREK-5 | H14: 1 | I14: Elementary | J14: Z | K14: NO | L14: NO | M14: Z | N14: NO | O14: 438 | P14: 18 | Q14: 3 | R14: 275 | S14: 35 | T14: 0 | U14: 0 | V14: 0 | W14: 6 | X14: BROWARD | Y14: 1171 | Z14: SUNSHINE ELEMENTARY SCHOOL | AA14: Elem. | AB14: 547 | AC14: 466 | AD14: 0.8519195612 | AE14: 0.8519 | AF14: A | AG14: SW | AH14: Matching
A15: 60201 | B15: 06 | C15: BROWARD | D15: 0201 | E15: BENNETT ELEMENTARY SCHOOL | F15: 8 | G15: PREK-5 | H15: 1 | I15: Elementary | J15: Z | K15: NO | L15: NO | M15: Z | N15: NO | O15: 261 | P15: 4 | Q15: 2 | R15: 194 | S15: 16 | T15: 0 | U15: 0 | V15: 0 | W15: 6 | X15: BROWARD | Y15: 201 | Z15: BENNETT ELEMENTARY SCHOOL | AA15: Elem. | AB15: 282 | AC15: 249 | AD15: 0.8829787234 | AE15: 0.8829 | AF15: A | AG15: SW | AH15: Matching
A16: 63221 | B16: 06 | C16: BROWARD | D16: 3221 | E16: CHARLES DREW ELEMENTARY SCHOOL | F16: 8 | G16: PREK-5 | H16: 1 | I16: Elementary | J16: Z | K16: NO | L16: NO | M16: Z | N16: NO | O16: 427 | P16: 3 | Q16: 1 | R16: 343 | S16: 21 | T16: 0 | U16: 0 | V16: 0 | W16: 6 | X16: BROWARD | Y16: 3221 | Z16: CHARLES DREW ELEMENTARY SCHOOL | AA16: Elem. | AB16: 500 | AC16: 471 | AD16: 0.942 | AE16: 0.942 | AF16: A | AG16: SW | AH16: Matching
A17: 65052 | B17: 06 | C17: BROWARD | D17: 5052 | E17: WEST BROWARD ACADEMY | F17: 25 | G17: K-8 | H17: 4 | I17: Combination Elementary & Secondary | J17: Z | K17: NO | L17: NO | M17: R | N17: YES | O17: 617 | P17: 18 | Q17: 11 | R17: 391 | S17: 53 | T17: 0 | U17: 0 | V17: 0 | W17: 6 | X17: BROWARD | Y17: 5052 | Z17: WEST BROWARD ACADEMY | AA17: Combo. Elem. & Second. | AB17: 565 | AC17: 457 | AD17: 0.8088495575 | AE17: 0.8088 | AF17: A | AG17: SW | AH17: Matching
A18: 63041 | B18: 06 | C18: BROWARD | D18: 3041 | E18: CORAL PARK ELEMENTARY SCHOOL | F18: 8 | G18: PREK-5 | H18: 1 | I18: Elementary | J18: Z | K18: NO | L18: NO | M18: Z | N18: NO | O18: 491 | P18: 28 | Q18: 9 | R18: 212 | S18: 34 | T18: 0 | U18: 0 | V18: 0 | W18: 6 | X18: BROWARD | Y18: 3041 | Z18: CORAL PARK ELEMENTARY SCHOOL | AA18: Elem. | AB18: 558 | AC18: 301 | AD18: 0.5394265233 | AE18: 0.5394 | AF18: D | AG18: SW | AH18: Matching
A19: 60221 | B19: 06 | C19: BROWARD | D19: 0221 | E19: CROISSANT PARK ELEMENTARY SCHOOL | F19: 8 | G19: PREK-5 | H19: 1 | I19: Elementary | J19: Z | K19: NO | L19: NO | M19: Z | N19: NO | O19: 700 | P19: 32 | Q19: 4 | R19: 479 | S19: 53 | T19: 0 | U19: 0 | V19: 0 | W19: 6 | X19: BROWARD | Y19: 221 | Z19: CROISSANT PARK ELEMENTARY SCHOOL | AA19: Elem. | AB19: 727 | AC19: 647 | AD19: 0.8899587345 | AE19: 0.8899 | AF19: A | AG19: SW | AH19: Matching
A20: 60701 | B20: 06 | C20: BROWARD | D20: 0701 | E20: PARKWAY MIDDLE SCHOOL | F20: 67 | G20: 6-8 | H20: 2 | I20: Middle/Junior | J20: Z | K20: NO | L20: NO | M20: Z | N20: NO | O20: 1176 | P20: 36 | Q20: 14 | R20: 808 | S20: 72 | T20: 0 | U20: 0 | V20: 0 | W20: 6 | X20: BROWARD | Y20: 701 | Z20: PARKWAY MIDDLE SCHOOL | AA20: Middle/Junior | AB20: 1335 | AC20: 1135 | AD20: 0.8501872659 | AE20: 0.8501 | AF20: A | AG20: SW | AH20: Matching
A21: 65038 | B21: 06 | C21: BROWARD | D21: 5038 | E21: BROWARD MATH AND SCIENCE SCHOOLS | F21: 28 | G21: K-12 | H21: 4 | I21: Combination Elementary & Secondary | J21: Z | K21: NO | L21: NO | M21: R | N21: YES | O21: 286 | P21: 8 | Q21: 1 | R21: 157 | S21: 8 | T21: 0 | U21: 0 | V21: 0 | W21: 6 | X21: BROWARD | Y21: 5038 | Z21: BROWARD MATH AND SCIENCE SCHOOLS | AA21: Combo. Elem. & Second. | AB21: 305 | AC21: 162 | AD21: 0.531147541 | AE21: 0.5311 | AF21: D | AG21: SW | AH21: Matching
A22: 62611 | B22: 06 | C22: BROWARD | D22: 2611 | E22: BAIR MIDDLE SCHOOL | F22: 67 | G22: 6-8 | H22: 2 | I22: Middle/Junior | J22: Z | K22: NO | L22: NO | M22: Z | N22: NO | O22: 814 | P22: 28 | Q22: 11 | R22: 474 | S22: 47 | T22: 0 | U22: 0 | V22: 0 | W22: 6 | X22: BROWARD | Y22: 2611 | Z22: BAIR MIDDLE SCHOOL | AA22: Middle/Junior | AB22: 923 | AC22: 705 | AD22: 0.7638136511 | AE22: 0.7638 | AF22: A | AG22: SW | AH22: Matching
A23: 65406 | B23: 06 | C23: BROWARD | D23: 5406 | E23: SOMERSET ACADEMY MIDDLE (MIRAMAR CAMPUS) | F23: 67 | G23: 6-8 | H23: 2 | I23: Middle/Junior | J23: Z | K23: NO | L23: NO | M23: R | N23: YES | O23: 417 | P23: 51 | Q23: 2 | R23: 147 | S23: 57 | T23: 0 | U23: 0 | V23: 0 | W23: 6 | X23: BROWARD | Y23: 5406 | Z23: SOMERSET ACADEMY MIDDLE (MIRAMAR CAMPUS) | AA23: Middle/Junior | AB23: 413 | AC23: 236 | AD23: 0.5714285714 | AE23: 0.5714 | AF23: D | AG23: SW | AH23: Matching
A24: 63581 | B24: 06 | C24: BROWARD | D24: 3581 | E24: SILVER SHORES ELEMENTARY SCHL | F24: 8 | G24: PREK-5 | H24: 1 | I24: Elementary | J24: Z | K24: NO | L24: NO | M24: Z | N24: NO | O24: 295 | P24: 7 | Q24: 3 | R24: 129 | S24: 17 | T24: 0 | U24: 0 | V24: 0 | W24: 6 | X24: BROWARD | Y24: 3581 | Z24: SILVER SHORES ELEMENTARY SCHL | AA24: Elem. | AB24: 334 | AC24: 187 | AD24: 0.5598802395 | AE24: 0.5598 | AF24: D | AG24: SW | AH24: Matching
A25: 63591 | B25: 06 | C25: BROWARD | D25: 3591 | E25: LAKESIDE ELEMENTARY SCHOOL | F25: 8 | G25: PREK-5 | H25: 1 | I25: Elementary | J25: Z | K25: NO | L25: NO | M25: Z | N25: NO | O25: 610 | P25: 36 | Q25: 7 | R25: 242 | S25: 29 | T25: 0 | U25: 0 | V25: 0 | W25: 6 | X25: BROWARD | Y25: 3591 | Z25: LAKESIDE ELEMENTARY SCHOOL | AA25: Elem. | AB25: 660 | AC25: 341 | AD25: 0.5166666667 | AE25: 0.5166 | AF25: D | AG25: SW | AH25: Matching
A26: 62121 | B26: 06 | C26: BROWARD | D26: 2121 | E26: JAMES S. RICKARDS MIDDLE SCHOOL | F26: 67 | G26: 6-8 | H26: 2 | I26: Middle/Junior | J26: Z | K26: NO | L26: NO | M26: Z | N26: NO | O26: 809 | P26: 19 | Q26: 6 | R26: 483 | S26: 51 | T26: 0 | U26: 0 | V26: 0 | W26: 6 | X26: BROWARD | Y26: 2121 | Z26: JAMES S. RICKARDS MIDDLE SCHOOL | AA26: Middle/Junior | AB26: 971 | AC26: 824 | AD26: 0.8486096807 | AE26: 0.8486 | AF26: A | AG26: SW | AH26: Matching
A27: 65356 | B27: 06 | C27: BROWARD | D27: 5356 | E27: EAGLES NEST MIDDLE CHARTER SCHOOL | F27: 67 | G27: 6-8 | H27: 2 | I27: Middle/Junior | J27: Z | K27: NO | L27: NO | M27: R | N27: YES | O27: 48 | P27: 0 | Q27: 0 | R27: 0 | S27: 0 | T27: 0 | U27: 48 | V27: 0 | W27: 6 | X27: BROWARD | Y27: 5356 | Z27: EAGLES NEST MIDDLE CHARTER SCHOOL | AA27: Middle/Junior | AB27: 53 | AC27: 53 | AD27: 1 | AE27: 1 | AF27: A | AG27: SW | AH27: Matching
A28: 63291 | B28: 06 | C28: BROWARD | D28: 3291 | E28: THURGOOD MARSHALL ELEM. SCHOOL | F28: 8 | G28: PREK-5 | H28: 1 | I28: Elementary | J28: Z | K28: NO | L28: NO | M28: Z | N28: NO | O28: 301 | P28: 1 | Q28: 6 | R28: 235 | S28: 12 | T28: 0 | U28: 0 | V28: 0 | W28: 6 | X28: BROWARD | Y28: 3291 | Z28: THURGOOD MARSHALL ELEM. SCHOOL | AA28: Elem. | AB28: 380 | AC28: 365 | AD28: 0.9605263158 | AE28: 0.9605 | AF28: A | AG28: SW | AH28: Matching
A29: 60941 | B29: 06 | C29: BROWARD | D29: 0941 | E29: PLANTATION ELEMENTARY SCHOOL | F29: 8 | G29: PREK-5 | H29: 1 | I29: Elementary | J29: Z | K29: NO | L29: NO | M29: Z | N29: NO | O29: 512 | P29: 15 | Q29: 5 | R29: 366 | S29: 29 | T29: 0 | U29: 0 | V29: 0 | W29: 6 | X29: BROWARD | Y29: 941 | Z29: PLANTATION ELEMENTARY SCHOOL | AA29: Elem. | AB29: 535 | AC29: 483 | AD29: 0.9028037383 | AE29: 0.9028 | AF29: A | AG29: SW | AH29: Matching
A30: 65791 | B30: 06 | C30: BROWARD | D30: 5791 | E30: AVANT GARDE ACADEMY OF BROWARD | F30: 69 | G30: 6-12 | H30: 3 | I30: Senior High | J30: Z | K30: NO | L30: NO | M30: R | N30: YES | O30: 977 | P30: 25 | Q30: 5 | R30: 425 | S30: 66 | T30: 0 | U30: 0 | V30: 0 | W30: 6 | X30: BROWARD | Y30: 5791 | Z30: AVANT GARDE ACADEMY OF BROWARD | AA30: Senior High | AB30: 836 | AC30: 432 | AD30: 0.5167464115 | AE30: 0.5167 | AF30: B | AG30: SW | AH30: Matching
A31: 61161 | B31: 06 | C31: BROWARD | D31: 1161 | E31: MARGATE ELEMENTARY SCHOOL | F31: 8 | G31: PREK-5 | H31: 1 | I31: Elementary | J31: Z | K31: NO | L31: NO | M31: Z | N31: NO | O31: 946 | P31: 25 | Q31: 11 | R31: 530 | S31: 48 | T31: 0 | U31: 0 | V31: 0 | W31: 6 | X31: BROWARD | Y31: 1161 | Z31: MARGATE ELEMENTARY SCHOOL | AA31: Elem. | AB31: 964 | AC31: 667 | AD31: 0.6919087137 | AE31: 0.6919 | AF31: B | AG31: SW | AH31: Matching
A32: 60611 | B32: 06 | C32: BROWARD | D32: 0611 | E32: SUNLAND PARK ACADEMY | F32: 7 | G32: PREK-3 | H32: 1 | I32: Elementary | J32: Z | K32: NO | L32: NO | M32: Z | N32: NO | O32: 275 | P32: 2 | Q32: 1 | R32: 228 | S32: 13 | T32: 0 | U32: 0 | V32: 0 | W32: 6 | X32: BROWARD | Y32: 611 | Z32: SUNLAND PARK ACADEMY | AA32: Elem. | AB32: 295 | AC32: 278 | AD32: 0.9423728814 | AE32: 0.9423 | AF32: A | AG32: SW | AH32: Matching
A33: 60251 | B33: 06 | C33: BROWARD | D33: 0251 | E33: SUNRISE MIDDLE SCHOOL | F33: 67 | G33: 6-8 | H33: 2 | I33: Middle/Junior | J33: Z | K33: NO | L33: NO | M33: Z | N33: NO | O33: 1200 | P33: 27 | Q33: 15 | R33: 635 | S33: 58 | T33: 0 | U33: 0 | V33: 0 | W33: 6 | X33: BROWARD | Y33: 251 | Z33: SUNRISE MIDDLE SCHOOL | AA33: Middle/Junior | AB33: 1323 | AC33: 911 | AD33: 0.6885865457 | AE33: 0.6885 | AF33: B | AG33: SW | AH33: Matching
A34: 62861 | B34: 06 | C34: BROWARD | D34: 2861 | E34: PINES LAKES ELEMENTARY SCHOOL | F34: 8 | G34: PREK-5 | H34: 1 | I34: Elementary | J34: Z | K34: NO | L34: NO | M34: Z | N34: NO | O34: 506 | P34: 21 | Q34: 4 | R34: 304 | S34: 18 | T34: 0 | U34: 0 | V34: 0 | W34: 6 | X34: BROWARD | Y34: 2861 | Z34: PINES LAKES ELEMENTARY SCHOOL | AA34: Elem. | AB34: 466 | AC34: 329 | AD34: 0.7060085837 | AE34: 0.706 | AF34: B | AG34: SW | AH34: Matching
A35: 62691 | B35: 06 | C35: BROWARD | D35: 2691 | E35: MORROW ELEMENTARY SCHOOL | F35: 8 | G35: PREK-5 | H35: 1 | I35: Elementary | J35: Z | K35: NO | L35: NO | M35: Z | N35: NO | O35: 449 | P35: 4 | Q35: 6 | R35: 338 | S35: 23 | T35: 0 | U35: 0 | V35: 0 | W35: 6 | X35: BROWARD | Y35: 2691 | Z35: MORROW ELEMENTARY SCHOOL | AA35: Elem. | AB35: 404 | AC35: 371 | AD35: 0.9183168317 | AE35: 0.9183 | AF35: A | AG35: SW | AH35: Matching
A36: 65048 | B36: 06 | C36: BROWARD | D36: 5048 | E36: RENAISSANCE CHARTER SCHOOL AT UNIVERSITY | F36: 25 | G36: K-8 | H36: 4 | I36: Combination Elementary & Secondary | J36: Z | K36: NO | L36: NO | M36: R | N36: YES | O36: 1438 | P36: 91 | Q36: 46 | R36: 642 | S36: 173 | T36: 0 | U36: 0 | V36: 0 | W36: 6 | X36: BROWARD | Y36: 5048 | Z36: RENAISSANCE CHARTER SCHOOL AT UNIVERSITY | AA36: Combo. Elem. & Second. | AB36: 1424 | AC36: 973 | AD36: 0.6832865169 | AE36: 0.6832 | AF36: B | AG36: SW | AH36: Matching
A37: 61971 | B37: 06 | C37: BROWARD | D37: 1971 | E37: JAMES S. HUNT ELEMENTARY SCHOOL | F37: 8 | G37: PREK-5 | H37: 1 | I37: Elementary | J37: Z | K37: NO | L37: NO | M37: Z | N37: NO | O37: 480 | P37: 10 | Q37: 3 | R37: 337 | S37: 20 | T37: 0 | U37: 0 | V37: 0 | W37: 6 | X37: BROWARD | Y37: 1971 | Z37: JAMES S. HUNT ELEMENTARY SCHOOL | AA37: Elem. | AB37: 564 | AC37: 486 | AD37: 0.8617021277 | AE37: 0.8617 | AF37: A | AG37: SW | AH37: Matching
A38: 65388 | B38: 06 | C38: BROWARD | D38: 5388 | E38: SOMERSET ACADEMY POMPANO (K-5) | F38: 15 | G38: K-5 | H38: 1 | I38: Elementary | J38: Z | K38: NO | L38: NO | M38: R | N38: YES | O38: 129 | P38: 13 | Q38: 1 | R38: 79 | S38: 25 | T38: 0 | U38: 0 | V38: 0 | W38: 6 | X38: BROWARD | Y38: 5388 | Z38: SOMERSET ACADEMY POMPANO (K-5) | AA38: Elem. | AB38: 117 | AC38: 82 | AD38: 0.7008547009 | AE38: 0.7008 | AF38: B | AG38: SW | AH38: Matching
A39: 65421 | B39: 06 | C39: BROWARD | D39: 5421 | E39: ALPHA INTERNATIONAL ACADEMY | F39: 15 | G39: K-5 | H39: 1 | I39: Elementary | J39: Z | K39: NO | L39: NO | M39: R | N39: YES | O39: 41 | P39: 3 | Q39: 0 | R39: 13 | S39: 21 | T39: 0 | U39: 0 | V39: 0 | W39: 6 | X39: BROWARD | Y39: 5421 | Z39: ALPHA INTERNATIONAL ACADEMY | AA39: Elem. | AB39: 75 | AC39: 67 | AD39: 0.8933333333 | AE39: 0.8933 | AF39: A | AG39: SW | AH39: Matching
A40: 65030 | B40: 06 | C40: BROWARD | D40: 5030 | E40: SOMERSET PINES ACADEMY | F40: 25 | G40: K-8 | H40: 4 | I40: Combination Elementary & Secondary | J40: Z | K40: NO | L40: NO | M40: R | N40: YES | O40: 443 | P40: 20 | Q40: 4 | R40: 237 | S40: 95 | T40: 0 | U40: 0 | V40: 0 | W40: 6 | X40: BROWARD | Y40: 5030 | Z40: SOMERSET PINES ACADEMY | AA40: Combo. Elem. & Second. | AB40: 450 | AC40: 363 | AD40: 0.8066666667 | AE40: 0.8066 | AF40: A | AG40: SW | AH40: Matching
A41: 60621 | B41: 06 | C41: BROWARD | D41: 0621 | E41: LARKDALE ELEMENTARY SCHOOL | F41: 8 | G41: PREK-5 | H41: 1 | I41: Elementary | J41: Z | K41: NO | L41: NO | M41: Z | N41: NO | O41: 354 | P41: 4 | Q41: 2 | R41: 302 | S41: 16 | T41: 0 | U41: 0 | V41: 0 | W41: 6 | X41: BROWARD | Y41: 621 | Z41: LARKDALE ELEMENTARY SCHOOL | AA41: Elem. | AB41: 365 | AC41: 357 | AD41: 0.9780821918 | AE41: 0.978 | AF41: A | AG41: SW | AH41: Matching
A42: 60931 | B42: 06 | C42: BROWARD | D42: 0931 | E42: PETERS ELEMENTARY SCHOOL | F42: 8 | G42: PREK-5 | H42: 1 | I42: Elementary | J42: Z | K42: NO | L42: NO | M42: Z | N42: NO | O42: 549 | P42: 21 | Q42: 5 | R42: 321 | S42: 30 | T42: 0 | U42: 0 | V42: 0 | W42: 6 | X42: BROWARD | Y42: 931 | Z42: PETERS ELEMENTARY SCHOOL | AA42: Elem. | AB42: 586 | AC42: 403 | AD42: 0.6877133106 | AE42: 0.6877 | AF42: B | AG42: SW | AH42: Matching
A43: 63481 | B43: 06 | C43: BROWARD | D43: 3481 | E43: TRADEWINDS ELEMENTARY SCHOOL | F43: 8 | G43: PREK-5 | H43: 1 | I43: Elementary | J43: Z | K43: NO | L43: NO | M43: Z | N43: NO | O43: 986 | P43: 57 | Q43: 7 | R43: 369 | S43: 72 | T43: 0 | U43: 0 | V43: 0 | W43: 6 | X43: BROWARD | Y43: 3481 | Z43: TRADEWINDS ELEMENTARY SCHOOL | AA43: Elem. | AB43: 1169 | AC43: 606 | AD43: 0.5183917879 | AE43: 0.5183 | AF43: D | AG43: SW | AH43: Matching
A44: 65020 | B44: 06 | C44: BROWARD | D44: 5020 | E44: RENAISSANCE CHARTER SCHOOL AT CORAL SPRINGS | F44: 25 | G44: K-8 | H44: 4 | I44: Combination Elementary & Secondary | J44: Z | K44: NO | L44: NO | M44: R | N44: YES | O44: 1513 | P44: 106 | Q44: 12 | R44: 657 | S44: 137 | T44: 0 | U44: 0 | V44: 0 | W44: 6 | X44: BROWARD | Y44: 5020 | Z44: RENAISSANCE CHARTER SCHOOL AT CORAL SPRINGS | AA44: Combo. Elem. & Second. | AB44: 1510 | AC44: 820 | AD44: 0.5430463576 | AE44: 0.543 | AF44: D | AG44: SW | AH44: Matching
A45: 65006 | B45: 06 | C45: BROWARD | D45: 5006 | E45: SOMERSET PREP ACADEMY HIGH AT N LAUDERDALE | F45: 85 | G45: 9-12 | H45: 3 | I45: Senior High | J45: Z | K45: NO | L45: NO | M45: R | N45: YES | O45: 234 | P45: 4 | Q45: 1 | R45: 131 | S45: 52 | T45: 0 | U45: 0 | V45: 0 | W45: 6 | X45: BROWARD | Y45: 5006 | Z45: SOMERSET PREP ACADEMY HIGH AT N LAUDERDALE | AA45: Senior High | AB45: 222 | AC45: 186 | AD45: 0.8378378378 | AE45: 0.8378 | AF45: A | AG45: SW | AH45: Matching
A46: 60551 | B46: 06 | C46: BROWARD | D46: 0551 | E46: PLANTATION MIDDLE SCHOOL | F46: 67 | G46: 6-8 | H46: 2 | I46: Middle/Junior | J46: Z | K46: NO | L46: NO | M46: Z | N46: NO | O46: 613 | P46: 19 | Q46: 3 | R46: 387 | S46: 39 | T46: 0 | U46: 0 | V46: 0 | W46: 6 | X46: BROWARD | Y46: 551 | Z46: PLANTATION MIDDLE SCHOOL | AA46: Middle/Junior | AB46: 669 | AC46: 554 | AD46: 0.8281016442 | AE46: 0.8281 | AF46: A | AG46: SW | AH46: Matching
A47: 61781 | B47: 06 | C47: BROWARD | D47: 1781 | E47: CYPRESS ELEMENTARY SCHOOL | F47: 8 | G47: PREK-5 | H47: 1 | I47: Elementary | J47: Z | K47: NO | L47: NO | M47: Z | N47: NO | O47: 655 | P47: 7 | Q47: 7 | R47: 451 | S47: 46 | T47: 0 | U47: 0 | V47: 0 | W47: 6 | X47: BROWARD | Y47: 1781 | Z47: CYPRESS ELEMENTARY SCHOOL | AA47: Elem. | AB47: 697 | AC47: 632 | AD47: 0.9067431851 | AE47: 0.9067 | AF47: A | AG47: SW | AH47: Matching
A48: 62671 | B48: 06 | C48: BROWARD | D48: 2671 | E48: NOB HILL ELEMENTARY SCHOOL | F48: 8 | G48: PREK-5 | H48: 1 | I48: Elementary | J48: Z | K48: NO | L48: NO | M48: Z | N48: NO | O48: 504 | P48: 28 | Q48: 9 | R48: 219 | S48: 25 | T48: 0 | U48: 0 | V48: 0 | W48: 6 | X48: BROWARD | Y48: 2671 | Z48: NOB HILL ELEMENTARY SCHOOL | AA48: Elem. | AB48: 607 | AC48: 363 | AD48: 0.5980230643 | AE48: 0.598 | AF48: D | AG48: SW | AH48: Matching
A49: 61381 | B49: 06 | C49: BROWARD | D49: 1381 | E49: LAUDERHILL PAUL TURNER ELEM. | F49: 8 | G49: PREK-5 | H49: 1 | I49: Elementary | J49: Z | K49: NO | L49: NO | M49: Z | N49: NO | O49: 478 | P49: 5 | Q49: 3 | R49: 369 | S49: 15 | T49: 0 | U49: 0 | V49: 0 | W49: 6 | X49: BROWARD | Y49: 1381 | Z49: LAUDERHILL PAUL TURNER ELEM. | AA49: Elem. | AB49: 559 | AC49: 525 | AD49: 0.939177102 | AE49: 0.9391 | AF49: A | AG49: SW | AH49: Matching
A50: 61831 | B50: 06 | C50: BROWARD | D50: 1831 | E50: ORIOLE ELEMENTARY SCHOOL | F50: 8 | G50: PREK-5 | H50: 1 | I50: Elementary | J50: Z | K50: NO | L50: NO | M50: Z | N50: NO | O50: 535 | P50: 16 | Q50: 3 | R50: 406 | S50: 45 | T50: 0 | U50: 0 | V50: 0 | W50: 6 | X50: BROWARD | Y50: 1831 | Z50: ORIOLE ELEMENTARY SCHOOL | AA50: Elem. | AB50: 588 | AC50: 561 | AD50: 0.9540816327 | AE50: 0.954 | AF50: A | AG50: SW | AH50: Matching
A51: 65400 | B51: 06 | C51: BROWARD | D51: 5400 | E51: SUNSHINE ELEMENTARY CHARTER SCHOOL | F51: 15 | G51: K-5 | H51: 1 | I51: Elementary | J51: Z | K51: NO | L51: NO | M51: R | N51: YES | O51: 253 | P51: 0 | Q51: 0 | R51: 0 | S51: 0 | T51: 0 | U51: 159 | V51: 0 | W51: 6 | X51: BROWARD | Y51: 5400 | Z51: SUNSHINE ELEMENTARY CHARTER SCHOOL | AA51: Elem. | AB51: 321 | AC51: 294 | AD51: 0.9158878505 | AE51: 0.9159 | AF51: A | AG51: SW | AH51: Matching
A52: 61421 | B52: 06 | C52: BROWARD | D52: 1421 | E52: COCONUT CREEK ELEMENTARY SCHL | F52: 8 | G52: PREK-5 | H52: 1 | I52: Elementary | J52: Z | K52: NO | L52: NO | M52: Z | N52: NO | O52: 453 | P52: 16 | Q52: 4 | R52: 249 | S52: 38 | T52: 0 | U52: 0 | V52: 0 | W52: 6 | X52: BROWARD | Y52: 1421 | Z52: COCONUT CREEK ELEMENTARY SCHL | AA52: Elem. | AB52: 610 | AC52: 437 | AD52: 0.7163934426 | AE52: 0.7163 | AF52: B | AG52: SW | AH52: Matching
A53: 62052 | B53: 06 | C53: BROWARD | D53: 2052 | E53: WESTPINE MIDDLE SCHOOL | F53: 67 | G53: 6-8 | H53: 2 | I53: Middle/Junior | J53: Z | K53: NO | L53: NO | M53: Z | N53: NO | O53: 941 | P53: 45 | Q53: 11 | R53: 475 | S53: 57 | T53: 0 | U53: 0 | V53: 0 | W53: 6 | X53: BROWARD | Y53: 2052 | Z53: WESTPINE MIDDLE SCHOOL | AA53: Middle/Junior | AB53: 1040 | AC53: 767 | AD53: 0.7375 | AE53: 0.7375 | AF53: B | AG53: SW | AH53: Matching
A54: 63431 | B54: 06 | C54: BROWARD | D54: 3431 | E54: SAWGRASS SPRINGS MIDDLE SCHOOL | F54: 67 | G54: 6-8 | H54: 2 | I54: Middle/Junior | J54: Z | K54: NO | L54: NO | M54: Z | N54: NO | O54: 1150 | P54: 66 | Q54: 7 | R54: 476 | S54: 66 | T54: 0 | U54: 0 | V54: 0 | W54: 6 | X54: BROWARD | Y54: 3431 | Z54: SAWGRASS SPRINGS MIDDLE SCHOOL | AA54: Middle/Junior | AB54: 1236 | AC54: 714 | AD54: 0.5776699029 | AE54: 0.5776 | AF54: D | AG54: SW | AH54: Matching
A55: 61811 | B55: 06 | C55: BROWARD | D55: 1811 | E55: SHERIDAN HILLS ELEMENTARY SCHL | F55: 8 | G55: PREK-5 | H55: 1 | I55: Elementary | J55: Z | K55: NO | L55: NO | M55: Z | N55: NO | O55: 430 | P55: 12 | Q55: 4 | R55: 261 | S55: 30 | T55: 0 | U55: 0 | V55: 0 | W55: 6 | X55: BROWARD | Y55: 1811 | Z55: SHERIDAN HILLS ELEMENTARY SCHL | AA55: Elem. | AB55: 465 | AC55: 346 | AD55: 0.7440860215 | AE55: 0.744 | AF55: B | AG55: SW | AH55: Matching
A56: 62741 | B56: 06 | C56: BROWARD | D56: 2741 | E56: MAPLEWOOD ELEMENTARY SCHOOL | F56: 8 | G56: PREK-5 | H56: 1 | I56: Elementary | J56: Z | K56: NO | L56: NO | M56: Z | N56: NO | O56: 574 | P56: 28 | Q56: 11 | R56: 265 | S56: 23 | T56: 0 | U56: 0 | V56: 0 | W56: 6 | X56: BROWARD | Y56: 2741 | Z56: MAPLEWOOD ELEMENTARY SCHOOL | AA56: Elem. | AB56: 684 | AC56: 418 | AD56: 0.6111111111 | AE56: 0.6111 | AF56: B | AG56: SW | AH56: Matching
A57: 65441 | B57: 06 | C57: BROWARD | D57: 5441 | E57: SOMERSET PREPARATORY CHARTER MIDDLE SCHOOL | F57: 67 | G57: 6-8 | H57: 2 | I57: Middle/Junior | J57: Z | K57: NO | L57: NO | M57: R | N57: YES | O57: 343 | P57: 28 | Q57: 0 | R57: 146 | S57: 78 | T57: 0 | U57: 0 | V57: 0 | W57: 6 | X57: BROWARD | Y57: 5441 | Z57: SOMERSET PREPARATORY CHARTER MIDDLE SCHOOL | AA57: Middle/Junior | AB57: 315 | AC57: 231 | AD57: 0.7333333333 | AE57: 0.7333 | AF57: B | AG57: SW | AH57: Matching
A58: 61191 | B58: 06 | C58: BROWARD | D58: 1191 | E58: NORTH FORK ELEMENTARY SCHOOL | F58: 8 | G58: PREK-5 | H58: 1 | I58: Elementary | J58: Z | K58: NO | L58: NO | M58: Z | N58: NO | O58: 391 | P58: 2 | Q58: 0 | R58: 332 | S58: 17 | T58: 0 | U58: 0 | V58: 0 | W58: 6 | X58: BROWARD | Y58: 1191 | Z58: NORTH FORK ELEMENTARY SCHOOL | AA58: Elem. | AB58: 371 | AC58: 360 | AD58: 0.9703504043 | AE58: 0.9703 | AF58: A | AG58: SW | AH58: Matching
A59: 60561 | B59: 06 | C59: BROWARD | D59: 0561 | E59: NORCREST ELEMENTARY SCHOOL | F59: 8 | G59: PREK-5 | H59: 1 | I59: Elementary | J59: Z | K59: NO | L59: NO | M59: Z | N59: NO | O59: 634 | P59: 20 | Q59: 6 | R59: 361 | S59: 44 | T59: 0 | U59: 0 | V59: 0 | W59: 6 | X59: BROWARD | Y59: 561 | Z59: NORCREST ELEMENTARY SCHOOL | AA59: Elem. | AB59: 699 | AC59: 525 | AD59: 0.7510729614 | AE59: 0.751 | AF59: A | AG59: SW | AH59: Matching
A60: 63001 | B60: 06 | C60: BROWARD | D60: 3001 | E60: WALTER C. YOUNG MIDDLE SCHOOL | F60: 67 | G60: 6-8 | H60: 2 | I60: Middle/Junior | J60: Z | K60: NO | L60: NO | M60: Z | N60: NO | O60: 972 | P60: 69 | Q60: 9 | R60: 389 | S60: 43 | T60: 0 | U60: 0 | V60: 0 | W60: 6 | X60: BROWARD | Y60: 3001 | Z60: WALTER C. YOUNG MIDDLE SCHOOL | AA60: Middle/Junior | AB60: 1062 | AC60: 576 | AD60: 0.5423728814 | AE60: 0.5423 | AF60: D | AG60: SW | AH60: Matching
A61: 63701 | B61: 06 | C61: BROWARD | D61: 3701 | E61: ROCK ISLAND ELEMENTARY SCHOOL | F61: 8 | G61: PREK-5 | H61: 1 | I61: Elementary | J61: Z | K61: NO | L61: NO | M61: Z | N61: NO | O61: 407 | P61: 6 | Q61: 5 | R61: 332 | S61: 11 | T61: 0 | U61: 0 | V61: 0 | W61: 6 | X61: BROWARD | Y61: 3701 | Z61: ROCK ISLAND ELEMENTARY SCHOOL | AA61: Elem. | AB61: 510 | AC61: 482 | AD61: 0.9450980392 | AE61: 0.945 | AF61: A | AG61: SW | AH61: Matching
A62: 65801 | B62: 06 | C62: BROWARD | D62: 5801 | E62: PANACEA PREP CHARTER SCHOOL | F62: 15 | G62: K-5 | H62: 1 | I62: Elementary | J62: Z | K62: NO | L62: NO | M62: R | N62: YES | O62: 79 | P62: 0 | Q62: 0 | R62: 0 | S62: 0 | T62: 0 | U62: 79 | V62: 0 | W62: 6 | X62: BROWARD | Y62: 5801 | Z62: PANACEA PREP CHARTER SCHOOL | AA62: Elem. | AB62: 89 | AC62: 89 | AD62: 1 | AE62: 1 | AF62: A | AG62: SW | AH62: Matching
A63: 60343 | B63: 06 | C63: BROWARD | D63: 0343 | E63: ATTUCKS MIDDLE SCHOOL | F63: 67 | G63: 6-8 | H63: 2 | I63: Middle/Junior | J63: Z | K63: NO | L63: NO | M63: Z | N63: NO | O63: 760 | P63: 20 | Q63: 12 | R63: 461 | S63: 43 | T63: 0 | U63: 0 | V63: 0 | W63: 6 | X63: BROWARD | Y63: 343 | Z63: ATTUCKS MIDDLE SCHOOL | AA63: Middle/Junior | AB63: 826 | AC63: 674 | AD63: 0.8159806295 | AE63: 0.8159 | AF63: A | AG63: SW | AH63: Matching
A64: 65852 | B64: 06 | C64: BROWARD | D64: 5852 | E64: NEW LIFE CHARTER ACADEMY | F64: 15 | G64: K-5 | H64: 1 | I64: Elementary | J64: Z | K64: NO | L64: NO | M64: R | N64: YES | O64: 126 | P64: 0 | Q64: 0 | R64: 0 | S64: 0 | T64: 0 | U64: 88 | V64: 0 | W64: 6 | X64: BROWARD | Y64: 5852 | Z64: NEW LIFE CHARTER ACADEMY | AA64: Elem. | AB64: 132 | AC64: 132 | AD64: 1 | AE64: 1 | AF64: A | AG64: SW | AH64: Matching
A65: 62001 | B65: 06 | C65: BROWARD | D65: 2001 | E65: BANYAN ELEMENTARY SCHOOL | F65: 8 | G65: PREK-5 | H65: 1 | I65: Elementary | J65: Z | K65: NO | L65: NO | M65: Z | N65: NO | O65: 413 | P65: 21 | Q65: 6 | R65: 257 | S65: 28 | T65: 0 | U65: 0 | V65: 0 | W65: 6 | X65: BROWARD | Y65: 2001 | Z65: BANYAN ELEMENTARY SCHOOL | AA65: Elem. | AB65: 518 | AC65: 411 | AD65: 0.7934362934 | AE65: 0.7934 | AF65: A | AG65: SW | AH65: Matching
A66: 63821 | B66: 06 | C66: BROWARD | D66: 3821 | E66: LIBERTY ELEMENTARY SCHOOL | F66: 8 | G66: PREK-5 | H66: 1 | I66: Elementary | J66: Z | K66: NO | L66: NO | M66: Z | N66: NO | O66: 806 | P66: 21 | Q66: 11 | R66: 487 | S66: 52 | T66: 0 | U66: 0 | V66: 0 | W66: 6 | X66: BROWARD | Y66: 3821 | Z66: LIBERTY ELEMENTARY SCHOOL | AA66: Elem. | AB66: 958 | AC66: 737 | AD66: 0.7693110647 | AE66: 0.7693 | AF66: A | AG66: SW | AH66: Matching
A67: 65413 | B67: 06 | C67: BROWARD | D67: 5413 | E67: SOMERSET ACADEMY KEY MIDDLE SCHOOL | F67: 67 | G67: 6-8 | H67: 2 | I67: Middle/Junior | J67: Z | K67: NO | L67: NO | M67: R | N67: YES | O67: 329 | P67: 4 | Q67: 3 | R67: 162 | S67: 77 | T67: 0 | U67: 0 | V67: 0 | W67: 6 | X67: BROWARD | Y67: 5413 | Z67: SOMERSET ACADEMY KEY MIDDLE SCHOOL | AA67: Middle/Junior | AB67: 393 | AC67: 304 | AD67: 0.7735368957 | AE67: 0.7735 | AF67: A | AG67: SW | AH67: Matching
A68: 61271 | B68: 06 | C68: BROWARD | D68: 1271 | E68: NOVA DWIGHT D. EISENHOWER ELEM | F68: 15 | G68: K-5 | H68: 1 | I68: Elementary | J68: Z | K68: NO | L68: NO | M68: Z | N68: NO | O68: 736 | P68: 36 | Q68: 11 | R68: 388 | S68: 61 | T68: 0 | U68: 0 | V68: 0 | W68: 6 | X68: BROWARD | Y68: 1271 | Z68: NOVA DWIGHT D. EISENHOWER ELEM | AA68: Elem. | AB68: 758 | AC68: 513 | AD68: 0.6767810026 | AE68: 0.6767 | AF68: B | AG68: SW | AH68: Matching
A69: 61631 | B69: 06 | C69: BROWARD | D69: 1631 | E69: ANNABEL C. PERRY PK-8 | F69: 27 | G69: PREK-8 | H69: 4 | I69: Combination Elementary & Secondary | J69: Z | K69: NO | L69: NO | M69: Z | N69: NO | O69: 624 | P69: 27 | Q69: 5 | R69: 417 | S69: 42 | T69: 0 | U69: 0 | V69: 0 | W69: 6 | X69: BROWARD | Y69: 1631 | Z69: ANNABEL C. PERRY PK-8 | AA69: Combo. Elem. & Second. | AB69: 673 | AC69: 606 | AD69: 0.9004457652 | AE69: 0.9004 | AF69: A | AG69: SW | AH69: Matching
A70: 62071 | B70: 06 | C70: BROWARD | D70: 2071 | E70: PASADENA LAKES ELEMENTARY SCHL | F70: 15 | G70: K-5 | H70: 1 | I70: Elementary | J70: Z | K70: NO | L70: NO | M70: Z | N70: NO | O70: 397 | P70: 23 | Q70: 7 | R70: 226 | S70: 22 | T70: 0 | U70: 0 | V70: 0 | W70: 6 | X70: BROWARD | Y70: 2071 | Z70: PASADENA LAKES ELEMENTARY SCHL | AA70: Elem. | AB70: 464 | AC70: 350 | AD70: 0.7543103448 | AE70: 0.7543 | AF70: A | AG70: SW | AH70: Matching
A71: 63962 | B71: 06 | C71: BROWARD | D71: 3962 | E71: DISCOVERY ELEMENTARY SCHOOL | F71: 15 | G71: K-5 | H71: 1 | I71: Elementary | J71: Z | K71: NO | L71: NO | M71: Z | N71: NO | O71: 819 | P71: 53 | Q71: 7 | R71: 390 | S71: 60 | T71: 0 | U71: 0 | V71: 0 | W71: 6 | X71: BROWARD | Y71: 3962 | Z71: DISCOVERY ELEMENTARY SCHOOL | AA71: Elem. | AB71: 913 | AC71: 646 | AD71: 0.7075575027 | AE71: 0.7075 | AF71: B | AG71: SW | AH71: Matching
A72: 60371 | B72: 06 | C72: BROWARD | D72: 0371 | E72: DILLARD 6-12 | F72: 69 | G72: 6-12 | H72: 3 | I72: Senior High | J72: Z | K72: NO | L72: NO | M72: Z | N72: NO | O72: 1918 | P72: 38 | Q72: 10 | R72: 1315 | S72: 100 | T72: 0 | U72: 0 | V72: 0 | W72: 6 | X72: BROWARD | Y72: 371 | Z72: DILLARD 6-12 | AA72: Senior High | AB72: 1725 | AC72: 1481 | AD72: 0.8585507246 | AE72: 0.8585 | AF72: A | AG72: SW | AH72: Matching
A73: 60581 | B73: 06 | C73: BROWARD | D73: 0581 | E73: MARGATE MIDDLE SCHOOL | F73: 67 | G73: 6-8 | H73: 2 | I73: Middle/Junior | J73: Z | K73: NO | L73: NO | M73: Z | N73: NO | O73: 1186 | P73: 36 | Q73: 12 | R73: 718 | S73: 92 | T73: 0 | U73: 0 | V73: 0 | W73: 6 | X73: BROWARD | Y73: 581 | Z73: MARGATE MIDDLE SCHOOL | AA73: Middle/Junior | AB73: 1274 | AC73: 1031 | AD73: 0.8092621664 | AE73: 0.8092 | AF73: A | AG73: SW | AH73: Matching
A74: 65014 | B74: 06 | C74: BROWARD | D74: 5014 | E74: RENAISSANCE CHARTER MIDDLE SCHOOL AT PINES | F74: 25 | G74: K-8 | H74: 4 | I74: Combination Elementary & Secondary | J74: Z | K74: NO | L74: NO | M74: R | N74: YES | O74: 467 | P74: 40 | Q74: 6 | R74: 194 | S74: 68 | T74: 0 | U74: 0 | V74: 0 | W74: 6 | X74: BROWARD | Y74: 5014 | Z74: RENAISSANCE CHARTER MIDDLE SCHOOL AT PINES | AA74: Combo. Elem. & Second. | AB74: 457 | AC74: 299 | AD74: 0.6542669584 | AE74: 0.6542 | AF74: B | AG74: SW | AH74: Matching
A75: 63631 | B75: 06 | C75: BROWARD | D75: 3631 | E75: PARKSIDE ELEMENTARY SCHOOL | F75: 8 | G75: PREK-5 | H75: 1 | I75: Elementary | J75: Z | K75: NO | L75: NO | M75: Z | N75: NO | O75: 757 | P75: 19 | Q75: 9 | R75: 394 | S75: 37 | T75: 0 | U75: 0 | V75: 0 | W75: 6 | X75: BROWARD | Y75: 3631 | Z75: PARKSIDE ELEMENTARY SCHOOL | AA75: Elem. | AB75: 879 | AC75: 570 | AD75: 0.6484641638 | AE75: 0.6484 | AF75: B | AG75: SW | AH75: Matching
A76: 60721 | B76: 06 | C76: BROWARD | D76: 0721 | E76: DRIFTWOOD ELEMENTARY SCHOOL | F76: 8 | G76: PREK-5 | H76: 1 | I76: Elementary | J76: Z | K76: NO | L76: NO | M76: Z | N76: NO | O76: 501 | P76: 11 | Q76: 8 | R76: 306 | S76: 30 | T76: 0 | U76: 0 | V76: 0 | W76: 6 | X76: BROWARD | Y76: 721 | Z76: DRIFTWOOD ELEMENTARY SCHOOL | AA76: Elem. | AB76: 580 | AC76: 438 | AD76: 0.7551724138 | AE76: 0.7551 | AF76: A | AG76: SW | AH76: Matching
A77: 62871 | B77: 06 | C77: BROWARD | D77: 2871 | E77: SEA CASTLE ELEMENTARY SCHOOL | F77: 8 | G77: PREK-5 | H77: 1 | I77: Elementary | J77: Z | K77: NO | L77: NO | M77: Z | N77: NO | O77: 788 | P77: 75 | Q77: 6 | R77: 454 | S77: 70 | T77: 0 | U77: 0 | V77: 0 | W77: 6 | X77: BROWARD | Y77: 2871 | Z77: SEA CASTLE ELEMENTARY SCHOOL | AA77: Elem. | AB77: 805 | AC77: 638 | AD77: 0.7925465839 | AE77: 0.7925 | AF77: A | AG77: SW | AH77: Matching
A78: 65161 | B78: 06 | C78: BROWARD | D78: 5161 | E78: NORTH BROWARD ACADEMY OF EXCEL | F78: 15 | G78: K-5 | H78: 1 | I78: Elementary | J78: Z | K78: NO | L78: NO | M78: R | N78: YES | O78: 677 | P78: 31 | Q78: 0 | R78: 388 | S78: 96 | T78: 0 | U78: 0 | V78: 0 | W78: 6 | X78: BROWARD | Y78: 5161 | Z78: NORTH BROWARD ACADEMY OF EXCEL | AA78: Elem. | AB78: 682 | AC78: 518 | AD78: 0.7595307918 | AE78: 0.7595 | AF78: A | AG78: SW | AH78: Matching
A79: 61611 | B79: 06 | C79: BROWARD | D79: 1611 | E79: DR.MARTIN LUTHER KING, JR. MONTESSORI ACADEMY | F79: 8 | G79: PREK-5 | H79: 1 | I79: Elementary | J79: Z | K79: NO | L79: NO | M79: Z | N79: NO | O79: 418 | P79: 1 | Q79: 3 | R79: 355 | S79: 21 | T79: 0 | U79: 0 | V79: 0 | W79: 6 | X79: BROWARD | Y79: 1611 | Z79: DR. MARTIN LUTHER KING MONTESSORI ACADEMY | AA79: Elem. | AB79: 388 | AC79: 380 | AD79: 0.9793814433 | AE79: 0.9793 | AF79: A | AG79: SW | AH79: Matching
A80: 65387 | B80: 06 | C80: BROWARD | D80: 5387 | E80: SOMERSET ACADEMY RIVERSIDE | F80: 15 | G80: K-5 | H80: 1 | I80: Elementary | J80: Z | K80: NO | L80: NO | M80: R | N80: YES | O80: 310 | P80: 32 | Q80: 3 | R80: 125 | S80: 33 | T80: 0 | U80: 0 | V80: 0 | W80: 6 | X80: BROWARD | Y80: 5387 | Z80: SOMERSET ACADEMY RIVERSIDE | AA80: Elem. | AB80: 236 | AC80: 235 | AD80: 0.9957627119 | AE80: 0.9957 | AF80: A | AG80: SW | AH80: Matching
A81: 65407 | B81: 06 | C81: BROWARD | D81: 5407 | E81: EVEREST CHARTER SCHOOL | F81: 25 | G81: K-8 | H81: 4 | I81: Combination Elementary & Secondary | J81: Z | K81: NO | L81: NO | M81: R | N81: YES | O81: 166 | P81: 0 | Q81: 0 | R81: 0 | S81: 132 | T81: 0 | U81: 0 | V81: 0 | W81: 6 | X81: BROWARD | Y81: 5407 | Z81: EVEREST CHARTER SCHOOL | AA81: Combo. Elem. & Second. | AB81: 134 | AC81: 89 | AD81: 0.6641791045 | AE81: 0.6641 | AF81: B | AG81: SW | AH81: Matching
A82: 62681 | B82: 06 | C82: BROWARD | D82: 2681 | E82: WESTCHESTER ELEMENTARY SCHOOL | F82: 8 | G82: PREK-5 | H82: 1 | I82: Elementary | J82: Z | K82: NO | L82: NO | M82: Z | N82: NO | O82: 1118 | P82: 68 | Q82: 13 | R82: 429 | S82: 68 | T82: 0 | U82: 0 | V82: 0 | W82: 6 | X82: BROWARD | Y82: 2681 | Z82: WESTCHESTER ELEMENTARY SCHOOL | AA82: Elem. | AB82: 1152 | AC82: 606 | AD82: 0.5260416667 | AE82: 0.526 | AF82: D | AG82: SW | AH82: Matching
A83: 60861 | B83: 06 | C83: BROWARD | D83: 0861 | E83: DRIFTWOOD MIDDLE SCHOOL | F83: 67 | G83: 6-8 | H83: 2 | I83: Middle/Junior | J83: Z | K83: NO | L83: NO | M83: Z | N83: NO | O83: 1235 | P83: 51 | Q83: 11 | R83: 707 | S83: 93 | T83: 0 | U83: 0 | V83: 0 | W83: 6 | X83: BROWARD | Y83: 861 | Z83: DRIFTWOOD MIDDLE SCHOOL | AA83: Middle/Junior | AB83: 1374 | AC83: 1051 | AD83: 0.7649199418 | AE83: 0.7649 | AF83: A | AG83: SW | AH83: Matching
A84: 62541 | B84: 06 | C84: BROWARD | D84: 2541 | E84: FLAMINGO ELEMENTARY SCHOOL | F84: 8 | G84: PREK-5 | H84: 1 | I84: Elementary | J84: Z | K84: NO | L84: NO | M84: Z | N84: NO | O84: 597 | P84: 22 | Q84: 6 | R84: 287 | S84: 35 | T84: 0 | U84: 0 | V84: 0 | W84: 6 | X84: BROWARD | Y84: 2541 | Z84: FLAMINGO ELEMENTARY SCHOOL | AA84: Elem. | AB84: 662 | AC84: 427 | AD84: 0.6450151057 | AE84: 0.645 | AF84: B | AG84: SW | AH84: Matching
A85: 60321 | B85: 06 | C85: BROWARD | D85: 0321 | E85: WALKER ELEMENTARY SCHOOL | F85: 8 | G85: PREK-5 | H85: 1 | I85: Elementary | J85: Z | K85: NO | L85: NO | M85: Z | N85: NO | O85: 610 | P85: 8 | Q85: 1 | R85: 521 | S85: 19 | T85: 0 | U85: 0 | V85: 0 | W85: 6 | X85: BROWARD | Y85: 321 | Z85: WALKER ELEMENTARY (MAGNET) | AA85: Elem. | AB85: 732 | AC85: 709 | AD85: 0.968579235 | AE85: 0.9685 | AF85: A | AG85: SW | AH85: Matching
A86: 63311 | B86: 06 | C86: BROWARD | D86: 3311 | E86: PALM COVE ELEMENTARY SCHOOL | F86: 15 | G86: K-5 | H86: 1 | I86: Elementary | J86: Z | K86: NO | L86: NO | M86: Z | N86: NO | O86: 458 | P86: 9 | Q86: 5 | R86: 257 | S86: 25 | T86: 0 | U86: 0 | V86: 0 | W86: 6 | X86: BROWARD | Y86: 3311 | Z86: PALM COVE ELEMENTARY SCHOOL | AA86: Elem. | AB86: 492 | AC86: 354 | AD86: 0.7195121951 | AE86: 0.7195 | AF86: B | AG86: SW | AH86: Matching
A87: 61701 | B87: 06 | C87: BROWARD | D87: 1701 | E87: LAUDERDALE LAKES MIDDLE SCHOOL | F87: 67 | G87: 6-8 | H87: 2 | I87: Middle/Junior | J87: Z | K87: NO | L87: NO | M87: Z | N87: NO | O87: 834 | P87: 25 | Q87: 7 | R87: 547 | S87: 72 | T87: 0 | U87: 0 | V87: 0 | W87: 6 | X87: BROWARD | Y87: 1701 | Z87: LAUDERDALE LAKES MIDDLE SCHOOL | AA87: Middle/Junior | AB87: 877 | AC87: 786 | AD87: 0.8962371722 | AE87: 0.8962 | AF87: A | AG87: SW | AH87: Matching
A88: 60971 | B88: 06 | C88: BROWARD | D88: 0971 | E88: BOULEVARD HEIGHTS ELEMENTARY | F88: 8 | G88: PREK-5 | H88: 1 | I88: Elementary | J88: Z | K88: NO | L88: NO | M88: Z | N88: NO | O88: 550 | P88: 25 | Q88: 5 | R88: 334 | S88: 27 | T88: 0 | U88: 0 | V88: 0 | W88: 6 | X88: BROWARD | Y88: 971 | Z88: BOULEVARD HEIGHTS ELEMENTARY | AA88: Elem. | AB88: 624 | AC88: 479 | AD88: 0.7676282051 | AE88: 0.7676 | AF88: A | AG88: SW | AH88: Matching
A89: 65031 | B89: 06 | C89: BROWARD | D89: 5031 | E89: CHARTER SCHOOL OF EXCELLENCE | F89: 15 | G89: K-5 | H89: 1 | I89: Elementary | J89: Z | K89: NO | L89: NO | M89: R | N89: YES | O89: 218 | P89: 18 | Q89: 2 | R89: 119 | S89: 35 | T89: 0 | U89: 0 | V89: 0 | W89: 6 | X89: BROWARD | Y89: 5031 | Z89: CHARTER SCHOOL OF EXCELLENCE | AA89: Elem. | AB89: 268 | AC89: 217 | AD89: 0.8097014925 | AE89: 0.8097 | AF89: A | AG89: SW | AH89: Matching
A90: 60471 | B90: 06 | C90: BROWARD | D90: 0471 | E90: OLSEN MIDDLE SCHOOL | F90: 67 | G90: 6-8 | H90: 2 | I90: Middle/Junior | J90: Z | K90: NO | L90: NO | M90: Z | N90: NO | O90: 667 | P90: 13 | Q90: 4 | R90: 439 | S90: 28 | T90: 0 | U90: 0 | V90: 0 | W90: 6 | X90: BROWARD | Y90: 471 | Z90: OLSEN MIDDLE SCHOOL | AA90: Middle/Junior | AB90: 647 | AC90: 540 | AD90: 0.8346213292 | AE90: 0.8346 | AF90: A | AG90: SW | AH90: Matching
A91: 60571 | B91: 06 | C91: BROWARD | D91: 0571 | E91: TEDDER ELEMENTARY SCHOOL | F91: 8 | G91: PREK-5 | H91: 1 | I91: Elementary | J91: Z | K91: NO | L91: NO | M91: Z | N91: NO | O91: 534 | P91: 4 | Q91: 4 | R91: 336 | S91: 44 | T91: 0 | U91: 0 | V91: 0 | W91: 6 | X91: BROWARD | Y91: 571 | Z91: TEDDER ELEMENTARY SCHOOL | AA91: Elem. | AB91: 545 | AC91: 499 | AD91: 0.9155963303 | AE91: 0.9155 | AF91: A | AG91: SW | AH91: Matching
A92: 61671 | B92: 06 | C92: BROWARD | D92: 1671 | E92: ROBERT C. MARKHAM ELEMENTARY | F92: 8 | G92: PREK-5 | H92: 1 | I92: Elementary | J92: Z | K92: NO | L92: NO | M92: Z | N92: NO | O92: 488 | P92: 6 | Q92: 2 | R92: 333 | S92: 42 | T92: 0 | U92: 0 | V92: 0 | W92: 6 | X92: BROWARD | Y92: 1671 | Z92: ROBERT C. MARKHAM ELEMENTARY | AA92: Elem. | AB92: 501 | AC92: 466 | AD92: 0.9301397206 | AE92: 0.9301 | AF92: A | AG92: SW | AH92: Matching
A93: 65355 | B93: 06 | C93: BROWARD | D93: 5355 | E93: EAGLES NEST CHARTER ACADEMY | F93: 28 | G93: K-12 | H93: 4 | I93: Combination Elementary & Secondary | J93: Z | K93: NO | L93: NO | M93: R | N93: YES | O93: 302 | P93: 0 | Q93: 0 | R93: 0 | S93: 0 | T93: 0 | U93: 299 | V93: 0 | W93: 6 | X93: BROWARD | Y93: 5355 | Z93: EAGLES NEST CHARTER ACADEMY | AA93: Combo. Elem. & Second. | AB93: 340 | AC93: 340 | AD93: 1 | AE93: 1 | AF93: A | AG93: SW | AH93: Matching
A94: 60481 | B94: 06 | C94: BROWARD | D94: 0481 | E94: MCNICOL MIDDLE SCHOOL | F94: 67 | G94: 6-8 | H94: 2 | I94: Middle/Junior | J94: Z | K94: NO | L94: NO | M94: Z | N94: NO | O94: 699 | P94: 19 | Q94: 6 | R94: 488 | S94: 33 | T94: 0 | U94: 0 | V94: 0 | W94: 6 | X94: BROWARD | Y94: 481 | Z94: MCNICOL MIDDLE SCHOOL | AA94: Middle/Junior | AB94: 797 | AC94: 708 | AD94: 0.8883312422 | AE94: 0.8883 | AF94: A | AG94: SW | AH94: Matching
A95: 65393 | B95: 06 | C95: BROWARD | D95: 5393 | E95: EXCELSIOR CHARTER OF BROWARD | F95: 15 | G95: K-5 | H95: 1 | I95: Elementary | J95: Z | K95: NO | L95: NO | M95: R | N95: YES | O95: 83 | P95: 0 | Q95: 0 | R95: 3 | S95: 77 | T95: 0 | U95: 0 | V95: 0 | W95: 6 | X95: BROWARD | Y95: 5393 | Z95: EXCELSIOR CHARTER OF BROWARD | AA95: Elem. | AB95: 186 | AC95: 132 | AD95: 0.7096774194 | AE95: 0.7096 | AF95: B | AG95: SW | AH95: Matching
A96: 61282 | B96: 06 | C96: BROWARD | D96: 1282 | E96: NOVA BLANCHE FORMAN ELEMENTARY | F96: 15 | G96: K-5 | H96: 1 | I96: Elementary | J96: Z | K96: NO | L96: NO | M96: Z | N96: NO | O96: 734 | P96: 32 | Q96: 15 | R96: 405 | S96: 54 | T96: 0 | U96: 0 | V96: 0 | W96: 6 | X96: BROWARD | Y96: 1282 | Z96: NOVA BLANCHE FORMAN ELEMENTARY | AA96: Elem. | AB96: 758 | AC96: 559 | AD96: 0.7374670185 | AE96: 0.7374 | AF96: B | AG96: SW | AH96: Matching
A97: 65021 | B97: 06 | C97: BROWARD | D97: 5021 | E97: SOMERSET NEIGHBORHOOD SCHOOL | F97: 15 | G97: K-5 | H97: 1 | I97: Elementary | J97: Z | K97: NO | L97: NO | M97: R | N97: YES | O97: 446 | P97: 25 | Q97: 0 | R97: 200 | S97: 77 | T97: 0 | U97: 0 | V97: 0 | W97: 6 | X97: BROWARD | Y97: 5021 | Z97: SOMERSET NEIGHBORHOOD SCHOOL | AA97: Elem. | AB97: 491 | AC97: 408 | AD97: 0.8309572301 | AE97: 0.8309 | AF97: A | AG97: SW | AH97: Matching
A98: 65041 | B98: 06 | C98: BROWARD | D98: 5041 | E98: CENTRAL CHARTER SCHOOL | F98: 25 | G98: K-8 | H98: 4 | I98: Combination Elementary & Secondary | J98: Z | K98: NO | L98: NO | M98: R | N98: YES | O98: 1120 | P98: 0 | Q98: 0 | R98: 0 | S98: 0 | T98: 0 | U98: 1116 | V98: 0 | W98: 6 | X98: BROWARD | Y98: 5041 | Z98: CENTRAL CHARTER SCHOOL | AA98: Combo. Elem. & Second. | AB98: 1236 | AC98: 1236 | AD98: 1 | AE98: 1 | AF98: A | AG98: SW | AH98: Matching
A99: 60521 | B99: 06 | C99: BROWARD | D99: 0521 | E99: NORTH ANDREWS GARDENS ELEM. | F99: 8 | G99: PREK-5 | H99: 1 | I99: Elementary | J99: Z | K99: NO | L99: NO | M99: Z | N99: NO | O99: 772 | P99: 43 | Q99: 7 | R99: 465 | S99: 61 | T99: 0 | U99: 0 | V99: 0 | W99: 6 | X99: BROWARD | Y99: 521 | Z99: NORTH ANDREWS GARDENS ELEM. | AA99: Elem. | AB99: 858 | AC99: 701 | AD99: 0.817016317 | AE99: 0.817 | AF99: A | AG99: SW | AH99: Matching
A100: 61641 | B100: 06 | C100: BROWARD | D100: 1641 | E100: FAIRWAY ELEMENTARY SCHOOL | F100: 8 | G100: PREK-5 | H100: 1 | I100: Elementary | J100: Z | K100: NO | L100: NO | M100: Z | N100: NO | O100: 503 | P100: 11 | Q100: 6 | R100: 372 | S100: 38 | T100: 0 | U100: 0 | V100: 0 | W100: 6 | X100: BROWARD | Y100: 1641 | Z100: FAIRWAY ELEMENTARY SCHOOL | AA100: Elem. | AB100: 602 | AC100: 545 | AD100: 0.9053156146 | AE100: 0.9053 | AF100: A | AG100: SW | AH100: Matching
A101: 65211 | B101: 06 | C101: BROWARD | D101: 5211 | E101: SOMERSET ACADEMY DAVIE CHARTER SCHOOL | F101: 15 | G101: K-5 | H101: 1 | I101: Elementary | J101: Z | K101: NO | L101: NO | M101: R | N101: YES | O101: 150 | P101: 21 | Q101: 6 | R101: 44 | S101: 8 | T101: 0 | U101: 0 | V101: 0 | W101: 6 | X101: BROWARD | Y101: 5211 | Z101: SOMERSET ACADEMY DAVIE CHARTER SCHOOL | AA101: Elem. | AB101: 152 | AC101: 82 | AD101: 0.5394736842 | AE101: 0.5394 | AF101: D | AG101: SW | AH101: Matching
A102: 65022 | B102: 06 | C102: BROWARD | D102: 5022 | E102: BRIDGEPREP ACADEMY OF BROWARD K-8 | F102: 25 | G102: K-8 | H102: 4 | I102: Combination Elementary & Secondary | J102: Z | K102: NO | L102: NO | M102: R | N102: YES | O102: 54 | P102: 4 | Q102: 0 | R102: 2 | S102: 27 | T102: 0 | U102: 0 | V102: 0 | W102: 6 | X102: BROWARD | Y102: 5022 | Z102: BRIDGEPREP ACADEMY OF BROWARD | AA102: Combo. Elem. & Second. | AB102: 24 | AC102: 15 | AD102: 0.625 | AE102: 0.625 | AF102: B | AG102: SW | AH102: Matching
A103: 61621 | B103: 06 | C103: BROWARD | D103: 1621 | E103: VILLAGE ELEMENTARY SCHOOL | F103: 8 | G103: PREK-5 | H103: 1 | I103: Elementary | J103: Z | K103: NO | L103: NO | M103: Z | N103: NO | O103: 519 | P103: 7 | Q103: 7 | R103: 396 | S103: 36 | T103: 0 | U103: 0 | V103: 0 | W103: 6 | X103: BROWARD | Y103: 1621 | Z103: VILLAGE ELEMENTARY SCHOOL | AA103: Elem. | AB103: 645 | AC103: 606 | AD103: 0.9395348837 | AE103: 0.9395 | AF103: A | AG103: SW | AH103: Matching
A104: 62971 | B104: 06 | C104: BROWARD | D104: 2971 | E104: SILVER LAKES MIDDLE SCHOOL | F104: 67 | G104: 6-8 | H104: 2 | I104: Middle/Junior | J104: Z | K104: NO | L104: NO | M104: Z | N104: NO | O104: 689 | P104: 14 | Q104: 4 | R104: 458 | S104: 33 | T104: 0 | U104: 0 | V104: 0 | W104: 6 | X104: BROWARD | Y104: 2971 | Z104: SILVER LAKES MIDDLE SCHOOL | AA104: Middle/Junior | AB104: 709 | AC104: 625 | AD104: 0.8815232722 | AE104: 0.8815 | AF104: A | AG104: SW | AH104: Matching
A105: 65422 | B105: 06 | C105: BROWARD | D105: 5422 | E105: CHAMPIONSHIP ACADEMY OF DISTINCTION AT DAVIE | F105: 25 | G105: K-8 | H105: 4 | I105: Combination Elementary & Secondary | J105: Z | K105: NO | L105: NO | M105: R | N105: YES | O105: 338 | P105: 37 | Q105: 0 | R105: 103 | S105: 103 | T105: 0 | U105: 0 | V105: 0 | W105: 6 | X105: BROWARD | Y105: 5422 | Z105: CHAMPIONSHIP ACADEMY OF DISTINCTION AT DAVIE | AA105: Combo. Elem. & Second. | AB105: 464 | AC105: 318 | AD105: 0.6853448276 | AE105: 0.6853 | AF105: B | AG105: SW | AH105: Matching
A106: 62811 | B106: 06 | C106: BROWARD | D106: 2811 | E106: PINEWOOD ELEMENTARY SCHOOL | F106: 8 | G106: PREK-5 | H106: 1 | I106: Elementary | J106: Z | K106: NO | L106: NO | M106: Z | N106: NO | O106: 568 | P106: 32 | Q106: 7 | R106: 355 | S106: 37 | T106: 0 | U106: 0 | V106: 0 | W106: 6 | X106: BROWARD | Y106: 2811 | Z106: PINEWOOD ELEMENTARY SCHOOL | AA106: Elem. | AB106: 597 | AC106: 512 | AD106: 0.8576214405 | AE106: 0.8576 | AF106: A | AG106: SW | AH106: Matching
A107: 62881 | B107: 06 | C107: BROWARD | D107: 2881 | E107: WELLEBY ELEMENTARY SCHOOL | F107: 8 | G107: PREK-5 | H107: 1 | I107: Elementary | J107: Z | K107: NO | L107: NO | M107: Z | N107: NO | O107: 565 | P107: 26 | Q107: 15 | R107: 272 | S107: 36 | T107: 0 | U107: 0 | V107: 0 | W107: 6 | X107: BROWARD | Y107: 2881 | Z107: WELLEBY ELEMENTARY SCHOOL | AA107: Elem. | AB107: 712 | AC107: 453 | AD107: 0.6362359551 | AE107: 0.6362 | AF107: B | AG107: SW | AH107: Matching
A108: 62551 | B108: 06 | C108: BROWARD | D108: 2551 | E108: CORAL SPRINGS PK-8 | F108: 27 | G108: PREK-8 | H108: 4 | I108: Combination Elementary & Secondary | J108: Z | K108: NO | L108: NO | M108: Z | N108: NO | O108: 507 | P108: 26 | Q108: 3 | R108: 363 | S108: 29 | T108: 0 | U108: 0 | V108: 0 | W108: 6 | X108: BROWARD | Y108: 2551 | Z108: CORAL SPRINGS PK-8 | AA108: Combo. Elem. & Second. | AB108: 588 | AC108: 495 | AD108: 0.8418367347 | AE108: 0.8418 | AF108: A | AG108: SW | AH108: Matching
A109: 61221 | B109: 06 | C109: BROWARD | D109: 1221 | E109: PEMBROKE PINES ELEMENTARY SCHL | F109: 15 | G109: K-5 | H109: 1 | I109: Elementary | J109: Z | K109: NO | L109: NO | M109: Z | N109: NO | O109: 559 | P109: 39 | Q109: 9 | R109: 337 | S109: 26 | T109: 0 | U109: 0 | V109: 0 | W109: 6 | X109: BROWARD | Y109: 1221 | Z109: PEMBROKE PINES ELEMENTARY SCHL | AA109: Elem. | AB109: 584 | AC109: 456 | AD109: 0.7808219178 | AE109: 0.7808 | AF109: A | AG109: SW | AH109: Matching
A110: 60851 | B110: 06 | C110: BROWARD | D110: 0851 | E110: FLORANADA ELEMENTARY SCHOOL | F110: 8 | G110: PREK-5 | H110: 1 | I110: Elementary | J110: Z | K110: NO | L110: NO | M110: Z | N110: NO | O110: 674 | P110: 26 | Q110: 10 | R110: 271 | S110: 37 | T110: 0 | U110: 0 | V110: 0 | W110: 6 | X110: BROWARD | Y110: 851 | Z110: FLORANADA ELEMENTARY SCHOOL | AA110: Elem. | AB110: 689 | AC110: 375 | AD110: 0.5442670537 | AE110: 0.5442 | AF110: D | AG110: SW | AH110: Matching
A111: 65362 | B111: 06 | C111: BROWARD | D111: 5362 | E111: HOLLYWOOD ACADEMY OF ARTS AND SCIENCE MIDDLE | F111: 67 | G111: 6-8 | H111: 2 | I111: Middle/Junior | J111: Z | K111: NO | L111: NO | M111: R | N111: YES | O111: 457 | P111: 38 | Q111: 10 | R111: 161 | S111: 58 | T111: 0 | U111: 0 | V111: 0 | W111: 6 | X111: BROWARD | Y111: 5362 | Z111: HOLLYWOOD ACADEMY OF ARTS AND SCIENCE MIDDLE | AA111: Middle/Junior | AB111: 457 | AC111: 236 | AD111: 0.5164113786 | AE111: 0.5164 | AF111: D | AG111: SW | AH111: Matching
A112: 60191 | B112: 06 | C112: BROWARD | D112: 0191 | E112: WILTON MANORS ELEMENTARY SCHOOL | F112: 8 | G112: PREK-5 | H112: 1 | I112: Elementary | J112: Z | K112: NO | L112: NO | M112: Z | N112: NO | O112: 564 | P112: 19 | Q112: 6 | R112: 316 | S112: 33 | T112: 0 | U112: 0 | V112: 0 | W112: 6 | X112: BROWARD | Y112: 191 | Z112: WILTON MANORS ELEMENTARY SCHOOL | AA112: Elem. | AB112: 567 | AC112: 414 | AD112: 0.7301587302 | AE112: 0.7301 | AF112: B | AG112: SW | AH112: Matching
A113: 65325 | B113: 06 | C113: BROWARD | D113: 5325 | E113: HOLLYWOOD ACAD OF ARTS & SCIEN | F113: 15 | G113: K-5 | H113: 1 | I113: Elementary | J113: Z | K113: NO | L113: NO | M113: R | N113: YES | O113: 1110 | P113: 79 | Q113: 32 | R113: 408 | S113: 117 | T113: 0 | U113: 0 | V113: 0 | W113: 6 | X113: BROWARD | Y113: 5325 | Z113: HOLLYWOOD ACAD OF ARTS & SCIEN | AA113: Elem. | AB113: 1111 | AC113: 634 | AD113: 0.5706570657 | AE113: 0.5706 | AF113: D | AG113: SW | AH113: Matching
A114: 61071 | B114: 06 | C114: BROWARD | D114: 1071 | E114: WILLIAM DANDY MIDDLE SCHOOL | F114: 67 | G114: 6-8 | H114: 2 | I114: Middle/Junior | J114: Z | K114: NO | L114: NO | M114: Z | N114: NO | O114: 852 | P114: 21 | Q114: 8 | R114: 598 | S114: 50 | T114: 0 | U114: 0 | V114: 0 | W114: 6 | X114: BROWARD | Y114: 1071 | Z114: WILLIAM DANDY MIDDLE SCHOOL | AA114: Middle/Junior | AB114: 891 | AC114: 823 | AD114: 0.923681257 | AE114: 0.9236 | AF114: A | AG114: SW | AH114: Matching
A115: 63091 | B115: 06 | C115: BROWARD | D115: 3091 | E115: WINSTON PARK ELEMENTARY SCHOOL | F115: 8 | G115: PREK-5 | H115: 1 | I115: Elementary | J115: Z | K115: NO | L115: NO | M115: Z | N115: NO | O115: 996 | P115: 49 | Q115: 8 | R115: 366 | S115: 60 | T115: 0 | U115: 0 | V115: 0 | W115: 6 | X115: BROWARD | Y115: 3091 | Z115: WINSTON PARK ELEMENTARY SCHOOL | AA115: Elem. | AB115: 1110 | AC115: 562 | AD115: 0.5063063063 | AE115: 0.5063 | AF115: D | AG115: SW | AH115: Matching
A116: 65392 | B116: 06 | C116: BROWARD | D116: 5392 | E116: BEN GAMLA CHARTER SCHOOL SOUTH BROWARD | F116: 25 | G116: K-8 | H116: 4 | I116: Combination Elementary & Secondary | J116: Z | K116: NO | L116: NO | M116: R | N116: YES | O116: 283 | P116: 9 | Q116: 9 | R116: 179 | S116: 32 | T116: 0 | U116: 0 | V116: 0 | W116: 6 | X116: BROWARD | Y116: 5392 | Z116: BEN GAMLA CHARTER SCHOOL SOUTH BROWARD | AA116: Combo. Elem. & Second. | AB116: 339 | AC116: 271 | AD116: 0.7994100295 | AE116: 0.7994 | AF116: A | AG116: SW | AH116: Matching
A117: 63101 | B117: 06 | C117: BROWARD | D117: 3101 | E117: LYONS CREEK MIDDLE SCHOOL | F117: 67 | G117: 6-8 | H117: 2 | I117: Middle/Junior | J117: Z | K117: NO | L117: NO | M117: Z | N117: NO | O117: 1750 | P117: 94 | Q117: 17 | R117: 674 | S117: 121 | T117: 0 | U117: 0 | V117: 0 | W117: 6 | X117: BROWARD | Y117: 3101 | Z117: LYONS CREEK MIDDLE SCHOOL | AA117: Middle/Junior | AB117: 1927 | AC117: 1051 | AD117: 0.545407369 | AE117: 0.5454 | AF117: D | AG117: SW | AH117: Matching
A118: 62801 | B118: 06 | C118: BROWARD | D118: 2801 | E118: DAVIE ELEMENTARY SCHOOL | F118: 8 | G118: PREK-5 | H118: 1 | I118: Elementary | J118: Z | K118: NO | L118: NO | M118: Z | N118: NO | O118: 661 | P118: 33 | Q118: 7 | R118: 401 | S118: 72 | T118: 0 | U118: 0 | V118: 0 | W118: 6 | X118: BROWARD | Y118: 2801 | Z118: DAVIE ELEMENTARY SCHOOL | AA118: Elem. | AB118: 755 | AC118: 630 | AD118: 0.8344370861 | AE118: 0.8344 | AF118: A | AG118: SW | AH118: Matching
A119: 60041 | B119: 06 | C119: BROWARD | D119: 0041 | E119: NORTH SIDE ELEMENTARY SCHOOL | F119: 8 | G119: PREK-5 | H119: 1 | I119: Elementary | J119: Z | K119: NO | L119: NO | M119: Z | N119: NO | O119: 313 | P119: 0 | Q119: 4 | R119: 251 | S119: 2 | T119: 0 | U119: 0 | V119: 0 | W119: 6 | X119: BROWARD | Y119: 41 | Z119: NORTH SIDE ELEMENTARY SCHOOL | AA119: Elem. | AB119: 308 | AC119: 294 | AD119: 0.9545454545 | AE119: 0.9545 | AF119: A | AG119: SW | AH119: Matching
A120: 61891 | B120: 06 | C120: BROWARD | D120: 1891 | E120: SEMINOLE MIDDLE SCHOOL | F120: 67 | G120: 6-8 | H120: 2 | I120: Middle/Junior | J120: Z | K120: NO | L120: NO | M120: Z | N120: NO | O120: 1184 | P120: 41 | Q120: 16 | R120: 490 | S120: 59 | T120: 0 | U120: 0 | V120: 0 | W120: 6 | X120: BROWARD | Y120: 1891 | Z120: SEMINOLE MIDDLE SCHOOL | AA120: Middle/Junior | AB120: 1158 | AC120: 646 | AD120: 0.5578583765 | AE120: 0.5578 | AF120: D | AG120: SW | AH120: Matching
A121: 63771 | B121: 06 | C121: BROWARD | D121: 3771 | E121: CHALLENGER ELEMENTARY SCHOOL | F121: 8 | G121: PREK-5 | H121: 1 | I121: Elementary | J121: Z | K121: NO | L121: NO | M121: Z | N121: NO | O121: 861 | P121: 36 | Q121: 6 | R121: 426 | S121: 49 | T121: 0 | U121: 0 | V121: 0 | W121: 6 | X121: BROWARD | Y121: 3771 | Z121: CHALLENGER ELEMENTARY SCHOOL | AA121: Elem. | AB121: 909 | AC121: 620 | AD121: 0.6820682068 | AE121: 0.682 | AF121: B | AG121: SW | AH121: Matching
A122: 65361 | B122: 06 | C122: BROWARD | D122: 5361 | E122: CHAMPIONSHIP ACADEMY OF DISTINCTION HOLLYWOOD | F122: 15 | G122: K-5 | H122: 1 | I122: Elementary | J122: Z | K122: NO | L122: NO | M122: R | N122: YES | O122: 338 | P122: 17 | Q122: 6 | R122: 196 | S122: 48 | T122: 0 | U122: 0 | V122: 0 | W122: 6 | X122: BROWARD | Y122: 5361 | Z122: CHAMPIONSHIP ACADEMY OF DISTINCTION HOLLYWOOD | AA122: Elem. | AB122: 373 | AC122: 281 | AD122: 0.7533512064 | AE122: 0.7533 | AF122: A | AG122: SW | AH122: Matching
A123: 61461 | B123: 06 | C123: BROWARD | D123: 1461 | E123: CASTLE HILL ELEMENTARY SCHOOL | F123: 8 | G123: PREK-5 | H123: 1 | I123: Elementary | J123: Z | K123: NO | L123: NO | M123: Z | N123: NO | O123: 510 | P123: 6 | Q123: 3 | R123: 406 | S123: 24 | T123: 0 | U123: 0 | V123: 0 | W123: 6 | X123: BROWARD | Y123: 1461 | Z123: CASTLE HILL ELEMENTARY SCHOOL | AA123: Elem. | AB123: 528 | AC123: 497 | AD123: 0.9412878788 | AE123: 0.9412 | AF123: A | AG123: SW | AH123: Matching
A124: 60021 | B124: 06 | C124: BROWARD | D124: 0021 | E124: POMPANO BEACH MIDDLE SCHOOL | F124: 67 | G124: 6-8 | H124: 2 | I124: Middle/Junior | J124: Z | K124: NO | L124: NO | M124: Z | N124: NO | O124: 1003 | P124: 29 | Q124: 5 | R124: 630 | S124: 42 | T124: 0 | U124: 0 | V124: 0 | W124: 6 | X124: BROWARD | Y124: 21 | Z124: POMPANO BEACH MIDDLE SCHOOL | AA124: Middle/Junior | AB124: 1030 | AC124: 801 | AD124: 0.7776699029 | AE124: 0.7776 | AF124: A | AG124: SW | AH124: Matching
A125: 60691 | B125: 06 | C125: BROWARD | D125: 0691 | E125: STIRLING ELEMENTARY SCHOOL | F125: 8 | G125: PREK-5 | H125: 1 | I125: Elementary | J125: Z | K125: NO | L125: NO | M125: Z | N125: NO | O125: 509 | P125: 18 | Q125: 2 | R125: 316 | S125: 33 | T125: 0 | U125: 0 | V125: 0 | W125: 6 | X125: BROWARD | Y125: 691 | Z125: STIRLING ELEMENTARY SCHOOL | AA125: Elem. | AB125: 550 | AC125: 423 | AD125: 0.7690909091 | AE125: 0.769 | AF125: A | AG125: SW | AH125: Matching
A126: 60711 | B126: 06 | C126: BROWARD | D126: 0711 | E126: ORANGE BROOK ELEMENTARY SCHOOL | F126: 8 | G126: PREK-5 | H126: 1 | I126: Elementary | J126: Z | K126: NO | L126: NO | M126: Z | N126: NO | O126: 622 | P126: 28 | Q126: 8 | R126: 436 | S126: 22 | T126: 0 | U126: 0 | V126: 0 | W126: 6 | X126: BROWARD | Y126: 711 | Z126: ORANGE BROOK ELEMENTARY SCHOOL | AA126: Elem. | AB126: 670 | AC126: 594 | AD126: 0.8865671642 | AE126: 0.8865 | AF126: A | AG126: SW | AH126: Matching
A127: 60761 | B127: 06 | C127: BROWARD | D127: 0761 | E127: MEADOWBROOK ELEMENTARY SCHOOL | F127: 8 | G127: PREK-5 | H127: 1 | I127: Elementary | J127: Z | K127: NO | L127: NO | M127: Z | N127: NO | O127: 691 | P127: 12 | Q127: 13 | R127: 452 | S127: 81 | T127: 0 | U127: 0 | V127: 0 | W127: 6 | X127: BROWARD | Y127: 761 | Z127: MEADOWBROOK ELEMENTARY SCHOOL | AA127: Elem. | AB127: 700 | AC127: 625 | AD127: 0.8928571429 | AE127: 0.8928 | AF127: A | AG127: SW | AH127: Matching
A128: 64772 | B128: 06 | C128: BROWARD | D128: 4772 | E128: MILLENNIUM 6-12 COLLEGIATE ACADEMY | F128: 68 | G128: 6-9 | H128: 4 | I128: Combination Elementary & Secondary | J128: Z | K128: NO | L128: NO | M128: Z | N128: NO | O128: 1338 | P128: 80 | Q128: 14 | R128: 620 | S128: 77 | T128: 0 | U128: 0 | V128: 0 | W128: 6 | X128: BROWARD | Y128: 4772 | Z128: MILLENNIUM 6-12 COLLEGIATE ACADEMY | AA128: Combo. Elem. & Second. | AB128: 1539 | AC128: 1077 | AD128: 0.6998050682 | AE128: 0.6998 | AF128: B | AG128: SW | AH128: Matching
A129: 60841 | B129: 06 | C129: BROWARD | D129: 0841 | E129: MCNAB ELEMENTARY SCHOOL | F129: 8 | G129: PREK-5 | H129: 1 | I129: Elementary | J129: Z | K129: NO | L129: NO | M129: Z | N129: NO | O129: 579 | P129: 27 | Q129: 5 | R129: 263 | S129: 20 | T129: 0 | U129: 0 | V129: 0 | W129: 6 | X129: BROWARD | Y129: 841 | Z129: MCNAB ELEMENTARY SCHOOL | AA129: Elem. | AB129: 639 | AC129: 352 | AD129: 0.5508607199 | AE129: 0.5508 | AF129: D | AG129: SW | AH129: Matching
A130: 65015 | B130: 06 | C130: BROWARD | D130: 5015 | E130: AVANT GARDE ACADEMY K-5 BROWARD | F130: 15 | G130: K-5 | H130: 1 | I130: Elementary | J130: Z | K130: NO | L130: NO | M130: R | N130: YES | O130: 971 | P130: 20 | Q130: 10 | R130: 500 | S130: 34 | T130: 0 | U130: 0 | V130: 0 | W130: 6 | X130: BROWARD | Y130: 5015 | Z130: AVANT GARDE ACADEMY K-8 BROWARD | AA130: Combo. Elem. & Second. | AB130: 1027 | AC130: 568 | AD130: 0.553067186 | AE130: 0.553 | AF130: D | AG130: SW | AH130: Matching
A131: 63761 | B131: 06 | C131: BROWARD | D131: 3761 | E131: PARK LAKES ELEMENTARY SCHOOL | F131: 8 | G131: PREK-5 | H131: 1 | I131: Elementary | J131: Z | K131: NO | L131: NO | M131: Z | N131: NO | O131: 981 | P131: 24 | Q131: 17 | R131: 699 | S131: 52 | T131: 0 | U131: 0 | V131: 0 | W131: 6 | X131: BROWARD | Y131: 3761 | Z131: PARK LAKES ELEMENTARY SCHOOL | AA131: Elem. | AB131: 1000 | AC131: 935 | AD131: 0.935 | AE131: 0.935 | AF131: A | AG131: SW | AH131: Matching
A132: 61761 | B132: 06 | C132: BROWARD | D132: 1761 | E132: HOLLYWOOD PARK ELEMENTARY SCHOOL | F132: 8 | G132: PREK-5 | H132: 1 | I132: Elementary | J132: Z | K132: NO | L132: NO | M132: Z | N132: NO | O132: 365 | P132: 6 | Q132: 4 | R132: 241 | S132: 23 | T132: 0 | U132: 0 | V132: 0 | W132: 6 | X132: BROWARD | Y132: 1761 | Z132: HOLLYWOOD PARK ELEMENTARY SCHOOL | AA132: Elem. | AB132: 455 | AC132: 388 | AD132: 0.8527472527 | AE132: 0.8527 | AF132: A | AG132: SW | AH132: Matching
A133: 60751 | B133: 06 | C133: BROWARD | D133: 0751 | E133: POMPANO BEACH ELEMENTARY SCHOOL | F133: 8 | G133: PREK-5 | H133: 1 | I133: Elementary | J133: Z | K133: NO | L133: NO | M133: Z | N133: NO | O133: 411 | P133: 8 | Q133: 9 | R133: 318 | S133: 16 | T133: 0 | U133: 0 | V133: 0 | W133: 6 | X133: BROWARD | Y133: 751 | Z133: POMPANO BEACH ELEMENTARY SCHOOL | AA133: Elem. | AB133: 446 | AC133: 417 | AD133: 0.9349775785 | AE133: 0.9349 | AF133: A | AG133: SW | AH133: Matching
A134: 62561 | B134: 06 | C134: BROWARD | D134: 2561 | E134: CORAL SPRINGS MIDDLE SCHOOL | F134: 67 | G134: 6-8 | H134: 2 | I134: Middle/Junior | J134: Z | K134: NO | L134: NO | M134: Z | N134: NO | O134: 990 | P134: 50 | Q134: 9 | R134: 351 | S134: 45 | T134: 0 | U134: 0 | V134: 0 | W134: 6 | X134: BROWARD | Y134: 2561 | Z134: CORAL SPRINGS MIDDLE SCHOOL | AA134: Middle/Junior | AB134: 1172 | AC134: 586 | AD134: 0.5 | AE134: 0.5 | AF134: D | AG134: SW | AH134: Matching
A135: 65391 | B135: 06 | C135: BROWARD | D135: 5391 | E135: SOMERSET ACADEMY EAST PREPARATORY | F135: 18 | G135: K-6 | H135: 1 | I135: Elementary | J135: Z | K135: NO | L135: NO | M135: R | N135: YES | O135: 211 | P135: 17 | Q135: 3 | R135: 139 | S135: 30 | T135: 0 | U135: 0 | V135: 0 | W135: 6 | X135: BROWARD | Y135: 5391 | Z135: SOMERSET ACADEMY EAST PREPARATORY | AA135: Elem. | AB135: 217 | AC135: 191 | AD135: 0.8801843318 | AE135: 0.8801 | AF135: A | AG135: SW | AH135: Matching
A136: 63061 | B136: 06 | C136: BROWARD | D136: 3061 | E136: SANDPIPER ELEMENTARY SCHOOL | F136: 8 | G136: PREK-5 | H136: 1 | I136: Elementary | J136: Z | K136: NO | L136: NO | M136: Z | N136: NO | O136: 558 | P136: 29 | Q136: 6 | R136: 270 | S136: 41 | T136: 0 | U136: 0 | V136: 0 | W136: 6 | X136: BROWARD | Y136: 3061 | Z136: SANDPIPER ELEMENTARY SCHOOL | AA136: Elem. | AB136: 569 | AC136: 401 | AD136: 0.704745167 | AE136: 0.7047 | AF136: B | AG136: SW | AH136: Matching
A137: 65405 | B137: 06 | C137: BROWARD | D137: 5405 | E137: SOMERSET ACADEMY ELEMENTARY (MIRAMAR CAMPUS) | F137: 15 | G137: K-5 | H137: 1 | I137: Elementary | J137: Z | K137: NO | L137: NO | M137: R | N137: YES | O137: 525 | P137: 44 | Q137: 4 | R137: 211 | S137: 87 | T137: 0 | U137: 0 | V137: 0 | W137: 6 | X137: BROWARD | Y137: 5405 | Z137: SOMERSET ACADEMY ELEMENTARY (MIRAMAR CAMPUS) | AA137: Elem. | AB137: 523 | AC137: 349 | AD137: 0.6673040153 | AE137: 0.6673 | AF137: B | AG137: SW | AH137: Matching
A138: 60921 | B138: 06 | C138: BROWARD | D138: 0921 | E138: STEPHEN FOSTER ELEMENTARY SCHL | F138: 8 | G138: PREK-5 | H138: 1 | I138: Elementary | J138: Z | K138: NO | L138: NO | M138: Z | N138: NO | O138: 641 | P138: 17 | Q138: 7 | R138: 371 | S138: 63 | T138: 0 | U138: 0 | V138: 0 | W138: 6 | X138: BROWARD | Y138: 921 | Z138: STEPHEN FOSTER ELEMENTARY SCHL | AA138: Elem. | AB138: 625 | AC138: 509 | AD138: 0.8144 | AE138: 0.8144 | AF138: A | AG138: SW | AH138: Matching
A139: 60121 | B139: 06 | C139: BROWARD | D139: 0121 | E139: HOLLYWOOD CENTRAL ELEM. SCHOOL | F139: 8 | G139: PREK-5 | H139: 1 | I139: Elementary | J139: Z | K139: NO | L139: NO | M139: Z | N139: NO | O139: 330 | P139: 13 | Q139: 4 | R139: 192 | S139: 20 | T139: 0 | U139: 0 | V139: 0 | W139: 6 | X139: BROWARD | Y139: 121 | Z139: HOLLYWOOD CENTRAL ELEM. SCHOOL | AA139: Elem. | AB139: 413 | AC139: 297 | AD139: 0.7191283293 | AE139: 0.7191 | AF139: B | AG139: SW | AH139: Matching
A140: 60631 | B140: 06 | C140: BROWARD | D140: 0631 | E140: WESTWOOD HEIGHTS ELEMENTARY | F140: 8 | G140: PREK-5 | H140: 1 | I140: Elementary | J140: Z | K140: NO | L140: NO | M140: Z | N140: NO | O140: 478 | P140: 5 | Q140: 3 | R140: 365 | S140: 20 | T140: 0 | U140: 0 | V140: 0 | W140: 6 | X140: BROWARD | Y140: 631 | Z140: WESTWOOD HEIGHTS ELEMENTARY | AA140: Elem. | AB140: 563 | AC140: 518 | AD140: 0.920071048 | AE140: 0.92 | AF140: A | AG140: SW | AH140: Matching
A141: 62621 | B141: 06 | C141: BROWARD | D141: 2621 | E141: TAMARAC ELEMENTARY SCHOOL | F141: 8 | G141: PREK-5 | H141: 1 | I141: Elementary | J141: Z | K141: NO | L141: NO | M141: Z | N141: NO | O141: 561 | P141: 26 | Q141: 8 | R141: 355 | S141: 23 | T141: 0 | U141: 0 | V141: 0 | W141: 6 | X141: BROWARD | Y141: 2621 | Z141: TAMARAC ELEMENTARY SCHOOL | AA141: Elem. | AB141: 625 | AC141: 483 | AD141: 0.7728 | AE141: 0.7728 | AF141: A | AG141: SW | AH141: Matching
A142: 60531 | B142: 06 | C142: BROWARD | D142: 0531 | E142: MIRAMAR ELEMENTARY SCHOOL | F142: 8 | G142: PREK-5 | H142: 1 | I142: Elementary | J142: Z | K142: NO | L142: NO | M142: Z | N142: NO | O142: 430 | P142: 9 | Q142: 4 | R142: 312 | S142: 25 | T142: 0 | U142: 0 | V142: 0 | W142: 6 | X142: BROWARD | Y142: 531 | Z142: MIRAMAR ELEMENTARY SCHOOL | AA142: Elem. | AB142: 498 | AC142: 455 | AD142: 0.9136546185 | AE142: 0.9136 | AF142: A | AG142: SW | AH142: Matching
A143: 62011 | B143: 06 | C143: BROWARD | D143: 2011 | E143: CORAL COVE ELEMENTARY SCHOOL | F143: 8 | G143: PREK-5 | H143: 1 | I143: Elementary | J143: Z | K143: NO | L143: NO | M143: Z | N143: NO | O143: 494 | P143: 27 | Q143: 4 | R143: 202 | S143: 35 | T143: 0 | U143: 0 | V143: 0 | W143: 6 | X143: BROWARD | Y143: 2011 | Z143: CORAL COVE ELEMENTARY SCHOOL | AA143: Elem. | AB143: 608 | AC143: 304 | AD143: 0.5 | AE143: 0.5 | AF143: D | AG143: SW | AH143: Matching
A144: 63121 | B144: 06 | C144: BROWARD | D144: 3121 | E144: QUIET WATERS ELEMENTARY SCHOOL | F144: 8 | G144: PREK-5 | H144: 1 | I144: Elementary | J144: Z | K144: NO | L144: NO | M144: Z | N144: NO | O144: 1069 | P144: 51 | Q144: 10 | R144: 505 | S144: 49 | T144: 0 | U144: 0 | V144: 0 | W144: 6 | X144: BROWARD | Y144: 3121 | Z144: QUIET WATERS ELEMENTARY SCHOOL | AA144: Elem. | AB144: 1104 | AC144: 700 | AD144: 0.634057971 | AE144: 0.634 | AF144: B | AG144: SW | AH144: Matching
A145: 65271 | B145: 06 | C145: BROWARD | D145: 5271 | E145: CHARTER SCHOOL OF EXCELLENCE AT DAVIE | F145: 15 | G145: K-5 | H145: 1 | I145: Elementary | J145: Z | K145: NO | L145: NO | M145: R | N145: YES | O145: 293 | P145: 17 | Q145: 0 | R145: 125 | S145: 35 | T145: 0 | U145: 0 | V145: 0 | W145: 6 | X145: BROWARD | Y145: 5271 | Z145: CHARTER SCHOOL OF EXCELLENCE AT DAVIE | AA145: Elem. | AB145: 295 | AC145: 228 | AD145: 0.7728813559 | AE145: 0.7728 | AF145: A | AG145: SW | AH145: Matching
A146: 61091 | B146: 06 | C146: BROWARD | D146: 1091 | E146: LLOYD ESTATES ELEMENTARY SCHL | F146: 8 | G146: PREK-5 | H146: 1 | I146: Elementary | J146: Z | K146: NO | L146: NO | M146: Z | N146: NO | O146: 448 | P146: 5 | Q146: 3 | R146: 311 | S146: 39 | T146: 0 | U146: 0 | V146: 0 | W146: 6 | X146: BROWARD | Y146: 1091 | Z146: LLOYD ESTATES ELEMENTARY SCHL | AA146: Elem. | AB146: 531 | AC146: 500 | AD146: 0.9416195857 | AE146: 0.9416 | AF146: A | AG146: SW | AH146: Matching
A147: 60341 | B147: 06 | C147: BROWARD | D147: 0341 | E147: MARY M BETHUNE ELEMENTARY SCHOOL | F147: 8 | G147: PREK-5 | H147: 1 | I147: Elementary | J147: Z | K147: NO | L147: NO | M147: Z | N147: NO | O147: 350 | P147: 5 | Q147: 7 | R147: 282 | S147: 12 | T147: 0 | U147: 0 | V147: 0 | W147: 6 | X147: BROWARD | Y147: 341 | Z147: BETHUNE MARY M ELEMENTARY SCHOOL | AA147: Elem. | AB147: 367 | AC147: 349 | AD147: 0.9509536785 | AE147: 0.9509 | AF147: A | AG147: SW | AH147: Matching
A148: 62721 | B148: 06 | C148: BROWARD | D148: 2721 | E148: RAMBLEWOOD ELEMENTARY SCHOOL | F148: 8 | G148: PREK-5 | H148: 1 | I148: Elementary | J148: Z | K148: NO | L148: NO | M148: Z | N148: NO | O148: 690 | P148: 46 | Q148: 10 | R148: 302 | S148: 57 | T148: 0 | U148: 0 | V148: 0 | W148: 6 | X148: BROWARD | Y148: 2721 | Z148: RAMBLEWOOD ELEMENTARY SCHOOL | AA148: Elem. | AB148: 778 | AC148: 469 | AD148: 0.6028277635 | AE148: 0.6028 | AF148: D | AG148: SW | AH148: Matching
A149: 65054 | B149: 06 | C149: BROWARD | D149: 5054 | E149: SOMERSET ACADEMY MIRAMAR SOUTH | F149: 15 | G149: K-5 | H149: 1 | I149: Elementary | J149: Z | K149: NO | L149: NO | M149: R | N149: YES | O149: 218 | P149: 19 | Q149: 3 | R149: 60 | S149: 35 | T149: 0 | U149: 0 | V149: 0 | W149: 6 | X149: BROWARD | Y149: 5054 | Z149: SOMERSET ACADEMY MIRAMAR SOUTH | AA149: Elem. | AB149: 211 | AC149: 110 | AD149: 0.5213270142 | AE149: 0.5213 | AF149: D | AG149: SW | AH149: Matching
A150: 63051 | B150: 06 | C150: BROWARD | D150: 3051 | E150: FOREST GLEN MIDDLE SCHOOL | F150: 67 | G150: 6-8 | H150: 2 | I150: Middle/Junior | J150: Z | K150: NO | L150: NO | M150: Z | N150: NO | O150: 1116 | P150: 45 | Q150: 19 | R150: 526 | S150: 75 | T150: 0 | U150: 0 | V150: 0 | W150: 6 | X150: BROWARD | Y150: 3051 | Z150: FOREST GLEN MIDDLE SCHOOL | AA150: Middle/Junior | AB150: 1306 | AC150: 804 | AD150: 0.6156202144 | AE150: 0.6156 | AF150: D | AG150: SW | AH150: Matching
A151: 65177 | B151: 06 | C151: BROWARD | D151: 5177 | E151: INNOVATION CHARTER SCHOOL | F151: 15 | G151: K-5 | H151: 1 | I151: Elementary | J151: Z | K151: NO | L151: NO | M151: R | N151: YES | O151: 444 | P151: 0 | Q151: 0 | R151: 0 | S151: 0 | T151: 0 | U151: 268 | V151: 2 | W151: 6 | X151: BROWARD | Y151: 5177 | Z151: INNOVATION CHARTER SCHOOL | AA151: Elem. | AB151: 442 | AC151: 442 | AD151: 1 | AE151: 0.8579 | AF151: A | AG151: SW | AH151: Matching
A152: 65371 | B152: 06 | C152: BROWARD | D152: 5371 | E152: NORTH BROWARD ACADEMY OF EXCELLENCE MIDDLE | F152: 67 | G152: 6-8 | H152: 2 | I152: Middle/Junior | J152: Z | K152: NO | L152: NO | M152: R | N152: YES | O152: 346 | P152: 24 | Q152: 0 | R152: 168 | S152: 47 | T152: 0 | U152: 0 | V152: 0 | W152: 6 | X152: BROWARD | Y152: 5371 | Z152: NORTH BROWARD ACADEMY OF EXCELLENCE MIDDLE | AA152: Middle/Junior | AB152: 353 | AC152: 222 | AD152: 0.6288951841 | AE152: 0.6288 | AF152: B | AG152: SW | AH152: Matching
A153: 61841 | B153: 06 | C153: BROWARD | D153: 1841 | E153: MIRROR LAKE ELEMENTARY SCHOOL | F153: 8 | G153: PREK-5 | H153: 1 | I153: Elementary | J153: Z | K153: NO | L153: NO | M153: Z | N153: NO | O153: 556 | P153: 20 | Q153: 3 | R153: 324 | S153: 20 | T153: 0 | U153: 0 | V153: 0 | W153: 6 | X153: BROWARD | Y153: 1841 | Z153: MIRROR LAKE ELEMENTARY SCHOOL | AA153: Elem. | AB153: 569 | AC153: 407 | AD153: 0.7152899824 | AE153: 0.7152 | AF153: B | AG153: SW | AH153: Matching
A154: 60891 | B154: 06 | C154: BROWARD | D154: 0891 | E154: SANDERS PARK ELEMENTARY SCHOOL | F154: 8 | G154: PREK-5 | H154: 1 | I154: Elementary | J154: Z | K154: NO | L154: NO | M154: Z | N154: NO | O154: 401 | P154: 4 | Q154: 2 | R154: 325 | S154: 18 | T154: 0 | U154: 0 | V154: 0 | W154: 6 | X154: BROWARD | Y154: 891 | Z154: SANDERS PARK ELEMENTARY SCHOOL | AA154: Elem. | AB154: 438 | AC154: 417 | AD154: 0.9520547945 | AE154: 0.952 | AF154: A | AG154: SW | AH154: Matching
A155: 60881 | B155: 06 | C155: BROWARD | D155: 0881 | E155: NEW RIVER MIDDLE SCHOOL | F155: 67 | G155: 6-8 | H155: 2 | I155: Middle/Junior | J155: Z | K155: NO | L155: NO | M155: Z | N155: NO | O155: 1535 | P155: 45 | Q155: 10 | R155: 866 | S155: 124 | T155: 0 | U155: 0 | V155: 0 | W155: 6 | X155: BROWARD | Y155: 881 | Z155: NEW RIVER MIDDLE SCHOOL | AA155: Middle/Junior | AB155: 1628 | AC155: 1293 | AD155: 0.7942260442 | AE155: 0.7942 | AF155: A | AG155: SW | AH155: Matching
A156: 60331 | B156: 06 | C156: BROWARD | D156: 0331 | E156: COLLINS ELEMENTARY SCHOOL | F156: 8 | G156: PREK-5 | H156: 1 | I156: Elementary | J156: Z | K156: NO | L156: NO | M156: Z | N156: NO | O156: 283 | P156: 2 | Q156: 1 | R156: 220 | S156: 13 | T156: 0 | U156: 0 | V156: 0 | W156: 6 | X156: BROWARD | Y156: 331 | Z156: COLLINS ELEMENTARY SCHOOL | AA156: Elem. | AB156: 305 | AC156: 282 | AD156: 0.9245901639 | AE156: 0.9245 | AF156: A | AG156: SW | AH156: Matching
A157: 61871 | B157: 06 | C157: BROWARD | D157: 1871 | E157: CRYSTAL LAKE MIDDLE SCHOOL | F157: 67 | G157: 6-8 | H157: 2 | I157: Middle/Junior | J157: Z | K157: NO | L157: NO | M157: Z | N157: NO | O157: 1171 | P157: 20 | Q157: 12 | R157: 725 | S157: 79 | T157: 0 | U157: 0 | V157: 0 | W157: 6 | X157: BROWARD | Y157: 1871 | Z157: CRYSTAL LAKE MIDDLE SCHOOL | AA157: Middle/Junior | AB157: 1345 | AC157: 1109 | AD157: 0.824535316 | AE157: 0.8245 | AF157: A | AG157: SW | AH157: Matching
A158: 61881 | B158: 06 | C158: BROWARD | D158: 1881 | E158: PINES MIDDLE SCHOOL | F158: 67 | G158: 6-8 | H158: 2 | I158: Middle/Junior | J158: Z | K158: NO | L158: NO | M158: Z | N158: NO | O158: 657 | P158: 24 | Q158: 4 | R158: 326 | S158: 47 | T158: 0 | U158: 0 | V158: 0 | W158: 6 | X158: BROWARD | Y158: 1881 | Z158: PINES MIDDLE SCHOOL | AA158: Middle/Junior | AB158: 823 | AC158: 612 | AD158: 0.7436208991 | AE158: 0.7436 | AF158: B | AG158: SW | AH158: Matching
A159: 65234 | B159: 06 | C159: BROWARD | D159: 5234 | E159: CHAMPIONSHIP ACAD OF DISTINCTION WEST BROWARD | F159: 25 | G159: K-8 | H159: 4 | I159: Combination Elementary & Secondary | J159: Z | K159: NO | L159: NO | M159: R | N159: YES | O159: 251 | P159: 0 | Q159: 0 | R159: 0 | S159: 0 | T159: 0 | U159: 245 | V159: 0 | W159: 6 | X159: BROWARD | Y159: 5234 | Z159: CHAMPIONSHIP ACAD OF DISTINCTION WEST BROWARD | AA159: Combo. Elem. & Second. | AB159: 325 | AC159: 255 | AD159: 0.7846153846 | AE159: 0.7846 | AF159: A | AG159: SW | AH159: Matching
A160: 62531 | B160: 06 | C160: BROWARD | D160: 2531 | E160: HORIZON ELEMENTARY SCHOOL | F160: 8 | G160: PREK-5 | H160: 1 | I160: Elementary | J160: Z | K160: NO | L160: NO | M160: Z | N160: NO | O160: 499 | P160: 12 | Q160: 5 | R160: 323 | S160: 16 | T160: 0 | U160: 0 | V160: 0 | W160: 6 | X160: BROWARD | Y160: 2531 | Z160: HORIZON ELEMENTARY SCHOOL | AA160: Elem. | AB160: 524 | AC160: 420 | AD160: 0.8015267176 | AE160: 0.8015 | AF160: A | AG160: SW | AH160: Matching
A161: 62021 | B161: 06 | C161: BROWARD | D161: 2021 | E161: GLADES MIDDLE SCHOOL | F161: 67 | G161: 6-8 | H161: 2 | I161: Middle/Junior | J161: Z | K161: NO | L161: NO | M161: Z | N161: NO | O161: 1310 | P161: 71 | Q161: 7 | R161: 445 | S161: 72 | T161: 0 | U161: 0 | V161: 0 | W161: 6 | X161: BROWARD | Y161: 2021 | Z161: GLADES MIDDLE SCHOOL | AA161: Middle/Junior | AB161: 1486 | AC161: 781 | AD161: 0.5255720054 | AE161: 0.5255 | AF161: D | AG161: SW | AH161: Matching
A162: 63751 | B162: 06 | C162: BROWARD | D162: 3751 | E162: DOLPHIN BAY ELEMENTARY SCHOOL | F162: 8 | G162: PREK-5 | H162: 1 | I162: Elementary | J162: Z | K162: NO | L162: NO | M162: Z | N162: NO | O162: 583 | P162: 46 | Q162: 0 | R162: 203 | S162: 65 | T162: 0 | U162: 0 | V162: 0 | W162: 6 | X162: BROWARD | Y162: 3751 | Z162: DOLPHIN BAY ELEMENTARY SCHOOL | AA162: Elem. | AB162: 637 | AC162: 348 | AD162: 0.546310832 | AE162: 0.5463 | AF162: D | AG162: SW | AH162: Matching
A163: 61791 | B163: 06 | C163: BROWARD | D163: 1791 | E163: APOLLO MIDDLE SCHOOL | F163: 67 | G163: 6-8 | H163: 2 | I163: Middle/Junior | J163: Z | K163: NO | L163: NO | M163: Z | N163: NO | O163: 1256 | P163: 51 | Q163: 20 | R163: 697 | S163: 73 | T163: 0 | U163: 0 | V163: 0 | W163: 6 | X163: BROWARD | Y163: 1791 | Z163: APOLLO MIDDLE SCHOOL | AA163: Middle/Junior | AB163: 1398 | AC163: 1121 | AD163: 0.8018597997 | AE163: 0.8018 | AF163: A | AG163: SW | AH163: Matching
A164: 60231 | B164: 06 | C164: BROWARD | D164: 0231 | E164: COLBERT ELEMENTARY SCHOOL | F164: 15 | G164: K-5 | H164: 1 | I164: Elementary | J164: Z | K164: NO | L164: NO | M164: Z | N164: NO | O164: 555 | P164: 17 | Q164: 6 | R164: 379 | S164: 35 | T164: 0 | U164: 0 | V164: 0 | W164: 6 | X164: BROWARD | Y164: 231 | Z164: COLBERT ELEMENTARY SCHOOL | AA164: Elem. | AB164: 625 | AC164: 567 | AD164: 0.9072 | AE164: 0.9072 | AF164: A | AG164: SW | AH164: Matching
A165: 65710 | B165: 06 | C165: BROWARD | D165: 5710 | E165: RENAISSANCE CHARTER SCHOOLS AT PINES | F165: 25 | G165: K-8 | H165: 4 | I165: Combination Elementary & Secondary | J165: Z | K165: NO | L165: NO | M165: R | N165: YES | O165: 850 | P165: 62 | Q165: 2 | R165: 428 | S165: 125 | T165: 0 | U165: 0 | V165: 0 | W165: 6 | X165: BROWARD | Y165: 5710 | Z165: RENAISSANCE CHARTER SCHOOLS AT PINES | AA165: Combo. Elem. & Second. | AB165: 924 | AC165: 662 | AD165: 0.7164502165 | AE165: 0.7164 | AF165: B | AG165: SW | AH165: Matching
A166: 62231 | B166: 06 | C166: BROWARD | D166: 2231 | E166: NORTH LAUDERDALE PK-8 | F166: 27 | G166: PREK-8 | H166: 4 | I166: Combination Elementary & Secondary | J166: Z | K166: NO | L166: NO | M166: Z | N166: NO | O166: 621 | P166: 4 | Q166: 4 | R166: 465 | S166: 14 | T166: 0 | U166: 0 | V166: 0 | W166: 6 | X166: BROWARD | Y166: 2231 | Z166: NORTH LAUDERDALE PK-8 | AA166: Combo. Elem. & Second. | AB166: 706 | AC166: 643 | AD166: 0.9107648725 | AE166: 0.9107 | AF166: A | AG166: SW | AH166: Matching
A167: 65381 | B167: 06 | C167: BROWARD | D167: 5381 | E167: PARAGON ACADEMY OF TECHNOLOGY | F167: 69 | G167: 6-12 | H167: 3 | I167: Senior High | J167: Z | K167: NO | L167: NO | M167: R | N167: YES | O167: 133 | P167: 0 | Q167: 0 | R167: 0 | S167: 0 | T167: 0 | U167: 68 | V167: 0 | W167: 6 | X167: BROWARD | Y167: 5381 | Z167: PARAGON ACADEMY OF TECHNOLOGY | AA167: Senior High | AB167: 140 | AC167: 58 | AD167: 0.4142857143 | AE167: 0.6628 | AF167: B | AG167: SW | AH167: Matching
A168: 60511 | B168: 06 | C168: BROWARD | D168: 0511 | E168: WATKINS ELEMENTARY SCHOOL | F168: 15 | G168: K-5 | H168: 1 | I168: Elementary | J168: Z | K168: NO | L168: NO | M168: Z | N168: NO | O168: 387 | P168: 1 | Q168: 2 | R168: 297 | S168: 22 | T168: 0 | U168: 0 | V168: 0 | W168: 6 | X168: BROWARD | Y168: 511 | Z168: WATKINS ELEMENTARY SCHOOL | AA168: Elem. | AB168: 498 | AC168: 455 | AD168: 0.9136546185 | AE168: 0.9136 | AF168: A | AG168: SW | AH168: Matching
A169: 65717 | B169: 06 | C169: BROWARD | D169: 5717 | E169: SOUTH BROWARD MONTESSORI CHARTER SCHOOL | F169: 15 | G169: K-5 | H169: 1 | I169: Elementary | J169: Z | K169: NO | L169: NO | M169: R | N169: YES | O169: 169 | P169: 11 | Q169: 0 | R169: 90 | S169: 21 | T169: 0 | U169: 0 | V169: 0 | W169: 6 | X169: BROWARD | Y169: 5717 | Z169: SOUTH BROWARD MONTESSORI CHARTER SCHOOL | AA169: Elem. | AB169: 165 | AC169: 113 | AD169: 0.6848484848 | AE169: 0.6848 | AF169: B | AG169: SW | AH169: Matching
A170: 65010 | B170: 06 | C170: BROWARD | D170: 5010 | E170: FRANKLIN ACADEMY SUNRISE | F170: 25 | G170: K-8 | H170: 4 | I170: Combination Elementary & Secondary | J170: Z | K170: NO | L170: NO | M170: R | N170: YES | O170: 1383 | P170: 122 | Q170: 0 | R170: 423 | S170: 189 | T170: 0 | U170: 0 | V170: 0 | W170: 6 | X170: BROWARD | Y170: 5010 | Z170: FRANKLIN ACADEMY SUNRISE | AA170: Combo. Elem. & Second. | AB170: 1391 | AC170: 778 | AD170: 0.559309849 | AE170: 0.5593 | AF170: D | AG170: SW | AH170: Matching
A171: 61321 | B171: 06 | C171: BROWARD | D171: 1321 | E171: SHERIDAN PARK ELEMENTARY SCHL | F171: 8 | G171: PREK-5 | H171: 1 | I171: Elementary | J171: Z | K171: NO | L171: NO | M171: Z | N171: NO | O171: 551 | P171: 10 | Q171: 10 | R171: 294 | S171: 32 | T171: 0 | U171: 0 | V171: 0 | W171: 6 | X171: BROWARD | Y171: 1321 | Z171: SHERIDAN PARK ELEMENTARY SCHL | AA171: Elem. | AB171: 622 | AC171: 452 | AD171: 0.7266881029 | AE171: 0.7266 | AF171: B | AG171: SW | AH171: Matching
A172: 65171 | B172: 06 | C172: BROWARD | D172: 5171 | E172: IMAGINE CHARTER SCHOOL AT N LAUDERDALE ELEM | F172: 15 | G172: K-5 | H172: 1 | I172: Elementary | J172: Z | K172: NO | L172: NO | M172: R | N172: YES | O172: 443 | P172: 30 | Q172: 2 | R172: 207 | S172: 171 | T172: 0 | U172: 0 | V172: 0 | W172: 6 | X172: BROWARD | Y172: 5171 | Z172: IMAGINE CHARTER SCHOOL AT N LAUDERDALE ELEM | AA172: Elem. | AB172: 533 | AC172: 476 | AD172: 0.8930581614 | AE172: 0.893 | AF172: A | AG172: SW | AH172: Matching
A173: 60911 | B173: 06 | C173: BROWARD | D173: 0911 | E173: DEERFIELD BEACH MIDDLE SCHOOL | F173: 67 | G173: 6-8 | H173: 2 | I173: Middle/Junior | J173: Z | K173: NO | L173: NO | M173: Z | N173: NO | O173: 1155 | P173: 30 | Q173: 6 | R173: 659 | S173: 92 | T173: 0 | U173: 0 | V173: 0 | W173: 6 | X173: BROWARD | Y173: 911 | Z173: DEERFIELD BEACH MIDDLE SCHOOL | AA173: Middle/Junior | AB173: 1207 | AC173: 1000 | AD173: 0.8285004143 | AE173: 0.8285 | AF173: A | AG173: SW | AH173: Matching
A174: 62711 | B174: 06 | C174: BROWARD | D174: 2711 | E174: RAMBLEWOOD MIDDLE SCHOOL | F174: 67 | G174: 6-8 | H174: 2 | I174: Middle/Junior | J174: Z | K174: NO | L174: NO | M174: Z | N174: NO | O174: 1147 | P174: 54 | Q174: 13 | R174: 470 | S174: 63 | T174: 0 | U174: 0 | V174: 0 | W174: 6 | X174: BROWARD | Y174: 2711 | Z174: RAMBLEWOOD MIDDLE SCHOOL | AA174: Middle/Junior | AB174: 1170 | AC174: 671 | AD174: 0.5735042735 | AE174: 0.5735 | AF174: D | AG174: SW | AH174: Matching
A175: 63371 | B175: 06 | C175: BROWARD | D175: 3371 | E175: SILVER LAKES ELEMENTARY SCHOOL | F175: 8 | G175: PREK-5 | H175: 1 | I175: Elementary | J175: Z | K175: NO | L175: NO | M175: Z | N175: NO | O175: 341 | P175: 23 | Q175: 5 | R175: 134 | S175: 18 | T175: 0 | U175: 0 | V175: 0 | W175: 6 | X175: BROWARD | Y175: 3371 | Z175: SILVER LAKES ELEMENTARY SCHOOL | AA175: Elem. | AB175: 390 | AC175: 228 | AD175: 0.5846153846 | AE175: 0.5846 | AF175: D | AG175: SW | AH175: Matching
A176: 65224 | B176: 06 | C176: BROWARD | D176: 5224 | E176: SOMERSET ACADEMY KEY CHARTER HIGH SCHOOL | F176: 85 | G176: 9-12 | H176: 3 | I176: Senior High | J176: Z | K176: NO | L176: NO | M176: R | N176: YES | O176: 219 | P176: 3 | Q176: 0 | R176: 94 | S176: 67 | T176: 0 | U176: 0 | V176: 0 | W176: 6 | X176: BROWARD | Y176: 5224 | Z176: SOMERSET ACADEMY KEY CHARTER HIGH SCHOOL | AA176: Senior High | AB176: 185 | AC176: 180 | AD176: 0.972972973 | AE176: 0.9729 | AF176: A | AG176: SW | AH176: Matching
A177: 61851 | B177: 06 | C177: BROWARD | D177: 1851 | E177: ROYAL PALM ELEMENTARY SCHOOL | F177: 8 | G177: PREK-5 | H177: 1 | I177: Elementary | J177: Z | K177: NO | L177: NO | M177: Z | N177: NO | O177: 684 | P177: 4 | Q177: 5 | R177: 545 | S177: 39 | T177: 0 | U177: 0 | V177: 0 | W177: 6 | X177: BROWARD | Y177: 1851 | Z177: ROYAL PALM ELEMENTARY SCHOOL | AA177: Elem. | AB177: 714 | AC177: 692 | AD177: 0.9691876751 | AE177: 0.9691 | AF177: A | AG177: SW | AH177: Matching
A178: 65116 | B178: 06 | C178: BROWARD | D178: 5116 | E178: BRIDGEPREP ACADEMY OF HOLLYWOOD HILLS | F178: 15 | G178: K-5 | H178: 1 | I178: Elementary | J178: Z | K178: NO | L178: NO | M178: R | N178: YES | O178: 342 | P178: 36 | Q178: 3 | R178: 117 | S178: 71 | T178: 0 | U178: 0 | V178: 0 | W178: 6 | X178: BROWARD | Y178: 5116 | Z178: BRIDGEPREP ACADEMY OF HOLLYWOOD HILLS | AA178: Elem. | AB178: 304 | AC178: 194 | AD178: 0.6381578947 | AE178: 0.6381 | AF178: B | AG178: SW | AH178: Matching
A179: 61951 | B179: 06 | C179: BROWARD | D179: 1951 | E179: PARK RIDGE ELEMENTARY SCHOOL | F179: 8 | G179: PREK-5 | H179: 1 | I179: Elementary | J179: Z | K179: NO | L179: NO | M179: Z | N179: NO | O179: 558 | P179: 7 | Q179: 7 | R179: 357 | S179: 51 | T179: 0 | U179: 0 | V179: 0 | W179: 6 | X179: BROWARD | Y179: 1951 | Z179: PARK RIDGE ELEMENTARY SCHOOL | AA179: Elem. | AB179: 561 | AC179: 499 | AD179: 0.889483066 | AE179: 0.8894 | AF179: A | AG179: SW | AH179: Matching
A180: 60831 | B180: 06 | C180: BROWARD | D180: 0831 | E180: LAKE FOREST ELEMENTARY SCHOOL | F180: 8 | G180: PREK-5 | H180: 1 | I180: Elementary | J180: Z | K180: NO | L180: NO | M180: Z | N180: NO | O180: 539 | P180: 12 | Q180: 3 | R180: 392 | S180: 24 | T180: 0 | U180: 0 | V180: 0 | W180: 6 | X180: BROWARD | Y180: 831 | Z180: LAKE FOREST ELEMENTARY SCHOOL | AA180: Elem. | AB180: 605 | AC180: 566 | AD180: 0.9355371901 | AE180: 0.9355 | AF180: A | AG180: SW | AH180: Matching
A181: 65420 | B181: 06 | C181: BROWARD | D181: 5420 | E181: RISE ACADEMY SCHOOL OF SCIENCE AND TECHNOLOGY | F181: 25 | G181: K-8 | H181: 4 | I181: Combination Elementary & Secondary | J181: Z | K181: NO | L181: NO | M181: R | N181: YES | O181: 319 | P181: 11 | Q181: 3 | R181: 119 | S181: 79 | T181: 0 | U181: 0 | V181: 0 | W181: 6 | X181: BROWARD | Y181: 5420 | Z181: RISE ACADEMY SCHOOL OF SCIENCE AND TECHNOLOGY | AA181: Combo. Elem. & Second. | AB181: 328 | AC181: 221 | AD181: 0.6737804878 | AE181: 0.6737 | AF181: B | AG181: SW | AH181: Matching
A182: 65002 | B182: 06 | C182: BROWARD | D182: 5002 | E182: SOMERSET ACADEMY VILLAGE CHARTER MIDDLE | F182: 67 | G182: 6-8 | H182: 2 | I182: Middle/Junior | J182: Z | K182: NO | L182: NO | M182: R | N182: YES | O182: 157 | P182: 8 | Q182: 2 | R182: 105 | S182: 34 | T182: 0 | U182: 0 | V182: 0 | W182: 6 | X182: BROWARD | Y182: 5002 | Z182: SOMERSET ACADEMY VILLAGE CHARTER MIDDLE | AA182: Middle/Junior | AB182: 154 | AC182: 138 | AD182: 0.8961038961 | AE182: 0.8961 | AF182: A | AG182: SW | AH182: Matching
A183: 61311 | B183: 06 | C183: BROWARD | D183: 1311 | E183: NOVA MIDDLE SCHOOL | F183: 67 | G183: 6-8 | H183: 2 | I183: Middle/Junior | J183: Z | K183: NO | L183: NO | M183: Z | N183: NO | O183: 1256 | P183: 76 | Q183: 10 | R183: 590 | S183: 100 | T183: 0 | U183: 0 | V183: 0 | W183: 6 | X183: BROWARD | Y183: 1311 | Z183: NOVA MIDDLE SCHOOL | AA183: Middle/Junior | AB183: 1259 | AC183: 871 | AD183: 0.6918189039 | AE183: 0.6918 | AF183: B | AG183: SW | AH183: Matching
A184: 62511 | B184: 06 | C184: BROWARD | D184: 2511 | E184: ATLANTIC WEST ELEMENTARY SCHL | F184: 8 | G184: PREK-5 | H184: 1 | I184: Elementary | J184: Z | K184: NO | L184: NO | M184: Z | N184: NO | O184: 552 | P184: 19 | Q184: 13 | R184: 313 | S184: 44 | T184: 0 | U184: 0 | V184: 0 | W184: 6 | X184: BROWARD | Y184: 2511 | Z184: ATLANTIC WEST ELEMENTARY SCHL | AA184: Elem. | AB184: 617 | AC184: 526 | AD184: 0.8525121556 | AE184: 0.8525 | AF184: A | AG184: SW | AH184: Matching
A185: 63741 | B185: 06 | C185: BROWARD | D185: 3741 | E185: COCONUT PALM ELEMENTARY SCHOOL | F185: 8 | G185: PREK-5 | H185: 1 | I185: Elementary | J185: Z | K185: NO | L185: NO | M185: Z | N185: NO | O185: 531 | P185: 14 | Q185: 8 | R185: 278 | S185: 20 | T185: 0 | U185: 0 | V185: 0 | W185: 6 | X185: BROWARD | Y185: 3741 | Z185: COCONUT PALM ELEMENTARY SCHOOL | AA185: Elem. | AB185: 688 | AC185: 462 | AD185: 0.6715116279 | AE185: 0.6715 | AF185: B | AG185: SW | AH185: Matching
A186: 63911 | B186: 06 | C186: BROWARD | D186: 3911 | E186: NEW RENAISSANCE MIDDLE SCHOOL | F186: 67 | G186: 6-8 | H186: 2 | I186: Middle/Junior | J186: Z | K186: NO | L186: NO | M186: Z | N186: NO | O186: 1093 | P186: 49 | Q186: 7 | R186: 630 | S186: 89 | T186: 0 | U186: 0 | V186: 0 | W186: 6 | X186: BROWARD | Y186: 3911 | Z186: NEW RENAISSANCE MIDDLE SCHOOL | AA186: Middle/Junior | AB186: 1228 | AC186: 1007 | AD186: 0.8200325733 | AE186: 0.82 | AF186: A | AG186: SW | AH186: Matching
A187: 60811 | B187: 06 | C187: BROWARD | D187: 0811 | E187: BROADVIEW ELEMENTARY SCHOOL | F187: 8 | G187: PREK-5 | H187: 1 | I187: Elementary | J187: Z | K187: NO | L187: NO | M187: Z | N187: NO | O187: 660 | P187: 14 | Q187: 9 | R187: 481 | S187: 38 | T187: 0 | U187: 0 | V187: 0 | W187: 6 | X187: BROWARD | Y187: 811 | Z187: BROADVIEW ELEMENTARY SCHOOL | AA187: Elem. | AB187: 684 | AC187: 609 | AD187: 0.8903508772 | AE187: 0.8903 | AF187: A | AG187: SW | AH187: Matching
A188: 62631 | B188: 06 | C188: BROWARD | D188: 2631 | E188: FOREST HILLS ELEMENTARY SCHOOL | F188: 8 | G188: PREK-5 | H188: 1 | I188: Elementary | J188: Z | K188: NO | L188: NO | M188: Z | N188: NO | O188: 622 | P188: 32 | Q188: 15 | R188: 346 | S188: 53 | T188: 0 | U188: 0 | V188: 0 | W188: 6 | X188: BROWARD | Y188: 2631 | Z188: FOREST HILLS ELEMENTARY SCHOOL | AA188: Elem. | AB188: 614 | AC188: 492 | AD188: 0.8013029316 | AE188: 0.8013 | AF188: A | AG188: SW | AH188: Matching
A189: 60901 | B189: 06 | C189: BROWARD | D189: 0901 | E189: CRESTHAVEN ELEMENTARY SCHOOL | F189: 8 | G189: PREK-5 | H189: 1 | I189: Elementary | J189: Z | K189: NO | L189: NO | M189: Z | N189: NO | O189: 434 | P189: 10 | Q189: 5 | R189: 304 | S189: 37 | T189: 0 | U189: 0 | V189: 0 | W189: 6 | X189: BROWARD | Y189: 901 | Z189: CRESTHAVEN ELEMENTARY SCHOOL | AA189: Elem. | AB189: 487 | AC189: 445 | AD189: 0.9137577002 | AE189: 0.9137 | AF189: A | AG189: SW | AH189: Matching
A190: 60461 | B190: 06 | C190: BROWARD | D190: 0461 | E190: OAKRIDGE ELEMENTARY SCHOOL | F190: 8 | G190: PREK-5 | H190: 1 | I190: Elementary | J190: Z | K190: NO | L190: NO | M190: Z | N190: NO | O190: 440 | P190: 12 | Q190: 2 | R190: 314 | S190: 28 | T190: 0 | U190: 0 | V190: 0 | W190: 6 | X190: BROWARD | Y190: 461 | Z190: OAKRIDGE ELEMENTARY SCHOOL | AA190: Elem. | AB190: 448 | AC190: 401 | AD190: 0.8950892857 | AE190: 0.895 | AF190: A | AG190: SW | AH190: Matching
A191: 60101 | B191: 06 | C191: BROWARD | D191: 0101 | E191: DANIA ELEMENTARY SCHOOL | F191: 8 | G191: PREK-5 | H191: 1 | I191: Elementary | J191: Z | K191: NO | L191: NO | M191: Z | N191: NO | O191: 382 | P191: 14 | Q191: 0 | R191: 246 | S191: 23 | T191: 0 | U191: 0 | V191: 0 | W191: 6 | X191: BROWARD | Y191: 101 | Z191: DANIA ELEMENTARY SCHOOL | AA191: Elem. | AB191: 453 | AC191: 367 | AD191: 0.8101545254 | AE191: 0.8101 | AF191: A | AG191: SW | AH191: Matching
A192: 60161 | B192: 06 | C192: BROWARD | D192: 0161 | E192: WEST HOLLYWOOD ELEMENTARY SCHOOL | F192: 8 | G192: PREK-5 | H192: 1 | I192: Elementary | J192: Z | K192: NO | L192: NO | M192: Z | N192: NO | O192: 411 | P192: 10 | Q192: 4 | R192: 265 | S192: 23 | T192: 0 | U192: 0 | V192: 0 | W192: 6 | X192: BROWARD | Y192: 161 | Z192: WEST HOLLYWOOD ELEMENTARY SCHOOL | AA192: Elem. | AB192: 443 | AC192: 395 | AD192: 0.8916478555 | AE192: 0.8916 | AF192: A | AG192: SW | AH192: Matching
A193: 60031 | B193: 06 | C193: BROWARD | D193: 0031 | E193: OAKLAND PARK ELEMENTARY SCHOOL | F193: 8 | G193: PREK-5 | H193: 1 | I193: Elementary | J193: Z | K193: NO | L193: NO | M193: Z | N193: NO | O193: 501 | P193: 15 | Q193: 5 | R193: 307 | S193: 46 | T193: 0 | U193: 0 | V193: 0 | W193: 6 | X193: BROWARD | Y193: 31 | Z193: OAKLAND PARK ELEMENTARY SCHOOL | AA193: Elem. | AB193: 551 | AC193: 501 | AD193: 0.9092558984 | AE193: 0.9092 | AF193: A | AG193: SW | AH193: Matching
A194: 61131 | B194: 06 | C194: BROWARD | D194: 1131 | E194: PALMVIEW ELEMENTARY SCHOOL | F194: 8 | G194: PREK-5 | H194: 1 | I194: Elementary | J194: Z | K194: NO | L194: NO | M194: Z | N194: NO | O194: 511 | P194: 8 | Q194: 4 | R194: 345 | S194: 33 | T194: 0 | U194: 0 | V194: 0 | W194: 6 | X194: BROWARD | Y194: 1131 | Z194: PALMVIEW ELEMENTARY SCHOOL | AA194: Elem. | AB194: 590 | AC194: 558 | AD194: 0.9457627119 | AE194: 0.9457 | AF194: A | AG194: SW | AH194: Matching
A195: 60501 | B195: 06 | C195: BROWARD | D195: 0501 | E195: BROWARD ESTATES ELEMENTARY SCHOOL | F195: 8 | G195: PREK-5 | H195: 1 | I195: Elementary | J195: Z | K195: NO | L195: NO | M195: Z | N195: NO | O195: 293 | P195: 1 | Q195: 2 | R195: 231 | S195: 19 | T195: 0 | U195: 0 | V195: 0 | W195: 6 | X195: BROWARD | Y195: 501 | Z195: BROWARD ESTATES ELEMENTARY SCHOOL | AA195: Elem. | AB195: 330 | AC195: 320 | AD195: 0.9696969697 | AE195: 0.9696 | AF195: A | AG195: SW | AH195: Matching
A196: 60271 | B196: 06 | C196: BROWARD | D196: 0271 | E196: DILLARD ELEMENTARY SCHOOL | F196: 8 | G196: PREK-5 | H196: 1 | I196: Elementary | J196: Z | K196: NO | L196: NO | M196: Z | N196: NO | O196: 624 | P196: 6 | Q196: 3 | R196: 530 | S196: 19 | T196: 0 | U196: 0 | V196: 0 | W196: 6 | X196: BROWARD | Y196: 271 | Z196: DILLARD ELEMENTARY SCHOOL | AA196: Elem. | AB196: 735 | AC196: 724 | AD196: 0.9850340136 | AE196: 0.985 | AF196: A | AG196: SW | AH196: Matching
D198: District | E198: Non-Profit Private School Name | F198: School Code
D199: BROWARD | E199: HOCHBERG PREPARATORY SCHOOL | F199: 3196

Sheet 07-Calhoun
A1: ID | B1: LEANum | C1: LEAName | D1: Snum | E1: School Name | F1: Grade Code | G1: Grade Combination | H1: School Type Code | I1: School Type | J1: Neglected or Delinquent Code | K1: Neglected or Delinquent Yes/No | L1: New School Yes/No | M1: Charter Status Code | N1: Charter Yes/No | O1: Membership (Ages 5-17) | P1: # Reduced ( 3 ) | Q1: # Reduced Direct Cert. ( E ) | R1: # Free Direct Cert. ( D ) | S1: # Free ( F ) | T1: Provision 2 (4) | U1: #Free Direct Cert. ( C ) | V1: # Reduced Direct Cert. ( R ) | W1: LEANum | X1: LEAName | Y1: SNum | Z1: School Name | AA1: School type | AB1: Total Students | AC1: Number CLIF | AD1: %CLIF | AE1: Percent CLIF | AF1: Selection Code | AG1: Program Type | AH1: MTW Status
A2: 70091 | B2: 07 | C2: CALHOUN | D2: 0091 | E2: CARR ELEMENTARY & MIDDLE SCHOOL | F2: 27 | G2: PREK-8 | H2: 4 | I2: Combination Elementary & Secondary | J2: Z | K2: NO | L2: NO | M2: Z | N2: NO | O2: 216 | P2: 0 | Q2: 0 | R2: 0 | S2: 0 | T2: 0 | U2: 139 | V2: 0 | W2: 7 | X2: CALHOUN | Y2: 91 | Z2: INTERNATIONAL STUDIES ACADEMY HIGH SCHOOL | AA2: Combination Elementary & Secondary | AB2: 221 | AC2: 143 | AD2: 0.6470588235 | AE2: 0.6471 | AF2: B | AG2: SW | AH2: Matching
A3: 70101 | B3: 07 | C3: CALHOUN | D3: 0101 | E3: ALTHA PUBLIC SCHOOL | F3: 14 | G3: PREK-12 | H3: 4 | I3: Combination Elementary & Secondary | J3: Z | K3: NO | L3: NO | M3: Z | N3: NO | O3: 587 | P3: 0 | Q3: 0 | R3: 0 | S3: 0 | T3: 0 | U3: 315 | V3: 0 | W3: 7 | X3: CALHOUN | Y3: 101 | Z3: ALTHA PUBLIC SCHOOL | AA3: Combination Elementary & Secondary | AB3: 546 | AC3: 280 | AD3: 0.5128205128 | AE3: 0.5128 | AF3: D | AG3: SW | AH3: Matching
A4: 70021 | B4: 07 | C4: CALHOUN | D4: 0021 | E4: BLOUNTSTOWN HIGH SCHOOL | F4: 55 | G4: PREK, 6-12 | H4: 4 | I4: Combination Elementary & Secondary | J4: Z | K4: NO | L4: NO | M4: Z | N4: NO | O4: 570 | P4: 0 | Q4: 0 | R4: 0 | S4: 0 | T4: 0 | U4: 322 | V4: 0 | W4: 7 | X4: CALHOUN | Y4: 21 | Z4: BLOUNTSTOWN HIGH SCHOOL | AA4: Combination Elementary & Secondary | AB4: 549 | AC4: 278 | AD4: 0.5063752277 | AE4: 0.5064 | AF4: D | AG4: SW | AH4: Matching
A5: 70131 | B5: 07 | C5: CALHOUN | D5: 0131 | E5: BLOUNTSTOWN ELEMENTARY SCHOOL | F5: 8 | G5: PREK-5 | H5: 1 | I5: Elementary | J5: Z | K5: NO | L5: NO | M5: Z | N5: NO | O5: 453 | P5: 0 | Q5: 0 | R5: 0 | S5: 0 | T5: 0 | U5: 300 | V5: 0 | W5: 7 | X5: CALHOUN | Y5: 131 | Z5: AVANT GARDE ACADEMY OF BROWARD | AA5: Elementary | AB5: 456 | AC5: 284 | AD5: 0.6228070175 | AE5: 0.6228 | AF5: B | AG5: SW | AH5: Matching

Sheet 08-Charlotte
A1: ID | B1: LEANum | C1: LEAName | D1: Snum | E1: School Name | F1: Grade Code | G1: Grade Combination | H1: School Type Code | I1: School Type | J1: Neglected or Delinquent Code | K1: Neglected or Delinquent Yes/No | L1: New School Yes/No | M1: Charter Status Code | N1: Charter Yes/No | O1: Membership (Ages 5-17) | P1: # Reduced ( 3 ) | Q1: # Reduced Direct Cert. ( E ) | R1: # Free Direct Cert. ( D ) | S1: # Free ( F ) | T1: Provision 2 (4) | U1: #Free Direct Cert. ( C ) | V1: # Reduced Direct Cert. ( R ) | W1: LEANum | X1: LEAName | Y1: SNum | Z1: School Name | AA1: School type | AB1: Total Students | AC1: Number CLIF | AD1: %CLIF | AE1: Percent CLIF | AF1: Selection Code | AG1: Program Type | AH1: MTW Status
A2: 80111 | B2: 08 | C2: CHARLOTTE | D2: 0111 | E2: NEIL ARMSTRONG ELEMENTARY SCHOOL | F2: 8 | G2: PREK-5 | H2: 1 | I2: Elementary | J2: Z | K2: NO | L2: NO | M2: Z | N2: NO | O2: 716 | P2: 0 | Q2: 0 | R2: 0 | S2: 0 | T2: 0 | U2: 457 | V2: 10 | W2: 8 | X2: CHARLOTTE | Y2: 111 | Z2: NEIL ARMSTRONG ELEMENTARY SCHOOL | AA2: Elementary | AB2: 716 | AC2: 436 | AD2: 0.6089385475 | AE2: 0.6089 | AF2: B | AG2: SW | AH2: Matching
A3: 80171 | B3: 08 | C3: CHARLOTTE | D3: 0171 | E3: THE ACADEMY | F3: 69 | G3: 6-12 | H3: 3 | I3: Senior High | J3: Z | K3: NO | L3: NO | M3: Z | N3: NO | O3: 148 | P3: 0 | Q3: 0 | R3: 0 | S3: 0 | T3: 0 | U3: 99 | V3: 1 | W3: 8 | X3: CHARLOTTE | Y3: 171 | Z3: THE ACADEMY | AA3: Senior High | AB3: 157 | AC3: 115 | AD3: 0.7324840764 | AE3: 0.7325 | AF3: B | AG3: SW | AH3: Matching
A4: 80141 | B4: 08 | C4: CHARLOTTE | D4: 0141 | E4: MEADOW PARK ELEMENTARY SCHOOL | F4: 8 | G4: PREK-5 | H4: 1 | I4: Elementary | J4: Z | K4: NO | L4: NO | M4: Z | N4: NO | O4: 699 | P4: 0 | Q4: 0 | R4: 0 | S4: 0 | T4: 0 | U4: 407 | V4: 23 | W4: 8 | X4: CHARLOTTE | Y4: 141 | Z4: MEADOW PARK ELEMENTARY SCHOOL | AA4: Elementary | AB4: 697 | AC4: 418 | AD4: 0.599713056 | AE4: 0.5997 | AF4: B | AG4: SW | AH4: Matching
A5: 80021 | B5: 08 | C5: CHARLOTTE | D5: 0021 | E5: SALLIE JONES ELEMENTARY SCHOOL | F5: 8 | G5: PREK-5 | H5: 1 | I5: Elementary | J5: Z | K5: NO | L5: NO | M5: Z | N5: NO | O5: 665 | P5: 0 | Q5: 0 | R5: 0 | S5: 0 | T5: 0 | U5: 310 | V5: 6 | W5: 8 | X5: CHARLOTTE | Y5: 21 | Z5: SALLIE JONES ELEMENTARY SCHOOL | AA5: Elementary | AB5: 635 | AC5: 301 | AD5: 0.474015748 | AE5: 0.474 | AF5: D | AG5: SW | AH5: Matching
A6: 80191 | B6: 08 | C6: CHARLOTTE | D6: 0191 | E6: VINELAND ELEMENTARY SCHOOL | F6: 8 | G6: PREK-5 | H6: 1 | I6: Elementary | J6: Z | K6: NO | L6: NO | M6: Z | N6: NO | O6: 585 | P6: 0 | Q6: 0 | R6: 0 | S6: 0 | T6: 0 | U6: 285 | V6: 15 | W6: 8 | X6: CHARLOTTE | Y6: 191 | Z6: VINELAND ELEMENTARY SCHOOL | AA6: Elementary | AB6: 550 | AC6: 255 | AD6: 0.4636363636 | AE6: 0.4636 | AF6: D | AG6: SW | AH6: Matching
A7: 80081 | B7: 08 | C7: CHARLOTTE | D7: 0081 | E7: EAST ELEMENTARY SCHOOL | F7: 8 | G7: PREK-5 | H7: 1 | I7: Elementary | J7: Z | K7: NO | L7: NO | M7: Z | N7: NO | O7: 668 | P7: 0 | Q7: 0 | R7: 0 | S7: 0 | T7: 0 | U7: 361 | V7: 9 | W7: 8 | X7: CHARLOTTE | Y7: 81 | Z7: EAST ELEMENTARY SCHOOL | AA7: Elementary | AB7: 665 | AC7: 339 | AD7: 0.5097744361 | AE7: 0.5098 | AF7: B | AG7: SW | AH7: Matching
A8: 80231 | B8: 08 | C8: CHARLOTTE | D8: 0231 | E8: MYAKKA RIVER ELEMENTARY SCHOOL | F8: 8 | G8: PREK-5 | H8: 1 | I8: Elementary | J8: Z | K8: NO | L8: NO | M8: Z | N8: NO | O8: 582 | P8: 0 | Q8: 0 | R8: 0 | S8: 0 | T8: 0 | U8: 326 | V8: 9 | W8: 8 | X8: CHARLOTTE | Y8: 231 | Z8: MYAKKA RIVER ELEMENTARY SCHOOL | AA8: Elementary | AB8: 560 | AC8: 310 | AD8: 0.5535714286 | AE8: 0.5536 | AF8: B | AG8: SW | AH8: Matching
A9: 80301 | B9: 08 | C9: CHARLOTTE | D9: 0301 | E9: KINGSWAY ELEMENTARY SCHOOL | F9: 8 | G9: PREK-5 | H9: 1 | I9: Elementary | J9: Z | K9: NO | L9: NO | M9: Z | N9: NO | O9: 588 | P9: 0 | Q9: 0 | R9: 0 | S9: 0 | T9: 0 | U9: 329 | V9: 17 | W9: 8 | X9: CHARLOTTE | Y9: 301 | Z9: KINGSWAY ELEMENTARY SCHOOL | AA9: Elementary | AB9: 564 | AC9: 292 | AD9: 0.5177304965 | AE9: 0.5177 | AF9: B | AG9: SW | AH9: Matching
A10: 80041 | B10: 08 | C10: CHARLOTTE | D10: 0041 | E10: PEACE RIVER ELEMENTARY SCHOOL | F10: 8 | G10: PREK-5 | H10: 1 | I10: Elementary | J10: Z | K10: NO | L10: NO | M10: Z | N10: NO | O10: 558 | P10: 0 | Q10: 0 | R10: 0 | S10: 0 | T10: 0 | U10: 380 | V10: 12 | W10: 8 | X10: CHARLOTTE | Y10: 41 | Z10: PEACE RIVER ELEMENTARY SCHOOL | AA10: Elementary | AB10: 551 | AC10: 383 | AD10: 0.6950998185 | AE10: 0.6951 | AF10: B | AG10: SW | AH10: Matching
A11: 80201 | B11: 08 | C11: CHARLOTTE | D11: 0201 | E11: LIBERTY ELEMENTARY SCHOOL | F11: 8 | G11: PREK-5 | H11: 1 | I11: Elementary | J11: Z | K11: NO | L11: NO | M11: Z | N11: NO | O11: 548 | P11: 0 | Q11: 0 | R11: 0 | S11: 0 | T11: 0 | U11: 302 | V11: 20 | W11: 8 | X11: CHARLOTTE | Y11: 201 | Z11: LIBERTY ELEMENTARY SCHOOL | AA11: Elementary | AB11: 528 | AC11: 323 | AD11: 0.6117424242 | AE11: 0.6117 | AF11: B | AG11: SW | AH11: Matching
A12: 80251 | B12: 08 | C12: CHARLOTTE | D12: 0251 | E12: DEEP CREEK ELEMENTARY SCHOOL | F12: 8 | G12: PREK-5 | H12: 1 | I12: Elementary | J12: Z | K12: NO | L12: NO | M12: Z | N12: NO | O12: 822 | P12: 0 | Q12: 0 | R12: 0 | S12: 0 | T12: 0 | U12: 416 | V12: 27 | W12: 8 | X12: CHARLOTTE | Y12: 251 | Z12: DEEP CREEK ELEMENTARY SCHOOL | AA12: Elementary | AB12: 755 | AC12: 375 | AD12: 0.4966887417 | AE12: 0.4967 | AF12: B | AG12: SW | AH12: Matching
A13: 80131 | B13: 08 | C13: CHARLOTTE | D13: 0131 | E13: PORT CHARLOTTE MIDDLE SCHOOL | F13: 67 | G13: 6-8 | H13: 2 | I13: Middle/Junior | J13: Z | K13: NO | L13: NO | M13: Z | N13: NO | O13: 866 | P13: 0 | Q13: 0 | R13: 0 | S13: 0 | T13: 0 | U13: 467 | V13: 21 | W13: 8 | X13: CHARLOTTE | Y13: 131 | Z13: PORT CHARLOTTE MIDDLE SCHOOL | AA13: Middle/Junior | AB13: 862 | AC13: 483 | AD13: 0.560324826 | AE13: 0.5603 | AF13: B | AG13: SW | AH13: Matching
A14: 80211 | B14: 08 | C14: CHARLOTTE | D14: 0211 | E14: MURDOCK MIDDLE SCHOOL | F14: 67 | G14: 6-8 | H14: 2 | I14: Middle/Junior | J14: Z | K14: NO | L14: NO | M14: Z | N14: NO | O14: 651 | P14: 0 | Q14: 0 | R14: 0 | S14: 0 | T14: 0 | U14: 346 | V14: 21 | W14: 8 | X14: CHARLOTTE | Y14: 211 | Z14: MURDOCK MIDDLE SCHOOL | AA14: Middle/Junior | AB14: 656 | AC14: 355 | AD14: 0.5411585366 | AE14: 0.5412 | AF14: B | AG14: SW | AH14: Matching
D17: District | E17: Non-Profit Private School Name | F17: School Code
D18: CHARLOTTE | E18: PORT CHARLOTTE ADVENTIST SCHOOL | F18: 557

Sheet 09-Citrus
A1: ID | B1: LEANum | C1: LEAName | D1: Snum | E1: School Name | F1: Grade Code | G1: Grade Combination | H1: School Type Code | I1: School Type | J1: Neglected or Delinquent Code | K1: Neglected or Delinquent Yes/No | L1: New School Yes/No | M1: Charter Status Code | N1: Charter Yes/No | O1: Membership (Ages 5-17) | P1: # Reduced ( 3 ) | Q1: # Reduced Direct Cert. ( E ) | R1: # Free Direct Cert. ( D ) | S1: # Free ( F ) | T1: Provision 2 (4) | U1: #Free Direct Cert. ( C ) | V1: # Reduced Direct Cert. ( R ) | W1: LEANum | X1: LEAName | Y1: SNum | Z1: School Name | AA1: School type | AB1: Total Students | AC1: Number CLIF | AD1: %CLIF | AE1: Percent CLIF | AF1: Selection Code | AG1: Program Type | AH1: MTW Status
A2: 90321 | B2: 09 | C2: CITRUS | D2: 0321 | E2: SRMI @ RENAISSANCE CENTER | F2: 77 | G2: 4-12 | H2: 4 | I2: Combination Elementary & Secondary | J2: Z | K2: NO | L2: NO | M2: Z | N2: NO | O2: 135 | P2: 4 | Q2: 6 | R2: 104 | S2: 4 | T2: 0 | U2: 0 | V2: 0 | W2: 9 | X2: CITRUS | Y2: 321 | Z2: CITRUS COUNTY RENAISSANCE CENTER | AA2: Senior High | AB2: 116 | AC2: 102 | AD2: 0.8793103448 | AE2: 0.8793 | AF2: A | AG2: SW | AH2: Matching
A3: 90061 | B3: 09 | C3: CITRUS | D3: 0061 | E3: FLORAL CITY ELEMENTARY SCHOOL | F3: 8 | G3: PREK-5 | H3: 1 | I3: Elementary | J3: Z | K3: NO | L3: NO | M3: Z | N3: NO | O3: 324 | P3: 13 | Q3: 5 | R3: 213 | S3: 26 | T3: 0 | U3: 0 | V3: 0 | W3: 9 | X3: CITRUS | Y3: 61 | Z3: FLORAL CITY ELEMENTARY SCHOOL | AA3: Elementary | AB3: 344 | AC3: 285 | AD3: 0.8284883721 | AE3: 0.8285 | AF3: A | AG3: SW | AH3: Matching
A4: 90181 | B4: 09 | C4: CITRUS | D4: 0181 | E4: CITRUS SPRINGS ELEMENTARY SCHOOL | F4: 8 | G4: PREK-5 | H4: 1 | I4: Elementary | J4: Z | K4: NO | L4: NO | M4: Z | N4: NO | O4: 690 | P4: 49 | Q4: 21 | R4: 448 | S4: 29 | T4: 0 | U4: 0 | V4: 0 | W4: 9 | X4: CITRUS | Y4: 181 | Z4: CITRUS SPRINGS ELEMENTARY SCHOOL | AA4: Elementary | AB4: 698 | AC4: 506 | AD4: 0.7249283668 | AE4: 0.7249 | AF4: B | AG4: SW | AH4: Matching
A5: 90171 | B5: 09 | C5: CITRUS | D5: 0171 | E5: HERNANDO ELEMENTARY SCHOOL | F5: 8 | G5: PREK-5 | H5: 1 | I5: Elementary | J5: Z | K5: NO | L5: NO | M5: Z | N5: NO | O5: 726 | P5: 26 | Q5: 12 | R5: 499 | S5: 39 | T5: 0 | U5: 0 | V5: 0 | W5: 9 | X5: CITRUS | Y5: 171 | Z5: HERNANDO ELEMENTARY SCHOOL | AA5: Elementary | AB5: 723 | AC5: 548 | AD5: 0.7579529737 | AE5: 0.758 | AF5: A | AG5: SW | AH5: Matching
A6: 90025 | B6: 09 | C6: CITRUS | D6: 0025 | E6: FOREST RIDGE ELEMENTARY SCHOOL | F6: 8 | G6: PREK-5 | H6: 1 | I6: Elementary | J6: Z | K6: NO | L6: NO | M6: Z | N6: NO | O6: 660 | P6: 30 | Q6: 11 | R6: 441 | S6: 38 | T6: 0 | U6: 0 | V6: 0 | W6: 9 | X6: CITRUS | Y6: 25 | Z6: FOREST RIDGE ELEMENTARY SCHOOL | AA6: Elementary | AB6: 714 | AC6: 515 | AD6: 0.7212885154 | AE6: 0.7213 | AF6: B | AG6: SW | AH6: Matching
A7: 90211 | B7: 09 | C7: CITRUS | D7: 0211 | E7: CITRUS SPRINGS MIDDLE SCHOOL | F7: 67 | G7: 6-8 | H7: 2 | I7: Middle/Junior | J7: Z | K7: NO | L7: NO | M7: Z | N7: NO | O7: 759 | P7: 37 | Q7: 16 | R7: 436 | S7: 48 | T7: 0 | U7: 0 | V7: 0 | W7: 9 | X7: CITRUS | Y7: 211 | Z7: CITRUS SPRINGS MIDDLE SCHOOL | AA7: Middle/Junior | AB7: 761 | AC7: 497 | AD7: 0.653088042 | AE7: 0.6531 | AF7: D | AG7: SW | AH7: Matching
A8: 90162 | B8: 09 | C8: CITRUS | D8: 0162 | E8: LECANTO MIDDLE SCHOOL | F8: 67 | G8: 6-8 | H8: 2 | I8: Middle/Junior | J8: Z | K8: NO | L8: NO | M8: Z | N8: NO | O8: 801 | P8: 35 | Q8: 11 | R8: 418 | S8: 58 | T8: 0 | U8: 0 | V8: 0 | W8: 9 | X8: CITRUS | Y8: 162 | Z8: LECANTO MIDDLE SCHOOL | AA8: Middle/Junior | AB8: 789 | AC8: 485 | AD8: 0.6147021546 | AE8: 0.6147 | AF8: D | AG8: SW | AH8: Matching
A9: 90035 | B9: 09 | C9: CITRUS | D9: 0035 | E9: CENTRAL RIDGE ELEMENTARY SCHOOL | F9: 8 | G9: PREK-5 | H9: 1 | I9: Elementary | J9: Z | K9: NO | L9: NO | M9: Z | N9: NO | O9: 706 | P9: 28 | Q9: 13 | R9: 418 | S9: 33 | T9: 0 | U9: 0 | V9: 0 | W9: 9 | X9: CITRUS | Y9: 35 | Z9: CENTRAL RIDGE ELEMENTARY SCHOOL | AA9: Elementary | AB9: 736 | AC9: 480 | AD9: 0.652173913 | AE9: 0.6522 | AF9: D | AG9: SW | AH9: Matching
A10: 97073 | B10: 09 | C10: CITRUS | D10: 7073 | E10: CAMP E-NINI HASSEE | F10: 69 | G10: 6-12 | H10: 3 | I10: Senior High | J10: N | K10: YES | L10: NO | M10: Z | N10: NO | O10: 21 | P10: 0 | Q10: 0 | R10: 3 | S10: 0 | T10: 0 | U10: 0 | V10: 0 | W10: 9 | X10: CITRUS | Y10: 7073 | Z10: E-NINI-HASSEE | AA10: Senior High | AB10: 23 | AC10: 23 | AD10: 1 | AE10: 1 | AF10: A | AG10: SW | AH10: Matching
A11: 90071 | B11: 09 | C11: CITRUS | D11: 0071 | E11: HOMOSASSA ELEMENTARY SCHOOL | F11: 8 | G11: PREK-5 | H11: 1 | I11: Elementary | J11: Z | K11: NO | L11: NO | M11: Z | N11: NO | O11: 356 | P11: 21 | Q11: 9 | R11: 257 | S11: 19 | T11: 0 | U11: 0 | V11: 0 | W11: 9 | X11: CITRUS | Y11: 71 | Z11: HOMOSASSA ELEMENTARY SCHOOL | AA11: Elementary | AB11: 381 | AC11: 324 | AD11: 0.8503937008 | AE11: 0.8504 | AF11: A | AG11: SW | AH11: Matching
A12: 90042 | B12: 09 | C12: CITRUS | D12: 0042 | E12: INVERNESS MIDDLE SCHOOL | F12: 67 | G12: 6-8 | H12: 2 | I12: Middle/Junior | J12: Z | K12: NO | L12: NO | M12: Z | N12: NO | O12: 1021 | P12: 54 | Q12: 14 | R12: 592 | S12: 79 | T12: 0 | U12: 0 | V12: 0 | W12: 9 | X12: CITRUS | Y12: 42 | Z12: INVERNESS MIDDLE SCHOOL | AA12: Middle/Junior | AB12: 1076 | AC12: 743 | AD12: 0.6905204461 | AE12: 0.6905 | AF12: D | AG12: SW | AH12: Matching
A13: 90191 | B13: 09 | C13: CITRUS | D13: 0191 | E13: ROCK CRUSHER ELEMENTARY SCHOOL | F13: 8 | G13: PREK-5 | H13: 1 | I13: Elementary | J13: Z | K13: NO | L13: NO | M13: Z | N13: NO | O13: 584 | P13: 34 | Q13: 13 | R13: 378 | S13: 30 | T13: 0 | U13: 0 | V13: 0 | W13: 9 | X13: CITRUS | Y13: 191 | Z13: ROCK CRUSHER ELEMENTARY SCHOOL | AA13: Elementary | AB13: 647 | AC13: 480 | AD13: 0.741885626 | AE13: 0.7419 | AF13: B | AG13: SW | AH13: Matching
A14: 90021 | B14: 09 | C14: CITRUS | D14: 0021 | E14: PLEASANT GROVE ELEMENTARY SCHL | F14: 8 | G14: PREK-5 | H14: 1 | I14: Elementary | J14: Z | K14: NO | L14: NO | M14: Z | N14: NO | O14: 577 | P14: 25 | Q14: 13 | R14: 359 | S14: 34 | T14: 0 | U14: 0 | V14: 0 | W14: 9 | X14: CITRUS | Y14: 21 | Z14: PLEASANT GROVE ELEMENTARY SCHL | AA14: Elementary | AB14: 608 | AC14: 412 | AD14: 0.6776315789 | AE14: 0.6776 | AF14: D | AG14: SW | AH14: Matching
A15: 90102 | B15: 09 | C15: CITRUS | D15: 0102 | E15: CRYSTAL RIVER PRIMARY SCHOOL | F15: 8 | G15: PREK-5 | H15: 1 | I15: Elementary | J15: Z | K15: NO | L15: NO | M15: Z | N15: NO | O15: 592 | P15: 24 | Q15: 3 | R15: 401 | S15: 33 | T15: 0 | U15: 0 | V15: 0 | W15: 9 | X15: CITRUS | Y15: 102 | Z15: CRYSTAL RIVER PRIMARY SCHOOL | AA15: Elementary | AB15: 609 | AC15: 491 | AD15: 0.8062397373 | AE15: 0.8062 | AF15: A | AG15: SW | AH15: Matching
A16: 90032 | B16: 09 | C16: CITRUS | D16: 0032 | E16: INVERNESS PRIMARY SCHOOL | F16: 8 | G16: PREK-5 | H16: 1 | I16: Elementary | J16: Z | K16: NO | L16: NO | M16: Z | N16: NO | O16: 585 | P16: 19 | Q16: 20 | R16: 355 | S16: 36 | T16: 0 | U16: 0 | V16: 0 | W16: 9 | X16: CITRUS | Y16: 32 | Z16: INVERNESS PRIMARY SCHOOL | AA16: Elementary | AB16: 622 | AC16: 453 | AD16: 0.7282958199 | AE16: 0.7283 | AF16: B | AG16: SW | AH16: Matching
A17: 98003 | B17: 09 | C17: CITRUS | D17: 8003 | E17: PACE CENTER FOR GIRLS | F17: 69 | G17: 6-12 | H17: 3 | I17: Senior High | J17: B | K17: YES | L17: NO | M17: Z | N17: NO | O17: 28 | P17: 1 | Q17: 1 | R17: 23 | S17: 0 | T17: 0 | U17: 0 | V17: 0 | W17: 9 | X17: CITRUS | Y17: 8003 | Z17: PACE CENTER FOR GIRLS | AA17: Senior High | AB17: 39 | AC17: 35 | AD17: 0.8974358974 | AE17: 0.8974 | AF17: A | AG17: SW | AH17: Matching
A18: 90161 | B18: 09 | C18: CITRUS | D18: 0161 | E18: LECANTO PRIMARY SCHOOL | F18: 8 | G18: PREK-5 | H18: 1 | I18: Elementary | J18: Z | K18: NO | L18: NO | M18: Z | N18: NO | O18: 797 | P18: 53 | Q18: 10 | R18: 472 | S18: 45 | T18: 0 | U18: 0 | V18: 0 | W18: 9 | X18: CITRUS | Y18: 161 | Z18: LECANTO PRIMARY SCHOOL | AA18: Elementary | AB18: 761 | AC18: 517 | AD18: 0.679369251 | AE18: 0.6794 | AF18: D | AG18: SW | AH18: Matching
A19: 90083 | B19: 09 | C19: CITRUS | D19: 0083 | E19: CRYSTAL RIVER MIDDLE SCHOOL | F19: 67 | G19: 6-8 | H19: 2 | I19: Middle/Junior | J19: Z | K19: NO | L19: NO | M19: Z | N19: NO | O19: 880 | P19: 45 | Q19: 13 | R19: 532 | S19: 50 | T19: 0 | U19: 0 | V19: 0 | W19: 9 | X19: CITRUS | Y19: 83 | Z19: CRYSTAL RIVER MIDDLE SCHOOL | AA19: Middle/Junior | AB19: 922 | AC19: 669 | AD19: 0.7255965293 | AE19: 0.7256 | AF19: B | AG19: SW | AH19: Matching
D21: District | E21: Non-Profit Private School Name | F21: School Code
D22: CITRUS | E22: SOLID ROCK CHRISTIAN ACADEMY | F22: 3831

Sheet 10-Clay

Sheet 11-Collier
A1: ID | B1: LEANum | C1: LEAName | D1: Snum | E1: School Name | F1: Grade Code | G1: Grade Combination | H1: School Type Code | I1: School Type | J1: Neglected or Delinquent Code | K1: Neglected or Delinquent Yes/No | L1: New School Yes/No | M1: Charter Status Code | N1: Charter Yes/No | O1: Membership (Ages 5-17) | P1: # Reduced ( 3 ) | Q1: # Reduced Direct Cert. ( E ) | R1: # Free Direct Cert. ( D ) | S1: # Free ( F ) | T1: Provision 2 (4) | U1: #Free Direct Cert. ( C ) | V1: # Reduced Direct Cert. ( R ) | W1: LEANum | X1: LEAName | Y1: SNum | Z1: School Name | AA1: School type | AB1: Total Students | AC1: Number CLIF | AD1: %CLIF | AE1: Percent CLIF | AF1: Selection Code | AG1: Program Type | AH1: MTW Status
A2: 119007 | B2: 11 | C2: COLLIER | D2: 9007 | E2: NEW BEGINNINGS IMMOKALEE | F2: 102 | G2: 2-8 | H2: 4 | I2: Combination Elementary & Secondary | J2: Z | K2: NO | L2: NO | M2: Z | N2: NO | O2: 42 | P2: 1 | Q2: 0 | R2: 32 | S2: 9 | T2: 0 | U2: 0 | V2: 0 | W2: 11 | X2: COLLIER | Y2: 9007 | Z2: NEW BEGINNINGS IMMOKALEE | AA2: Combination Elementary & Secondary | AB2: 47 | AC2: 46 | AD2: 0.9787234043 | AE2: 0.9787234043 | AF2: A | AG2: SW | AH2: Matching
A3: 110501 | B3: 11 | C3: COLLIER | D3: 0501 | E3: GOLDEN GATE HIGH SCHOOL | F3: 37 | G3: PREK, 9-12 | H3: 3 | I3: Senior High | J3: Z | K3: NO | L3: NO | M3: Z | N3: NO | O3: 1204 | P3: 90 | Q3: 0 | R3: 616 | S3: 306 | T3: 0 | U3: 0 | V3: 0 | W3: 11 | X3: COLLIER | Y3: 501 | Z3: GOLDEN GATE HIGH SCHOOL | AA3: Senior High | AB3: 1280 | AC3: 1058 | AD3: 0.8265625 | AE3: 0.8265625 | AF3: A | AG3: SW | AH3: Matching
A4: 119026 | B4: 11 | C4: COLLIER | D4: 9026 | E4: THE PHOENIX PROGRAM-IMMOKALEE | F4: 77 | G4: 4-12 | H4: 4 | I4: Combination Elementary & Secondary | J4: Z | K4: NO | L4: NO | M4: Z | N4: NO | O4: 69 | P4: 2 | Q4: 0 | R4: 51 | S4: 10 | T4: 0 | U4: 0 | V4: 0 | W4: 11 | X4: COLLIER | Y4: 9026 | Z4: THE PHOENIX PROGRAM-IMMOKALEE | AA4: Combination Elementary & Secondary | AB4: 54 | AC4: 49 | AD4: 0.9074074074 | AE4: 0.9074074074 | AF4: A | AG4: SW | AH4: Matching
A5: 110321 | B5: 11 | C5: COLLIER | D5: 0321 | E5: GOLDEN GATE MIDDLE SCHOOL | F5: 67 | G5: 6-8 | H5: 2 | I5: Middle/Junior | J5: Z | K5: NO | L5: NO | M5: Z | N5: NO | O5: 1065 | P5: 67 | Q5: 0 | R5: 614 | S5: 283 | T5: 0 | U5: 0 | V5: 0 | W5: 11 | X5: COLLIER | Y5: 321 | Z5: GOLDEN GATE MIDDLE SCHOOL | AA5: Middle/Junior | AB5: 1119 | AC5: 1015 | AD5: 0.9070598749 | AE5: 0.9070598749 | AF5: A | AG5: SW | AH5: Matching
A6: 110481 | B6: 11 | C6: COLLIER | D6: 0481 | E6: LAVERN GAYNOR ELEMENTARY | F6: 8 | G6: PREK-5 | H6: 1 | I6: Elementary | J6: Z | K6: NO | L6: NO | M6: Z | N6: NO | O6: 303 | P6: 19 | Q6: 0 | R6: 196 | S6: 56 | T6: 0 | U6: 0 | V6: 0 | W6: 11 | X6: COLLIER | Y6: 481 | Z6: LAVERN GAYNOR ELEMENTARY | AA6: Elementary | AB6: 281 | AC6: 258 | AD6: 0.9181494662 | AE6: 0.9181494662 | AF6: A | AG6: SW | AH6: Matching
A7: 110141 | B7: 11 | C7: COLLIER | D7: 0141 | E7: SHADOWLAWN ELEMENTARY SCHOOL | F7: 8 | G7: PREK-5 | H7: 1 | I7: Elementary | J7: Z | K7: NO | L7: NO | M7: Z | N7: NO | O7: 436 | P7: 6 | Q7: 0 | R7: 297 | S7: 77 | T7: 0 | U7: 0 | V7: 0 | W7: 11 | X7: COLLIER | Y7: 141 | Z7: SHADOWLAWN ELEMENTARY SCHOOL | AA7: Elementary | AB7: 487 | AC7: 433 | AD7: 0.8891170431 | AE7: 0.8891170431 | AF7: A | AG7: SW | AH7: Matching
A8: 119017 | B8: 11 | C8: COLLIER | D8: 9017 | E8: THE PACE PROGRAM | F8: 69 | G8: 6-12 | H8: 3 | I8: Senior High | J8: C | K8: YES | L8: NO | M8: Z | N8: NO | O8: 52 | P8: 0 | Q8: 0 | R8: 0 | S8: 0 | T8: 0 | U8: 52 | V8: 0 | W8: 11 | X8: COLLIER | Y8: 9017 | Z8: THE PACE PROGRAM | AA8: Senior High | AB8: 60 | AC8: 60 | AD8: 1 | AE8: 1 | AF8: A | AG8: SW | AH8: Matching
A9: 110631 | B9: 11 | C9: COLLIER | D9: 0631 | E9: EDEN PARK ELEMENTARY SCHOOL | F9: 8 | G9: PREK-5 | H9: 1 | I9: Elementary | J9: Z | K9: NO | L9: NO | M9: Z | N9: NO | O9: 635 | P9: 17 | Q9: 0 | R9: 532 | S9: 61 | T9: 0 | U9: 0 | V9: 0 | W9: 11 | X9: COLLIER | Y9: 631 | Z9: EDEN PARK ELEMENTARY SCHOOL | AA9: Elementary | AB9: 671 | AC9: 665 | AD9: 0.9910581222 | AE9: 0.9910581222 | AF9: A | AG9: SW | AH9: Matching
A10: 110421 | B10: 11 | C10: COLLIER | D10: 0421 | E10: MANATEE ELEMENTARY SCHOOL | F10: 8 | G10: PREK-5 | H10: 1 | I10: Elementary | J10: Z | K10: NO | L10: NO | M10: Z | N10: NO | O10: 558 | P10: 22 | Q10: 0 | R10: 385 | S10: 88 | T10: 0 | U10: 0 | V10: 0 | W10: 11 | X10: COLLIER | Y10: 421 | Z10: MANATEE ELEMENTARY SCHOOL | AA10: Elementary | AB10: 582 | AC10: 534 | AD10: 0.9175257732 | AE10: 0.9175257732 | AF10: A | AG10: SW | AH10: Matching
A11: 110351 | B11: 11 | C11: COLLIER | D11: 0351 | E11: GOLDEN TERRACE ELEMENTARY SCHL | F11: 8 | G11: PREK-5 | H11: 1 | I11: Elementary | J11: Z | K11: NO | L11: NO | M11: Z | N11: NO | O11: 434 | P11: 14 | Q11: 0 | R11: 261 | S11: 96 | T11: 0 | U11: 0 | V11: 0 | W11: 11 | X11: COLLIER | Y11: 351 | Z11: GOLDEN TERRACE ELEMENTARY SCHL | AA11: Elementary | AB11: 411 | AC11: 380 | AD11: 0.9245742092 | AE11: 0.9245742092 | AF11: A | AG11: SW | AH11: Matching
A12: 110231 | B12: 11 | C12: COLLIER | D12: 0231 | E12: GOLDEN GATE ELEMENTARY SCHOOL | F12: 8 | G12: PREK-5 | H12: 1 | I12: Elementary | J12: Z | K12: NO | L12: NO | M12: Z | N12: NO | O12: 441 | P12: 19 | Q12: 0 | R12: 262 | S12: 118 | T12: 0 | U12: 0 | V12: 0 | W12: 11 | X12: COLLIER | Y12: 231 | Z12: GOLDEN GATE ELEMENTARY SCHOOL | AA12: Elementary | AB12: 432 | AC12: 406 | AD12: 0.9398148148 | AE12: 0.9398148148 | AF12: A | AG12: SW | AH12: Matching
A13: 110181 | B13: 11 | C13: COLLIER | D13: 0181 | E13: HIGHLANDS ELEMENTARY SCHOOL | F13: 8 | G13: PREK-5 | H13: 1 | I13: Elementary | J13: Z | K13: NO | L13: NO | M13: Z | N13: NO | O13: 540 | P13: 11 | Q13: 0 | R13: 426 | S13: 52 | T13: 0 | U13: 0 | V13: 0 | W13: 11 | X13: COLLIER | Y13: 181 | Z13: HIGHLANDS ELEMENTARY SCHOOL | AA13: Elementary | AB13: 644 | AC13: 609 | AD13: 0.9456521739 | AE13: 0.9456521739 | AF13: A | AG13: SW | AH13: Matching
A14: 119010 | B14: 11 | C14: COLLIER | D14: 9010 | E14: NEW BEGINNINGS - NAPLES | F14: 57 | G14: 3-8 | H14: 4 | I14: Combination Elementary & Secondary | J14: Z | K14: NO | L14: NO | M14: Z | N14: NO | O14: 55 | P14: 6 | Q14: 0 | R14: 37 | S14: 9 | T14: 0 | U14: 0 | V14: 0 | W14: 11 | X14: COLLIER | Y14: 9010 | Z14: NEW BEGINNINGS - NAPLES | AA14: Combination Elementary & Secondary | AB14: 49 | AC14: 44 | AD14: 0.8979591837 | AE14: 0.8979591837 | AF14: A | AG14: SW | AH14: Matching
A15: 110282 | B15: 11 | C15: COLLIER | D15: 0282 | E15: LORENZO WALKER TECHNICAL HIGH SCHOOL | F15: 85 | G15: 9-12 | H15: 3 | I15: Senior High | J15: Z | K15: NO | L15: NO | M15: Z | N15: NO | O15: 434 | P15: 45 | Q15: 0 | R15: 184 | S15: 95 | T15: 0 | U15: 0 | V15: 0 | W15: 11 | X15: COLLIER | Y15: 282 | Z15: LORENZO WALKER TECHNICAL HIGH SCHOOL | AA15: Senior High | AB15: 432 | AC15: 320 | AD15: 0.7407407407 | AE15: 0.7407407407 | AF15: B | AG15: SW | AH15: Matching
A16: 110201 | B16: 11 | C16: COLLIER | D16: 0201 | E16: AVALON ELEMENTARY SCHOOL | F16: 8 | G16: PREK-5 | H16: 1 | I16: Elementary | J16: Z | K16: NO | L16: NO | M16: Z | N16: NO | O16: 366 | P16: 12 | Q16: 0 | R16: 268 | S16: 57 | T16: 0 | U16: 0 | V16: 0 | W16: 11 | X16: COLLIER | Y16: 201 | Z16: AVALON ELEMENTARY SCHOOL | AA16: Elementary | AB16: 444 | AC16: 407 | AD16: 0.9166666667 | AE16: 0.9166666667 | AF16: A | AG16: SW | AH16: Matching
A17: 110261 | B17: 11 | C17: COLLIER | D17: 0261 | E17: LELY HIGH SCHOOL | F17: 85 | G17: 9-12 | H17: 3 | I17: Senior High | J17: Z | K17: NO | L17: NO | M17: Z | N17: NO | O17: 1117 | P17: 68 | Q17: 0 | R17: 570 | S17: 254 | T17: 0 | U17: 0 | V17: 0 | W17: 11 | X17: COLLIER | Y17: 261 | Z17: LELY HIGH SCHOOL | AA17: Senior High | AB17: 1193 | AC17: 901 | AD17: 0.7552388935 | AE17: 0.7552388935 | AF17: A | AG17: SW | AH17: Matching
A18: 119021 | B18: 11 | C18: COLLIER | D18: 9021 | E18: RCMA IMMOKALEE COMMUNITY SCHOOL | F18: 25 | G18: K-8 | H18: 4 | I18: Combination Elementary & Secondary | J18: Z | K18: NO | L18: NO | M18: R | N18: YES | O18: 282 | P18: 0 | Q18: 0 | R18: 0 | S18: 0 | T18: 0 | U18: 282 | V18: 0 | W18: 11 | X18: COLLIER | Y18: 9021 | Z18: IMMOKALEE COMMUNITY SCHOOL | AA18: Elementary | AB18: 288 | AC18: 288 | AD18: 1 | AE18: 1 | AF18: A | AG18: SW | AH18: Matching
A19: 110551 | B19: 11 | C19: COLLIER | D19: 0551 | E19: PARKSIDE ELEMENTARY SCHOOL | F19: 8 | G19: PREK-5 | H19: 1 | I19: Elementary | J19: Z | K19: NO | L19: NO | M19: Z | N19: NO | O19: 576 | P19: 22 | Q19: 0 | R19: 384 | S19: 121 | T19: 0 | U19: 0 | V19: 0 | W19: 11 | X19: COLLIER | Y19: 551 | Z19: PARKSIDE ELEMENTARY SCHOOL | AA19: Elementary | AB19: 647 | AC19: 603 | AD19: 0.9319938176 | AE19: 0.9319938176 | AF19: A | AG19: SW | AH19: Matching
A20: 119015 | B20: 11 | C20: COLLIER | D20: 9015 | E20: THE PHOENIX PROGRAM NAPLES | F20: 77 | G20: 4-12 | H20: 4 | I20: Combination Elementary & Secondary | J20: Z | K20: NO | L20: NO | M20: Z | N20: NO | O20: 101 | P20: 2 | Q20: 0 | R20: 71 | S20: 19 | T20: 0 | U20: 0 | V20: 0 | W20: 11 | X20: COLLIER | Y20: 9015 | Z20: THE PHOENIX PROGRAM NAPLES | AA20: Combination Elementary & Secondary | AB20: 113 | AC20: 90 | AD20: 0.796460177 | AE20: 0.796460177 | AF20: A | AG20: SW | AH20: Matching
A21: 110161 | B21: 11 | C21: COLLIER | D21: 0161 | E21: PINECREST ELEMENTARY SCHOOL | F21: 8 | G21: PREK-5 | H21: 1 | I21: Elementary | J21: Z | K21: NO | L21: NO | M21: Z | N21: NO | O21: 639 | P21: 2 | Q21: 0 | R21: 562 | S21: 43 | T21: 0 | U21: 0 | V21: 0 | W21: 11 | X21: COLLIER | Y21: 161 | Z21: PINECREST ELEMENTARY SCHOOL | AA21: Elementary | AB21: 721 | AC21: 712 | AD21: 0.987517337 | AE21: 0.987517337 | AF21: A | AG21: SW | AH21: Matching
A22: 110221 | B22: 11 | C22: COLLIER | D22: 0221 | E22: POINCIANA ELEMENTARY SCHOOL | F22: 8 | G22: PREK-5 | H22: 1 | I22: Elementary | J22: Z | K22: NO | L22: NO | M22: Z | N22: NO | O22: 487 | P22: 20 | Q22: 0 | R22: 262 | S22: 85 | T22: 0 | U22: 0 | V22: 0 | W22: 11 | X22: COLLIER | Y22: 221 | Z22: POINCIANA ELEMENTARY SCHOOL | AA22: Elementary | AB22: 551 | AC22: 415 | AD22: 0.7531760436 | AE22: 0.7531760436 | AF22: A | AG22: SW | AH22: Matching
A23: 110381 | B23: 11 | C23: COLLIER | D23: 0381 | E23: LELY ELEMENTARY SCHOOL | F23: 8 | G23: PREK-5 | H23: 1 | I23: Elementary | J23: Z | K23: NO | L23: NO | M23: Z | N23: NO | O23: 466 | P23: 15 | Q23: 0 | R23: 277 | S23: 70 | T23: 0 | U23: 0 | V23: 0 | W23: 11 | X23: COLLIER | Y23: 381 | Z23: LELY ELEMENTARY SCHOOL | AA23: Elementary | AB23: 491 | AC23: 399 | AD23: 0.8126272912 | AE23: 0.8126272912 | AF23: A | AG23: SW | AH23: Matching
A24: 110511 | B24: 11 | C24: COLLIER | D24: 0511 | E24: ESTATES ELEMENTARY SCHOOL | F24: 8 | G24: PREK-5 | H24: 1 | I24: Elementary | J24: Z | K24: NO | L24: NO | M24: Z | N24: NO | O24: 818 | P24: 83 | Q24: 0 | R24: 408 | S24: 130 | T24: 0 | U24: 0 | V24: 0 | W24: 11 | X24: COLLIER | Y24: 511 | Z24: ESTATES ELEMENTARY SCHOOL | AA24: Elementary | AB24: 674 | AC24: 511 | AD24: 0.7581602374 | AE24: 0.7581602374 | AF24: A | AG24: SW | AH24: Matching
A25: 110531 | B25: 11 | C25: COLLIER | D25: 0531 | E25: MIKE DAVIS ELEMENTARY SCHOOL | F25: 8 | G25: PREK-5 | H25: 1 | I25: Elementary | J25: Z | K25: NO | L25: NO | M25: Z | N25: NO | O25: 533 | P25: 20 | Q25: 0 | R25: 366 | S25: 80 | T25: 0 | U25: 0 | V25: 0 | W25: 11 | X25: COLLIER | Y25: 531 | Z25: MIKE DAVIS ELEMENTARY SCHOOL | AA25: Elementary | AB25: 612 | AC25: 571 | AD25: 0.9330065359 | AE25: 0.9330065359 | AF25: A | AG25: SW | AH25: Matching
A26: 110491 | B26: 11 | C26: COLLIER | D26: 0491 | E26: HERBERT CAMBRIDGE ELEMENTARY SCHOOL | F26: 8 | G26: PREK-5 | H26: 1 | I26: Elementary | J26: Z | K26: NO | L26: NO | M26: Z | N26: NO | O26: 282 | P26: 16 | Q26: 0 | R26: 179 | S26: 49 | T26: 0 | U26: 0 | V26: 0 | W26: 11 | X26: COLLIER | Y26: 491 | Z26: HERBERT CAMBRIDGE ELEMENTARY | AA26: Elementary | AB26: 269 | AC26: 241 | AD26: 0.8959107807 | AE26: 0.8959107807 | AF26: A | AG26: SW | AH26: Matching
A27: 119027 | B27: 11 | C27: COLLIER | D27: 9027 | E27: BEACON HIGH SCHOOL | F27: 85 | G27: 9-12 | H27: 3 | I27: Senior High | J27: Z | K27: NO | L27: NO | M27: Z | N27: NO | O27: 70 | P27: 4 | Q27: 0 | R27: 42 | S27: 13 | T27: 0 | U27: 0 | V27: 0 | W27: 11 | X27: COLLIER | Y27: 9027 | Z27: BEACON HIGH SCHOOL | AA27: Senior High | AB27: 69 | AC27: 56 | AD27: 0.8115942029 | AE27: 0.8115942029 | AF27: A | AG27: SW | AH27: Matching
A28: 110422 | B28: 11 | C28: COLLIER | D28: 0422 | E28: MANATEE MIDDLE SCHOOL | F28: 67 | G28: 6-8 | H28: 2 | I28: Middle/Junior | J28: Z | K28: NO | L28: NO | M28: Z | N28: NO | O28: 798 | P28: 47 | Q28: 0 | R28: 501 | S28: 180 | T28: 0 | U28: 0 | V28: 0 | W28: 11 | X28: COLLIER | Y28: 422 | Z28: MANATEE MIDDLE SCHOOL | AA28: Middle/Junior | AB28: 933 | AC28: 845 | AD28: 0.9056806002 | AE28: 0.9056806002 | AF28: A | AG28: SW | AH28: Matching
A29: 110461 | B29: 11 | C29: COLLIER | D29: 0461 | E29: CALUSA PARK ELEMENTARY SCHOOL | F29: 8 | G29: PREK-5 | H29: 1 | I29: Elementary | J29: Z | K29: NO | L29: NO | M29: Z | N29: NO | O29: 657 | P29: 38 | Q29: 0 | R29: 387 | S29: 92 | T29: 0 | U29: 0 | V29: 0 | W29: 11 | X29: COLLIER | Y29: 461 | Z29: CALUSA PARK ELEMENTARY SCHOOL | AA29: Elementary | AB29: 619 | AC29: 475 | AD29: 0.7673667205 | AE29: 0.7673667205 | AF29: A | AG29: SW | AH29: Matching
A30: 110341 | B30: 11 | C30: COLLIER | D30: 0341 | E30: VILLAGE OAKS ELEMENTARY SCHOOL | F30: 8 | G30: PREK-5 | H30: 1 | I30: Elementary | J30: Z | K30: NO | L30: NO | M30: Z | N30: NO | O30: 447 | P30: 5 | Q30: 0 | R30: 389 | S30: 37 | T30: 0 | U30: 0 | V30: 0 | W30: 11 | X30: COLLIER | Y30: 341 | Z30: VILLAGE OAKS ELEMENTARY SCHOOL | AA30: Elementary | AB30: 549 | AC30: 545 | AD30: 0.9927140255 | AE30: 0.9927140255 | AF30: A | AG30: SW | AH30: Matching
A31: 110211 | B31: 11 | C31: COLLIER | D31: 0211 | E31: EAST NAPLES MIDDLE SCHOOL | F31: 67 | G31: 6-8 | H31: 2 | I31: Middle/Junior | J31: Z | K31: NO | L31: NO | M31: Z | N31: NO | O31: 897 | P31: 53 | Q31: 0 | R31: 538 | S31: 178 | T31: 0 | U31: 0 | V31: 0 | W31: 11 | X31: COLLIER | Y31: 211 | Z31: EAST NAPLES MIDDLE SCHOOL | AA31: Middle/Junior | AB31: 970 | AC31: 794 | AD31: 0.818556701 | AE31: 0.818556701 | AF31: A | AG31: SW | AH31: Matching
A32: 110541 | B32: 11 | C32: COLLIER | D32: 0541 | E32: PALMETTO ELEMENTARY SCHOOL | F32: 8 | G32: PREK-5 | H32: 1 | I32: Elementary | J32: Z | K32: NO | L32: NO | M32: Z | N32: NO | O32: 521 | P32: 24 | Q32: 0 | R32: 312 | S32: 71 | T32: 0 | U32: 0 | V32: 0 | W32: 11 | X32: COLLIER | Y32: 541 | Z32: PALMETTO ELEMENTARY SCHOOL | AA32: Elementary | AB32: 461 | AC32: 356 | AD32: 0.7722342733 | AE32: 0.7722342733 | AF32: A | AG32: SW | AH32: Matching
A33: 110361 | B33: 11 | C33: COLLIER | D33: 0361 | E33: IMMOKALEE MIDDLE SCHOOL | F33: 67 | G33: 6-8 | H33: 2 | I33: Middle/Junior | J33: Z | K33: NO | L33: NO | M33: Z | N33: NO | O33: 1564 | P33: 48 | Q33: 0 | R33: 1306 | S33: 152 | T33: 0 | U33: 0 | V33: 0 | W33: 11 | X33: COLLIER | Y33: 361 | Z33: IMMOKALEE MIDDLE SCHOOL | AA33: Middle/Junior | AB33: 1754 | AC33: 1734 | AD33: 0.9885974914 | AE33: 0.9885974914 | AF33: A | AG33: SW | AH33: Matching
A34: 110191 | B34: 11 | C34: COLLIER | D34: 0191 | E34: LAKE TRAFFORD ELEMENTARY SCHL | F34: 8 | G34: PREK-5 | H34: 1 | I34: Elementary | J34: Z | K34: NO | L34: NO | M34: Z | N34: NO | O34: 648 | P34: 16 | Q34: 0 | R34: 523 | S34: 71 | T34: 0 | U34: 0 | V34: 0 | W34: 11 | X34: COLLIER | Y34: 191 | Z34: LAKE TRAFFORD ELEMENTARY SCHL | AA34: Elementary | AB34: 711 | AC34: 685 | AD34: 0.9634317862 | AE34: 0.9620253165 | AF34: A | AG34: SW | AH34: Matching
A35: 110271 | B35: 11 | C35: COLLIER | D35: 0271 | E35: IMMOKALEE HIGH SCHOOL | F35: 85 | G35: 9-12 | H35: 3 | I35: Senior High | J35: Z | K35: NO | L35: NO | M35: Z | N35: NO | O35: 1493 | P35: 56 | Q35: 0 | R35: 1196 | S35: 186 | T35: 0 | U35: 0 | V35: 0 | W35: 11 | X35: COLLIER | Y35: 271 | Z35: IMMOKALEE HIGH SCHOOL | AA35: Senior High | AB35: 1302 | AC35: 1230 | AD35: 0.9447004608 | AE35: 0.9447004608 | AF35: A | AG35: SW | AH35: Matching
D38: District | E38: Non-Profit Private School Name | F38: School Code
D39: COLLIER | E39: NAPLES CHRISTIAN ACADEMY | F39: 424

Sheet 12-Columbia
A1: ID | B1: LEANum | C1: LEAName | D1: Snum | E1: School Name | F1: Grade Code | G1: Grade Combination | H1: School Type Code | I1: School Type | J1: Neglected or Delinquent Code | K1: Neglected or Delinquent Yes/No | L1: New School Yes/No | M1: Charter Status Code | N1: Charter Yes/No | O1: Membership (Ages 5-17) | P1: # Reduced ( 3 ) | Q1: # Reduced Direct Cert. ( E ) | R1: # Free Direct Cert. ( D ) | S1: # Free ( F ) | T1: Provision 2 (4) | U1: #Free Direct Cert. ( C ) | V1: # Reduced Direct Cert. ( R ) | W1: LEANum | X1: LEAName | Y1: SNum | Z1: School Name | AA1: School type | AB1: Total Students | AC1: Number CLIF | AD1: %CLIF | AE1: Percent CLIF | AF1: Selection Code | AG1: Program Type | AH1: MTW Status
A2: 120261 | B2: 12 | C2: COLUMBIA | D2: 0261 | E2: COLUMBIA CITY ELEMENTARY SCHOOL | F2: 8 | G2: PREK-5 | H2: 1 | I2: Elementary | J2: Z | K2: NO | L2: NO | M2: Z | N2: NO | O2: 545 | P2: 0 | Q2: 0 | R2: 0 | S2: 0 | T2: 0 | U2: 329 | V2: 2 | W2: 12 | X2: COLUMBIA | Y2: 261 | Z2: COLUMBIA CITY ELEMETARY SCHOOL | AA2: Elementary | AB2: 521 | AC2: 279 | AD2: 0.5355086372 | AE2: 0.5355 | AF2: D | AG2: SW | AH2: Matching
A3: 120161 | B3: 12 | C3: COLUMBIA | D3: 0161 | E3: NIBLACK ELEMENTARY SCHOOL | F3: 8 | G3: PREK-5 | H3: 1 | I3: Elementary | J3: Z | K3: NO | L3: NO | M3: Z | N3: NO | O3: 266 | P3: 0 | Q3: 0 | R3: 0 | S3: 0 | T3: 0 | U3: 245 | V3: 0 | W3: 12 | X3: COLUMBIA | Y3: 161 | Z3: NIBLACK ELEMENTARY SCHOOL | AA3: Elementary | AB3: 265 | AC3: 229 | AD3: 0.8641509434 | AE3: 0.8641509434 | AF3: A | AG3: SW | AH3: Matching
A4: 120291 | B4: 12 | C4: COLUMBIA | D4: 0291 | E4: PINEMOUNT ELEMENTARY SCHOOL | F4: 8 | G4: PREK-5 | H4: 1 | I4: Elementary | J4: Z | K4: NO | L4: NO | M4: Z | N4: NO | O4: 425 | P4: 0 | Q4: 0 | R4: 0 | S4: 0 | T4: 0 | U4: 283 | V4: 0 | W4: 12 | X4: COLUMBIA | Y4: 291 | Z4: PINEMOUNT ELEMENTARY SCHOOL | AA4: Elementary | AB4: 422 | AC4: 241 | AD4: 0.5710900474 | AE4: 0.5711 | AF4: B | AG4: SW | AH4: Matching
A5: 120091 | B5: 12 | C5: COLUMBIA | D5: 0091 | E5: FIVE POINTS ELEMENTARY SCHOOL | F5: 8 | G5: PREK-5 | H5: 1 | I5: Elementary | J5: Z | K5: NO | L5: NO | M5: Z | N5: NO | O5: 369 | P5: 0 | Q5: 0 | R5: 0 | S5: 0 | T5: 0 | U5: 311 | V5: 0 | W5: 12 | X5: COLUMBIA | Y5: 91 | Z5: FIVE POINTS ELEMENTARY SCHOOL | AA5: Elementary | AB5: 360 | AC5: 283 | AD5: 0.7861111111 | AE5: 0.7861111111 | AF5: A | AG5: SW | AH5: Matching
A6: 120121 | B6: 12 | C6: COLUMBIA | D6: 0121 | E6: FORT WHITE ELEMENTARY SCHOOL | F6: 8 | G6: PREK-5 | H6: 1 | I6: Elementary | J6: Z | K6: NO | L6: NO | M6: Z | N6: NO | O6: 609 | P6: 0 | Q6: 0 | R6: 0 | S6: 0 | T6: 0 | U6: 410 | V6: 1 | W6: 12 | X6: COLUMBIA | Y6: 121 | Z6: FORT WHITE ELEMENTARY SCHOOL | AA6: Elementary | AB6: 594 | AC6: 381 | AD6: 0.6414141414 | AE6: 0.6414 | AF6: B | AG6: SW | AH6: Matching
A7: 120241 | B7: 12 | C7: COLUMBIA | D7: 0241 | E7: LAKE CITY MIDDLE SCHOOL | F7: 73 | G7: 7-8 | H7: 2 | I7: Middle/Junior | J7: Z | K7: NO | L7: NO | M7: Z | N7: NO | O7: 983 | P7: 0 | Q7: 0 | R7: 0 | S7: 0 | T7: 0 | U7: 608 | V7: 0 | W7: 12 | X7: COLUMBIA | Y7: 241 | Z7: LAKE CITY MIDDLE SCHOOL | AA7: Middle/Junior | AB7: 1003 | AC7: 529 | AD7: 0.5274177468 | AE7: 0.5274 | AF7: D | AG7: SW | AH7: Matching
A8: 120081 | B8: 12 | C8: COLUMBIA | D8: 0081 | E8: EASTSIDE ELEMENTARY SCHOOL | F8: 8 | G8: PREK-5 | H8: 1 | I8: Elementary | J8: Z | K8: NO | L8: NO | M8: Z | N8: NO | O8: 607 | P8: 0 | Q8: 0 | R8: 0 | S8: 0 | T8: 0 | U8: 376 | V8: 0 | W8: 12 | X8: COLUMBIA | Y8: 81 | Z8: EASTSIDE ELEMENTARY SCHOOL | AA8: Elementary | AB8: 618 | AC8: 312 | AD8: 0.5048543689 | AE8: 0.5049 | AF8: D | AG8: SW | AH8: Matching
A9: 120031 | B9: 12 | C9: COLUMBIA | D9: 0031 | E9: RICHARDSON SIXTH GRADE ACADEMY | F9: 54 | G9: 6 | H9: 2 | I9: Middle/Junior | J9: Z | K9: NO | L9: NO | M9: Z | N9: NO | O9: 488 | P9: 0 | Q9: 0 | R9: 0 | S9: 0 | T9: 0 | U9: 327 | V9: 1 | W9: 12 | X9: COLUMBIA | Y9: 31 | Z9: RICHARDSON SIXTH GRADE ACADEMY | AA9: Middle/Junior | AB9: 527 | AC9: 295 | AD9: 0.559772296 | AE9: 0.5598 | AF9: B | AG9: SW | AH9: Matching
A10: 120141 | B10: 12 | C10: COLUMBIA | D10: 0141 | E10: SUMMERS ELEMENTARY SCHOOL | F10: 8 | G10: PREK-5 | H10: 1 | I10: Elementary | J10: Z | K10: NO | L10: NO | M10: Z | N10: NO | O10: 461 | P10: 0 | Q10: 0 | R10: 0 | S10: 0 | T10: 0 | U10: 355 | V10: 0 | W10: 12 | X10: COLUMBIA | Y10: 141 | Z10: SUMMERS ELEMENTARY SCHOOL | AA10: Elementary | AB10: 464 | AC10: 324 | AD10: 0.6982758621 | AE10: 0.6983 | AF10: B | AG10: SW | AH10: Matching
A11: 120271 | B11: 12 | C11: COLUMBIA | D11: 0271 | E11: WESTSIDE ELEMENTARY SCHOOL | F11: 8 | G11: PREK-5 | H11: 1 | I11: Elementary | J11: Z | K11: NO | L11: NO | M11: Z | N11: NO | O11: 657 | P11: 0 | Q11: 0 | R11: 0 | S11: 0 | T11: 0 | U11: 351 | V11: 0 | W11: 12 | X11: COLUMBIA | Y11: 271 | Z11: WESTSIDE ELEMENTARY SCHOOL | AA11: Elementary | AB11: 679 | AC11: 330 | AD11: 0.4860088365 | AE11: 0.486 | AF11: D | AG11: SW | AH11: Matching
A12: 120071 | B12: 12 | C12: COLUMBIA | D12: 0071 | E12: MELROSE PARK ELEMENTARY SCHOOL | F12: 8 | G12: PREK-5 | H12: 1 | I12: Elementary | J12: Z | K12: NO | L12: NO | M12: Z | N12: NO | O12: 342 | P12: 0 | Q12: 0 | R12: 0 | S12: 0 | T12: 0 | U12: 295 | V12: 0 | W12: 12 | X12: COLUMBIA | Y12: 71 | Z12: MELROSE PARK ELEMENTARY SCHOOL | AA12: Elementary | AB12: 361 | AC12: 291 | AD12: 0.8060941828 | AE12: 0.8060941828 | AF12: A | AG12: SW | AH12: Matching
D15: District | E15: Non-Profit Private School Name | F15: School Code
D16: COLUMBIA | E16: SPRINGVILLE PREPARATORY ACADEMY | F16: 5299
D17: COLUMBIA | E17: CAMBRIDGE PREP ACADEMY INC. | F17: 6289

Sheet 13-Miami-Dade
A1: ID | B1: LEANum | C1: LEAName | D1: Snum | E1: School Name | F1: Grade Code | G1: Grade Combination | H1: School Type Code | I1: School Type | J1: Neglected or Delinquent Code | K1: Neglected or Delinquent Yes/No | L1: New School Yes/No | M1: Charter Status Code | N1: Charter Yes/No | O1: Membership (Ages 5-17) | P1: # Reduced ( 3 ) | Q1: # Reduced Direct Cert. ( E ) | R1: # Free Direct Cert. ( D ) | S1: # Free ( F ) | T1: Provision 2 (4) | U1: #Free Direct Cert. ( C ) | V1: # Reduced Direct Cert. ( R ) | W1: LEANum | X1: LEAName | Y1: SNum | Z1: School Name | AA1: School type | AB1: Total Students | AC1: Number CLIF | AD1: %CLIF | AE1: Percent CLIF | AF1: Selection Code | AG1: Program Type | AH1: MTW Status
A2: 133111 | B2: 13 | C2: MIAMI-DADE | D2: 3111 | E2: WESLEY MATTHEWS ELEM. SCHOOL | F2: 8 | G2: PREK-5 | H2: 1 | I2: Elementary | J2: Z | K2: NO | L2: NO | M2: Z | N2: NO | O2: 473 | P2: 36 | Q2: 12 | R2: 284 | S2: 77 | T2: 0 | U2: 0 | V2: 0 | W2: 13 | X2: MIAMI-DADE | Y2: 3111 | Z2: WESLEY MATTHEWS ELEM. SCHOOL | AA2: Elementary | AB2: 465 | AC2: 378 | AD2: 0.8129032258 | AE2: 0.8129032258 | AF2: A | AG2: SW | AH2: Matching
A3: 131081 | B3: 13 | C3: MIAMI-DADE | D3: 1081 | E3: CORAL TERRACE ELEMENTARY SCHL | F3: 8 | G3: PREK-5 | H3: 1 | I3: Elementary | J3: Z | K3: NO | L3: NO | M3: Z | N3: NO | O3: 398 | P3: 18 | Q3: 7 | R3: 259 | S3: 99 | T3: 0 | U3: 0 | V3: 0 | W3: 13 | X3: MIAMI-DADE | Y3: 1081 | Z3: CORAL TERRACE ELEMENTARY SCHL | AA3: Elementary | AB3: 424 | AC3: 397 | AD3: 0.9363207547 | AE3: 0.9363207547 | AF3: A | AG3: SW | AH3: Matching
A4: 135931 | B4: 13 | C4: MIAMI-DADE | D4: 5931 | E4: PHYLLIS WHEATLEY ELEM. SCHOOL | F4: 8 | G4: PREK-5 | H4: 1 | I4: Elementary | J4: Z | K4: NO | L4: NO | M4: Z | N4: NO | O4: 177 | P4: 0 | Q4: 1 | R4: 146 | S4: 18 | T4: 0 | U4: 0 | V4: 0 | W4: 13 | X4: MIAMI-DADE | Y4: 5931 | Z4: PHYLLIS WHEATLEY ELEM. SCHOOL | AA4: Elementary | AB4: 221 | AC4: 211 | AD4: 0.9547511312 | AE4: 0.9547511312 | AF4: A | AG4: SW | AH4: Matching
A5: 134801 | B5: 13 | C5: MIAMI-DADE | D5: 4801 | E5: GERTRUDE K. EDELMAN/SABAL PALM | F5: 8 | G5: PREK-5 | H5: 1 | I5: Elementary | J5: Z | K5: NO | L5: NO | M5: Z | N5: NO | O5: 446 | P5: 14 | Q5: 4 | R5: 300 | S5: 75 | T5: 0 | U5: 0 | V5: 0 | W5: 13 | X5: MIAMI-DADE | Y5: 4801 | Z5: GERTRUDE K. EDELMAN/SABAL PALM | AA5: Elementary | AB5: 526 | AC5: 473 | AD5: 0.8992395437 | AE5: 0.8992395437 | AF5: A | AG5: SW | AH5: Matching
A6: 135051 | B6: 13 | C6: MIAMI-DADE | D6: 5051 | E6: ERNEST R. GRAHAM K-8 ACADEMY | F6: 27 | G6: PREK-8 | H6: 4 | I6: Combination Elementary & Secondary | J6: Z | K6: NO | L6: NO | M6: Z | N6: NO | O6: 918 | P6: 77 | Q6: 16 | R6: 553 | S6: 122 | T6: 0 | U6: 0 | V6: 0 | W6: 13 | X6: MIAMI-DADE | Y6: 5051 | Z6: ERNEST R. GRAHAM K-8 ACADEMY | AA6: Combination Elementary & Secondary | AB6: 1166 | AC6: 960 | AD6: 0.8233276158 | AE6: 0.8233276158 | AF6: A | AG6: SW | AH6: Matching
A7: 137191 | B7: 13 | C7: MIAMI-DADE | D7: 7191 | E7: HIALEAH GARDENS SENIOR HIGH SCHOOL | F7: 85 | G7: 9-12 | H7: 3 | I7: Senior High | J7: Z | K7: NO | L7: NO | M7: Z | N7: NO | O7: 1888 | P7: 209 | Q7: 22 | R7: 1042 | S7: 301 | T7: 0 | U7: 0 | V7: 0 | W7: 13 | X7: MIAMI-DADE | Y7: 7191 | Z7: HIALEAH GARDENS SENIOR HIGH SCHOOL | AA7: Senior High | AB7: 1971 | AC7: 1616 | AD7: 0.8198883815 | AE7: 0.8198883815 | AF7: A | AG7: SW | AH7: Matching
A8: 130361 | B8: 13 | C8: MIAMI-DADE | D8: 0361 | E8: BISCAYNE GARDENS ELEMENTARY | F8: 8 | G8: PREK-5 | H8: 1 | I8: Elementary | J8: Z | K8: NO | L8: NO | M8: Z | N8: NO | O8: 346 | P8: 13 | Q8: 3 | R8: 239 | S8: 65 | T8: 0 | U8: 0 | V8: 0 | W8: 13 | X8: MIAMI-DADE | Y8: 361 | Z8: BISCAYNE GARDENS ELEMENTARY | AA8: Elementary | AB8: 424 | AC8: 397 | AD8: 0.9363207547 | AE8: 0.9363207547 | AF8: A | AG8: SW | AH8: Matching
A9: 136034 | B9: 13 | C9: MIAMI-DADE | D9: 6034 | E9: BEACON COLLEGE PREP MIDDLE SCHOOL | F9: 67 | G9: 6-8 | H9: 2 | I9: Middle/Junior | J9: Z | K9: NO | L9: NO | M9: R | N9: YES | O9: 202 | P9: 4 | Q9: 0 | R9: 140 | S9: 48 | T9: 0 | U9: 0 | V9: 0 | W9: 13 | X9: MIAMI-DADE | Y9: 6034 | Z9: BEACON COLLEGE PREP MIDDLE SCHOOL | AA9: Middle/Junior | AB9: 207 | AC9: 197 | AD9: 0.9516908213 | AE9: 0.9516908213 | AF9: A | AG9: SW | AH9: Matching
A10: 137151 | B10: 13 | C10: MIAMI-DADE | D10: 7151 | E10: HOMESTEAD SENIOR HIGH SCHOOL | F10: 85 | G10: 9-12 | H10: 3 | I10: Senior High | J10: Z | K10: NO | L10: NO | M10: Z | N10: NO | O10: 1220 | P10: 27 | Q10: 12 | R10: 915 | S10: 163 | T10: 0 | U10: 0 | V10: 0 | W10: 13 | X10: MIAMI-DADE | Y10: 7151 | Z10: HOMESTEAD SENIOR HIGH SCHOOL | AA10: Senior High | AB10: 1316 | AC10: 1176 | AD10: 0.8936170213 | AE10: 0.8936170213 | AF10: A | AG10: SW | AH10: Matching
A11: 135044 | B11: 13 | C11: MIAMI-DADE | D11: 5044 | E11: ACADEMY FOR INTERNATIONAL EDUCATION CHARTER | F11: 15 | G11: K-5 | H11: 1 | I11: Elementary | J11: Z | K11: NO | L11: NO | M11: R | N11: YES | O11: 388 | P11: 12 | Q11: 0 | R11: 39 | S11: 327 | T11: 0 | U11: 0 | V11: 0 | W11: 13 | X11: MIAMI-DADE | Y11: 5044 | Z11: ACADEMY FOR INTERNATIONAL EDUCATION CHARTER | AA11: Elementary | AB11: 369 | AC11: 309 | AD11: 0.837398374 | AE11: 0.837398374 | AF11: A | AG11: SW | AH11: Matching
A12: 131811 | B12: 13 | C12: MIAMI-DADE | D12: 1811 | E12: DANTE B. FASCELL ELEM. SCHOOL | F12: 8 | G12: PREK-5 | H12: 1 | I12: Elementary | J12: Z | K12: NO | L12: NO | M12: Z | N12: NO | O12: 315 | P12: 15 | Q12: 7 | R12: 184 | S12: 59 | T12: 0 | U12: 0 | V12: 0 | W12: 13 | X12: MIAMI-DADE | Y12: 1811 | Z12: DANTE B. FASCELL ELEM. SCHOOL | AA12: Elementary | AB12: 385 | AC12: 347 | AD12: 0.9012987013 | AE12: 0.9012987013 | AF12: A | AG12: SW | AH12: Matching
A13: 130073 | B13: 13 | C13: MIAMI-DADE | D13: 0073 | E13: MANDARIN LAKES K-8 ACADEMY | F13: 27 | G13: PREK-8 | H13: 4 | I13: Combination Elementary & Secondary | J13: Z | K13: NO | L13: NO | M13: Z | N13: NO | O13: 752 | P13: 12 | Q13: 6 | R13: 585 | S13: 82 | T13: 0 | U13: 0 | V13: 0 | W13: 13 | X13: MIAMI-DADE | Y13: 73 | Z13: MANDARIN LAKES K-8 ACADEMY | AA13: Combination Elementary & Secondary | AB13: 846 | AC13: 796 | AD13: 0.9408983452 | AE13: 0.9408983452 | AF13: A | AG13: SW | AH13: Matching
A14: 135561 | B14: 13 | C14: MIAMI-DADE | D14: 5561 | E14: FRANCES S. TUCKER ELEM. SCHOOL | F14: 8 | G14: PREK-5 | H14: 1 | I14: Elementary | J14: Z | K14: NO | L14: NO | M14: Z | N14: NO | O14: 272 | P14: 3 | Q14: 5 | R14: 191 | S14: 38 | T14: 0 | U14: 0 | V14: 0 | W14: 13 | X14: MIAMI-DADE | Y14: 5561 | Z14: FRANCES S. TUCKER ELEM. SCHOOL | AA14: Elementary | AB14: 293 | AC14: 260 | AD14: 0.8873720137 | AE14: 0.8873720137 | AF14: A | AG14: SW | AH14: Matching
A15: 136681 | B15: 13 | C15: MIAMI-DADE | D15: 6681 | E15: PALM SPRINGS MIDDLE SCHOOL | F15: 67 | G15: 6-8 | H15: 2 | I15: Middle/Junior | J15: Z | K15: NO | L15: NO | M15: Z | N15: NO | O15: 731 | P15: 41 | Q15: 6 | R15: 504 | S15: 94 | T15: 0 | U15: 0 | V15: 0 | W15: 13 | X15: MIAMI-DADE | Y15: 6681 | Z15: PALM SPRINGS MIDDLE SCHOOL | AA15: Middle/Junior | AB15: 828 | AC15: 718 | AD15: 0.8671497585 | AE15: 0.8671497585 | AF15: A | AG15: SW | AH15: Matching
A16: 136591 | B16: 13 | C16: MIAMI-DADE | D16: 6591 | E16: NORTH DADE MIDDLE SCHOOL | F16: 67 | G16: 6-8 | H16: 2 | I16: Middle/Junior | J16: Z | K16: NO | L16: NO | M16: Z | N16: NO | O16: 414 | P16: 11 | Q16: 1 | R16: 328 | S16: 53 | T16: 0 | U16: 0 | V16: 0 | W16: 13 | X16: MIAMI-DADE | Y16: 6591 | Z16: NORTH DADE MIDDLE SCHOOL | AA16: Middle/Junior | AB16: 472 | AC16: 436 | AD16: 0.9237288136 | AE16: 0.9237288136 | AF16: A | AG16: SW | AH16: Matching
A17: 136251 | B17: 13 | C17: MIAMI-DADE | D17: 6251 | E17: HOMESTEAD MIDDLE SCHOOL | F17: 67 | G17: 6-8 | H17: 2 | I17: Middle/Junior | J17: Z | K17: NO | L17: NO | M17: Z | N17: NO | O17: 678 | P17: 7 | Q17: 0 | R17: 545 | S17: 78 | T17: 0 | U17: 0 | V17: 0 | W17: 13 | X17: MIAMI-DADE | Y17: 6251 | Z17: HOMESTEAD MIDDLE SCHOOL | AA17: Middle/Junior | AB17: 700 | AC17: 676 | AD17: 0.9657142857 | AE17: 0.9657142857 | AF17: A | AG17: SW | AH17: Matching
A18: 137862 | B18: 13 | C18: MIAMI-DADE | D18: 7862 | E18: SECONDARY STUDENT SUCCESS CENTER 803 | F18: 69 | G18: 6-12 | H18: 3 | I18: Senior High | J18: Z | K18: NO | L18: NO | M18: Z | N18: NO | O18: 45 | P18: 0 | Q18: 0 | R18: 40 | S18: 5 | T18: 0 | U18: 0 | V18: 0 | W18: 13 | X18: MIAMI-DADE | Y18: 7862 | Z18: SECONDARY STUDENT SUCCESS CENTER 803 | AA18: Senior High | AB18: 45 | AC18: 40 | AD18: 0.8888888889 | AE18: 0.8888888889 | AF18: A | AG18: SW | AH18: Matching
A19: 132012 | B19: 13 | C19: MIAMI-DADE | D19: 2012 | E19: SOMERSET ARTS ACADEMY | F19: 15 | G19: K-5 | H19: 1 | I19: Elementary | J19: Z | K19: NO | L19: NO | M19: R | N19: YES | O19: 403 | P19: 37 | Q19: 4 | R19: 192 | S19: 73 | T19: 0 | U19: 0 | V19: 0 | W19: 13 | X19: MIAMI-DADE | Y19: 2012 | Z19: SOMERSET ARTS ACADEMY | AA19: Elementary | AB19: 474 | AC19: 361 | AD19: 0.7616033755 | AE19: 0.7616033755 | AF19: A | AG19: SW | AH19: Matching
A20: 137060 | B20: 13 | C20: MIAMI-DADE | D20: 7060 | E20: EVERGLADES PREPARATORY ACADEMY HIGH SCHOOL | F20: 85 | G20: 9-12 | H20: 3 | I20: Senior High | J20: Z | K20: NO | L20: NO | M20: R | N20: YES | O20: 351 | P20: 21 | Q20: 3 | R20: 81 | S20: 161 | T20: 0 | U20: 0 | V20: 0 | W20: 13 | X20: MIAMI-DADE | Y20: 7060 | Z20: EVERGLADES PREPARATORY ACADEMY HIGH SCHOOL | AA20: Senior High | AB20: 354 | AC20: 288 | AD20: 0.813559322 | AE20: 0.813559322 | AF20: A | AG20: SW | AH20: Matching
A21: 136441 | B21: 13 | C21: MIAMI-DADE | D21: 6441 | E21: HOWARD D. MCMILLAN MIDDLE SCHOOL | F21: 67 | G21: 6-8 | H21: 2 | I21: Middle/Junior | J21: Z | K21: NO | L21: NO | M21: Z | N21: NO | O21: 868 | P21: 92 | Q21: 12 | R21: 428 | S21: 162 | T21: 0 | U21: 0 | V21: 0 | W21: 13 | X21: MIAMI-DADE | Y21: 6441 | Z21: HOWARD D. MCMILLAN MIDDLE SCHOOL | AA21: Middle/Junior | AB21: 1042 | AC21: 790 | AD21: 0.7581573896 | AE21: 0.7581573896 | AF21: A | AG21: SW | AH21: Matching
A22: 137144 | B22: 13 | C22: MIAMI-DADE | D22: 7144 | E22: CHARTER HIGH AMERICAS (FLORIDA CITY CAMPUS) | F22: 85 | G22: 9-12 | H22: 3 | I22: Senior High | J22: Z | K22: NO | L22: NO | M22: R | N22: YES | O22: 22 | P22: 3 | Q22: 0 | R22: 0 | S22: 19 | T22: 0 | U22: 0 | V22: 0 | W22: 13 | X22: MIAMI-DADE | Y22: 7144 | Z22: CHARTER HIGH AMERICAS (FLORIDA CITY CAMPUS) | AA22: Senior High | AB22: 7 | AC22: 7 | AD22: 1 | AE22: 1 | AF22: A | AG22: SW | AH22: Matching
A23: 131017 | B23: 13 | C23: MIAMI-DADE | D23: 1017 | E23: MATER ACADEMY OF INTERNATIONAL STUDIES | F23: 15 | G23: K-5 | H23: 1 | I23: Elementary | J23: Z | K23: NO | L23: NO | M23: R | N23: YES | O23: 486 | P23: 14 | Q23: 0 | R23: 334 | S23: 114 | T23: 0 | U23: 0 | V23: 0 | W23: 13 | X23: MIAMI-DADE | Y23: 1017 | Z23: MATER ACADEMY OF INTERNATIONAL STUDIES | AA23: Elementary | AB23: 487 | AC23: 476 | AD23: 0.977412731 | AE23: 0.977412731 | AF23: A | AG23: SW | AH23: Matching
A24: 135521 | B24: 13 | C24: MIAMI-DADE | D24: 5521 | E24: TROPICAL ELEMENTARY SCHOOL | F24: 8 | G24: PREK-5 | H24: 1 | I24: Elementary | J24: Z | K24: NO | L24: NO | M24: Z | N24: NO | O24: 291 | P24: 9 | Q24: 2 | R24: 164 | S24: 61 | T24: 0 | U24: 0 | V24: 0 | W24: 13 | X24: MIAMI-DADE | Y24: 5521 | Z24: TROPICAL ELEMENTARY SCHOOL | AA24: Elementary | AB24: 287 | AC24: 234 | AD24: 0.8153310105 | AE24: 0.8153310105 | AF24: A | AG24: SW | AH24: Matching
A25: 137371 | B25: 13 | C25: MIAMI-DADE | D25: 7371 | E25: ROBERT MORGAN EDUCATIONAL CENTER | F25: 85 | G25: 9-12 | H25: 3 | I25: Senior High | J25: Z | K25: NO | L25: NO | M25: Z | N25: NO | O25: 1405 | P25: 128 | Q25: 14 | R25: 770 | S25: 215 | T25: 0 | U25: 0 | V25: 0 | W25: 13 | X25: MIAMI-DADE | Y25: 7371 | Z25: ROBERT MORGAN EDUCATIONAL CENTER | AA25: Senior High | AB25: 1520 | AC25: 1141 | AD25: 0.7506578947 | AE25: 0.7506578947 | AF25: A | AG25: SW | AH25: Matching
A26: 138101 | B26: 13 | C26: MIAMI-DADE | D26: 8101 | E26: JANN MANN EDUCATIONAL CENTER | F26: 63 | G26: 5-12 | H26: 3 | I26: Senior High | J26: Z | K26: NO | L26: NO | M26: Z | N26: NO | O26: 68 | P26: 1 | Q26: 0 | R26: 53 | S26: 4 | T26: 0 | U26: 0 | V26: 0 | W26: 13 | X26: MIAMI-DADE | Y26: 8101 | Z26: JANN MANN EDUCATIONAL CENTER | AA26: Senior High | AB26: 131 | AC26: 123 | AD26: 0.9389312977 | AE26: 0.9389312977 | AF26: A | AG26: SW | AH26: Matching
A27: 133381 | B27: 13 | C27: MIAMI-DADE | D27: 3381 | E27: MIAMI SPRINGS ELEMENTARY SCHL | F27: 8 | G27: PREK-5 | H27: 1 | I27: Elementary | J27: Z | K27: NO | L27: NO | M27: Z | N27: NO | O27: 310 | P27: 20 | Q27: 5 | R27: 198 | S27: 41 | T27: 0 | U27: 0 | V27: 0 | W27: 13 | X27: MIAMI-DADE | Y27: 3381 | Z27: MIAMI SPRINGS ELEMENTARY SCHL | AA27: Elementary | AB27: 349 | AC27: 290 | AD27: 0.8309455587 | AE27: 0.8309455587 | AF27: A | AG27: SW | AH27: Matching
A28: 136082 | B28: 13 | C28: MIAMI-DADE | D28: 6082 | E28: ACADEMIR CHARTER SCHOOL MIDDLE | F28: 67 | G28: 6-8 | H28: 2 | I28: Middle/Junior | J28: Z | K28: NO | L28: NO | M28: R | N28: YES | O28: 331 | P28: 37 | Q28: 5 | R28: 71 | S28: 150 | T28: 0 | U28: 0 | V28: 0 | W28: 13 | X28: MIAMI-DADE | Y28: 6082 | Z28: ACADEMIR CHARTER SCHOOL MIDDLE | AA28: Middle/Junior | AB28: 361 | AC28: 277 | AD28: 0.7673130194 | AE28: 0.7673130194 | AF28: A | AG28: SW | AH28: Matching
A29: 130641 | B29: 13 | C29: MIAMI-DADE | D29: 0641 | E29: BUNCHE PARK ELEMENTARY SCHOOL | F29: 8 | G29: PREK-5 | H29: 1 | I29: Elementary | J29: Z | K29: NO | L29: NO | M29: Z | N29: NO | O29: 259 | P29: 6 | Q29: 3 | R29: 212 | S29: 27 | T29: 0 | U29: 0 | V29: 0 | W29: 13 | X29: MIAMI-DADE | Y29: 641 | Z29: BUNCHE PARK ELEMENTARY SCHOOL | AA29: Elementary | AB29: 324 | AC29: 313 | AD29: 0.9660493827 | AE29: 0.9660493827 | AF29: A | AG29: SW | AH29: Matching
A30: 134611 | B30: 13 | C30: MIAMI-DADE | D30: 4611 | E30: REDONDO ELEMENTARY SCHOOL | F30: 7 | G30: PREK-3 | H30: 1 | I30: Elementary | J30: Z | K30: NO | L30: NO | M30: Z | N30: NO | O30: 472 | P30: 2 | Q30: 3 | R30: 286 | S30: 165 | T30: 0 | U30: 0 | V30: 0 | W30: 13 | X30: MIAMI-DADE | Y30: 4611 | Z30: REDONDO ELEMENTARY SCHOOL | AA30: Elementary | AB30: 556 | AC30: 544 | AD30: 0.9784172662 | AE30: 0.9784172662 | AF30: A | AG30: SW | AH30: Matching
A31: 137033 | B31: 13 | C31: MIAMI-DADE | D31: 7033 | E31: LAW ENFORCEMENT OFFICERS MEMORIAL HIGH SCHOOL | F31: 85 | G31: 9-12 | H31: 3 | I31: Senior High | J31: Z | K31: NO | L31: NO | M31: Z | N31: NO | O31: 227 | P31: 15 | Q31: 4 | R31: 125 | S31: 41 | T31: 0 | U31: 0 | V31: 0 | W31: 13 | X31: MIAMI-DADE | Y31: 7033 | Z31: LAW ENFORCEMENT OFFICERS MEMORIAL HIGH SCHOOL | AA31: Senior High | AB31: 256 | AC31: 209 | AD31: 0.81640625 | AE31: 0.81640625 | AF31: A | AG31: SW | AH31: Matching
A32: 133181 | B32: 13 | C32: MIAMI-DADE | D32: 3181 | E32: MELROSE ELEMENTARY SCHOOL | F32: 8 | G32: PREK-5 | H32: 1 | I32: Elementary | J32: Z | K32: NO | L32: NO | M32: Z | N32: NO | O32: 341 | P32: 8 | Q32: 0 | R32: 220 | S32: 66 | T32: 0 | U32: 0 | V32: 0 | W32: 13 | X32: MIAMI-DADE | Y32: 3181 | Z32: MELROSE ELEMENTARY SCHOOL | AA32: Elementary | AB32: 382 | AC32: 334 | AD32: 0.8743455497 | AE32: 0.8743455497 | AF32: A | AG32: SW | AH32: Matching
A33: 135711 | B33: 13 | C33: MIAMI-DADE | D33: 5711 | E33: MAE M. WALTERS ELEMENTARY SCHL | F33: 8 | G33: PREK-5 | H33: 1 | I33: Elementary | J33: Z | K33: NO | L33: NO | M33: Z | N33: NO | O33: 507 | P33: 33 | Q33: 5 | R33: 356 | S33: 73 | T33: 0 | U33: 0 | V33: 0 | W33: 13 | X33: MIAMI-DADE | Y33: 5711 | Z33: MAE M. WALTERS ELEMENTARY SCHL | AA33: Elementary | AB33: 506 | AC33: 456 | AD33: 0.9011857708 | AE33: 0.9011857708 | AF33: A | AG33: SW | AH33: Matching
A34: 136111 | B34: 13 | C34: MIAMI-DADE | D34: 6111 | E34: CUTLER BAY MIDDLE | F34: 67 | G34: 6-8 | H34: 2 | I34: Middle/Junior | J34: Z | K34: NO | L34: NO | M34: Z | N34: NO | O34: 1008 | P34: 36 | Q34: 10 | R34: 704 | S34: 132 | T34: 0 | U34: 0 | V34: 0 | W34: 13 | X34: MIAMI-DADE | Y34: 6111 | Z34: CUTLER BAY MIDDLE | AA34: Middle/Junior | AB34: 900 | AC34: 775 | AD34: 0.8611111111 | AE34: 0.8611111111 | AF34: A | AG34: SW | AH34: Matching
A35: 131721 | B35: 13 | C35: MIAMI-DADE | D35: 1721 | E35: EVERGLADES K-8 CENTER | F35: 27 | G35: PREK-8 | H35: 4 | I35: Combination Elementary & Secondary | J35: Z | K35: NO | L35: NO | M35: Z | N35: NO | O35: 808 | P35: 67 | Q35: 15 | R35: 487 | S35: 85 | T35: 0 | U35: 0 | V35: 0 | W35: 13 | X35: MIAMI-DADE | Y35: 1721 | Z35: EVERGLADES K-8 CENTER | AA35: Combination Elementary & Secondary | AB35: 905 | AC35: 685 | AD35: 0.7569060773 | AE35: 0.7569060773 | AF35: A | AG35: SW | AH35: Matching
A36: 134241 | B36: 13 | C36: MIAMI-DADE | D36: 4241 | E36: PALM LAKES ELEMENTARY SCHOOL | F36: 8 | G36: PREK-5 | H36: 1 | I36: Elementary | J36: Z | K36: NO | L36: NO | M36: Z | N36: NO | O36: 468 | P36: 24 | Q36: 8 | R36: 277 | S36: 63 | T36: 0 | U36: 0 | V36: 0 | W36: 13 | X36: MIAMI-DADE | Y36: 4241 | Z36: PALM LAKES ELEMENTARY SCHOOL | AA36: Elementary | AB36: 567 | AC36: 451 | AD36: 0.7954144621 | AE36: 0.7954144621 | AF36: A | AG36: SW | AH36: Matching
A37: 132151 | B37: 13 | C37: MIAMI-DADE | D37: 2151 | E37: JACK DAVID GORDON ELEMENTARY SCHOOL | F37: 8 | G37: PREK-5 | H37: 1 | I37: Elementary | J37: Z | K37: NO | L37: NO | M37: Z | N37: NO | O37: 774 | P37: 52 | Q37: 7 | R37: 383 | S37: 143 | T37: 0 | U37: 0 | V37: 0 | W37: 13 | X37: MIAMI-DADE | Y37: 2151 | Z37: JACK DAVID GORDON ELEMENTARY SCHOOL | AA37: Elementary | AB37: 871 | AC37: 654 | AD37: 0.7508610792 | AE37: 0.7508610792 | AF37: A | AG37: SW | AH37: Matching
A38: 133821 | B38: 13 | C38: MIAMI-DADE | D38: 3821 | E38: NORTH COUNTY K-8 CENTER | F38: 27 | G38: PREK-8 | H38: 4 | I38: Combination Elementary & Secondary | J38: Z | K38: NO | L38: NO | M38: Z | N38: NO | O38: 335 | P38: 14 | Q38: 2 | R38: 259 | S38: 53 | T38: 0 | U38: 0 | V38: 0 | W38: 13 | X38: MIAMI-DADE | Y38: 3821 | Z38: NORTH COUNTY K-8 CENTER | AA38: Combination Elementary & Secondary | AB38: 371 | AC38: 350 | AD38: 0.9433962264 | AE38: 0.9433962264 | AF38: A | AG38: SW | AH38: Matching
A39: 130311 | B39: 13 | C39: MIAMI-DADE | D39: 0311 | E39: GOULDS ELEMENTARY SCHOOL | F39: 8 | G39: PREK-5 | H39: 1 | I39: Elementary | J39: Z | K39: NO | L39: NO | M39: Z | N39: NO | O39: 320 | P39: 2 | Q39: 1 | R39: 250 | S39: 30 | T39: 0 | U39: 0 | V39: 0 | W39: 13 | X39: MIAMI-DADE | Y39: 311 | Z39: GOULDS ELEMENTARY SCHOOL | AA39: Elementary | AB39: 307 | AC39: 285 | AD39: 0.9283387622 | AE39: 0.9283387622 | AF39: A | AG39: SW | AH39: Matching
A40: 136301 | B40: 13 | C40: MIAMI-DADE | D40: 6301 | E40: JOHN F. KENNEDY MIDDLE SCHOOL | F40: 67 | G40: 6-8 | H40: 2 | I40: Middle/Junior | J40: Z | K40: NO | L40: NO | M40: Z | N40: NO | O40: 1060 | P40: 52 | Q40: 19 | R40: 688 | S40: 198 | T40: 0 | U40: 0 | V40: 0 | W40: 13 | X40: MIAMI-DADE | Y40: 6301 | Z40: JOHN F. KENNEDY MIDDLE SCHOOL | AA40: Middle/Junior | AB40: 1127 | AC40: 977 | AD40: 0.8669032831 | AE40: 0.8669032831 | AF40: A | AG40: SW | AH40: Matching
A41: 137741 | B41: 13 | C41: MIAMI-DADE | D41: 7741 | E41: SOUTHWEST MIAMI SENIOR HIGH | F41: 85 | G41: 9-12 | H41: 3 | I41: Senior High | J41: Z | K41: NO | L41: NO | M41: Z | N41: NO | O41: 1742 | P41: 150 | Q41: 17 | R41: 911 | S41: 263 | T41: 0 | U41: 0 | V41: 0 | W41: 13 | X41: MIAMI-DADE | Y41: 7741 | Z41: SOUTHWEST MIAMI SENIOR HIGH | AA41: Senior High | AB41: 1779 | AC41: 1360 | AD41: 0.7644744238 | AE41: 0.7644744238 | AF41: A | AG41: SW | AH41: Matching
A42: 137731 | B42: 13 | C42: MIAMI-DADE | D42: 7731 | E42: MIAMI SOUTHRIDGE SENIOR HIGH | F42: 80 | G42: 8-12 | H42: 3 | I42: Senior High | J42: Z | K42: NO | L42: NO | M42: Z | N42: NO | O42: 1382 | P42: 73 | Q42: 13 | R42: 909 | S42: 195 | T42: 0 | U42: 0 | V42: 0 | W42: 13 | X42: MIAMI-DADE | Y42: 7731 | Z42: MIAMI SOUTHRIDGE SENIOR HIGH | AA42: Senior High | AB42: 1328 | AC42: 1112 | AD42: 0.8373493976 | AE42: 0.8373493976 | AF42: A | AG42: SW | AH42: Matching
A43: 137511 | B43: 13 | C43: MIAMI-DADE | D43: 7511 | E43: MIAMI SPRINGS SENIOR HIGH SCHL | F43: 85 | G43: 9-12 | H43: 3 | I43: Senior High | J43: Z | K43: NO | L43: NO | M43: Z | N43: NO | O43: 723 | P43: 40 | Q43: 6 | R43: 457 | S43: 108 | T43: 0 | U43: 0 | V43: 0 | W43: 13 | X43: MIAMI-DADE | Y43: 7511 | Z43: MIAMI SPRINGS SENIOR HIGH SCHL | AA43: Senior High | AB43: 907 | AC43: 716 | AD43: 0.789415656 | AE43: 0.789415656 | AF43: A | AG43: SW | AH43: Matching
A44: 136011 | B44: 13 | C44: MIAMI-DADE | D44: 6011 | E44: GEORGIA JONES AYERS MIDDLE SCHOOL | F44: 67 | G44: 6-8 | H44: 2 | I44: Middle/Junior | J44: Z | K44: NO | L44: NO | M44: Z | N44: NO | O44: 498 | P44: 6 | Q44: 8 | R44: 339 | S44: 93 | T44: 0 | U44: 0 | V44: 0 | W44: 13 | X44: MIAMI-DADE | Y44: 6011 | Z44: GEORGIA JONES AYERS MIDDLE SCHOOL | AA44: Middle/Junior | AB44: 530 | AC44: 493 | AD44: 0.9301886792 | AE44: 0.9301886792 | AF44: A | AG44: SW | AH44: Matching
A45: 137411 | B45: 13 | C45: MIAMI-DADE | D45: 7411 | E45: MIAMI NORTHWESTERN SENIOR HIGH | F45: 85 | G45: 9-12 | H45: 3 | I45: Senior High | J45: Z | K45: NO | L45: NO | M45: Z | N45: NO | O45: 1025 | P45: 37 | Q45: 9 | R45: 757 | S45: 141 | T45: 0 | U45: 0 | V45: 0 | W45: 13 | X45: MIAMI-DADE | Y45: 7411 | Z45: MIAMI NORTHWESTERN SENIOR HIGH | AA45: Senior High | AB45: 1088 | AC45: 968 | AD45: 0.8897058824 | AE45: 0.8897058824 | AF45: A | AG45: SW | AH45: Matching
A46: 132651 | B46: 13 | C46: MIAMI-DADE | D46: 2651 | E46: KENDALE LAKES ELEMENTARY SCHL | F46: 8 | G46: PREK-5 | H46: 1 | I46: Elementary | J46: Z | K46: NO | L46: NO | M46: Z | N46: NO | O46: 604 | P46: 53 | Q46: 9 | R46: 337 | S46: 76 | T46: 0 | U46: 0 | V46: 0 | W46: 13 | X46: MIAMI-DADE | Y46: 2651 | Z46: KENDALE LAKES ELEMENTARY SCHL | AA46: Elementary | AB46: 682 | AC46: 521 | AD46: 0.7639296188 | AE46: 0.7639296188 | AF46: A | AG46: SW | AH46: Matching
A47: 135791 | B47: 13 | C47: MIAMI-DADE | D47: 5791 | E47: WEST HOMESTEAD K-8 CENTER | F47: 109 | G47: PK-7 | H47: 4 | I47: Combination Elementary & Secondary | J47: Z | K47: NO | L47: NO | M47: Z | N47: NO | O47: 819 | P47: 17 | Q47: 2 | R47: 465 | S47: 318 | T47: 0 | U47: 0 | V47: 0 | W47: 13 | X47: MIAMI-DADE | Y47: 5791 | Z47: WEST HOMESTEAD K-8 CENTER | AA47: Combination Elementary & Secondary | AB47: 928 | AC47: 909 | AD47: 0.9795258621 | AE47: 0.9795258621 | AF47: A | AG47: SW | AH47: Matching
A48: 130881 | B48: 13 | C48: MIAMI-DADE | D48: 0881 | E48: COMSTOCK ELEMENTARY SCHOOL | F48: 8 | G48: PREK-5 | H48: 1 | I48: Elementary | J48: Z | K48: NO | L48: NO | M48: Z | N48: NO | O48: 497 | P48: 6 | Q48: 2 | R48: 335 | S48: 98 | T48: 0 | U48: 0 | V48: 0 | W48: 13 | X48: MIAMI-DADE | Y48: 881 | Z48: COMSTOCK ELEMENTARY SCHOOL | AA48: Elementary | AB48: 487 | AC48: 466 | AD48: 0.9568788501 | AE48: 0.9568788501 | AF48: A | AG48: SW | AH48: Matching
A49: 131371 | B49: 13 | C49: MIAMI-DADE | D49: 1371 | E49: MARJORY STONEMAN DOUGLAS ELEM | F49: 8 | G49: PREK-5 | H49: 1 | I49: Elementary | J49: Z | K49: NO | L49: NO | M49: Z | N49: NO | O49: 615 | P49: 49 | Q49: 12 | R49: 334 | S49: 85 | T49: 0 | U49: 0 | V49: 0 | W49: 13 | X49: MIAMI-DADE | Y49: 1371 | Z49: MARJORY STONEMAN DOUGLAS ELEM | AA49: Elementary | AB49: 724 | AC49: 558 | AD49: 0.770718232 | AE49: 0.770718232 | AF49: A | AG49: SW | AH49: Matching
A50: 130451 | B50: 13 | C50: MIAMI-DADE | D50: 0451 | E50: BOWMAN ASHE/DOOLIN K-8 ACADEMY | F50: 27 | G50: PREK-8 | H50: 4 | I50: Combination Elementary & Secondary | J50: Z | K50: NO | L50: NO | M50: Z | N50: NO | O50: 802 | P50: 71 | Q50: 14 | R50: 482 | S50: 117 | T50: 0 | U50: 0 | V50: 0 | W50: 13 | X50: MIAMI-DADE | Y50: 451 | Z50: BOWMAN ASHE/DOOLIN K-8 ACADEMY | AA50: Combination Elementary & Secondary | AB50: 838 | AC50: 681 | AD50: 0.8126491647 | AE50: 0.8126491647 | AF50: A | AG50: SW | AH50: Matching
A51: 137262 | B51: 13 | C51: MIAMI-DADE | D51: 7262 | E51: CITY OF HIALEAH EDUCATIONAL ACADEMY | F51: 69 | G51: 6-12 | H51: 3 | I51: Senior High | J51: Z | K51: NO | L51: NO | M51: R | N51: YES | O51: 810 | P51: 51 | Q51: 3 | R51: 447 | S51: 235 | T51: 0 | U51: 0 | V51: 0 | W51: 13 | X51: MIAMI-DADE | Y51: 7262 | Z51: CITY OF HIALEAH EDUCATION ACADEMY | AA51: Senior High | AB51: 798 | AC51: 718 | AD51: 0.8997493734 | AE51: 0.8997493734 | AF51: A | AG51: SW | AH51: Matching
A52: 135410 | B52: 13 | C52: MIAMI-DADE | D52: 5410 | E52: ALPHA CHARTER OF EXCELLENCE | F52: 15 | G52: K-5 | H52: 1 | I52: Elementary | J52: Z | K52: NO | L52: NO | M52: R | N52: YES | O52: 288 | P52: 14 | Q52: 0 | R52: 191 | S52: 72 | T52: 0 | U52: 0 | V52: 0 | W52: 13 | X52: MIAMI-DADE | Y52: 5410 | Z52: ALPHA CHARTER OF EXCELLENCE | AA52: Elementary | AB52: 308 | AC52: 297 | AD52: 0.9642857143 | AE52: 0.9642857143 | AF52: A | AG52: SW | AH52: Matching
A53: 134061 | B53: 13 | C53: MIAMI-DADE | D53: 4061 | E53: OJUS ELEMENTARY SCHOOL | F53: 8 | G53: PREK-5 | H53: 1 | I53: Elementary | J53: Z | K53: NO | L53: NO | M53: Z | N53: NO | O53: 768 | P53: 46 | Q53: 8 | R53: 437 | S53: 154 | T53: 0 | U53: 0 | V53: 0 | W53: 13 | X53: MIAMI-DADE | Y53: 4061 | Z53: OJUS ELEMENTARY SCHOOL | AA53: Elementary | AB53: 934 | AC53: 705 | AD53: 0.7548179872 | AE53: 0.7548179872 | AF53: A | AG53: SW | AH53: Matching
A54: 133781 | B54: 13 | C54: MIAMI-DADE | D54: 3781 | E54: BARBARA HAWKINS ELEM. SCHOOL | F54: 8 | G54: PREK-5 | H54: 1 | I54: Elementary | J54: Z | K54: NO | L54: NO | M54: Z | N54: NO | O54: 243 | P54: 4 | Q54: 2 | R54: 193 | S54: 24 | T54: 0 | U54: 0 | V54: 0 | W54: 13 | X54: MIAMI-DADE | Y54: 3781 | Z54: BARBARA HAWKINS ELEM. SCHOOL | AA54: Elementary | AB54: 277 | AC54: 271 | AD54: 0.9783393502 | AE54: 0.9783393502 | AF54: A | AG54: SW | AH54: Matching
A55: 132801 | B55: 13 | C55: MIAMI-DADE | D55: 2801 | E55: LAKE STEVENS ELEMENTARY SCHOOL | F55: 8 | G55: PREK-5 | H55: 1 | I55: Elementary | J55: Z | K55: NO | L55: NO | M55: Z | N55: NO | O55: 209 | P55: 6 | Q55: 2 | R55: 146 | S55: 35 | T55: 0 | U55: 0 | V55: 0 | W55: 13 | X55: MIAMI-DADE | Y55: 2801 | Z55: LAKE STEVENS ELEMENTARY SCHOOL | AA55: Elementary | AB55: 253 | AC55: 235 | AD55: 0.9288537549 | AE55: 0.9288537549 | AF55: A | AG55: SW | AH55: Matching
A56: 137014 | B56: 13 | C56: MIAMI-DADE | D56: 7014 | E56: MATER PERFORMING ARTS & ENTERTAINMENT ACADEMY | F56: 85 | G56: 9-12 | H56: 3 | I56: Senior High | J56: Z | K56: NO | L56: NO | M56: R | N56: YES | O56: 252 | P56: 33 | Q56: 2 | R56: 121 | S56: 46 | T56: 0 | U56: 0 | V56: 0 | W56: 13 | X56: MIAMI-DADE | Y56: 7014 | Z56: MATER PERFORMING ARTS & ENTERTAINMENT ACADEMY | AA56: Senior High | AB56: 238 | AC56: 195 | AD56: 0.8193277311 | AE56: 0.8193277311 | AF56: A | AG56: SW | AH56: Matching
A57: 136761 | B57: 13 | C57: MIAMI-DADE | D57: 6761 | E57: REDLAND MIDDLE SCHOOL | F57: 67 | G57: 6-8 | H57: 2 | I57: Middle/Junior | J57: Z | K57: NO | L57: NO | M57: Z | N57: NO | O57: 572 | P57: 27 | Q57: 4 | R57: 412 | S57: 86 | T57: 0 | U57: 0 | V57: 0 | W57: 13 | X57: MIAMI-DADE | Y57: 6761 | Z57: REDLAND MIDDLE SCHOOL | AA57: Middle/Junior | AB57: 589 | AC57: 532 | AD57: 0.9032258065 | AE57: 0.9032258065 | AF57: A | AG57: SW | AH57: Matching
A58: 132511 | B58: 13 | C58: MIAMI-DADE | D58: 2511 | E58: ZORA NEALE HURSTON ELEMENTARY SCHOOL | F58: 8 | G58: PREK-5 | H58: 1 | I58: Elementary | J58: Z | K58: NO | L58: NO | M58: Z | N58: NO | O58: 367 | P58: 35 | Q58: 4 | R58: 198 | S58: 59 | T58: 0 | U58: 0 | V58: 0 | W58: 13 | X58: MIAMI-DADE | Y58: 2511 | Z58: ZORA NEALE HURSTON ELEMENTARY SCHOOL | AA58: Elementary | AB58: 415 | AC58: 335 | AD58: 0.8072289157 | AE58: 0.8072289157 | AF58: A | AG58: SW | AH58: Matching
A59: 133501 | B59: 13 | C59: MIAMI-DADE | D59: 3501 | E59: MORNINGSIDE K-8 ACADEMY | F59: 27 | G59: PREK-8 | H59: 4 | I59: Combination Elementary & Secondary | J59: Z | K59: NO | L59: NO | M59: Z | N59: NO | O59: 378 | P59: 18 | Q59: 1 | R59: 261 | S59: 51 | T59: 0 | U59: 0 | V59: 0 | W59: 13 | X59: MIAMI-DADE | Y59: 3501 | Z59: MORNINGSIDE K-8 ACADEMY | AA59: Combination Elementary & Secondary | AB59: 490 | AC59: 425 | AD59: 0.8673469388 | AE59: 0.8673469388 | AF59: A | AG59: SW | AH59: Matching
A60: 132001 | B60: 13 | C60: MIAMI-DADE | D60: 2001 | E60: FLORIDA CITY ELEMENTARY SCHOOL | F60: 8 | G60: PREK-5 | H60: 1 | I60: Elementary | J60: Z | K60: NO | L60: NO | M60: Z | N60: NO | O60: 578 | P60: 4 | Q60: 3 | R60: 491 | S60: 39 | T60: 0 | U60: 0 | V60: 0 | W60: 13 | X60: MIAMI-DADE | Y60: 2001 | Z60: FLORIDA CITY ELEMENTARY SCHOOL | AA60: Elementary | AB60: 659 | AC60: 635 | AD60: 0.9635811836 | AE60: 0.9635811836 | AF60: A | AG60: SW | AH60: Matching
A61: 132941 | B61: 13 | C61: MIAMI-DADE | D61: 2941 | E61: LAURA C. SAUNDERS ELEM. SCHOOL | F61: 8 | G61: PREK-5 | H61: 1 | I61: Elementary | J61: Z | K61: NO | L61: NO | M61: Z | N61: NO | O61: 525 | P61: 0 | Q61: 1 | R61: 417 | S61: 107 | T61: 0 | U61: 0 | V61: 0 | W61: 13 | X61: MIAMI-DADE | Y61: 2941 | Z61: LAURA C. SAUNDERS ELEM. SCHOOL | AA61: Elementary | AB61: 640 | AC61: 630 | AD61: 0.984375 | AE61: 0.984375 | AF61: A | AG61: SW | AH61: Matching
A62: 136221 | B62: 13 | C62: MIAMI-DADE | D62: 6221 | E62: HAMMOCKS MIDDLE SCHOOL | F62: 67 | G62: 6-8 | H62: 2 | I62: Middle/Junior | J62: Z | K62: NO | L62: NO | M62: Z | N62: NO | O62: 586 | P62: 43 | Q62: 6 | R62: 307 | S62: 91 | T62: 0 | U62: 0 | V62: 0 | W62: 13 | X62: MIAMI-DADE | Y62: 6221 | Z62: HAMMOCKS MIDDLE SCHOOL | AA62: Middle/Junior | AB62: 614 | AC62: 463 | AD62: 0.7540716612 | AE62: 0.7540716612 | AF62: A | AG62: SW | AH62: Matching
A63: 131070 | B63: 13 | C63: MIAMI-DADE | D63: 1070 | E63: SOUTH FLORIDA AUTISM CHARTER SCHOOL INC | F63: 28 | G63: K-12 | H63: 4 | I63: Combination Elementary & Secondary | J63: Z | K63: NO | L63: NO | M63: R | N63: YES | O63: 183 | P63: 18 | Q63: 0 | R63: 88 | S63: 28 | T63: 0 | U63: 0 | V63: 0 | W63: 13 | X63: MIAMI-DADE | Y63: 1070 | Z63: SOUTH FLORIDA AUTISM CHARTER SCHOOL INC | AA63: Combination Elementary & Secondary | AB63: 158 | AC63: 120 | AD63: 0.7594936709 | AE63: 0.7594936709 | AF63: A | AG63: SW | AH63: Matching
A64: 133541 | B64: 13 | C64: MIAMI-DADE | D64: 3541 | E64: ROBERT RUSSA MOTON ELEMENTARY SCHOOL | F64: 8 | G64: PREK-5 | H64: 1 | I64: Elementary | J64: Z | K64: NO | L64: NO | M64: Z | N64: NO | O64: 198 | P64: 0 | Q64: 1 | R64: 181 | S64: 14 | T64: 0 | U64: 0 | V64: 0 | W64: 13 | X64: MIAMI-DADE | Y64: 3541 | Z64: ROBERT RUSSA MOTON ELEMENTARY SCHOOL | AA64: Elementary | AB64: 279 | AC64: 278 | AD64: 0.9964157706 | AE64: 0.9964157706 | AF64: A | AG64: SW | AH64: Matching
A65: 134391 | B65: 13 | C65: MIAMI-DADE | D65: 4391 | E65: IRVING & BEATRICE PESKOE K-8 CENTER | F65: 27 | G65: PREK-8 | H65: 4 | I65: Combination Elementary & Secondary | J65: Z | K65: NO | L65: NO | M65: Z | N65: NO | O65: 735 | P65: 24 | Q65: 4 | R65: 596 | S65: 64 | T65: 0 | U65: 0 | V65: 0 | W65: 13 | X65: MIAMI-DADE | Y65: 4391 | Z65: IRVING & BEATRICE PESKOE K-8 CENTER | AA65: Combination Elementary & Secondary | AB65: 850 | AC65: 779 | AD65: 0.9164705882 | AE65: 0.9164705882 | AF65: A | AG65: SW | AH65: Matching
A66: 135029 | B66: 13 | C66: MIAMI-DADE | D66: 5029 | E66: EXCELSIOR PREP CHARTER SCHOOL OF HIALEAH | F66: 25 | G66: K-8 | H66: 4 | I66: Combination Elementary & Secondary | J66: Z | K66: NO | L66: NO | M66: R | N66: YES | O66: 254 | P66: 19 | Q66: 1 | R66: 199 | S66: 12 | T66: 0 | U66: 0 | V66: 0 | W66: 13 | X66: MIAMI-DADE | Y66: 5029 | Z66: EXCELSIOR LANGUAGE ACADEMY OF HIALEAH | AA66: Combination Elementary & Secondary | AB66: 199 | AC66: 180 | AD66: 0.9045226131 | AE66: 0.9045226131 | AF66: A | AG66: SW | AH66: Matching
A67: 135003 | B67: 13 | C67: MIAMI-DADE | D67: 5003 | E67: SOUTH DADE MIDDLE SCHOOL | F67: 53 | G67: 4-8 | H67: 4 | I67: Combination Elementary & Secondary | J67: Z | K67: NO | L67: NO | M67: Z | N67: NO | O67: 1216 | P67: 32 | Q67: 12 | R67: 875 | S67: 222 | T67: 0 | U67: 0 | V67: 0 | W67: 13 | X67: MIAMI-DADE | Y67: 5003 | Z67: SOUTH DADE MIDDLE SCHOOL | AA67: Combination Elementary & Secondary | AB67: 1374 | AC67: 1237 | AD67: 0.9002911208 | AE67: 0.9002911208 | AF67: A | AG67: SW | AH67: Matching
A68: 130101 | B68: 13 | C68: MIAMI-DADE | D68: 0101 | E68: ARCOLA LAKE ELEMENTARY SCHOOL | F68: 8 | G68: PREK-5 | H68: 1 | I68: Elementary | J68: Z | K68: NO | L68: NO | M68: Z | N68: NO | O68: 494 | P68: 9 | Q68: 4 | R68: 369 | S68: 92 | T68: 0 | U68: 0 | V68: 0 | W68: 13 | X68: MIAMI-DADE | Y68: 101 | Z68: ARCOLA LAKE ELEMENTARY SCHOOL | AA68: Elementary | AB68: 517 | AC68: 500 | AD68: 0.9671179884 | AE68: 0.9671179884 | AF68: A | AG68: SW | AH68: Matching
A69: 135481 | B69: 13 | C69: MIAMI-DADE | D69: 5481 | E69: TREASURE ISLAND ELEM. SCHOOL | F69: 8 | G69: PREK-5 | H69: 1 | I69: Elementary | J69: Z | K69: NO | L69: NO | M69: Z | N69: NO | O69: 380 | P69: 21 | Q69: 3 | R69: 210 | S69: 68 | T69: 0 | U69: 0 | V69: 0 | W69: 13 | X69: MIAMI-DADE | Y69: 5481 | Z69: TREASURE ISLAND ELEM. SCHOOL | AA69: Elementary | AB69: 476 | AC69: 363 | AD69: 0.762605042 | AE69: 0.762605042 | AF69: A | AG69: SW | AH69: Matching
A70: 133341 | B70: 13 | C70: MIAMI-DADE | D70: 3341 | E70: MIAMI SHORES ELEMENTARY SCHOOL | F70: 8 | G70: PREK-5 | H70: 1 | I70: Elementary | J70: Z | K70: NO | L70: NO | M70: Z | N70: NO | O70: 575 | P70: 28 | Q70: 7 | R70: 312 | S70: 94 | T70: 0 | U70: 0 | V70: 0 | W70: 13 | X70: MIAMI-DADE | Y70: 3341 | Z70: MIAMI SHORES ELEMENTARY SCHOOL | AA70: Elementary | AB70: 647 | AC70: 506 | AD70: 0.7820710974 | AE70: 0.7820710974 | AF70: A | AG70: SW | AH70: Matching
A71: 133621 | B71: 13 | C71: MIAMI-DADE | D71: 3621 | E71: COCONUT PALM K-8 ACADEMY | F71: 27 | G71: PREK-8 | H71: 4 | I71: Combination Elementary & Secondary | J71: Z | K71: NO | L71: NO | M71: Z | N71: NO | O71: 1167 | P71: 32 | Q71: 8 | R71: 864 | S71: 148 | T71: 0 | U71: 0 | V71: 0 | W71: 13 | X71: MIAMI-DADE | Y71: 3621 | Z71: COCONUT PALM K-8 ACADEMY | AA71: Combination Elementary & Secondary | AB71: 1332 | AC71: 1221 | AD71: 0.9166666667 | AE71: 0.9166666667 | AF71: A | AG71: SW | AH71: Matching
A72: 136057 | B72: 13 | C72: MIAMI-DADE | D72: 6057 | E72: PHOENIX ACADEMY OF EXCELLENCE NORTH | F72: 67 | G72: 6-8 | H72: 2 | I72: Middle/Junior | J72: Z | K72: NO | L72: NO | M72: R | N72: YES | O72: 28 | P72: 0 | Q72: 0 | R72: 27 | S72: 1 | T72: 0 | U72: 0 | V72: 0 | W72: 13 | X72: MIAMI-DADE | Y72: 6057 | Z72: PHOENIX ACADEMY OF EXCELLENCE NORTH | AA72: Middle/Junior | AB72: 35 | AC72: 35 | AD72: 1 | AE72: 1 | AF72: A | AG72: SW | AH72: Matching
A73: 133241 | B73: 13 | C73: MIAMI-DADE | D73: 3241 | E73: MIAMI GARDENS ELEMENTARY SCHL | F73: 8 | G73: PREK-5 | H73: 1 | I73: Elementary | J73: Z | K73: NO | L73: NO | M73: Z | N73: NO | O73: 199 | P73: 12 | Q73: 2 | R73: 145 | S73: 27 | T73: 0 | U73: 0 | V73: 0 | W73: 13 | X73: MIAMI-DADE | Y73: 3241 | Z73: MIAMI GARDENS ELEMENTARY SCHL | AA73: Elementary | AB73: 225 | AC73: 209 | AD73: 0.9288888889 | AE73: 0.9288888889 | AF73: A | AG73: SW | AH73: Matching
A74: 130861 | B74: 13 | C74: MIAMI-DADE | D74: 0861 | E74: COLONIAL DRIVE ELEMENTARY SCHL | F74: 15 | G74: K-5 | H74: 1 | I74: Elementary | J74: Z | K74: NO | L74: NO | M74: Z | N74: NO | O74: 248 | P74: 7 | Q74: 0 | R74: 194 | S74: 30 | T74: 0 | U74: 0 | V74: 0 | W74: 13 | X74: MIAMI-DADE | Y74: 861 | Z74: COLONIAL DRIVE ELEMENTARY SCHL | AA74: Elementary | AB74: 275 | AC74: 252 | AD74: 0.9163636364 | AE74: 0.9163636364 | AF74: A | AG74: SW | AH74: Matching
A75: 133581 | B75: 13 | C75: MIAMI-DADE | D75: 3581 | E75: MYRTLE GROVE K-8 CENTER | F75: 56 | G75: PREK-6 | H75: 1 | I75: Elementary | J75: Z | K75: NO | L75: NO | M75: Z | N75: NO | O75: 316 | P75: 8 | Q75: 7 | R75: 269 | S75: 23 | T75: 0 | U75: 0 | V75: 0 | W75: 13 | X75: MIAMI-DADE | Y75: 3581 | Z75: MYRTLE GROVE K-8 CENTER | AA75: Elementary | AB75: 403 | AC75: 386 | AD75: 0.9578163772 | AE75: 0.9578163772 | AF75: A | AG75: SW | AH75: Matching
A76: 136015 | B76: 13 | C76: MIAMI-DADE | D76: 6015 | E76: SLAM CHARTER MIDDLE SCHOOL | F76: 67 | G76: 6-8 | H76: 2 | I76: Middle/Junior | J76: Z | K76: NO | L76: NO | M76: R | N76: YES | O76: 978 | P76: 42 | Q76: 6 | R76: 708 | S76: 166 | T76: 0 | U76: 0 | V76: 0 | W76: 13 | X76: MIAMI-DADE | Y76: 6015 | Z76: SLAM CHARTER MIDDLE SCHOOL | AA76: Middle/Junior | AB76: 897 | AC76: 810 | AD76: 0.9030100334 | AE76: 0.9030100334 | AF76: A | AG76: SW | AH76: Matching
A77: 136013 | B77: 13 | C77: MIAMI-DADE | D77: 6013 | E77: SOMERSET ACADEMY CHARTER MIDDLE S HOMESTEAD | F77: 67 | G77: 6-8 | H77: 2 | I77: Middle/Junior | J77: Z | K77: NO | L77: NO | M77: R | N77: YES | O77: 473 | P77: 41 | Q77: 0 | R77: 37 | S77: 305 | T77: 0 | U77: 0 | V77: 0 | W77: 13 | X77: MIAMI-DADE | Y77: 6013 | Z77: SOMERSET ACADEMY CHARTER MIDDLE S HOMESTEAD | AA77: Middle/Junior | AB77: 556 | AC77: 449 | AD77: 0.8075539568 | AE77: 0.8075539568 | AF77: A | AG77: SW | AH77: Matching
A78: 137351 | B78: 13 | C78: MIAMI-DADE | D78: 7351 | E78: ARTHUR AND POLLY MAYS CONSERVATORY OF THE ART | F78: 69 | G78: 6-12 | H78: 3 | I78: Senior High | J78: Z | K78: NO | L78: NO | M78: Z | N78: NO | O78: 463 | P78: 40 | Q78: 6 | R78: 279 | S78: 71 | T78: 0 | U78: 0 | V78: 0 | W78: 13 | X78: MIAMI-DADE | Y78: 7351 | Z78: ARTHUR AND POLLY MAYS CONSERVATORY OF THE ART | AA78: Senior High | AB78: 542 | AC78: 425 | AD78: 0.7841328413 | AE78: 0.7841328413 | AF78: A | AG78: SW | AH78: Matching
A79: 136091 | B79: 13 | C79: MIAMI-DADE | D79: 6091 | E79: CITRUS GROVE MIDDLE SCHOOL | F79: 67 | G79: 6-8 | H79: 2 | I79: Middle/Junior | J79: Z | K79: NO | L79: NO | M79: Z | N79: NO | O79: 782 | P79: 28 | Q79: 7 | R79: 494 | S79: 144 | T79: 0 | U79: 0 | V79: 0 | W79: 13 | X79: MIAMI-DADE | Y79: 6091 | Z79: CITRUS GROVE MIDDLE SCHOOL | AA79: Middle/Junior | AB79: 786 | AC79: 740 | AD79: 0.941475827 | AE79: 0.941475827 | AF79: A | AG79: SW | AH79: Matching
A80: 134341 | B80: 13 | C80: MIAMI-DADE | D80: 4341 | E80: PARKWAY ELEMENTARY SCHOOL | F80: 8 | G80: PREK-5 | H80: 1 | I80: Elementary | J80: Z | K80: NO | L80: NO | M80: Z | N80: NO | O80: 205 | P80: 6 | Q80: 2 | R80: 149 | S80: 32 | T80: 0 | U80: 0 | V80: 0 | W80: 13 | X80: MIAMI-DADE | Y80: 4341 | Z80: PARKWAY ELEMENTARY SCHOOL | AA80: Elementary | AB80: 245 | AC80: 227 | AD80: 0.9265306122 | AE80: 0.9265306122 | AF80: A | AG80: SW | AH80: Matching
A81: 135041 | B81: 13 | C81: MIAMI-DADE | D81: 5041 | E81: SILVER BLUFF ELEMENTARY SCHOOL | F81: 8 | G81: PREK-5 | H81: 1 | I81: Elementary | J81: Z | K81: NO | L81: NO | M81: Z | N81: NO | O81: 370 | P81: 14 | Q81: 4 | R81: 224 | S81: 60 | T81: 0 | U81: 0 | V81: 0 | W81: 13 | X81: MIAMI-DADE | Y81: 5041 | Z81: SILVER BLUFF ELEMENTARY SCHOOL | AA81: Elementary | AB81: 392 | AC81: 324 | AD81: 0.8265306122 | AE81: 0.8265306122 | AF81: A | AG81: SW | AH81: Matching
A82: 133021 | B82: 13 | C82: MIAMI-DADE | D82: 3021 | E82: JESSE J. MCCRARY, JR. ELEMENTARY SCHOOL | F82: 8 | G82: PREK-5 | H82: 1 | I82: Elementary | J82: Z | K82: NO | L82: NO | M82: Z | N82: NO | O82: 391 | P82: 5 | Q82: 2 | R82: 289 | S82: 84 | T82: 0 | U82: 0 | V82: 0 | W82: 13 | X82: MIAMI-DADE | Y82: 3021 | Z82: JESSE J. MCCRARY, JR. ELEMENTARY SCHOOL | AA82: Elementary | AB82: 463 | AC82: 441 | AD82: 0.9524838013 | AE82: 0.9524838013 | AF82: A | AG82: SW | AH82: Matching
A83: 132401 | B83: 13 | C83: MIAMI-DADE | D83: 2401 | E83: HIBISCUS ELEMENTARY SCHOOL | F83: 8 | G83: PREK-5 | H83: 1 | I83: Elementary | J83: Z | K83: NO | L83: NO | M83: Z | N83: NO | O83: 379 | P83: 16 | Q83: 5 | R83: 274 | S83: 58 | T83: 0 | U83: 0 | V83: 0 | W83: 13 | X83: MIAMI-DADE | Y83: 2401 | Z83: HIBISCUS ELEMENTARY SCHOOL | AA83: Elementary | AB83: 448 | AC83: 410 | AD83: 0.9151785714 | AE83: 0.9151785714 | AF83: A | AG83: SW | AH83: Matching
